Workbook

Sheet Dashboard
B2: Results Summary | D2: 1. Refresh the list of scenarios with available results
B3: Note: All costs are expressed in 2016 dollars | D3: 2. Select a case from this list and click on the "retrieve results" button
D4: Note: If you run RESOLVE and it crashes mid-run, a results folder for that scenario will exist, i.e. show up on list, but won't have actual results
F6: KEY SUMMARY STATS
B7: Scenarios with Results
B8: 30MMT_20200207_2045_2GWPRM_NOOTCEXT | G8: Active Scenario Name | H8: 46MMT_20200207_2045_2GWPRM_NOOTCEXT_NoNewDER
B9: 46MMT_20191104_SolarLimit_PartialOTCExt_Nov_ProposedRSP
B10: 46MMT_20200207_2045_0PRM_NOOTCEXT | G10: Present Value Portfolio Metrics | H10: Unit
B11: 46MMT_20200207_2045_0PRM_OTCEXT | G11: PV Revenue Requirement | H11: $MM | I11: =SUMPRODUCT($J18:$AS18,$J$212:$AS$212) -> 945528.5165
B12: 46MMT_20200207_2045_2GWPRM_NOOTCEXT_NoNewDER | G12: PV Total Resource Cost | H12: $MM | I12: =SUMPRODUCT($J19:$AS19,$J$212:$AS$212) -> 987049.6322
B13: 46MMT_20200207_2045_2GWPRM_NOOTCEXT_RSP_PD | G13: Levelized Revenue Requirement | H13: $MM | I13: =I11/SUM($M$212:$AS$212) -> 50363.53468
B14: 46MMT_20200207_2045_2GWPRM_OTCEXT | G14: Levelized Total Resource Cost | H14: $MM | I14: =I12/SUM($M$212:$AS$212) -> 52575.15507
G15: Levelized Average Rate | H15: cts/kWh | I15: =SUMPRODUCT($J$18:$AS$18,$J$212:$AS$212)/SUMPRODUCT($J$113:$AS$113,$J$212:$AS$212)*100 -> 17.6757084
G17: Annual Portfolio Metrics | H17: Unit | J17: 2015 | K17: =J17+1 -> 2016 | L17: 2017 | M17: 2018 | N17: 2019 | O17: 2020 | P17: 2021 | Q17: 2022 | R17: 2023 | S17: 2024 | T17: 2025 | U17: 2026 | V17: 2027 | W17: 2028 | X17: 2029 | Y17: 2030 | Z17: 2031 | AA17: 2032 | AB17: 2033 | AC17: 2034 | AD17: 2035 | AE17: 2036 | AF17: 2037 | AG17: 2038 | AH17: 2039 | AI17: 2040 | AJ17: 2041 | AK17: 2042 | AL17: 2043 | AM17: 2044 | AN17: 2045 | AO17: 2046 | AP17: 2047 | AQ17: 2048 | AR17: 2049 | AS17: 2050
G18: Revenue Requirement | H18: $MM/yr | J18: =J110 -> 0 | K18: =K110 -> 0 | L18: 0 | M18: 0 | N18: 0 | O18: 40413.16331 | P18: 43229.6139 | Q18: 42842.57503 | R18: 42408.67372 | S18: 42656.70455 | T18: 0 | U18: 41030.71595 | V18: 0 | W18: 0 | X18: 0 | Y18: 42874.45578 | Z18: 0 | AA18: 0 | AB18: 0 | AC18: 0 | AD18: 0 | AE18: 0 | AF18: 0 | AG18: 0 | AH18: 0 | AI18: 0 | AJ18: 0 | AK18: 0 | AL18: 0 | AM18: 0 | AN18: 64893.51768 | AO18: 0 | AP18: 0 | AQ18: 0 | AR18: 0 | AS18: =AS110 -> 0
G19: Total Resource Cost | H19: $MM/yr | J19: =J112 -> 0 | K19: 0 | L19: 0 | M19: 0 | N19: 0 | O19: 42624.7837 | P19: 45441.23429 | Q19: 45054.19542 | R19: 44620.29411 | S19: 44868.32495 | T19: 0 | U19: 43242.33634 | V19: 0 | W19: 0 | X19: 0 | Y19: 45086.07617 | Z19: 0 | AA19: 0 | AB19: 0 | AC19: 0 | AD19: 0 | AE19: 0 | AF19: 0 | AG19: 0 | AH19: 0 | AI19: 0 | AJ19: 0 | AK19: 0 | AL19: 0 | AM19: 0 | AN19: 67105.13808 | AO19: 0 | AP19: 0 | AQ19: 0 | AR19: 0 | AS19: =AS112 -> 0
G20: Average Rate | H20: cts/kWh | J20: =J114 -> 0 | K20: =K114 -> 0 | L20: 0 | M20: 0 | N20: 0 | O20: 18.71433678 | P20: 19.62477724 | Q20: 19.03616743 | R20: 18.47722078 | S20: 18.27489505 | T20: 0 | U20: 17.07216538 | V20: 0 | W20: 0 | X20: 0 | Y20: 17.03573565 | Z20: 0 | AA20: 0 | AB20: 0 | AC20: 0 | AD20: 0 | AE20: 0 | AF20: 0 | AG20: 0 | AH20: 0 | AI20: 0 | AJ20: 0 | AK20: 0 | AL20: 0 | AM20: 0 | AN20: 17.62531024 | AO20: 0 | AP20: 0 | AQ20: 0 | AR20: 0 | AS20: =AS114 -> 0
G21: Greenhouse Gas Emissions including BTM CHP | H21: MMtCO2/Yr | J21: =J149 -> 0 | K21: 0 | L21: 0 | M21: 0 | N21: 0 | O21: 45.94920925 | P21: 44.3837327 | Q21: 41.46982462 | R21: 41.42048006 | S21: 43.44216101 | T21: 0 | U21: 43.74497812 | V21: 0 | W21: 0 | X21: 0 | Y21: 37.90000353 | Z21: 0 | AA21: 0 | AB21: 0 | AC21: 0 | AD21: 0 | AE21: 0 | AF21: 0 | AG21: 0 | AH21: 0 | AI21: 0 | AJ21: 0 | AK21: 0 | AL21: 0 | AM21: 0 | AN21: 12.25146444 | AO21: 0 | AP21: 0 | AQ21: 0 | AR21: 0 | AS21: 0
G22: Effective RPS (incl. banked RECs) | H22: % of Retail Sales | J22: =J130 -> 0 | K22: =K130 -> 0 | L22: 0 | M22: 0 | N22: 0 | O22: 0.4274926715 | P22: 0.4482432931 | Q22: 0.4989116036 | R22: 0.5145889279 | S22: 0.5644895978 | T22: 0 | U22: 0.6498871134 | V22: 0 | W22: 0 | X22: 0 | Y22: 0.68001888 | Z22: 0 | AA22: 0 | AB22: 0 | AC22: 0 | AD22: 0 | AE22: 0 | AF22: 0 | AG22: 0 | AH22: 0 | AI22: 0 | AJ22: 0 | AK22: 0 | AL22: 0 | AM22: 0 | AN22: 1.006105583 | AO22: 0 | AP22: 0 | AQ22: 0 | AR22: 0 | AS22: 0
G23: =G132 -> Renewable Curtailment incl. Storage Losses | H23: % of RPS Gen. | J23: =J132 -> 0 | K23: =K132 -> 0 | L23: 0 | M23: 0 | N23: 0 | O23: 0.01144793204 | P23: 0.01958496667 | Q23: 0.02057009447 | R23: 0.02364975749 | S23: 0.02600872705 | T23: 0 | U23: 0.03266032277 | V23: 0 | W23: 0 | X23: 0 | Y23: =Y132 -> 0.05899843276 | Z23: 0 | AA23: 0 | AB23: 0 | AC23: 0 | AD23: 0 | AE23: 0 | AF23: 0 | AG23: 0 | AH23: 0 | AI23: 0 | AJ23: 0 | AK23: 0 | AL23: 0 | AM23: 0 | AN23: 0.1862188399 | AO23: 0 | AP23: 0 | AQ23: 0 | AR23: 0 | AS23: 0
G25: Selected Resource Summary
H27: Unit | J27: 2015 | K27: =J27+1 -> 2016 | L27: 2017 | M27: 2018 | N27: 2019 | O27: 2020 | P27: 2021 | Q27: 2022 | R27: 2023 | S27: 2024 | T27: 2025 | U27: 2026 | V27: 2027 | W27: 2028 | X27: 2029 | Y27: 2030 | Z27: 2031 | AA27: 2032 | AB27: 2033 | AC27: 2034 | AD27: 2035 | AE27: 2036 | AF27: 2037 | AG27: 2038 | AH27: 2039 | AI27: 2040 | AJ27: 2041 | AK27: 2042 | AL27: 2043 | AM27: 2044 | AN27: 2045 | AO27: 2046 | AP27: 2047 | AQ27: 2048 | AR27: 2049 | AS27: 2050
G28: Gas | H28: MW | J28: =SUMIFS('Portfolio Analytics'!E$98:E$125,Lists!$C$5:$C$32,$G28) -> 0 | K28: =SUMIFS('Portfolio Analytics'!F$98:F$125,Lists!$C$5:$C$32,$G28) -> 0 | L28: =SUMIFS('Portfolio Analytics'!G$98:G$125,Lists!$C$5:$C$32,$G28) -> 0 | M28: =SUMIFS('Portfolio Analytics'!H$98:H$125,Lists!$C$5:$C$32,$G28) -> 0 | N28: =SUMIFS('Portfolio Analytics'!I$98:I$125,Lists!$C$5:$C$32,$G28) -> 0 | O28: =SUMIFS('Portfolio Analytics'!J$98:J$125,Lists!$C$5:$C$32,$G28) -> 0 | P28: =SUMIFS('Portfolio Analytics'!K$98:K$125,Lists!$C$5:$C$32,$G28) -> 0 | Q28: =SUMIFS('Portfolio Analytics'!L$98:L$125,Lists!$C$5:$C$32,$G28) -> 0 | R28: =SUMIFS('Portfolio Analytics'!M$98:M$125,Lists!$C$5:$C$32,$G28) -> 0 | S28: =SUMIFS('Portfolio Analytics'!N$98:N$125,Lists!$C$5:$C$32,$G28) -> 0 | T28: =SUMIFS('Portfolio Analytics'!O$98:O$125,Lists!$C$5:$C$32,$G28) -> 0 | U28: =SUMIFS('Portfolio Analytics'!P$98:P$125,Lists!$C$5:$C$32,$G28) -> 0 | V28: =SUMIFS('Portfolio Analytics'!Q$98:Q$125,Lists!$C$5:$C$32,$G28) -> 0 | W28: =SUMIFS('Portfolio Analytics'!R$98:R$125,Lists!$C$5:$C$32,$G28) -> 0 | X28: =SUMIFS('Portfolio Analytics'!S$98:S$125,Lists!$C$5:$C$32,$G28) -> 0 | Y28: =SUMIFS('Portfolio Analytics'!T$98:T$125,Lists!$C$5:$C$32,$G28) -> 0 | Z28: =SUMIFS('Portfolio Analytics'!U$98:U$125,Lists!$C$5:$C$32,$G28) -> 0 | AA28: =SUMIFS('Portfolio Analytics'!V$98:V$125,Lists!$C$5:$C$32,$G28) -> 0 | AB28: =SUMIFS('Portfolio Analytics'!W$98:W$125,Lists!$C$5:$C$32,$G28) -> 0 | AC28: =SUMIFS('Portfolio Analytics'!X$98:X$125,Lists!$C$5:$C$32,$G28) -> 0 | AD28: =SUMIFS('Portfolio Analytics'!Y$98:Y$125,Lists!$C$5:$C$32,$G28) -> 0 | AE28: =SUMIFS('Portfolio Analytics'!Z$98:Z$125,Lists!$C$5:$C$32,$G28) -> 0 | AF28: =SUMIFS('Portfolio Analytics'!AA$98:AA$125,Lists!$C$5:$C$32,$G28) -> 0 | AG28: =SUMIFS('Portfolio Analytics'!AB$98:AB$125,Lists!$C$5:$C$32,$G28) -> 0 | AH28: =SUMIFS('Portfolio Analytics'!AC$98:AC$125,Lists!$C$5:$C$32,$G28) -> 0 | AI28: =SUMIFS('Portfolio Analytics'!AD$98:AD$125,Lists!$C$5:$C$32,$G28) -> 0 | AJ28: =SUMIFS('Portfolio Analytics'!AE$98:AE$125,Lists!$C$5:$C$32,$G28) -> 0 | AK28: =SUMIFS('Portfolio Analytics'!AF$98:AF$125,Lists!$C$5:$C$32,$G28) -> 0 | AL28: =SUMIFS('Portfolio Analytics'!AG$98:AG$125,Lists!$C$5:$C$32,$G28) -> 0 | AM28: =SUMIFS('Portfolio Analytics'!AH$98:AH$125,Lists!$C$5:$C$32,$G28) -> 0 | AN28: =SUMIFS('Portfolio Analytics'!AI$98:AI$125,Lists!$C$5:$C$32,$G28) -> 0 | AO28: =SUMIFS('Portfolio Analytics'!AJ$98:AJ$125,Lists!$C$5:$C$32,$G28) -> 0 | AP28: =SUMIFS('Portfolio Analytics'!AK$98:AK$125,Lists!$C$5:$C$32,$G28) -> 0 | AQ28: =SUMIFS('Portfolio Analytics'!AL$98:AL$125,Lists!$C$5:$C$32,$G28) -> 0 | AR28: =SUMIFS('Portfolio Analytics'!AM$98:AM$125,Lists!$C$5:$C$32,$G28) -> 0 | AS28: =SUMIFS('Portfolio Analytics'!AN$98:AN$125,Lists!$C$5:$C$32,$G28) -> 0
G29: Biomass | H29: MW | J29: =SUMIFS('Portfolio Analytics'!E$98:E$125,Lists!$C$5:$C$32,$G29) -> 0 | K29: =SUMIFS('Portfolio Analytics'!F$98:F$125,Lists!$C$5:$C$32,$G29) -> 0 | L29: =SUMIFS('Portfolio Analytics'!G$98:G$125,Lists!$C$5:$C$32,$G29) -> 0 | M29: =SUMIFS('Portfolio Analytics'!H$98:H$125,Lists!$C$5:$C$32,$G29) -> 0 | N29: =SUMIFS('Portfolio Analytics'!I$98:I$125,Lists!$C$5:$C$32,$G29) -> 0 | O29: =SUMIFS('Portfolio Analytics'!J$98:J$125,Lists!$C$5:$C$32,$G29) -> 0 | P29: =SUMIFS('Portfolio Analytics'!K$98:K$125,Lists!$C$5:$C$32,$G29) -> 0 | Q29: =SUMIFS('Portfolio Analytics'!L$98:L$125,Lists!$C$5:$C$32,$G29) -> 0 | R29: =SUMIFS('Portfolio Analytics'!M$98:M$125,Lists!$C$5:$C$32,$G29) -> 0 | S29: =SUMIFS('Portfolio Analytics'!N$98:N$125,Lists!$C$5:$C$32,$G29) -> 0 | T29: =SUMIFS('Portfolio Analytics'!O$98:O$125,Lists!$C$5:$C$32,$G29) -> 0 | U29: =SUMIFS('Portfolio Analytics'!P$98:P$125,Lists!$C$5:$C$32,$G29) -> 0 | V29: =SUMIFS('Portfolio Analytics'!Q$98:Q$125,Lists!$C$5:$C$32,$G29) -> 0 | W29: =SUMIFS('Portfolio Analytics'!R$98:R$125,Lists!$C$5:$C$32,$G29) -> 0 | X29: =SUMIFS('Portfolio Analytics'!S$98:S$125,Lists!$C$5:$C$32,$G29) -> 0 | Y29: =SUMIFS('Portfolio Analytics'!T$98:T$125,Lists!$C$5:$C$32,$G29) -> 0 | Z29: =SUMIFS('Portfolio Analytics'!U$98:U$125,Lists!$C$5:$C$32,$G29) -> 0 | AA29: =SUMIFS('Portfolio Analytics'!V$98:V$125,Lists!$C$5:$C$32,$G29) -> 0 | AB29: =SUMIFS('Portfolio Analytics'!W$98:W$125,Lists!$C$5:$C$32,$G29) -> 0 | AC29: =SUMIFS('Portfolio Analytics'!X$98:X$125,Lists!$C$5:$C$32,$G29) -> 0 | AD29: =SUMIFS('Portfolio Analytics'!Y$98:Y$125,Lists!$C$5:$C$32,$G29) -> 0 | AE29: =SUMIFS('Portfolio Analytics'!Z$98:Z$125,Lists!$C$5:$C$32,$G29) -> 0 | AF29: =SUMIFS('Portfolio Analytics'!AA$98:AA$125,Lists!$C$5:$C$32,$G29) -> 0 | AG29: =SUMIFS('Portfolio Analytics'!AB$98:AB$125,Lists!$C$5:$C$32,$G29) -> 0 | AH29: =SUMIFS('Portfolio Analytics'!AC$98:AC$125,Lists!$C$5:$C$32,$G29) -> 0 | AI29: =SUMIFS('Portfolio Analytics'!AD$98:AD$125,Lists!$C$5:$C$32,$G29) -> 0 | AJ29: =SUMIFS('Portfolio Analytics'!AE$98:AE$125,Lists!$C$5:$C$32,$G29) -> 0 | AK29: =SUMIFS('Portfolio Analytics'!AF$98:AF$125,Lists!$C$5:$C$32,$G29) -> 0 | AL29: =SUMIFS('Portfolio Analytics'!AG$98:AG$125,Lists!$C$5:$C$32,$G29) -> 0 | AM29: =SUMIFS('Portfolio Analytics'!AH$98:AH$125,Lists!$C$5:$C$32,$G29) -> 0 | AN29: =SUMIFS('Portfolio Analytics'!AI$98:AI$125,Lists!$C$5:$C$32,$G29) -> 1146.85 | AO29: =SUMIFS('Portfolio Analytics'!AJ$98:AJ$125,Lists!$C$5:$C$32,$G29) -> 0 | AP29: =SUMIFS('Portfolio Analytics'!AK$98:AK$125,Lists!$C$5:$C$32,$G29) -> 0 | AQ29: =SUMIFS('Portfolio Analytics'!AL$98:AL$125,Lists!$C$5:$C$32,$G29) -> 0 | AR29: =SUMIFS('Portfolio Analytics'!AM$98:AM$125,Lists!$C$5:$C$32,$G29) -> 0 | AS29: =SUMIFS('Portfolio Analytics'!AN$98:AN$125,Lists!$C$5:$C$32,$G29) -> 0
G30: Geothermal | H30: MW | J30: =SUMIFS('Portfolio Analytics'!E$98:E$125,Lists!$C$5:$C$32,$G30) -> 0 | K30: =SUMIFS('Portfolio Analytics'!F$98:F$125,Lists!$C$5:$C$32,$G30) -> 0 | L30: =SUMIFS('Portfolio Analytics'!G$98:G$125,Lists!$C$5:$C$32,$G30) -> 0 | M30: =SUMIFS('Portfolio Analytics'!H$98:H$125,Lists!$C$5:$C$32,$G30) -> 0 | N30: =SUMIFS('Portfolio Analytics'!I$98:I$125,Lists!$C$5:$C$32,$G30) -> 0 | O30: =SUMIFS('Portfolio Analytics'!J$98:J$125,Lists!$C$5:$C$32,$G30) -> 0 | P30: =SUMIFS('Portfolio Analytics'!K$98:K$125,Lists!$C$5:$C$32,$G30) -> 0 | Q30: =SUMIFS('Portfolio Analytics'!L$98:L$125,Lists!$C$5:$C$32,$G30) -> 0 | R30: =SUMIFS('Portfolio Analytics'!M$98:M$125,Lists!$C$5:$C$32,$G30) -> 0 | S30: =SUMIFS('Portfolio Analytics'!N$98:N$125,Lists!$C$5:$C$32,$G30) -> 135 | T30: =SUMIFS('Portfolio Analytics'!O$98:O$125,Lists!$C$5:$C$32,$G30) -> 0 | U30: =SUMIFS('Portfolio Analytics'!P$98:P$125,Lists!$C$5:$C$32,$G30) -> 135 | V30: =SUMIFS('Portfolio Analytics'!Q$98:Q$125,Lists!$C$5:$C$32,$G30) -> 0 | W30: =SUMIFS('Portfolio Analytics'!R$98:R$125,Lists!$C$5:$C$32,$G30) -> 0 | X30: =SUMIFS('Portfolio Analytics'!S$98:S$125,Lists!$C$5:$C$32,$G30) -> 0 | Y30: =SUMIFS('Portfolio Analytics'!T$98:T$125,Lists!$C$5:$C$32,$G30) -> 135 | Z30: =SUMIFS('Portfolio Analytics'!U$98:U$125,Lists!$C$5:$C$32,$G30) -> 0 | AA30: =SUMIFS('Portfolio Analytics'!V$98:V$125,Lists!$C$5:$C$32,$G30) -> 0 | AB30: =SUMIFS('Portfolio Analytics'!W$98:W$125,Lists!$C$5:$C$32,$G30) -> 0 | AC30: =SUMIFS('Portfolio Analytics'!X$98:X$125,Lists!$C$5:$C$32,$G30) -> 0 | AD30: =SUMIFS('Portfolio Analytics'!Y$98:Y$125,Lists!$C$5:$C$32,$G30) -> 0 | AE30: =SUMIFS('Portfolio Analytics'!Z$98:Z$125,Lists!$C$5:$C$32,$G30) -> 0 | AF30: =SUMIFS('Portfolio Analytics'!AA$98:AA$125,Lists!$C$5:$C$32,$G30) -> 0 | AG30: =SUMIFS('Portfolio Analytics'!AB$98:AB$125,Lists!$C$5:$C$32,$G30) -> 0 | AH30: =SUMIFS('Portfolio Analytics'!AC$98:AC$125,Lists!$C$5:$C$32,$G30) -> 0 | AI30: =SUMIFS('Portfolio Analytics'!AD$98:AD$125,Lists!$C$5:$C$32,$G30) -> 0 | AJ30: =SUMIFS('Portfolio Analytics'!AE$98:AE$125,Lists!$C$5:$C$32,$G30) -> 0 | AK30: =SUMIFS('Portfolio Analytics'!AF$98:AF$125,Lists!$C$5:$C$32,$G30) -> 0 | AL30: =SUMIFS('Portfolio Analytics'!AG$98:AG$125,Lists!$C$5:$C$32,$G30) -> 0 | AM30: =SUMIFS('Portfolio Analytics'!AH$98:AH$125,Lists!$C$5:$C$32,$G30) -> 0 | AN30: =SUMIFS('Portfolio Analytics'!AI$98:AI$125,Lists!$C$5:$C$32,$G30) -> 2332.1 | AO30: =SUMIFS('Portfolio Analytics'!AJ$98:AJ$125,Lists!$C$5:$C$32,$G30) -> 0 | AP30: =SUMIFS('Portfolio Analytics'!AK$98:AK$125,Lists!$C$5:$C$32,$G30) -> 0 | AQ30: =SUMIFS('Portfolio Analytics'!AL$98:AL$125,Lists!$C$5:$C$32,$G30) -> 0 | AR30: =SUMIFS('Portfolio Analytics'!AM$98:AM$125,Lists!$C$5:$C$32,$G30) -> 0 | AS30: =SUMIFS('Portfolio Analytics'!AN$98:AN$125,Lists!$C$5:$C$32,$G30) -> 0
G31: Hydro (Small) | H31: MW | J31: =SUMIFS('Portfolio Analytics'!E$98:E$125,Lists!$C$5:$C$32,$G31) -> 0 | K31: =SUMIFS('Portfolio Analytics'!F$98:F$125,Lists!$C$5:$C$32,$G31) -> 0 | L31: =SUMIFS('Portfolio Analytics'!G$98:G$125,Lists!$C$5:$C$32,$G31) -> 0 | M31: =SUMIFS('Portfolio Analytics'!H$98:H$125,Lists!$C$5:$C$32,$G31) -> 0 | N31: =SUMIFS('Portfolio Analytics'!I$98:I$125,Lists!$C$5:$C$32,$G31) -> 0 | O31: =SUMIFS('Portfolio Analytics'!J$98:J$125,Lists!$C$5:$C$32,$G31) -> 0 | P31: =SUMIFS('Portfolio Analytics'!K$98:K$125,Lists!$C$5:$C$32,$G31) -> 0 | Q31: =SUMIFS('Portfolio Analytics'!L$98:L$125,Lists!$C$5:$C$32,$G31) -> 0 | R31: =SUMIFS('Portfolio Analytics'!M$98:M$125,Lists!$C$5:$C$32,$G31) -> 0 | S31: =SUMIFS('Portfolio Analytics'!N$98:N$125,Lists!$C$5:$C$32,$G31) -> 0 | T31: =SUMIFS('Portfolio Analytics'!O$98:O$125,Lists!$C$5:$C$32,$G31) -> 0 | U31: =SUMIFS('Portfolio Analytics'!P$98:P$125,Lists!$C$5:$C$32,$G31) -> 0 | V31: =SUMIFS('Portfolio Analytics'!Q$98:Q$125,Lists!$C$5:$C$32,$G31) -> 0 | W31: =SUMIFS('Portfolio Analytics'!R$98:R$125,Lists!$C$5:$C$32,$G31) -> 0 | X31: =SUMIFS('Portfolio Analytics'!S$98:S$125,Lists!$C$5:$C$32,$G31) -> 0 | Y31: =SUMIFS('Portfolio Analytics'!T$98:T$125,Lists!$C$5:$C$32,$G31) -> 0 | Z31: =SUMIFS('Portfolio Analytics'!U$98:U$125,Lists!$C$5:$C$32,$G31) -> 0 | AA31: =SUMIFS('Portfolio Analytics'!V$98:V$125,Lists!$C$5:$C$32,$G31) -> 0 | AB31: =SUMIFS('Portfolio Analytics'!W$98:W$125,Lists!$C$5:$C$32,$G31) -> 0 | AC31: =SUMIFS('Portfolio Analytics'!X$98:X$125,Lists!$C$5:$C$32,$G31) -> 0 | AD31: =SUMIFS('Portfolio Analytics'!Y$98:Y$125,Lists!$C$5:$C$32,$G31) -> 0 | AE31: =SUMIFS('Portfolio Analytics'!Z$98:Z$125,Lists!$C$5:$C$32,$G31) -> 0 | AF31: =SUMIFS('Portfolio Analytics'!AA$98:AA$125,Lists!$C$5:$C$32,$G31) -> 0 | AG31: =SUMIFS('Portfolio Analytics'!AB$98:AB$125,Lists!$C$5:$C$32,$G31) -> 0 | AH31: =SUMIFS('Portfolio Analytics'!AC$98:AC$125,Lists!$C$5:$C$32,$G31) -> 0 | AI31: =SUMIFS('Portfolio Analytics'!AD$98:AD$125,Lists!$C$5:$C$32,$G31) -> 0 | AJ31: =SUMIFS('Portfolio Analytics'!AE$98:AE$125,Lists!$C$5:$C$32,$G31) -> 0 | AK31: =SUMIFS('Portfolio Analytics'!AF$98:AF$125,Lists!$C$5:$C$32,$G31) -> 0 | AL31: =SUMIFS('Portfolio Analytics'!AG$98:AG$125,Lists!$C$5:$C$32,$G31) -> 0 | AM31: =SUMIFS('Portfolio Analytics'!AH$98:AH$125,Lists!$C$5:$C$32,$G31) -> 0 | AN31: =SUMIFS('Portfolio Analytics'!AI$98:AI$125,Lists!$C$5:$C$32,$G31) -> 0 | AO31: =SUMIFS('Portfolio Analytics'!AJ$98:AJ$125,Lists!$C$5:$C$32,$G31) -> 0 | AP31: =SUMIFS('Portfolio Analytics'!AK$98:AK$125,Lists!$C$5:$C$32,$G31) -> 0 | AQ31: =SUMIFS('Portfolio Analytics'!AL$98:AL$125,Lists!$C$5:$C$32,$G31) -> 0 | AR31: =SUMIFS('Portfolio Analytics'!AM$98:AM$125,Lists!$C$5:$C$32,$G31) -> 0 | AS31: =SUMIFS('Portfolio Analytics'!AN$98:AN$125,Lists!$C$5:$C$32,$G31) -> 0
G32: Wind | H32: MW | J32: =SUMIFS('Portfolio Analytics'!E$98:E$125,Lists!$C$5:$C$32,$G32) -> 0 | K32: =SUMIFS('Portfolio Analytics'!F$98:F$125,Lists!$C$5:$C$32,$G32) -> 0 | L32: =SUMIFS('Portfolio Analytics'!G$98:G$125,Lists!$C$5:$C$32,$G32) -> 0 | M32: =SUMIFS('Portfolio Analytics'!H$98:H$125,Lists!$C$5:$C$32,$G32) -> 0 | N32: =SUMIFS('Portfolio Analytics'!I$98:I$125,Lists!$C$5:$C$32,$G32) -> 0 | O32: =SUMIFS('Portfolio Analytics'!J$98:J$125,Lists!$C$5:$C$32,$G32) -> 0 | P32: =SUMIFS('Portfolio Analytics'!K$98:K$125,Lists!$C$5:$C$32,$G32) -> 34 | Q32: =SUMIFS('Portfolio Analytics'!L$98:L$125,Lists!$C$5:$C$32,$G32) -> 2931.83 | R32: =SUMIFS('Portfolio Analytics'!M$98:M$125,Lists!$C$5:$C$32,$G32) -> 3218.83 | S32: =SUMIFS('Portfolio Analytics'!N$98:N$125,Lists!$C$5:$C$32,$G32) -> 3311 | T32: =SUMIFS('Portfolio Analytics'!O$98:O$125,Lists!$C$5:$C$32,$G32) -> 0 | U32: =SUMIFS('Portfolio Analytics'!P$98:P$125,Lists!$C$5:$C$32,$G32) -> 3311 | V32: =SUMIFS('Portfolio Analytics'!Q$98:Q$125,Lists!$C$5:$C$32,$G32) -> 0 | W32: =SUMIFS('Portfolio Analytics'!R$98:R$125,Lists!$C$5:$C$32,$G32) -> 0 | X32: =SUMIFS('Portfolio Analytics'!S$98:S$125,Lists!$C$5:$C$32,$G32) -> 0 | Y32: =SUMIFS('Portfolio Analytics'!T$98:T$125,Lists!$C$5:$C$32,$G32) -> 4700.93 | Z32: =SUMIFS('Portfolio Analytics'!U$98:U$125,Lists!$C$5:$C$32,$G32) -> 0 | AA32: =SUMIFS('Portfolio Analytics'!V$98:V$125,Lists!$C$5:$C$32,$G32) -> 0 | AB32: =SUMIFS('Portfolio Analytics'!W$98:W$125,Lists!$C$5:$C$32,$G32) -> 0 | AC32: =SUMIFS('Portfolio Analytics'!X$98:X$125,Lists!$C$5:$C$32,$G32) -> 0 | AD32: =SUMIFS('Portfolio Analytics'!Y$98:Y$125,Lists!$C$5:$C$32,$G32) -> 0 | AE32: =SUMIFS('Portfolio Analytics'!Z$98:Z$125,Lists!$C$5:$C$32,$G32) -> 0 | AF32: =SUMIFS('Portfolio Analytics'!AA$98:AA$125,Lists!$C$5:$C$32,$G32) -> 0 | AG32: =SUMIFS('Portfolio Analytics'!AB$98:AB$125,Lists!$C$5:$C$32,$G32) -> 0 | AH32: =SUMIFS('Portfolio Analytics'!AC$98:AC$125,Lists!$C$5:$C$32,$G32) -> 0 | AI32: =SUMIFS('Portfolio Analytics'!AD$98:AD$125,Lists!$C$5:$C$32,$G32) -> 0 | AJ32: =SUMIFS('Portfolio Analytics'!AE$98:AE$125,Lists!$C$5:$C$32,$G32) -> 0 | AK32: =SUMIFS('Portfolio Analytics'!AF$98:AF$125,Lists!$C$5:$C$32,$G32) -> 0 | AL32: =SUMIFS('Portfolio Analytics'!AG$98:AG$125,Lists!$C$5:$C$32,$G32) -> 0 | AM32: =SUMIFS('Portfolio Analytics'!AH$98:AH$125,Lists!$C$5:$C$32,$G32) -> 0 | AN32: =SUMIFS('Portfolio Analytics'!AI$98:AI$125,Lists!$C$5:$C$32,$G32) -> 5200.93 | AO32: =SUMIFS('Portfolio Analytics'!AJ$98:AJ$125,Lists!$C$5:$C$32,$G32) -> 0 | AP32: =SUMIFS('Portfolio Analytics'!AK$98:AK$125,Lists!$C$5:$C$32,$G32) -> 0 | AQ32: =SUMIFS('Portfolio Analytics'!AL$98:AL$125,Lists!$C$5:$C$32,$G32) -> 0 | AR32: =SUMIFS('Portfolio Analytics'!AM$98:AM$125,Lists!$C$5:$C$32,$G32) -> 0 | AS32: =SUMIFS('Portfolio Analytics'!AN$98:AN$125,Lists!$C$5:$C$32,$G32) -> 0
G33: Wind OOS New Tx | H33: MW | J33: =SUMIFS('Portfolio Analytics'!E$98:E$125,Lists!$C$5:$C$32,$G33) -> 0 | K33: =SUMIFS('Portfolio Analytics'!F$98:F$125,Lists!$C$5:$C$32,$G33) -> 0 | L33: =SUMIFS('Portfolio Analytics'!G$98:G$125,Lists!$C$5:$C$32,$G33) -> 0 | M33: =SUMIFS('Portfolio Analytics'!H$98:H$125,Lists!$C$5:$C$32,$G33) -> 0 | N33: =SUMIFS('Portfolio Analytics'!I$98:I$125,Lists!$C$5:$C$32,$G33) -> 0 | O33: =SUMIFS('Portfolio Analytics'!J$98:J$125,Lists!$C$5:$C$32,$G33) -> 0 | P33: =SUMIFS('Portfolio Analytics'!K$98:K$125,Lists!$C$5:$C$32,$G33) -> 0 | Q33: =SUMIFS('Portfolio Analytics'!L$98:L$125,Lists!$C$5:$C$32,$G33) -> 0 | R33: =SUMIFS('Portfolio Analytics'!M$98:M$125,Lists!$C$5:$C$32,$G33) -> 0 | S33: =SUMIFS('Portfolio Analytics'!N$98:N$125,Lists!$C$5:$C$32,$G33) -> 0 | T33: =SUMIFS('Portfolio Analytics'!O$98:O$125,Lists!$C$5:$C$32,$G33) -> 0 | U33: =SUMIFS('Portfolio Analytics'!P$98:P$125,Lists!$C$5:$C$32,$G33) -> 0 | V33: =SUMIFS('Portfolio Analytics'!Q$98:Q$125,Lists!$C$5:$C$32,$G33) -> 0 | W33: =SUMIFS('Portfolio Analytics'!R$98:R$125,Lists!$C$5:$C$32,$G33) -> 0 | X33: =SUMIFS('Portfolio Analytics'!S$98:S$125,Lists!$C$5:$C$32,$G33) -> 0 | Y33: =SUMIFS('Portfolio Analytics'!T$98:T$125,Lists!$C$5:$C$32,$G33) -> 1336.87 | Z33: =SUMIFS('Portfolio Analytics'!U$98:U$125,Lists!$C$5:$C$32,$G33) -> 0 | AA33: =SUMIFS('Portfolio Analytics'!V$98:V$125,Lists!$C$5:$C$32,$G33) -> 0 | AB33: =SUMIFS('Portfolio Analytics'!W$98:W$125,Lists!$C$5:$C$32,$G33) -> 0 | AC33: =SUMIFS('Portfolio Analytics'!X$98:X$125,Lists!$C$5:$C$32,$G33) -> 0 | AD33: =SUMIFS('Portfolio Analytics'!Y$98:Y$125,Lists!$C$5:$C$32,$G33) -> 0 | AE33: =SUMIFS('Portfolio Analytics'!Z$98:Z$125,Lists!$C$5:$C$32,$G33) -> 0 | AF33: =SUMIFS('Portfolio Analytics'!AA$98:AA$125,Lists!$C$5:$C$32,$G33) -> 0 | AG33: =SUMIFS('Portfolio Analytics'!AB$98:AB$125,Lists!$C$5:$C$32,$G33) -> 0 | AH33: =SUMIFS('Portfolio Analytics'!AC$98:AC$125,Lists!$C$5:$C$32,$G33) -> 0 | AI33: =SUMIFS('Portfolio Analytics'!AD$98:AD$125,Lists!$C$5:$C$32,$G33) -> 0 | AJ33: =SUMIFS('Portfolio Analytics'!AE$98:AE$125,Lists!$C$5:$C$32,$G33) -> 0 | AK33: =SUMIFS('Portfolio Analytics'!AF$98:AF$125,Lists!$C$5:$C$32,$G33) -> 0 | AL33: =SUMIFS('Portfolio Analytics'!AG$98:AG$125,Lists!$C$5:$C$32,$G33) -> 0 | AM33: =SUMIFS('Portfolio Analytics'!AH$98:AH$125,Lists!$C$5:$C$32,$G33) -> 0 | AN33: =SUMIFS('Portfolio Analytics'!AI$98:AI$125,Lists!$C$5:$C$32,$G33) -> 3000 | AO33: =SUMIFS('Portfolio Analytics'!AJ$98:AJ$125,Lists!$C$5:$C$32,$G33) -> 0 | AP33: =SUMIFS('Portfolio Analytics'!AK$98:AK$125,Lists!$C$5:$C$32,$G33) -> 0 | AQ33: =SUMIFS('Portfolio Analytics'!AL$98:AL$125,Lists!$C$5:$C$32,$G33) -> 0 | AR33: =SUMIFS('Portfolio Analytics'!AM$98:AM$125,Lists!$C$5:$C$32,$G33) -> 0 | AS33: =SUMIFS('Portfolio Analytics'!AN$98:AN$125,Lists!$C$5:$C$32,$G33) -> 0
G34: Offshore Wind | H34: MW | J34: =SUMIFS('Portfolio Analytics'!E$98:E$125,Lists!$C$5:$C$32,$G34) -> 0 | K34: =SUMIFS('Portfolio Analytics'!F$98:F$125,Lists!$C$5:$C$32,$G34) -> 0 | L34: =SUMIFS('Portfolio Analytics'!G$98:G$125,Lists!$C$5:$C$32,$G34) -> 0 | M34: =SUMIFS('Portfolio Analytics'!H$98:H$125,Lists!$C$5:$C$32,$G34) -> 0 | N34: =SUMIFS('Portfolio Analytics'!I$98:I$125,Lists!$C$5:$C$32,$G34) -> 0 | O34: =SUMIFS('Portfolio Analytics'!J$98:J$125,Lists!$C$5:$C$32,$G34) -> 0 | P34: =SUMIFS('Portfolio Analytics'!K$98:K$125,Lists!$C$5:$C$32,$G34) -> 0 | Q34: =SUMIFS('Portfolio Analytics'!L$98:L$125,Lists!$C$5:$C$32,$G34) -> 0 | R34: =SUMIFS('Portfolio Analytics'!M$98:M$125,Lists!$C$5:$C$32,$G34) -> 0 | S34: =SUMIFS('Portfolio Analytics'!N$98:N$125,Lists!$C$5:$C$32,$G34) -> 0 | T34: =SUMIFS('Portfolio Analytics'!O$98:O$125,Lists!$C$5:$C$32,$G34) -> 0 | U34: =SUMIFS('Portfolio Analytics'!P$98:P$125,Lists!$C$5:$C$32,$G34) -> 0 | V34: =SUMIFS('Portfolio Analytics'!Q$98:Q$125,Lists!$C$5:$C$32,$G34) -> 0 | W34: =SUMIFS('Portfolio Analytics'!R$98:R$125,Lists!$C$5:$C$32,$G34) -> 0 | X34: =SUMIFS('Portfolio Analytics'!S$98:S$125,Lists!$C$5:$C$32,$G34) -> 0 | Y34: =SUMIFS('Portfolio Analytics'!T$98:T$125,Lists!$C$5:$C$32,$G34) -> 0 | Z34: =SUMIFS('Portfolio Analytics'!U$98:U$125,Lists!$C$5:$C$32,$G34) -> 0 | AA34: =SUMIFS('Portfolio Analytics'!V$98:V$125,Lists!$C$5:$C$32,$G34) -> 0 | AB34: =SUMIFS('Portfolio Analytics'!W$98:W$125,Lists!$C$5:$C$32,$G34) -> 0 | AC34: =SUMIFS('Portfolio Analytics'!X$98:X$125,Lists!$C$5:$C$32,$G34) -> 0 | AD34: =SUMIFS('Portfolio Analytics'!Y$98:Y$125,Lists!$C$5:$C$32,$G34) -> 0 | AE34: =SUMIFS('Portfolio Analytics'!Z$98:Z$125,Lists!$C$5:$C$32,$G34) -> 0 | AF34: =SUMIFS('Portfolio Analytics'!AA$98:AA$125,Lists!$C$5:$C$32,$G34) -> 0 | AG34: =SUMIFS('Portfolio Analytics'!AB$98:AB$125,Lists!$C$5:$C$32,$G34) -> 0 | AH34: =SUMIFS('Portfolio Analytics'!AC$98:AC$125,Lists!$C$5:$C$32,$G34) -> 0 | AI34: =SUMIFS('Portfolio Analytics'!AD$98:AD$125,Lists!$C$5:$C$32,$G34) -> 0 | AJ34: =SUMIFS('Portfolio Analytics'!AE$98:AE$125,Lists!$C$5:$C$32,$G34) -> 0 | AK34: =SUMIFS('Portfolio Analytics'!AF$98:AF$125,Lists!$C$5:$C$32,$G34) -> 0 | AL34: =SUMIFS('Portfolio Analytics'!AG$98:AG$125,Lists!$C$5:$C$32,$G34) -> 0 | AM34: =SUMIFS('Portfolio Analytics'!AH$98:AH$125,Lists!$C$5:$C$32,$G34) -> 0 | AN34: =SUMIFS('Portfolio Analytics'!AI$98:AI$125,Lists!$C$5:$C$32,$G34) -> 0 | AO34: =SUMIFS('Portfolio Analytics'!AJ$98:AJ$125,Lists!$C$5:$C$32,$G34) -> 0 | AP34: =SUMIFS('Portfolio Analytics'!AK$98:AK$125,Lists!$C$5:$C$32,$G34) -> 0 | AQ34: =SUMIFS('Portfolio Analytics'!AL$98:AL$125,Lists!$C$5:$C$32,$G34) -> 0 | AR34: =SUMIFS('Portfolio Analytics'!AM$98:AM$125,Lists!$C$5:$C$32,$G34) -> 0 | AS34: =SUMIFS('Portfolio Analytics'!AN$98:AN$125,Lists!$C$5:$C$32,$G34) -> 0
G35: Solar | H35: MW | J35: =SUMIFS('Portfolio Analytics'!E$98:E$125,Lists!$C$5:$C$32,$G35) -> 0 | K35: =SUMIFS('Portfolio Analytics'!F$98:F$125,Lists!$C$5:$C$32,$G35) -> 0 | L35: =SUMIFS('Portfolio Analytics'!G$98:G$125,Lists!$C$5:$C$32,$G35) -> 0 | M35: =SUMIFS('Portfolio Analytics'!H$98:H$125,Lists!$C$5:$C$32,$G35) -> 0 | N35: =SUMIFS('Portfolio Analytics'!I$98:I$125,Lists!$C$5:$C$32,$G35) -> 0 | O35: =SUMIFS('Portfolio Analytics'!J$98:J$125,Lists!$C$5:$C$32,$G35) -> 2000 | P35: =SUMIFS('Portfolio Analytics'!K$98:K$125,Lists!$C$5:$C$32,$G35) -> 4000 | Q35: =SUMIFS('Portfolio Analytics'!L$98:L$125,Lists!$C$5:$C$32,$G35) -> 6000 | R35: =SUMIFS('Portfolio Analytics'!M$98:M$125,Lists!$C$5:$C$32,$G35) -> 8000 | S35: =SUMIFS('Portfolio Analytics'!N$98:N$125,Lists!$C$5:$C$32,$G35) -> 10731.52 | T35: =SUMIFS('Portfolio Analytics'!O$98:O$125,Lists!$C$5:$C$32,$G35) -> 0 | U35: =SUMIFS('Portfolio Analytics'!P$98:P$125,Lists!$C$5:$C$32,$G35) -> 15947.49 | V35: =SUMIFS('Portfolio Analytics'!Q$98:Q$125,Lists!$C$5:$C$32,$G35) -> 0 | W35: =SUMIFS('Portfolio Analytics'!R$98:R$125,Lists!$C$5:$C$32,$G35) -> 0 | X35: =SUMIFS('Portfolio Analytics'!S$98:S$125,Lists!$C$5:$C$32,$G35) -> 0 | Y35: =SUMIFS('Portfolio Analytics'!T$98:T$125,Lists!$C$5:$C$32,$G35) -> 26259.07 | Z35: =SUMIFS('Portfolio Analytics'!U$98:U$125,Lists!$C$5:$C$32,$G35) -> 0 | AA35: =SUMIFS('Portfolio Analytics'!V$98:V$125,Lists!$C$5:$C$32,$G35) -> 0 | AB35: =SUMIFS('Portfolio Analytics'!W$98:W$125,Lists!$C$5:$C$32,$G35) -> 0 | AC35: =SUMIFS('Portfolio Analytics'!X$98:X$125,Lists!$C$5:$C$32,$G35) -> 0 | AD35: =SUMIFS('Portfolio Analytics'!Y$98:Y$125,Lists!$C$5:$C$32,$G35) -> 0 | AE35: =SUMIFS('Portfolio Analytics'!Z$98:Z$125,Lists!$C$5:$C$32,$G35) -> 0 | AF35: =SUMIFS('Portfolio Analytics'!AA$98:AA$125,Lists!$C$5:$C$32,$G35) -> 0 | AG35: =SUMIFS('Portfolio Analytics'!AB$98:AB$125,Lists!$C$5:$C$32,$G35) -> 0 | AH35: =SUMIFS('Portfolio Analytics'!AC$98:AC$125,Lists!$C$5:$C$32,$G35) -> 0 | AI35: =SUMIFS('Portfolio Analytics'!AD$98:AD$125,Lists!$C$5:$C$32,$G35) -> 0 | AJ35: =SUMIFS('Portfolio Analytics'!AE$98:AE$125,Lists!$C$5:$C$32,$G35) -> 0 | AK35: =SUMIFS('Portfolio Analytics'!AF$98:AF$125,Lists!$C$5:$C$32,$G35) -> 0 | AL35: =SUMIFS('Portfolio Analytics'!AG$98:AG$125,Lists!$C$5:$C$32,$G35) -> 0 | AM35: =SUMIFS('Portfolio Analytics'!AH$98:AH$125,Lists!$C$5:$C$32,$G35) -> 0 | AN35: =SUMIFS('Portfolio Analytics'!AI$98:AI$125,Lists!$C$5:$C$32,$G35) -> 116508.78 | AO35: =SUMIFS('Portfolio Analytics'!AJ$98:AJ$125,Lists!$C$5:$C$32,$G35) -> 0 | AP35: =SUMIFS('Portfolio Analytics'!AK$98:AK$125,Lists!$C$5:$C$32,$G35) -> 0 | AQ35: =SUMIFS('Portfolio Analytics'!AL$98:AL$125,Lists!$C$5:$C$32,$G35) -> 0 | AR35: =SUMIFS('Portfolio Analytics'!AM$98:AM$125,Lists!$C$5:$C$32,$G35) -> 0 | AS35: =SUMIFS('Portfolio Analytics'!AN$98:AN$125,Lists!$C$5:$C$32,$G35) -> 0
G36: Customer Solar | H36: MW | J36: =SUMIFS('Portfolio Analytics'!E$98:E$125,Lists!$C$5:$C$32,$G36) -> 0 | K36: =SUMIFS('Portfolio Analytics'!F$98:F$125,Lists!$C$5:$C$32,$G36) -> 0 | L36: =SUMIFS('Portfolio Analytics'!G$98:G$125,Lists!$C$5:$C$32,$G36) -> 0 | M36: =SUMIFS('Portfolio Analytics'!H$98:H$125,Lists!$C$5:$C$32,$G36) -> 0 | N36: =SUMIFS('Portfolio Analytics'!I$98:I$125,Lists!$C$5:$C$32,$G36) -> 0 | O36: =SUMIFS('Portfolio Analytics'!J$98:J$125,Lists!$C$5:$C$32,$G36) -> 0 | P36: =SUMIFS('Portfolio Analytics'!K$98:K$125,Lists!$C$5:$C$32,$G36) -> 0 | Q36: =SUMIFS('Portfolio Analytics'!L$98:L$125,Lists!$C$5:$C$32,$G36) -> 0 | R36: =SUMIFS('Portfolio Analytics'!M$98:M$125,Lists!$C$5:$C$32,$G36) -> 0 | S36: =SUMIFS('Portfolio Analytics'!N$98:N$125,Lists!$C$5:$C$32,$G36) -> 0 | T36: =SUMIFS('Portfolio Analytics'!O$98:O$125,Lists!$C$5:$C$32,$G36) -> 0 | U36: =SUMIFS('Portfolio Analytics'!P$98:P$125,Lists!$C$5:$C$32,$G36) -> 0 | V36: =SUMIFS('Portfolio Analytics'!Q$98:Q$125,Lists!$C$5:$C$32,$G36) -> 0 | W36: =SUMIFS('Portfolio Analytics'!R$98:R$125,Lists!$C$5:$C$32,$G36) -> 0 | X36: =SUMIFS('Portfolio Analytics'!S$98:S$125,Lists!$C$5:$C$32,$G36) -> 0 | Y36: =SUMIFS('Portfolio Analytics'!T$98:T$125,Lists!$C$5:$C$32,$G36) -> 0 | Z36: =SUMIFS('Portfolio Analytics'!U$98:U$125,Lists!$C$5:$C$32,$G36) -> 0 | AA36: =SUMIFS('Portfolio Analytics'!V$98:V$125,Lists!$C$5:$C$32,$G36) -> 0 | AB36: =SUMIFS('Portfolio Analytics'!W$98:W$125,Lists!$C$5:$C$32,$G36) -> 0 | AC36: =SUMIFS('Portfolio Analytics'!X$98:X$125,Lists!$C$5:$C$32,$G36) -> 0 | AD36: =SUMIFS('Portfolio Analytics'!Y$98:Y$125,Lists!$C$5:$C$32,$G36) -> 0 | AE36: =SUMIFS('Portfolio Analytics'!Z$98:Z$125,Lists!$C$5:$C$32,$G36) -> 0 | AF36: =SUMIFS('Portfolio Analytics'!AA$98:AA$125,Lists!$C$5:$C$32,$G36) -> 0 | AG36: =SUMIFS('Portfolio Analytics'!AB$98:AB$125,Lists!$C$5:$C$32,$G36) -> 0 | AH36: =SUMIFS('Portfolio Analytics'!AC$98:AC$125,Lists!$C$5:$C$32,$G36) -> 0 | AI36: =SUMIFS('Portfolio Analytics'!AD$98:AD$125,Lists!$C$5:$C$32,$G36) -> 0 | AJ36: =SUMIFS('Portfolio Analytics'!AE$98:AE$125,Lists!$C$5:$C$32,$G36) -> 0 | AK36: =SUMIFS('Portfolio Analytics'!AF$98:AF$125,Lists!$C$5:$C$32,$G36) -> 0 | AL36: =SUMIFS('Portfolio Analytics'!AG$98:AG$125,Lists!$C$5:$C$32,$G36) -> 0 | AM36: =SUMIFS('Portfolio Analytics'!AH$98:AH$125,Lists!$C$5:$C$32,$G36) -> 0 | AN36: =SUMIFS('Portfolio Analytics'!AI$98:AI$125,Lists!$C$5:$C$32,$G36) -> 0 | AO36: =SUMIFS('Portfolio Analytics'!AJ$98:AJ$125,Lists!$C$5:$C$32,$G36) -> 0 | AP36: =SUMIFS('Portfolio Analytics'!AK$98:AK$125,Lists!$C$5:$C$32,$G36) -> 0 | AQ36: =SUMIFS('Portfolio Analytics'!AL$98:AL$125,Lists!$C$5:$C$32,$G36) -> 0 | AR36: =SUMIFS('Portfolio Analytics'!AM$98:AM$125,Lists!$C$5:$C$32,$G36) -> 0 | AS36: =SUMIFS('Portfolio Analytics'!AN$98:AN$125,Lists!$C$5:$C$32,$G36) -> 0
G37: Battery Storage | H37: MW | J37: =SUMIFS('Portfolio Analytics'!E$98:E$125,Lists!$C$5:$C$32,$G37) -> 0 | K37: =SUMIFS('Portfolio Analytics'!F$98:F$125,Lists!$C$5:$C$32,$G37) -> 0 | L37: =SUMIFS('Portfolio Analytics'!G$98:G$125,Lists!$C$5:$C$32,$G37) -> 0 | M37: =SUMIFS('Portfolio Analytics'!H$98:H$125,Lists!$C$5:$C$32,$G37) -> 0 | N37: =SUMIFS('Portfolio Analytics'!I$98:I$125,Lists!$C$5:$C$32,$G37) -> 0 | O37: =SUMIFS('Portfolio Analytics'!J$98:J$125,Lists!$C$5:$C$32,$G37) -> 2446.75 | P37: =SUMIFS('Portfolio Analytics'!K$98:K$125,Lists!$C$5:$C$32,$G37) -> 4726.11 | Q37: =SUMIFS('Portfolio Analytics'!L$98:L$125,Lists!$C$5:$C$32,$G37) -> 4726.11 | R37: =SUMIFS('Portfolio Analytics'!M$98:M$125,Lists!$C$5:$C$32,$G37) -> 4892.49 | S37: =SUMIFS('Portfolio Analytics'!N$98:N$125,Lists!$C$5:$C$32,$G37) -> 6610.8 | T37: =SUMIFS('Portfolio Analytics'!O$98:O$125,Lists!$C$5:$C$32,$G37) -> 0 | U37: =SUMIFS('Portfolio Analytics'!P$98:P$125,Lists!$C$5:$C$32,$G37) -> 9835.33 | V37: =SUMIFS('Portfolio Analytics'!Q$98:Q$125,Lists!$C$5:$C$32,$G37) -> 0 | W37: =SUMIFS('Portfolio Analytics'!R$98:R$125,Lists!$C$5:$C$32,$G37) -> 0 | X37: =SUMIFS('Portfolio Analytics'!S$98:S$125,Lists!$C$5:$C$32,$G37) -> 0 | Y37: =SUMIFS('Portfolio Analytics'!T$98:T$125,Lists!$C$5:$C$32,$G37) -> 12428.34 | Z37: =SUMIFS('Portfolio Analytics'!U$98:U$125,Lists!$C$5:$C$32,$G37) -> 0 | AA37: =SUMIFS('Portfolio Analytics'!V$98:V$125,Lists!$C$5:$C$32,$G37) -> 0 | AB37: =SUMIFS('Portfolio Analytics'!W$98:W$125,Lists!$C$5:$C$32,$G37) -> 0 | AC37: =SUMIFS('Portfolio Analytics'!X$98:X$125,Lists!$C$5:$C$32,$G37) -> 0 | AD37: =SUMIFS('Portfolio Analytics'!Y$98:Y$125,Lists!$C$5:$C$32,$G37) -> 0 | AE37: =SUMIFS('Portfolio Analytics'!Z$98:Z$125,Lists!$C$5:$C$32,$G37) -> 0 | AF37: =SUMIFS('Portfolio Analytics'!AA$98:AA$125,Lists!$C$5:$C$32,$G37) -> 0 | AG37: =SUMIFS('Portfolio Analytics'!AB$98:AB$125,Lists!$C$5:$C$32,$G37) -> 0 | AH37: =SUMIFS('Portfolio Analytics'!AC$98:AC$125,Lists!$C$5:$C$32,$G37) -> 0 | AI37: =SUMIFS('Portfolio Analytics'!AD$98:AD$125,Lists!$C$5:$C$32,$G37) -> 0 | AJ37: =SUMIFS('Portfolio Analytics'!AE$98:AE$125,Lists!$C$5:$C$32,$G37) -> 0 | AK37: =SUMIFS('Portfolio Analytics'!AF$98:AF$125,Lists!$C$5:$C$32,$G37) -> 0 | AL37: =SUMIFS('Portfolio Analytics'!AG$98:AG$125,Lists!$C$5:$C$32,$G37) -> 0 | AM37: =SUMIFS('Portfolio Analytics'!AH$98:AH$125,Lists!$C$5:$C$32,$G37) -> 0 | AN37: =SUMIFS('Portfolio Analytics'!AI$98:AI$125,Lists!$C$5:$C$32,$G37) -> 59216.11 | AO37: =SUMIFS('Portfolio Analytics'!AJ$98:AJ$125,Lists!$C$5:$C$32,$G37) -> 0 | AP37: =SUMIFS('Portfolio Analytics'!AK$98:AK$125,Lists!$C$5:$C$32,$G37) -> 0 | AQ37: =SUMIFS('Portfolio Analytics'!AL$98:AL$125,Lists!$C$5:$C$32,$G37) -> 0 | AR37: =SUMIFS('Portfolio Analytics'!AM$98:AM$125,Lists!$C$5:$C$32,$G37) -> 0 | AS37: =SUMIFS('Portfolio Analytics'!AN$98:AN$125,Lists!$C$5:$C$32,$G37) -> 0
G38: Pumped Storage | H38: MW | J38: =SUMIFS('Portfolio Analytics'!E$98:E$125,Lists!$C$5:$C$32,$G38) -> 0 | K38: =SUMIFS('Portfolio Analytics'!F$98:F$125,Lists!$C$5:$C$32,$G38) -> 0 | L38: =SUMIFS('Portfolio Analytics'!G$98:G$125,Lists!$C$5:$C$32,$G38) -> 0 | M38: =SUMIFS('Portfolio Analytics'!H$98:H$125,Lists!$C$5:$C$32,$G38) -> 0 | N38: =SUMIFS('Portfolio Analytics'!I$98:I$125,Lists!$C$5:$C$32,$G38) -> 0 | O38: =SUMIFS('Portfolio Analytics'!J$98:J$125,Lists!$C$5:$C$32,$G38) -> 0 | P38: =SUMIFS('Portfolio Analytics'!K$98:K$125,Lists!$C$5:$C$32,$G38) -> 0 | Q38: =SUMIFS('Portfolio Analytics'!L$98:L$125,Lists!$C$5:$C$32,$G38) -> 0 | R38: =SUMIFS('Portfolio Analytics'!M$98:M$125,Lists!$C$5:$C$32,$G38) -> 0 | S38: =SUMIFS('Portfolio Analytics'!N$98:N$125,Lists!$C$5:$C$32,$G38) -> 0 | T38: =SUMIFS('Portfolio Analytics'!O$98:O$125,Lists!$C$5:$C$32,$G38) -> 0 | U38: =SUMIFS('Portfolio Analytics'!P$98:P$125,Lists!$C$5:$C$32,$G38) -> 1986.47 | V38: =SUMIFS('Portfolio Analytics'!Q$98:Q$125,Lists!$C$5:$C$32,$G38) -> 0 | W38: =SUMIFS('Portfolio Analytics'!R$98:R$125,Lists!$C$5:$C$32,$G38) -> 0 | X38: =SUMIFS('Portfolio Analytics'!S$98:S$125,Lists!$C$5:$C$32,$G38) -> 0 | Y38: =SUMIFS('Portfolio Analytics'!T$98:T$125,Lists!$C$5:$C$32,$G38) -> 1986.47 | Z38: =SUMIFS('Portfolio Analytics'!U$98:U$125,Lists!$C$5:$C$32,$G38) -> 0 | AA38: =SUMIFS('Portfolio Analytics'!V$98:V$125,Lists!$C$5:$C$32,$G38) -> 0 | AB38: =SUMIFS('Portfolio Analytics'!W$98:W$125,Lists!$C$5:$C$32,$G38) -> 0 | AC38: =SUMIFS('Portfolio Analytics'!X$98:X$125,Lists!$C$5:$C$32,$G38) -> 0 | AD38: =SUMIFS('Portfolio Analytics'!Y$98:Y$125,Lists!$C$5:$C$32,$G38) -> 0 | AE38: =SUMIFS('Portfolio Analytics'!Z$98:Z$125,Lists!$C$5:$C$32,$G38) -> 0 | AF38: =SUMIFS('Portfolio Analytics'!AA$98:AA$125,Lists!$C$5:$C$32,$G38) -> 0 | AG38: =SUMIFS('Portfolio Analytics'!AB$98:AB$125,Lists!$C$5:$C$32,$G38) -> 0 | AH38: =SUMIFS('Portfolio Analytics'!AC$98:AC$125,Lists!$C$5:$C$32,$G38) -> 0 | AI38: =SUMIFS('Portfolio Analytics'!AD$98:AD$125,Lists!$C$5:$C$32,$G38) -> 0 | AJ38: =SUMIFS('Portfolio Analytics'!AE$98:AE$125,Lists!$C$5:$C$32,$G38) -> 0 | AK38: =SUMIFS('Portfolio Analytics'!AF$98:AF$125,Lists!$C$5:$C$32,$G38) -> 0 | AL38: =SUMIFS('Portfolio Analytics'!AG$98:AG$125,Lists!$C$5:$C$32,$G38) -> 0 | AM38: =SUMIFS('Portfolio Analytics'!AH$98:AH$125,Lists!$C$5:$C$32,$G38) -> 0 | AN38: =SUMIFS('Portfolio Analytics'!AI$98:AI$125,Lists!$C$5:$C$32,$G38) -> 1986.47 | AO38: =SUMIFS('Portfolio Analytics'!AJ$98:AJ$125,Lists!$C$5:$C$32,$G38) -> 0 | AP38: =SUMIFS('Portfolio Analytics'!AK$98:AK$125,Lists!$C$5:$C$32,$G38) -> 0 | AQ38: =SUMIFS('Portfolio Analytics'!AL$98:AL$125,Lists!$C$5:$C$32,$G38) -> 0 | AR38: =SUMIFS('Portfolio Analytics'!AM$98:AM$125,Lists!$C$5:$C$32,$G38) -> 0 | AS38: =SUMIFS('Portfolio Analytics'!AN$98:AN$125,Lists!$C$5:$C$32,$G38) -> 0
G39: Shed DR | H39: MW | J39: =SUMIFS('Portfolio Analytics'!E$98:E$125,Lists!$C$5:$C$32,$G39) -> 0 | K39: =SUMIFS('Portfolio Analytics'!F$98:F$125,Lists!$C$5:$C$32,$G39) -> 0 | L39: =SUMIFS('Portfolio Analytics'!G$98:G$125,Lists!$C$5:$C$32,$G39) -> 0 | M39: =SUMIFS('Portfolio Analytics'!H$98:H$125,Lists!$C$5:$C$32,$G39) -> 0 | N39: =SUMIFS('Portfolio Analytics'!I$98:I$125,Lists!$C$5:$C$32,$G39) -> 0 | O39: =SUMIFS('Portfolio Analytics'!J$98:J$125,Lists!$C$5:$C$32,$G39) -> 0 | P39: =SUMIFS('Portfolio Analytics'!K$98:K$125,Lists!$C$5:$C$32,$G39) -> 0 | Q39: =SUMIFS('Portfolio Analytics'!L$98:L$125,Lists!$C$5:$C$32,$G39) -> 0 | R39: =SUMIFS('Portfolio Analytics'!M$98:M$125,Lists!$C$5:$C$32,$G39) -> 0 | S39: =SUMIFS('Portfolio Analytics'!N$98:N$125,Lists!$C$5:$C$32,$G39) -> 0 | T39: =SUMIFS('Portfolio Analytics'!O$98:O$125,Lists!$C$5:$C$32,$G39) -> 0 | U39: =SUMIFS('Portfolio Analytics'!P$98:P$125,Lists!$C$5:$C$32,$G39) -> 0 | V39: =SUMIFS('Portfolio Analytics'!Q$98:Q$125,Lists!$C$5:$C$32,$G39) -> 0 | W39: =SUMIFS('Portfolio Analytics'!R$98:R$125,Lists!$C$5:$C$32,$G39) -> 0 | X39: =SUMIFS('Portfolio Analytics'!S$98:S$125,Lists!$C$5:$C$32,$G39) -> 0 | Y39: =SUMIFS('Portfolio Analytics'!T$98:T$125,Lists!$C$5:$C$32,$G39) -> 0 | Z39: =SUMIFS('Portfolio Analytics'!U$98:U$125,Lists!$C$5:$C$32,$G39) -> 0 | AA39: =SUMIFS('Portfolio Analytics'!V$98:V$125,Lists!$C$5:$C$32,$G39) -> 0 | AB39: =SUMIFS('Portfolio Analytics'!W$98:W$125,Lists!$C$5:$C$32,$G39) -> 0 | AC39: =SUMIFS('Portfolio Analytics'!X$98:X$125,Lists!$C$5:$C$32,$G39) -> 0 | AD39: =SUMIFS('Portfolio Analytics'!Y$98:Y$125,Lists!$C$5:$C$32,$G39) -> 0 | AE39: =SUMIFS('Portfolio Analytics'!Z$98:Z$125,Lists!$C$5:$C$32,$G39) -> 0 | AF39: =SUMIFS('Portfolio Analytics'!AA$98:AA$125,Lists!$C$5:$C$32,$G39) -> 0 | AG39: =SUMIFS('Portfolio Analytics'!AB$98:AB$125,Lists!$C$5:$C$32,$G39) -> 0 | AH39: =SUMIFS('Portfolio Analytics'!AC$98:AC$125,Lists!$C$5:$C$32,$G39) -> 0 | AI39: =SUMIFS('Portfolio Analytics'!AD$98:AD$125,Lists!$C$5:$C$32,$G39) -> 0 | AJ39: =SUMIFS('Portfolio Analytics'!AE$98:AE$125,Lists!$C$5:$C$32,$G39) -> 0 | AK39: =SUMIFS('Portfolio Analytics'!AF$98:AF$125,Lists!$C$5:$C$32,$G39) -> 0 | AL39: =SUMIFS('Portfolio Analytics'!AG$98:AG$125,Lists!$C$5:$C$32,$G39) -> 0 | AM39: =SUMIFS('Portfolio Analytics'!AH$98:AH$125,Lists!$C$5:$C$32,$G39) -> 0 | AN39: =SUMIFS('Portfolio Analytics'!AI$98:AI$125,Lists!$C$5:$C$32,$G39) -> 0 | AO39: =SUMIFS('Portfolio Analytics'!AJ$98:AJ$125,Lists!$C$5:$C$32,$G39) -> 0 | AP39: =SUMIFS('Portfolio Analytics'!AK$98:AK$125,Lists!$C$5:$C$32,$G39) -> 0 | AQ39: =SUMIFS('Portfolio Analytics'!AL$98:AL$125,Lists!$C$5:$C$32,$G39) -> 0 | AR39: =SUMIFS('Portfolio Analytics'!AM$98:AM$125,Lists!$C$5:$C$32,$G39) -> 0 | AS39: =SUMIFS('Portfolio Analytics'!AN$98:AN$125,Lists!$C$5:$C$32,$G39) -> 0
G40: Gas Capacity Not Retained | H40: MW | J40: =-J78 -> 0 | K40: =-K78 -> 0 | L40: 0 | M40: 0 | N40: 0 | O40: 0 | P40: 0 | Q40: 0 | R40: 0 | S40: 0 | T40: 0 | U40: 0 | V40: 0 | W40: 0 | X40: 0 | Y40: 0 | Z40: 0 | AA40: 0 | AB40: 0 | AC40: 0 | AD40: 0 | AE40: 0 | AF40: 0 | AG40: 0 | AH40: 0 | AI40: 0 | AJ40: 0 | AK40: 0 | AL40: 0 | AM40: 0 | AN40: -3769.76 | AO40: =-INDEX('Portfolio Analytics'!$E$315:$AN$315,MATCH(Dashboard!AO$53,'Portfolio Analytics'!$E$295:$AN$295,0)) -> 0 | AP40: =-INDEX('Portfolio Analytics'!$E$315:$AN$315,MATCH(Dashboard!AP$53,'Portfolio Analytics'!$E$295:$AN$295,0)) -> 0 | AQ40: =-INDEX('Portfolio Analytics'!$E$315:$AN$315,MATCH(Dashboard!AQ$53,'Portfolio Analytics'!$E$295:$AN$295,0)) -> 0 | AR40: =-INDEX('Portfolio Analytics'!$E$315:$AN$315,MATCH(Dashboard!AR$53,'Portfolio Analytics'!$E$295:$AN$295,0)) -> 0 | AS40: =-INDEX('Portfolio Analytics'!$E$315:$AN$315,MATCH(Dashboard!AS$53,'Portfolio Analytics'!$E$295:$AN$295,0)) -> 0
G41: In-State Renewables | H41: MW | J41: ='Portfolio Analytics'!E462 -> 0 | K41: ='Portfolio Analytics'!F462 -> 0 | L41: ='Portfolio Analytics'!G462 -> 0 | M41: ='Portfolio Analytics'!H462 -> 0 | N41: ='Portfolio Analytics'!I462 -> 0 | O41: ='Portfolio Analytics'!J462 -> 2000 | P41: ='Portfolio Analytics'!K462 -> 4034 | Q41: ='Portfolio Analytics'!L462 -> 8931.83 | R41: ='Portfolio Analytics'!M462 -> 11218.83 | S41: ='Portfolio Analytics'!N462 -> 14177.52 | T41: ='Portfolio Analytics'!O462 -> 0 | U41: ='Portfolio Analytics'!P462 -> 19393.49 | V41: ='Portfolio Analytics'!Q462 -> 0 | W41: ='Portfolio Analytics'!R462 -> 0 | X41: ='Portfolio Analytics'!S462 -> 0 | Y41: ='Portfolio Analytics'!T462 -> 31095 | Z41: ='Portfolio Analytics'!U462 -> 0 | AA41: ='Portfolio Analytics'!V462 -> 0 | AB41: ='Portfolio Analytics'!W462 -> 0 | AC41: ='Portfolio Analytics'!X462 -> 0 | AD41: ='Portfolio Analytics'!Y462 -> 0 | AE41: ='Portfolio Analytics'!Z462 -> 0 | AF41: ='Portfolio Analytics'!AA462 -> 0 | AG41: ='Portfolio Analytics'!AB462 -> 0 | AH41: ='Portfolio Analytics'!AC462 -> 0 | AI41: ='Portfolio Analytics'!AD462 -> 0 | AJ41: ='Portfolio Analytics'!AE462 -> 0 | AK41: ='Portfolio Analytics'!AF462 -> 0 | AL41: ='Portfolio Analytics'!AG462 -> 0 | AM41: ='Portfolio Analytics'!AH462 -> 0 | AN41: ='Portfolio Analytics'!AI462 -> 125188.66 | AO41: ='Portfolio Analytics'!AJ462 -> 0 | AP41: ='Portfolio Analytics'!AK462 -> 0 | AQ41: ='Portfolio Analytics'!AL462 -> 0 | AR41: ='Portfolio Analytics'!AM462 -> 0 | AS41: ='Portfolio Analytics'!AN462 -> 0
G42: Out-Of-State Renewables | H42: MW | J42: ='Portfolio Analytics'!E463 -> 0 | K42: ='Portfolio Analytics'!F463 -> 0 | L42: ='Portfolio Analytics'!G463 -> 0 | M42: ='Portfolio Analytics'!H463 -> 0 | N42: ='Portfolio Analytics'!I463 -> 0 | O42: ='Portfolio Analytics'!J463 -> 0 | P42: ='Portfolio Analytics'!K463 -> 0 | Q42: ='Portfolio Analytics'!L463 -> 0 | R42: ='Portfolio Analytics'!M463 -> 0 | S42: ='Portfolio Analytics'!N463 -> 0 | T42: ='Portfolio Analytics'!O463 -> 0 | U42: ='Portfolio Analytics'!P463 -> 0 | V42: ='Portfolio Analytics'!Q463 -> 0 | W42: ='Portfolio Analytics'!R463 -> 0 | X42: ='Portfolio Analytics'!S463 -> 0 | Y42: ='Portfolio Analytics'!T463 -> 1336.87 | Z42: ='Portfolio Analytics'!U463 -> 0 | AA42: ='Portfolio Analytics'!V463 -> 0 | AB42: ='Portfolio Analytics'!W463 -> 0 | AC42: ='Portfolio Analytics'!X463 -> 0 | AD42: ='Portfolio Analytics'!Y463 -> 0 | AE42: ='Portfolio Analytics'!Z463 -> 0 | AF42: ='Portfolio Analytics'!AA463 -> 0 | AG42: ='Portfolio Analytics'!AB463 -> 0 | AH42: ='Portfolio Analytics'!AC463 -> 0 | AI42: ='Portfolio Analytics'!AD463 -> 0 | AJ42: ='Portfolio Analytics'!AE463 -> 0 | AK42: ='Portfolio Analytics'!AF463 -> 0 | AL42: ='Portfolio Analytics'!AG463 -> 0 | AM42: ='Portfolio Analytics'!AH463 -> 0 | AN42: ='Portfolio Analytics'!AI463 -> 3000 | AO42: ='Portfolio Analytics'!AJ463 -> 0 | AP42: ='Portfolio Analytics'!AK463 -> 0 | AQ42: ='Portfolio Analytics'!AL463 -> 0 | AR42: ='Portfolio Analytics'!AM463 -> 0 | AS42: ='Portfolio Analytics'!AN463 -> 0
G44: Selected Battery Duration | J44: 2015 | K44: =J44+1 -> 2016 | L44: 2017 | M44: 2018 | N44: 2019 | O44: 2020 | P44: 2021 | Q44: 2022 | R44: 2023 | S44: 2024 | T44: 2025 | U44: 2026 | V44: 2027 | W44: 2028 | X44: 2029 | Y44: 2030 | Z44: 2031 | AA44: 2032 | AB44: 2033 | AC44: 2034 | AD44: 2035 | AE44: 2036 | AF44: 2037 | AG44: 2038 | AH44: 2039 | AI44: 2040 | AJ44: 2041 | AK44: 2042 | AL44: 2043 | AM44: 2044 | AN44: 2045 | AO44: 2046 | AP44: 2047 | AQ44: 2048 | AR44: 2049 | AS44: 2050
G45: Pumped Hydro | H45: hr | J45: =SUMIFS('Portfolio Analytics'!E$29:E$32,'Portfolio Analytics'!$C$29:$C$32,INDEX(Lists!$V$3:$V$6,MATCH(Dashboard!$G45,Lists!$W$3:$W$6,0))) -> 0 | K45: =SUMIFS('Portfolio Analytics'!F$29:F$32,'Portfolio Analytics'!$C$29:$C$32,INDEX(Lists!$V$3:$V$6,MATCH(Dashboard!$G45,Lists!$W$3:$W$6,0))) -> 0 | L45: =SUMIFS('Portfolio Analytics'!G$29:G$32,'Portfolio Analytics'!$C$29:$C$32,INDEX(Lists!$V$3:$V$6,MATCH(Dashboard!$G45,Lists!$W$3:$W$6,0))) -> 0 | M45: =SUMIFS('Portfolio Analytics'!H$29:H$32,'Portfolio Analytics'!$C$29:$C$32,INDEX(Lists!$V$3:$V$6,MATCH(Dashboard!$G45,Lists!$W$3:$W$6,0))) -> 0 | N45: =SUMIFS('Portfolio Analytics'!I$29:I$32,'Portfolio Analytics'!$C$29:$C$32,INDEX(Lists!$V$3:$V$6,MATCH(Dashboard!$G45,Lists!$W$3:$W$6,0))) -> 0 | O45: =SUMIFS('Portfolio Analytics'!J$29:J$32,'Portfolio Analytics'!$C$29:$C$32,INDEX(Lists!$V$3:$V$6,MATCH(Dashboard!$G45,Lists!$W$3:$W$6,0))) -> 0 | P45: =SUMIFS('Portfolio Analytics'!K$29:K$32,'Portfolio Analytics'!$C$29:$C$32,INDEX(Lists!$V$3:$V$6,MATCH(Dashboard!$G45,Lists!$W$3:$W$6,0))) -> 0 | Q45: =SUMIFS('Portfolio Analytics'!L$29:L$32,'Portfolio Analytics'!$C$29:$C$32,INDEX(Lists!$V$3:$V$6,MATCH(Dashboard!$G45,Lists!$W$3:$W$6,0))) -> 0 | R45: =SUMIFS('Portfolio Analytics'!M$29:M$32,'Portfolio Analytics'!$C$29:$C$32,INDEX(Lists!$V$3:$V$6,MATCH(Dashboard!$G45,Lists!$W$3:$W$6,0))) -> 0 | S45: =SUMIFS('Portfolio Analytics'!N$29:N$32,'Portfolio Analytics'!$C$29:$C$32,INDEX(Lists!$V$3:$V$6,MATCH(Dashboard!$G45,Lists!$W$3:$W$6,0))) -> 0 | T45: =SUMIFS('Portfolio Analytics'!O$29:O$32,'Portfolio Analytics'!$C$29:$C$32,INDEX(Lists!$V$3:$V$6,MATCH(Dashboard!$G45,Lists!$W$3:$W$6,0))) -> 0 | U45: =SUMIFS('Portfolio Analytics'!P$29:P$32,'Portfolio Analytics'!$C$29:$C$32,INDEX(Lists!$V$3:$V$6,MATCH(Dashboard!$G45,Lists!$W$3:$W$6,0))) -> 12.00002517 | V45: =SUMIFS('Portfolio Analytics'!Q$29:Q$32,'Portfolio Analytics'!$C$29:$C$32,INDEX(Lists!$V$3:$V$6,MATCH(Dashboard!$G45,Lists!$W$3:$W$6,0))) -> 0 | W45: =SUMIFS('Portfolio Analytics'!R$29:R$32,'Portfolio Analytics'!$C$29:$C$32,INDEX(Lists!$V$3:$V$6,MATCH(Dashboard!$G45,Lists!$W$3:$W$6,0))) -> 0 | X45: =SUMIFS('Portfolio Analytics'!S$29:S$32,'Portfolio Analytics'!$C$29:$C$32,INDEX(Lists!$V$3:$V$6,MATCH(Dashboard!$G45,Lists!$W$3:$W$6,0))) -> 0 | Y45: =SUMIFS('Portfolio Analytics'!T$29:T$32,'Portfolio Analytics'!$C$29:$C$32,INDEX(Lists!$V$3:$V$6,MATCH(Dashboard!$G45,Lists!$W$3:$W$6,0))) -> 12.00002517 | Z45: =SUMIFS('Portfolio Analytics'!U$29:U$32,'Portfolio Analytics'!$C$29:$C$32,INDEX(Lists!$V$3:$V$6,MATCH(Dashboard!$G45,Lists!$W$3:$W$6,0))) -> 0 | AA45: =SUMIFS('Portfolio Analytics'!V$29:V$32,'Portfolio Analytics'!$C$29:$C$32,INDEX(Lists!$V$3:$V$6,MATCH(Dashboard!$G45,Lists!$W$3:$W$6,0))) -> 0 | AB45: =SUMIFS('Portfolio Analytics'!W$29:W$32,'Portfolio Analytics'!$C$29:$C$32,INDEX(Lists!$V$3:$V$6,MATCH(Dashboard!$G45,Lists!$W$3:$W$6,0))) -> 0 | AC45: =SUMIFS('Portfolio Analytics'!X$29:X$32,'Portfolio Analytics'!$C$29:$C$32,INDEX(Lists!$V$3:$V$6,MATCH(Dashboard!$G45,Lists!$W$3:$W$6,0))) -> 0 | AD45: =SUMIFS('Portfolio Analytics'!Y$29:Y$32,'Portfolio Analytics'!$C$29:$C$32,INDEX(Lists!$V$3:$V$6,MATCH(Dashboard!$G45,Lists!$W$3:$W$6,0))) -> 0 | AE45: =SUMIFS('Portfolio Analytics'!Z$29:Z$32,'Portfolio Analytics'!$C$29:$C$32,INDEX(Lists!$V$3:$V$6,MATCH(Dashboard!$G45,Lists!$W$3:$W$6,0))) -> 0 | AF45: =SUMIFS('Portfolio Analytics'!AA$29:AA$32,'Portfolio Analytics'!$C$29:$C$32,INDEX(Lists!$V$3:$V$6,MATCH(Dashboard!$G45,Lists!$W$3:$W$6,0))) -> 0 | AG45: =SUMIFS('Portfolio Analytics'!AB$29:AB$32,'Portfolio Analytics'!$C$29:$C$32,INDEX(Lists!$V$3:$V$6,MATCH(Dashboard!$G45,Lists!$W$3:$W$6,0))) -> 0 | AH45: =SUMIFS('Portfolio Analytics'!AC$29:AC$32,'Portfolio Analytics'!$C$29:$C$32,INDEX(Lists!$V$3:$V$6,MATCH(Dashboard!$G45,Lists!$W$3:$W$6,0))) -> 0 | AI45: =SUMIFS('Portfolio Analytics'!AD$29:AD$32,'Portfolio Analytics'!$C$29:$C$32,INDEX(Lists!$V$3:$V$6,MATCH(Dashboard!$G45,Lists!$W$3:$W$6,0))) -> 0 | AJ45: =SUMIFS('Portfolio Analytics'!AE$29:AE$32,'Portfolio Analytics'!$C$29:$C$32,INDEX(Lists!$V$3:$V$6,MATCH(Dashboard!$G45,Lists!$W$3:$W$6,0))) -> 0 | AK45: =SUMIFS('Portfolio Analytics'!AF$29:AF$32,'Portfolio Analytics'!$C$29:$C$32,INDEX(Lists!$V$3:$V$6,MATCH(Dashboard!$G45,Lists!$W$3:$W$6,0))) -> 0 | AL45: =SUMIFS('Portfolio Analytics'!AG$29:AG$32,'Portfolio Analytics'!$C$29:$C$32,INDEX(Lists!$V$3:$V$6,MATCH(Dashboard!$G45,Lists!$W$3:$W$6,0))) -> 0 | AM45: =SUMIFS('Portfolio Analytics'!AH$29:AH$32,'Portfolio Analytics'!$C$29:$C$32,INDEX(Lists!$V$3:$V$6,MATCH(Dashboard!$G45,Lists!$W$3:$W$6,0))) -> 0 | AN45: =SUMIFS('Portfolio Analytics'!AI$29:AI$32,'Portfolio Analytics'!$C$29:$C$32,INDEX(Lists!$V$3:$V$6,MATCH(Dashboard!$G45,Lists!$W$3:$W$6,0))) -> 12.00002517 | AO45: =SUMIFS('Portfolio Analytics'!AJ$29:AJ$32,'Portfolio Analytics'!$C$29:$C$32,INDEX(Lists!$V$3:$V$6,MATCH(Dashboard!$G45,Lists!$W$3:$W$6,0))) -> 0 | AP45: =SUMIFS('Portfolio Analytics'!AK$29:AK$32,'Portfolio Analytics'!$C$29:$C$32,INDEX(Lists!$V$3:$V$6,MATCH(Dashboard!$G45,Lists!$W$3:$W$6,0))) -> 0 | AQ45: =SUMIFS('Portfolio Analytics'!AL$29:AL$32,'Portfolio Analytics'!$C$29:$C$32,INDEX(Lists!$V$3:$V$6,MATCH(Dashboard!$G45,Lists!$W$3:$W$6,0))) -> 0 | AR45: =SUMIFS('Portfolio Analytics'!AM$29:AM$32,'Portfolio Analytics'!$C$29:$C$32,INDEX(Lists!$V$3:$V$6,MATCH(Dashboard!$G45,Lists!$W$3:$W$6,0))) -> 0 | AS45: =SUMIFS('Portfolio Analytics'!AN$29:AN$32,'Portfolio Analytics'!$C$29:$C$32,INDEX(Lists!$V$3:$V$6,MATCH(Dashboard!$G45,Lists!$W$3:$W$6,0))) -> 0
G46: Li Battery | H46: hr | J46: =SUMIFS('Portfolio Analytics'!E$29:E$32,'Portfolio Analytics'!$C$29:$C$32,INDEX(Lists!$V$3:$V$6,MATCH(Dashboard!$G46,Lists!$W$3:$W$6,0))) -> 0 | K46: =SUMIFS('Portfolio Analytics'!F$29:F$32,'Portfolio Analytics'!$C$29:$C$32,INDEX(Lists!$V$3:$V$6,MATCH(Dashboard!$G46,Lists!$W$3:$W$6,0))) -> 0 | L46: =SUMIFS('Portfolio Analytics'!G$29:G$32,'Portfolio Analytics'!$C$29:$C$32,INDEX(Lists!$V$3:$V$6,MATCH(Dashboard!$G46,Lists!$W$3:$W$6,0))) -> 0 | M46: =SUMIFS('Portfolio Analytics'!H$29:H$32,'Portfolio Analytics'!$C$29:$C$32,INDEX(Lists!$V$3:$V$6,MATCH(Dashboard!$G46,Lists!$W$3:$W$6,0))) -> 0 | N46: =SUMIFS('Portfolio Analytics'!I$29:I$32,'Portfolio Analytics'!$C$29:$C$32,INDEX(Lists!$V$3:$V$6,MATCH(Dashboard!$G46,Lists!$W$3:$W$6,0))) -> 0 | O46: =SUMIFS('Portfolio Analytics'!J$29:J$32,'Portfolio Analytics'!$C$29:$C$32,INDEX(Lists!$V$3:$V$6,MATCH(Dashboard!$G46,Lists!$W$3:$W$6,0))) -> 4 | P46: =SUMIFS('Portfolio Analytics'!K$29:K$32,'Portfolio Analytics'!$C$29:$C$32,INDEX(Lists!$V$3:$V$6,MATCH(Dashboard!$G46,Lists!$W$3:$W$6,0))) -> 4 | Q46: =SUMIFS('Portfolio Analytics'!L$29:L$32,'Portfolio Analytics'!$C$29:$C$32,INDEX(Lists!$V$3:$V$6,MATCH(Dashboard!$G46,Lists!$W$3:$W$6,0))) -> 4 | R46: =SUMIFS('Portfolio Analytics'!M$29:M$32,'Portfolio Analytics'!$C$29:$C$32,INDEX(Lists!$V$3:$V$6,MATCH(Dashboard!$G46,Lists!$W$3:$W$6,0))) -> 4.000004088 | S46: =SUMIFS('Portfolio Analytics'!N$29:N$32,'Portfolio Analytics'!$C$29:$C$32,INDEX(Lists!$V$3:$V$6,MATCH(Dashboard!$G46,Lists!$W$3:$W$6,0))) -> 3.999998487 | T46: =SUMIFS('Portfolio Analytics'!O$29:O$32,'Portfolio Analytics'!$C$29:$C$32,INDEX(Lists!$V$3:$V$6,MATCH(Dashboard!$G46,Lists!$W$3:$W$6,0))) -> 0 | U46: =SUMIFS('Portfolio Analytics'!P$29:P$32,'Portfolio Analytics'!$C$29:$C$32,INDEX(Lists!$V$3:$V$6,MATCH(Dashboard!$G46,Lists!$W$3:$W$6,0))) -> 3.999998983 | V46: =SUMIFS('Portfolio Analytics'!Q$29:Q$32,'Portfolio Analytics'!$C$29:$C$32,INDEX(Lists!$V$3:$V$6,MATCH(Dashboard!$G46,Lists!$W$3:$W$6,0))) -> 0 | W46: =SUMIFS('Portfolio Analytics'!R$29:R$32,'Portfolio Analytics'!$C$29:$C$32,INDEX(Lists!$V$3:$V$6,MATCH(Dashboard!$G46,Lists!$W$3:$W$6,0))) -> 0 | X46: =SUMIFS('Portfolio Analytics'!S$29:S$32,'Portfolio Analytics'!$C$29:$C$32,INDEX(Lists!$V$3:$V$6,MATCH(Dashboard!$G46,Lists!$W$3:$W$6,0))) -> 0 | Y46: =SUMIFS('Portfolio Analytics'!T$29:T$32,'Portfolio Analytics'!$C$29:$C$32,INDEX(Lists!$V$3:$V$6,MATCH(Dashboard!$G46,Lists!$W$3:$W$6,0))) -> 3.769690884 | Z46: =SUMIFS('Portfolio Analytics'!U$29:U$32,'Portfolio Analytics'!$C$29:$C$32,INDEX(Lists!$V$3:$V$6,MATCH(Dashboard!$G46,Lists!$W$3:$W$6,0))) -> 0 | AA46: =SUMIFS('Portfolio Analytics'!V$29:V$32,'Portfolio Analytics'!$C$29:$C$32,INDEX(Lists!$V$3:$V$6,MATCH(Dashboard!$G46,Lists!$W$3:$W$6,0))) -> 0 | AB46: =SUMIFS('Portfolio Analytics'!W$29:W$32,'Portfolio Analytics'!$C$29:$C$32,INDEX(Lists!$V$3:$V$6,MATCH(Dashboard!$G46,Lists!$W$3:$W$6,0))) -> 0 | AC46: =SUMIFS('Portfolio Analytics'!X$29:X$32,'Portfolio Analytics'!$C$29:$C$32,INDEX(Lists!$V$3:$V$6,MATCH(Dashboard!$G46,Lists!$W$3:$W$6,0))) -> 0 | AD46: =SUMIFS('Portfolio Analytics'!Y$29:Y$32,'Portfolio Analytics'!$C$29:$C$32,INDEX(Lists!$V$3:$V$6,MATCH(Dashboard!$G46,Lists!$W$3:$W$6,0))) -> 0 | AE46: =SUMIFS('Portfolio Analytics'!Z$29:Z$32,'Portfolio Analytics'!$C$29:$C$32,INDEX(Lists!$V$3:$V$6,MATCH(Dashboard!$G46,Lists!$W$3:$W$6,0))) -> 0 | AF46: =SUMIFS('Portfolio Analytics'!AA$29:AA$32,'Portfolio Analytics'!$C$29:$C$32,INDEX(Lists!$V$3:$V$6,MATCH(Dashboard!$G46,Lists!$W$3:$W$6,0))) -> 0 | AG46: =SUMIFS('Portfolio Analytics'!AB$29:AB$32,'Portfolio Analytics'!$C$29:$C$32,INDEX(Lists!$V$3:$V$6,MATCH(Dashboard!$G46,Lists!$W$3:$W$6,0))) -> 0 | AH46: =SUMIFS('Portfolio Analytics'!AC$29:AC$32,'Portfolio Analytics'!$C$29:$C$32,INDEX(Lists!$V$3:$V$6,MATCH(Dashboard!$G46,Lists!$W$3:$W$6,0))) -> 0 | AI46: =SUMIFS('Portfolio Analytics'!AD$29:AD$32,'Portfolio Analytics'!$C$29:$C$32,INDEX(Lists!$V$3:$V$6,MATCH(Dashboard!$G46,Lists!$W$3:$W$6,0))) -> 0 | AJ46: =SUMIFS('Portfolio Analytics'!AE$29:AE$32,'Portfolio Analytics'!$C$29:$C$32,INDEX(Lists!$V$3:$V$6,MATCH(Dashboard!$G46,Lists!$W$3:$W$6,0))) -> 0 | AK46: =SUMIFS('Portfolio Analytics'!AF$29:AF$32,'Portfolio Analytics'!$C$29:$C$32,INDEX(Lists!$V$3:$V$6,MATCH(Dashboard!$G46,Lists!$W$3:$W$6,0))) -> 0 | AL46: =SUMIFS('Portfolio Analytics'!AG$29:AG$32,'Portfolio Analytics'!$C$29:$C$32,INDEX(Lists!$V$3:$V$6,MATCH(Dashboard!$G46,Lists!$W$3:$W$6,0))) -> 0 | AM46: =SUMIFS('Portfolio Analytics'!AH$29:AH$32,'Portfolio Analytics'!$C$29:$C$32,INDEX(Lists!$V$3:$V$6,MATCH(Dashboard!$G46,Lists!$W$3:$W$6,0))) -> 0 | AN46: =SUMIFS('Portfolio Analytics'!AI$29:AI$32,'Portfolio Analytics'!$C$29:$C$32,INDEX(Lists!$V$3:$V$6,MATCH(Dashboard!$G46,Lists!$W$3:$W$6,0))) -> 7.046952426 | AO46: =SUMIFS('Portfolio Analytics'!AJ$29:AJ$32,'Portfolio Analytics'!$C$29:$C$32,INDEX(Lists!$V$3:$V$6,MATCH(Dashboard!$G46,Lists!$W$3:$W$6,0))) -> 0 | AP46: =SUMIFS('Portfolio Analytics'!AK$29:AK$32,'Portfolio Analytics'!$C$29:$C$32,INDEX(Lists!$V$3:$V$6,MATCH(Dashboard!$G46,Lists!$W$3:$W$6,0))) -> 0 | AQ46: =SUMIFS('Portfolio Analytics'!AL$29:AL$32,'Portfolio Analytics'!$C$29:$C$32,INDEX(Lists!$V$3:$V$6,MATCH(Dashboard!$G46,Lists!$W$3:$W$6,0))) -> 0 | AR46: =SUMIFS('Portfolio Analytics'!AM$29:AM$32,'Portfolio Analytics'!$C$29:$C$32,INDEX(Lists!$V$3:$V$6,MATCH(Dashboard!$G46,Lists!$W$3:$W$6,0))) -> 0 | AS46: =SUMIFS('Portfolio Analytics'!AN$29:AN$32,'Portfolio Analytics'!$C$29:$C$32,INDEX(Lists!$V$3:$V$6,MATCH(Dashboard!$G46,Lists!$W$3:$W$6,0))) -> 0
G47: BTM Li Battery | H47: hr | J47: =SUMIFS('Portfolio Analytics'!E$29:E$32,'Portfolio Analytics'!$C$29:$C$32,INDEX(Lists!$V$3:$V$6,MATCH(Dashboard!$G47,Lists!$W$3:$W$6,0))) -> 0 | K47: =SUMIFS('Portfolio Analytics'!F$29:F$32,'Portfolio Analytics'!$C$29:$C$32,INDEX(Lists!$V$3:$V$6,MATCH(Dashboard!$G47,Lists!$W$3:$W$6,0))) -> 0 | L47: =SUMIFS('Portfolio Analytics'!G$29:G$32,'Portfolio Analytics'!$C$29:$C$32,INDEX(Lists!$V$3:$V$6,MATCH(Dashboard!$G47,Lists!$W$3:$W$6,0))) -> 0 | M47: =SUMIFS('Portfolio Analytics'!H$29:H$32,'Portfolio Analytics'!$C$29:$C$32,INDEX(Lists!$V$3:$V$6,MATCH(Dashboard!$G47,Lists!$W$3:$W$6,0))) -> 0 | N47: =SUMIFS('Portfolio Analytics'!I$29:I$32,'Portfolio Analytics'!$C$29:$C$32,INDEX(Lists!$V$3:$V$6,MATCH(Dashboard!$G47,Lists!$W$3:$W$6,0))) -> 0 | O47: =SUMIFS('Portfolio Analytics'!J$29:J$32,'Portfolio Analytics'!$C$29:$C$32,INDEX(Lists!$V$3:$V$6,MATCH(Dashboard!$G47,Lists!$W$3:$W$6,0))) -> 0 | P47: =SUMIFS('Portfolio Analytics'!K$29:K$32,'Portfolio Analytics'!$C$29:$C$32,INDEX(Lists!$V$3:$V$6,MATCH(Dashboard!$G47,Lists!$W$3:$W$6,0))) -> 0 | Q47: =SUMIFS('Portfolio Analytics'!L$29:L$32,'Portfolio Analytics'!$C$29:$C$32,INDEX(Lists!$V$3:$V$6,MATCH(Dashboard!$G47,Lists!$W$3:$W$6,0))) -> 0 | R47: =SUMIFS('Portfolio Analytics'!M$29:M$32,'Portfolio Analytics'!$C$29:$C$32,INDEX(Lists!$V$3:$V$6,MATCH(Dashboard!$G47,Lists!$W$3:$W$6,0))) -> 0 | S47: =SUMIFS('Portfolio Analytics'!N$29:N$32,'Portfolio Analytics'!$C$29:$C$32,INDEX(Lists!$V$3:$V$6,MATCH(Dashboard!$G47,Lists!$W$3:$W$6,0))) -> 0 | T47: =SUMIFS('Portfolio Analytics'!O$29:O$32,'Portfolio Analytics'!$C$29:$C$32,INDEX(Lists!$V$3:$V$6,MATCH(Dashboard!$G47,Lists!$W$3:$W$6,0))) -> 0 | U47: =SUMIFS('Portfolio Analytics'!P$29:P$32,'Portfolio Analytics'!$C$29:$C$32,INDEX(Lists!$V$3:$V$6,MATCH(Dashboard!$G47,Lists!$W$3:$W$6,0))) -> 0 | V47: =SUMIFS('Portfolio Analytics'!Q$29:Q$32,'Portfolio Analytics'!$C$29:$C$32,INDEX(Lists!$V$3:$V$6,MATCH(Dashboard!$G47,Lists!$W$3:$W$6,0))) -> 0 | W47: =SUMIFS('Portfolio Analytics'!R$29:R$32,'Portfolio Analytics'!$C$29:$C$32,INDEX(Lists!$V$3:$V$6,MATCH(Dashboard!$G47,Lists!$W$3:$W$6,0))) -> 0 | X47: =SUMIFS('Portfolio Analytics'!S$29:S$32,'Portfolio Analytics'!$C$29:$C$32,INDEX(Lists!$V$3:$V$6,MATCH(Dashboard!$G47,Lists!$W$3:$W$6,0))) -> 0 | Y47: =SUMIFS('Portfolio Analytics'!T$29:T$32,'Portfolio Analytics'!$C$29:$C$32,INDEX(Lists!$V$3:$V$6,MATCH(Dashboard!$G47,Lists!$W$3:$W$6,0))) -> 0 | Z47: =SUMIFS('Portfolio Analytics'!U$29:U$32,'Portfolio Analytics'!$C$29:$C$32,INDEX(Lists!$V$3:$V$6,MATCH(Dashboard!$G47,Lists!$W$3:$W$6,0))) -> 0 | AA47: =SUMIFS('Portfolio Analytics'!V$29:V$32,'Portfolio Analytics'!$C$29:$C$32,INDEX(Lists!$V$3:$V$6,MATCH(Dashboard!$G47,Lists!$W$3:$W$6,0))) -> 0 | AB47: =SUMIFS('Portfolio Analytics'!W$29:W$32,'Portfolio Analytics'!$C$29:$C$32,INDEX(Lists!$V$3:$V$6,MATCH(Dashboard!$G47,Lists!$W$3:$W$6,0))) -> 0 | AC47: =SUMIFS('Portfolio Analytics'!X$29:X$32,'Portfolio Analytics'!$C$29:$C$32,INDEX(Lists!$V$3:$V$6,MATCH(Dashboard!$G47,Lists!$W$3:$W$6,0))) -> 0 | AD47: =SUMIFS('Portfolio Analytics'!Y$29:Y$32,'Portfolio Analytics'!$C$29:$C$32,INDEX(Lists!$V$3:$V$6,MATCH(Dashboard!$G47,Lists!$W$3:$W$6,0))) -> 0 | AE47: =SUMIFS('Portfolio Analytics'!Z$29:Z$32,'Portfolio Analytics'!$C$29:$C$32,INDEX(Lists!$V$3:$V$6,MATCH(Dashboard!$G47,Lists!$W$3:$W$6,0))) -> 0 | AF47: =SUMIFS('Portfolio Analytics'!AA$29:AA$32,'Portfolio Analytics'!$C$29:$C$32,INDEX(Lists!$V$3:$V$6,MATCH(Dashboard!$G47,Lists!$W$3:$W$6,0))) -> 0 | AG47: =SUMIFS('Portfolio Analytics'!AB$29:AB$32,'Portfolio Analytics'!$C$29:$C$32,INDEX(Lists!$V$3:$V$6,MATCH(Dashboard!$G47,Lists!$W$3:$W$6,0))) -> 0 | AH47: =SUMIFS('Portfolio Analytics'!AC$29:AC$32,'Portfolio Analytics'!$C$29:$C$32,INDEX(Lists!$V$3:$V$6,MATCH(Dashboard!$G47,Lists!$W$3:$W$6,0))) -> 0 | AI47: =SUMIFS('Portfolio Analytics'!AD$29:AD$32,'Portfolio Analytics'!$C$29:$C$32,INDEX(Lists!$V$3:$V$6,MATCH(Dashboard!$G47,Lists!$W$3:$W$6,0))) -> 0 | AJ47: =SUMIFS('Portfolio Analytics'!AE$29:AE$32,'Portfolio Analytics'!$C$29:$C$32,INDEX(Lists!$V$3:$V$6,MATCH(Dashboard!$G47,Lists!$W$3:$W$6,0))) -> 0 | AK47: =SUMIFS('Portfolio Analytics'!AF$29:AF$32,'Portfolio Analytics'!$C$29:$C$32,INDEX(Lists!$V$3:$V$6,MATCH(Dashboard!$G47,Lists!$W$3:$W$6,0))) -> 0 | AL47: =SUMIFS('Portfolio Analytics'!AG$29:AG$32,'Portfolio Analytics'!$C$29:$C$32,INDEX(Lists!$V$3:$V$6,MATCH(Dashboard!$G47,Lists!$W$3:$W$6,0))) -> 0 | AM47: =SUMIFS('Portfolio Analytics'!AH$29:AH$32,'Portfolio Analytics'!$C$29:$C$32,INDEX(Lists!$V$3:$V$6,MATCH(Dashboard!$G47,Lists!$W$3:$W$6,0))) -> 0 | AN47: =SUMIFS('Portfolio Analytics'!AI$29:AI$32,'Portfolio Analytics'!$C$29:$C$32,INDEX(Lists!$V$3:$V$6,MATCH(Dashboard!$G47,Lists!$W$3:$W$6,0))) -> 0 | AO47: =SUMIFS('Portfolio Analytics'!AJ$29:AJ$32,'Portfolio Analytics'!$C$29:$C$32,INDEX(Lists!$V$3:$V$6,MATCH(Dashboard!$G47,Lists!$W$3:$W$6,0))) -> 0 | AP47: =SUMIFS('Portfolio Analytics'!AK$29:AK$32,'Portfolio Analytics'!$C$29:$C$32,INDEX(Lists!$V$3:$V$6,MATCH(Dashboard!$G47,Lists!$W$3:$W$6,0))) -> 0 | AQ47: =SUMIFS('Portfolio Analytics'!AL$29:AL$32,'Portfolio Analytics'!$C$29:$C$32,INDEX(Lists!$V$3:$V$6,MATCH(Dashboard!$G47,Lists!$W$3:$W$6,0))) -> 0 | AR47: =SUMIFS('Portfolio Analytics'!AM$29:AM$32,'Portfolio Analytics'!$C$29:$C$32,INDEX(Lists!$V$3:$V$6,MATCH(Dashboard!$G47,Lists!$W$3:$W$6,0))) -> 0 | AS47: =SUMIFS('Portfolio Analytics'!AN$29:AN$32,'Portfolio Analytics'!$C$29:$C$32,INDEX(Lists!$V$3:$V$6,MATCH(Dashboard!$G47,Lists!$W$3:$W$6,0))) -> 0
G48: Flow Battery | H48: hr | J48: =SUMIFS('Portfolio Analytics'!E$29:E$32,'Portfolio Analytics'!$C$29:$C$32,INDEX(Lists!$V$3:$V$6,MATCH(Dashboard!$G48,Lists!$W$3:$W$6,0))) -> 0 | K48: =SUMIFS('Portfolio Analytics'!F$29:F$32,'Portfolio Analytics'!$C$29:$C$32,INDEX(Lists!$V$3:$V$6,MATCH(Dashboard!$G48,Lists!$W$3:$W$6,0))) -> 0 | L48: =SUMIFS('Portfolio Analytics'!G$29:G$32,'Portfolio Analytics'!$C$29:$C$32,INDEX(Lists!$V$3:$V$6,MATCH(Dashboard!$G48,Lists!$W$3:$W$6,0))) -> 0 | M48: =SUMIFS('Portfolio Analytics'!H$29:H$32,'Portfolio Analytics'!$C$29:$C$32,INDEX(Lists!$V$3:$V$6,MATCH(Dashboard!$G48,Lists!$W$3:$W$6,0))) -> 0 | N48: =SUMIFS('Portfolio Analytics'!I$29:I$32,'Portfolio Analytics'!$C$29:$C$32,INDEX(Lists!$V$3:$V$6,MATCH(Dashboard!$G48,Lists!$W$3:$W$6,0))) -> 0 | O48: =SUMIFS('Portfolio Analytics'!J$29:J$32,'Portfolio Analytics'!$C$29:$C$32,INDEX(Lists!$V$3:$V$6,MATCH(Dashboard!$G48,Lists!$W$3:$W$6,0))) -> 0 | P48: =SUMIFS('Portfolio Analytics'!K$29:K$32,'Portfolio Analytics'!$C$29:$C$32,INDEX(Lists!$V$3:$V$6,MATCH(Dashboard!$G48,Lists!$W$3:$W$6,0))) -> 0 | Q48: =SUMIFS('Portfolio Analytics'!L$29:L$32,'Portfolio Analytics'!$C$29:$C$32,INDEX(Lists!$V$3:$V$6,MATCH(Dashboard!$G48,Lists!$W$3:$W$6,0))) -> 0 | R48: =SUMIFS('Portfolio Analytics'!M$29:M$32,'Portfolio Analytics'!$C$29:$C$32,INDEX(Lists!$V$3:$V$6,MATCH(Dashboard!$G48,Lists!$W$3:$W$6,0))) -> 0 | S48: =SUMIFS('Portfolio Analytics'!N$29:N$32,'Portfolio Analytics'!$C$29:$C$32,INDEX(Lists!$V$3:$V$6,MATCH(Dashboard!$G48,Lists!$W$3:$W$6,0))) -> 0 | T48: =SUMIFS('Portfolio Analytics'!O$29:O$32,'Portfolio Analytics'!$C$29:$C$32,INDEX(Lists!$V$3:$V$6,MATCH(Dashboard!$G48,Lists!$W$3:$W$6,0))) -> 0 | U48: =SUMIFS('Portfolio Analytics'!P$29:P$32,'Portfolio Analytics'!$C$29:$C$32,INDEX(Lists!$V$3:$V$6,MATCH(Dashboard!$G48,Lists!$W$3:$W$6,0))) -> 0 | V48: =SUMIFS('Portfolio Analytics'!Q$29:Q$32,'Portfolio Analytics'!$C$29:$C$32,INDEX(Lists!$V$3:$V$6,MATCH(Dashboard!$G48,Lists!$W$3:$W$6,0))) -> 0 | W48: =SUMIFS('Portfolio Analytics'!R$29:R$32,'Portfolio Analytics'!$C$29:$C$32,INDEX(Lists!$V$3:$V$6,MATCH(Dashboard!$G48,Lists!$W$3:$W$6,0))) -> 0 | X48: =SUMIFS('Portfolio Analytics'!S$29:S$32,'Portfolio Analytics'!$C$29:$C$32,INDEX(Lists!$V$3:$V$6,MATCH(Dashboard!$G48,Lists!$W$3:$W$6,0))) -> 0 | Y48: =SUMIFS('Portfolio Analytics'!T$29:T$32,'Portfolio Analytics'!$C$29:$C$32,INDEX(Lists!$V$3:$V$6,MATCH(Dashboard!$G48,Lists!$W$3:$W$6,0))) -> 0 | Z48: =SUMIFS('Portfolio Analytics'!U$29:U$32,'Portfolio Analytics'!$C$29:$C$32,INDEX(Lists!$V$3:$V$6,MATCH(Dashboard!$G48,Lists!$W$3:$W$6,0))) -> 0 | AA48: =SUMIFS('Portfolio Analytics'!V$29:V$32,'Portfolio Analytics'!$C$29:$C$32,INDEX(Lists!$V$3:$V$6,MATCH(Dashboard!$G48,Lists!$W$3:$W$6,0))) -> 0 | AB48: =SUMIFS('Portfolio Analytics'!W$29:W$32,'Portfolio Analytics'!$C$29:$C$32,INDEX(Lists!$V$3:$V$6,MATCH(Dashboard!$G48,Lists!$W$3:$W$6,0))) -> 0 | AC48: =SUMIFS('Portfolio Analytics'!X$29:X$32,'Portfolio Analytics'!$C$29:$C$32,INDEX(Lists!$V$3:$V$6,MATCH(Dashboard!$G48,Lists!$W$3:$W$6,0))) -> 0 | AD48: =SUMIFS('Portfolio Analytics'!Y$29:Y$32,'Portfolio Analytics'!$C$29:$C$32,INDEX(Lists!$V$3:$V$6,MATCH(Dashboard!$G48,Lists!$W$3:$W$6,0))) -> 0 | AE48: =SUMIFS('Portfolio Analytics'!Z$29:Z$32,'Portfolio Analytics'!$C$29:$C$32,INDEX(Lists!$V$3:$V$6,MATCH(Dashboard!$G48,Lists!$W$3:$W$6,0))) -> 0 | AF48: =SUMIFS('Portfolio Analytics'!AA$29:AA$32,'Portfolio Analytics'!$C$29:$C$32,INDEX(Lists!$V$3:$V$6,MATCH(Dashboard!$G48,Lists!$W$3:$W$6,0))) -> 0 | AG48: =SUMIFS('Portfolio Analytics'!AB$29:AB$32,'Portfolio Analytics'!$C$29:$C$32,INDEX(Lists!$V$3:$V$6,MATCH(Dashboard!$G48,Lists!$W$3:$W$6,0))) -> 0 | AH48: =SUMIFS('Portfolio Analytics'!AC$29:AC$32,'Portfolio Analytics'!$C$29:$C$32,INDEX(Lists!$V$3:$V$6,MATCH(Dashboard!$G48,Lists!$W$3:$W$6,0))) -> 0 | AI48: =SUMIFS('Portfolio Analytics'!AD$29:AD$32,'Portfolio Analytics'!$C$29:$C$32,INDEX(Lists!$V$3:$V$6,MATCH(Dashboard!$G48,Lists!$W$3:$W$6,0))) -> 0 | AJ48: =SUMIFS('Portfolio Analytics'!AE$29:AE$32,'Portfolio Analytics'!$C$29:$C$32,INDEX(Lists!$V$3:$V$6,MATCH(Dashboard!$G48,Lists!$W$3:$W$6,0))) -> 0 | AK48: =SUMIFS('Portfolio Analytics'!AF$29:AF$32,'Portfolio Analytics'!$C$29:$C$32,INDEX(Lists!$V$3:$V$6,MATCH(Dashboard!$G48,Lists!$W$3:$W$6,0))) -> 0 | AL48: =SUMIFS('Portfolio Analytics'!AG$29:AG$32,'Portfolio Analytics'!$C$29:$C$32,INDEX(Lists!$V$3:$V$6,MATCH(Dashboard!$G48,Lists!$W$3:$W$6,0))) -> 0 | AM48: =SUMIFS('Portfolio Analytics'!AH$29:AH$32,'Portfolio Analytics'!$C$29:$C$32,INDEX(Lists!$V$3:$V$6,MATCH(Dashboard!$G48,Lists!$W$3:$W$6,0))) -> 0 | AN48: =SUMIFS('Portfolio Analytics'!AI$29:AI$32,'Portfolio Analytics'!$C$29:$C$32,INDEX(Lists!$V$3:$V$6,MATCH(Dashboard!$G48,Lists!$W$3:$W$6,0))) -> 0 | AO48: =SUMIFS('Portfolio Analytics'!AJ$29:AJ$32,'Portfolio Analytics'!$C$29:$C$32,INDEX(Lists!$V$3:$V$6,MATCH(Dashboard!$G48,Lists!$W$3:$W$6,0))) -> 0 | AP48: =SUMIFS('Portfolio Analytics'!AK$29:AK$32,'Portfolio Analytics'!$C$29:$C$32,INDEX(Lists!$V$3:$V$6,MATCH(Dashboard!$G48,Lists!$W$3:$W$6,0))) -> 0 | AQ48: =SUMIFS('Portfolio Analytics'!AL$29:AL$32,'Portfolio Analytics'!$C$29:$C$32,INDEX(Lists!$V$3:$V$6,MATCH(Dashboard!$G48,Lists!$W$3:$W$6,0))) -> 0 | AR48: =SUMIFS('Portfolio Analytics'!AM$29:AM$32,'Portfolio Analytics'!$C$29:$C$32,INDEX(Lists!$V$3:$V$6,MATCH(Dashboard!$G48,Lists!$W$3:$W$6,0))) -> 0 | AS48: =SUMIFS('Portfolio Analytics'!AN$29:AN$32,'Portfolio Analytics'!$C$29:$C$32,INDEX(Lists!$V$3:$V$6,MATCH(Dashboard!$G48,Lists!$W$3:$W$6,0))) -> 0
G49: Note: Optimized duration is a cumulative value reflecting all power and energy capacity built through the reported year.
G51: Total Resource Summary
H53: Unit | J53: 2015 | K53: =J53+1 -> 2016 | L53: 2017 | M53: 2018 | N53: 2019 | O53: 2020 | P53: 2021 | Q53: 2022 | R53: 2023 | S53: 2024 | T53: 2025 | U53: 2026 | V53: 2027 | W53: 2028 | X53: 2029 | Y53: 2030 | Z53: 2031 | AA53: 2032 | AB53: 2033 | AC53: 2034 | AD53: 2035 | AE53: 2036 | AF53: 2037 | AG53: 2038 | AH53: 2039 | AI53: 2040 | AJ53: 2041 | AK53: 2042 | AL53: 2043 | AM53: 2044 | AN53: 2045 | AO53: 2046 | AP53: 2047 | AQ53: 2048 | AR53: 2049 | AS53: 2050
G54: Nuclear | H54: MW | J54: =SUMIFS('Portfolio Analytics'!E$65:E$92,Lists!$C$5:$C$32,$G54) -> 0 | K54: =SUMIFS('Portfolio Analytics'!F$65:F$92,Lists!$C$5:$C$32,$G54) -> 0 | L54: =SUMIFS('Portfolio Analytics'!G$65:G$92,Lists!$C$5:$C$32,$G54) -> 0 | M54: =SUMIFS('Portfolio Analytics'!H$65:H$92,Lists!$C$5:$C$32,$G54) -> 0 | N54: =SUMIFS('Portfolio Analytics'!I$65:I$92,Lists!$C$5:$C$32,$G54) -> 0 | O54: =SUMIFS('Portfolio Analytics'!J$65:J$92,Lists!$C$5:$C$32,$G54) -> 2935 | P54: =SUMIFS('Portfolio Analytics'!K$65:K$92,Lists!$C$5:$C$32,$G54) -> 2935 | Q54: =SUMIFS('Portfolio Analytics'!L$65:L$92,Lists!$C$5:$C$32,$G54) -> 2935 | R54: =SUMIFS('Portfolio Analytics'!M$65:M$92,Lists!$C$5:$C$32,$G54) -> 2935 | S54: =SUMIFS('Portfolio Analytics'!N$65:N$92,Lists!$C$5:$C$32,$G54) -> 1785 | T54: =SUMIFS('Portfolio Analytics'!O$65:O$92,Lists!$C$5:$C$32,$G54) -> 0 | U54: =SUMIFS('Portfolio Analytics'!P$65:P$92,Lists!$C$5:$C$32,$G54) -> 635 | V54: =SUMIFS('Portfolio Analytics'!Q$65:Q$92,Lists!$C$5:$C$32,$G54) -> 0 | W54: =SUMIFS('Portfolio Analytics'!R$65:R$92,Lists!$C$5:$C$32,$G54) -> 0 | X54: =SUMIFS('Portfolio Analytics'!S$65:S$92,Lists!$C$5:$C$32,$G54) -> 0 | Y54: =SUMIFS('Portfolio Analytics'!T$65:T$92,Lists!$C$5:$C$32,$G54) -> 635 | Z54: =SUMIFS('Portfolio Analytics'!U$65:U$92,Lists!$C$5:$C$32,$G54) -> 0 | AA54: =SUMIFS('Portfolio Analytics'!V$65:V$92,Lists!$C$5:$C$32,$G54) -> 0 | AB54: =SUMIFS('Portfolio Analytics'!W$65:W$92,Lists!$C$5:$C$32,$G54) -> 0 | AC54: =SUMIFS('Portfolio Analytics'!X$65:X$92,Lists!$C$5:$C$32,$G54) -> 0 | AD54: =SUMIFS('Portfolio Analytics'!Y$65:Y$92,Lists!$C$5:$C$32,$G54) -> 0 | AE54: =SUMIFS('Portfolio Analytics'!Z$65:Z$92,Lists!$C$5:$C$32,$G54) -> 0 | AF54: =SUMIFS('Portfolio Analytics'!AA$65:AA$92,Lists!$C$5:$C$32,$G54) -> 0 | AG54: =SUMIFS('Portfolio Analytics'!AB$65:AB$92,Lists!$C$5:$C$32,$G54) -> 0 | AH54: =SUMIFS('Portfolio Analytics'!AC$65:AC$92,Lists!$C$5:$C$32,$G54) -> 0 | AI54: =SUMIFS('Portfolio Analytics'!AD$65:AD$92,Lists!$C$5:$C$32,$G54) -> 0 | AJ54: =SUMIFS('Portfolio Analytics'!AE$65:AE$92,Lists!$C$5:$C$32,$G54) -> 0 | AK54: =SUMIFS('Portfolio Analytics'!AF$65:AF$92,Lists!$C$5:$C$32,$G54) -> 0 | AL54: =SUMIFS('Portfolio Analytics'!AG$65:AG$92,Lists!$C$5:$C$32,$G54) -> 0 | AM54: =SUMIFS('Portfolio Analytics'!AH$65:AH$92,Lists!$C$5:$C$32,$G54) -> 0 | AN54: =SUMIFS('Portfolio Analytics'!AI$65:AI$92,Lists!$C$5:$C$32,$G54) -> 635 | AO54: =SUMIFS('Portfolio Analytics'!AJ$65:AJ$92,Lists!$C$5:$C$32,$G54) -> 0 | AP54: =SUMIFS('Portfolio Analytics'!AK$65:AK$92,Lists!$C$5:$C$32,$G54) -> 0 | AQ54: =SUMIFS('Portfolio Analytics'!AL$65:AL$92,Lists!$C$5:$C$32,$G54) -> 0 | AR54: =SUMIFS('Portfolio Analytics'!AM$65:AM$92,Lists!$C$5:$C$32,$G54) -> 0 | AS54: =SUMIFS('Portfolio Analytics'!AN$65:AN$92,Lists!$C$5:$C$32,$G54) -> 0
G55: CHP | H55: MW | J55: =SUMIFS('Portfolio Analytics'!E$65:E$92,Lists!$C$5:$C$32,$G55) -> 0 | K55: =SUMIFS('Portfolio Analytics'!F$65:F$92,Lists!$C$5:$C$32,$G55) -> 0 | L55: =SUMIFS('Portfolio Analytics'!G$65:G$92,Lists!$C$5:$C$32,$G55) -> 0 | M55: =SUMIFS('Portfolio Analytics'!H$65:H$92,Lists!$C$5:$C$32,$G55) -> 0 | N55: =SUMIFS('Portfolio Analytics'!I$65:I$92,Lists!$C$5:$C$32,$G55) -> 0 | O55: =SUMIFS('Portfolio Analytics'!J$65:J$92,Lists!$C$5:$C$32,$G55) -> 2296.02 | P55: =SUMIFS('Portfolio Analytics'!K$65:K$92,Lists!$C$5:$C$32,$G55) -> 2296.02 | Q55: =SUMIFS('Portfolio Analytics'!L$65:L$92,Lists!$C$5:$C$32,$G55) -> 2296.02 | R55: =SUMIFS('Portfolio Analytics'!M$65:M$92,Lists!$C$5:$C$32,$G55) -> 2296.02 | S55: =SUMIFS('Portfolio Analytics'!N$65:N$92,Lists!$C$5:$C$32,$G55) -> 2296.02 | T55: =SUMIFS('Portfolio Analytics'!O$65:O$92,Lists!$C$5:$C$32,$G55) -> 0 | U55: =SUMIFS('Portfolio Analytics'!P$65:P$92,Lists!$C$5:$C$32,$G55) -> 2296.02 | V55: =SUMIFS('Portfolio Analytics'!Q$65:Q$92,Lists!$C$5:$C$32,$G55) -> 0 | W55: =SUMIFS('Portfolio Analytics'!R$65:R$92,Lists!$C$5:$C$32,$G55) -> 0 | X55: =SUMIFS('Portfolio Analytics'!S$65:S$92,Lists!$C$5:$C$32,$G55) -> 0 | Y55: =SUMIFS('Portfolio Analytics'!T$65:T$92,Lists!$C$5:$C$32,$G55) -> 2296.02 | Z55: =SUMIFS('Portfolio Analytics'!U$65:U$92,Lists!$C$5:$C$32,$G55) -> 0 | AA55: =SUMIFS('Portfolio Analytics'!V$65:V$92,Lists!$C$5:$C$32,$G55) -> 0 | AB55: =SUMIFS('Portfolio Analytics'!W$65:W$92,Lists!$C$5:$C$32,$G55) -> 0 | AC55: =SUMIFS('Portfolio Analytics'!X$65:X$92,Lists!$C$5:$C$32,$G55) -> 0 | AD55: =SUMIFS('Portfolio Analytics'!Y$65:Y$92,Lists!$C$5:$C$32,$G55) -> 0 | AE55: =SUMIFS('Portfolio Analytics'!Z$65:Z$92,Lists!$C$5:$C$32,$G55) -> 0 | AF55: =SUMIFS('Portfolio Analytics'!AA$65:AA$92,Lists!$C$5:$C$32,$G55) -> 0 | AG55: =SUMIFS('Portfolio Analytics'!AB$65:AB$92,Lists!$C$5:$C$32,$G55) -> 0 | AH55: =SUMIFS('Portfolio Analytics'!AC$65:AC$92,Lists!$C$5:$C$32,$G55) -> 0 | AI55: =SUMIFS('Portfolio Analytics'!AD$65:AD$92,Lists!$C$5:$C$32,$G55) -> 0 | AJ55: =SUMIFS('Portfolio Analytics'!AE$65:AE$92,Lists!$C$5:$C$32,$G55) -> 0 | AK55: =SUMIFS('Portfolio Analytics'!AF$65:AF$92,Lists!$C$5:$C$32,$G55) -> 0 | AL55: =SUMIFS('Portfolio Analytics'!AG$65:AG$92,Lists!$C$5:$C$32,$G55) -> 0 | AM55: =SUMIFS('Portfolio Analytics'!AH$65:AH$92,Lists!$C$5:$C$32,$G55) -> 0 | AN55: =SUMIFS('Portfolio Analytics'!AI$65:AI$92,Lists!$C$5:$C$32,$G55) -> 0 | AO55: =SUMIFS('Portfolio Analytics'!AJ$65:AJ$92,Lists!$C$5:$C$32,$G55) -> 0 | AP55: =SUMIFS('Portfolio Analytics'!AK$65:AK$92,Lists!$C$5:$C$32,$G55) -> 0 | AQ55: =SUMIFS('Portfolio Analytics'!AL$65:AL$92,Lists!$C$5:$C$32,$G55) -> 0 | AR55: =SUMIFS('Portfolio Analytics'!AM$65:AM$92,Lists!$C$5:$C$32,$G55) -> 0 | AS55: =SUMIFS('Portfolio Analytics'!AN$65:AN$92,Lists!$C$5:$C$32,$G55) -> 0
G56: Gas | H56: MW | J56: =SUMIFS('Portfolio Analytics'!E$65:E$92,Lists!$C$5:$C$32,$G56) -> 0 | K56: =SUMIFS('Portfolio Analytics'!F$65:F$92,Lists!$C$5:$C$32,$G56) -> 0 | L56: =SUMIFS('Portfolio Analytics'!G$65:G$92,Lists!$C$5:$C$32,$G56) -> 0 | M56: =SUMIFS('Portfolio Analytics'!H$65:H$92,Lists!$C$5:$C$32,$G56) -> 0 | N56: =SUMIFS('Portfolio Analytics'!I$65:I$92,Lists!$C$5:$C$32,$G56) -> 0 | O56: =SUMIFS('Portfolio Analytics'!J$65:J$92,Lists!$C$5:$C$32,$G56) -> 27562.34 | P56: =SUMIFS('Portfolio Analytics'!K$65:K$92,Lists!$C$5:$C$32,$G56) -> 25113.34 | Q56: =SUMIFS('Portfolio Analytics'!L$65:L$92,Lists!$C$5:$C$32,$G56) -> 25113.34 | R56: =SUMIFS('Portfolio Analytics'!M$65:M$92,Lists!$C$5:$C$32,$G56) -> 25113.34 | S56: =SUMIFS('Portfolio Analytics'!N$65:N$92,Lists!$C$5:$C$32,$G56) -> 25113.34 | T56: =SUMIFS('Portfolio Analytics'!O$65:O$92,Lists!$C$5:$C$32,$G56) -> 0 | U56: =SUMIFS('Portfolio Analytics'!P$65:P$92,Lists!$C$5:$C$32,$G56) -> 25113.34 | V56: =SUMIFS('Portfolio Analytics'!Q$65:Q$92,Lists!$C$5:$C$32,$G56) -> 0 | W56: =SUMIFS('Portfolio Analytics'!R$65:R$92,Lists!$C$5:$C$32,$G56) -> 0 | X56: =SUMIFS('Portfolio Analytics'!S$65:S$92,Lists!$C$5:$C$32,$G56) -> 0 | Y56: =SUMIFS('Portfolio Analytics'!T$65:T$92,Lists!$C$5:$C$32,$G56) -> 25113.34 | Z56: =SUMIFS('Portfolio Analytics'!U$65:U$92,Lists!$C$5:$C$32,$G56) -> 0 | AA56: =SUMIFS('Portfolio Analytics'!V$65:V$92,Lists!$C$5:$C$32,$G56) -> 0 | AB56: =SUMIFS('Portfolio Analytics'!W$65:W$92,Lists!$C$5:$C$32,$G56) -> 0 | AC56: =SUMIFS('Portfolio Analytics'!X$65:X$92,Lists!$C$5:$C$32,$G56) -> 0 | AD56: =SUMIFS('Portfolio Analytics'!Y$65:Y$92,Lists!$C$5:$C$32,$G56) -> 0 | AE56: =SUMIFS('Portfolio Analytics'!Z$65:Z$92,Lists!$C$5:$C$32,$G56) -> 0 | AF56: =SUMIFS('Portfolio Analytics'!AA$65:AA$92,Lists!$C$5:$C$32,$G56) -> 0 | AG56: =SUMIFS('Portfolio Analytics'!AB$65:AB$92,Lists!$C$5:$C$32,$G56) -> 0 | AH56: =SUMIFS('Portfolio Analytics'!AC$65:AC$92,Lists!$C$5:$C$32,$G56) -> 0 | AI56: =SUMIFS('Portfolio Analytics'!AD$65:AD$92,Lists!$C$5:$C$32,$G56) -> 0 | AJ56: =SUMIFS('Portfolio Analytics'!AE$65:AE$92,Lists!$C$5:$C$32,$G56) -> 0 | AK56: =SUMIFS('Portfolio Analytics'!AF$65:AF$92,Lists!$C$5:$C$32,$G56) -> 0 | AL56: =SUMIFS('Portfolio Analytics'!AG$65:AG$92,Lists!$C$5:$C$32,$G56) -> 0 | AM56: =SUMIFS('Portfolio Analytics'!AH$65:AH$92,Lists!$C$5:$C$32,$G56) -> 0 | AN56: =SUMIFS('Portfolio Analytics'!AI$65:AI$92,Lists!$C$5:$C$32,$G56) -> 21343.58 | AO56: =SUMIFS('Portfolio Analytics'!AJ$65:AJ$92,Lists!$C$5:$C$32,$G56) -> 0 | AP56: =SUMIFS('Portfolio Analytics'!AK$65:AK$92,Lists!$C$5:$C$32,$G56) -> 0 | AQ56: =SUMIFS('Portfolio Analytics'!AL$65:AL$92,Lists!$C$5:$C$32,$G56) -> 0 | AR56: =SUMIFS('Portfolio Analytics'!AM$65:AM$92,Lists!$C$5:$C$32,$G56) -> 0 | AS56: =SUMIFS('Portfolio Analytics'!AN$65:AN$92,Lists!$C$5:$C$32,$G56) -> 0
G57: Coal | H57: MW | J57: =SUMIFS('Portfolio Analytics'!E$65:E$92,Lists!$C$5:$C$32,$G57) -> 0 | K57: =SUMIFS('Portfolio Analytics'!F$65:F$92,Lists!$C$5:$C$32,$G57) -> 0 | L57: =SUMIFS('Portfolio Analytics'!G$65:G$92,Lists!$C$5:$C$32,$G57) -> 0 | M57: =SUMIFS('Portfolio Analytics'!H$65:H$92,Lists!$C$5:$C$32,$G57) -> 0 | N57: =SUMIFS('Portfolio Analytics'!I$65:I$92,Lists!$C$5:$C$32,$G57) -> 0 | O57: =SUMIFS('Portfolio Analytics'!J$65:J$92,Lists!$C$5:$C$32,$G57) -> 480 | P57: =SUMIFS('Portfolio Analytics'!K$65:K$92,Lists!$C$5:$C$32,$G57) -> 480 | Q57: =SUMIFS('Portfolio Analytics'!L$65:L$92,Lists!$C$5:$C$32,$G57) -> 480 | R57: =SUMIFS('Portfolio Analytics'!M$65:M$92,Lists!$C$5:$C$32,$G57) -> 480 | S57: =SUMIFS('Portfolio Analytics'!N$65:N$92,Lists!$C$5:$C$32,$G57) -> 480 | T57: =SUMIFS('Portfolio Analytics'!O$65:O$92,Lists!$C$5:$C$32,$G57) -> 0 | U57: =SUMIFS('Portfolio Analytics'!P$65:P$92,Lists!$C$5:$C$32,$G57) -> 0 | V57: =SUMIFS('Portfolio Analytics'!Q$65:Q$92,Lists!$C$5:$C$32,$G57) -> 0 | W57: =SUMIFS('Portfolio Analytics'!R$65:R$92,Lists!$C$5:$C$32,$G57) -> 0 | X57: =SUMIFS('Portfolio Analytics'!S$65:S$92,Lists!$C$5:$C$32,$G57) -> 0 | Y57: =SUMIFS('Portfolio Analytics'!T$65:T$92,Lists!$C$5:$C$32,$G57) -> 0 | Z57: =SUMIFS('Portfolio Analytics'!U$65:U$92,Lists!$C$5:$C$32,$G57) -> 0 | AA57: =SUMIFS('Portfolio Analytics'!V$65:V$92,Lists!$C$5:$C$32,$G57) -> 0 | AB57: =SUMIFS('Portfolio Analytics'!W$65:W$92,Lists!$C$5:$C$32,$G57) -> 0 | AC57: =SUMIFS('Portfolio Analytics'!X$65:X$92,Lists!$C$5:$C$32,$G57) -> 0 | AD57: =SUMIFS('Portfolio Analytics'!Y$65:Y$92,Lists!$C$5:$C$32,$G57) -> 0 | AE57: =SUMIFS('Portfolio Analytics'!Z$65:Z$92,Lists!$C$5:$C$32,$G57) -> 0 | AF57: =SUMIFS('Portfolio Analytics'!AA$65:AA$92,Lists!$C$5:$C$32,$G57) -> 0 | AG57: =SUMIFS('Portfolio Analytics'!AB$65:AB$92,Lists!$C$5:$C$32,$G57) -> 0 | AH57: =SUMIFS('Portfolio Analytics'!AC$65:AC$92,Lists!$C$5:$C$32,$G57) -> 0 | AI57: =SUMIFS('Portfolio Analytics'!AD$65:AD$92,Lists!$C$5:$C$32,$G57) -> 0 | AJ57: =SUMIFS('Portfolio Analytics'!AE$65:AE$92,Lists!$C$5:$C$32,$G57) -> 0 | AK57: =SUMIFS('Portfolio Analytics'!AF$65:AF$92,Lists!$C$5:$C$32,$G57) -> 0 | AL57: =SUMIFS('Portfolio Analytics'!AG$65:AG$92,Lists!$C$5:$C$32,$G57) -> 0 | AM57: =SUMIFS('Portfolio Analytics'!AH$65:AH$92,Lists!$C$5:$C$32,$G57) -> 0 | AN57: =SUMIFS('Portfolio Analytics'!AI$65:AI$92,Lists!$C$5:$C$32,$G57) -> 0 | AO57: =SUMIFS('Portfolio Analytics'!AJ$65:AJ$92,Lists!$C$5:$C$32,$G57) -> 0 | AP57: =SUMIFS('Portfolio Analytics'!AK$65:AK$92,Lists!$C$5:$C$32,$G57) -> 0 | AQ57: =SUMIFS('Portfolio Analytics'!AL$65:AL$92,Lists!$C$5:$C$32,$G57) -> 0 | AR57: =SUMIFS('Portfolio Analytics'!AM$65:AM$92,Lists!$C$5:$C$32,$G57) -> 0 | AS57: =SUMIFS('Portfolio Analytics'!AN$65:AN$92,Lists!$C$5:$C$32,$G57) -> 0
G58: Hydro (Large) | H58: MW | J58: =SUMIFS('Portfolio Analytics'!E$65:E$92,Lists!$C$5:$C$32,$G58) -> 0 | K58: =SUMIFS('Portfolio Analytics'!F$65:F$92,Lists!$C$5:$C$32,$G58) -> 0 | L58: =SUMIFS('Portfolio Analytics'!G$65:G$92,Lists!$C$5:$C$32,$G58) -> 0 | M58: =SUMIFS('Portfolio Analytics'!H$65:H$92,Lists!$C$5:$C$32,$G58) -> 0 | N58: =SUMIFS('Portfolio Analytics'!I$65:I$92,Lists!$C$5:$C$32,$G58) -> 0 | O58: =SUMIFS('Portfolio Analytics'!J$65:J$92,Lists!$C$5:$C$32,$G58) -> 7070.1 | P58: =SUMIFS('Portfolio Analytics'!K$65:K$92,Lists!$C$5:$C$32,$G58) -> 7070.1 | Q58: =SUMIFS('Portfolio Analytics'!L$65:L$92,Lists!$C$5:$C$32,$G58) -> 7070.1 | R58: =SUMIFS('Portfolio Analytics'!M$65:M$92,Lists!$C$5:$C$32,$G58) -> 7070.1 | S58: =SUMIFS('Portfolio Analytics'!N$65:N$92,Lists!$C$5:$C$32,$G58) -> 7070.1 | T58: =SUMIFS('Portfolio Analytics'!O$65:O$92,Lists!$C$5:$C$32,$G58) -> 0 | U58: =SUMIFS('Portfolio Analytics'!P$65:P$92,Lists!$C$5:$C$32,$G58) -> 7070.1 | V58: =SUMIFS('Portfolio Analytics'!Q$65:Q$92,Lists!$C$5:$C$32,$G58) -> 0 | W58: =SUMIFS('Portfolio Analytics'!R$65:R$92,Lists!$C$5:$C$32,$G58) -> 0 | X58: =SUMIFS('Portfolio Analytics'!S$65:S$92,Lists!$C$5:$C$32,$G58) -> 0 | Y58: =SUMIFS('Portfolio Analytics'!T$65:T$92,Lists!$C$5:$C$32,$G58) -> 7069.51 | Z58: =SUMIFS('Portfolio Analytics'!U$65:U$92,Lists!$C$5:$C$32,$G58) -> 0 | AA58: =SUMIFS('Portfolio Analytics'!V$65:V$92,Lists!$C$5:$C$32,$G58) -> 0 | AB58: =SUMIFS('Portfolio Analytics'!W$65:W$92,Lists!$C$5:$C$32,$G58) -> 0 | AC58: =SUMIFS('Portfolio Analytics'!X$65:X$92,Lists!$C$5:$C$32,$G58) -> 0 | AD58: =SUMIFS('Portfolio Analytics'!Y$65:Y$92,Lists!$C$5:$C$32,$G58) -> 0 | AE58: =SUMIFS('Portfolio Analytics'!Z$65:Z$92,Lists!$C$5:$C$32,$G58) -> 0 | AF58: =SUMIFS('Portfolio Analytics'!AA$65:AA$92,Lists!$C$5:$C$32,$G58) -> 0 | AG58: =SUMIFS('Portfolio Analytics'!AB$65:AB$92,Lists!$C$5:$C$32,$G58) -> 0 | AH58: =SUMIFS('Portfolio Analytics'!AC$65:AC$92,Lists!$C$5:$C$32,$G58) -> 0 | AI58: =SUMIFS('Portfolio Analytics'!AD$65:AD$92,Lists!$C$5:$C$32,$G58) -> 0 | AJ58: =SUMIFS('Portfolio Analytics'!AE$65:AE$92,Lists!$C$5:$C$32,$G58) -> 0 | AK58: =SUMIFS('Portfolio Analytics'!AF$65:AF$92,Lists!$C$5:$C$32,$G58) -> 0 | AL58: =SUMIFS('Portfolio Analytics'!AG$65:AG$92,Lists!$C$5:$C$32,$G58) -> 0 | AM58: =SUMIFS('Portfolio Analytics'!AH$65:AH$92,Lists!$C$5:$C$32,$G58) -> 0 | AN58: =SUMIFS('Portfolio Analytics'!AI$65:AI$92,Lists!$C$5:$C$32,$G58) -> 7069.51 | AO58: =SUMIFS('Portfolio Analytics'!AJ$65:AJ$92,Lists!$C$5:$C$32,$G58) -> 0 | AP58: =SUMIFS('Portfolio Analytics'!AK$65:AK$92,Lists!$C$5:$C$32,$G58) -> 0 | AQ58: =SUMIFS('Portfolio Analytics'!AL$65:AL$92,Lists!$C$5:$C$32,$G58) -> 0 | AR58: =SUMIFS('Portfolio Analytics'!AM$65:AM$92,Lists!$C$5:$C$32,$G58) -> 0 | AS58: =SUMIFS('Portfolio Analytics'!AN$65:AN$92,Lists!$C$5:$C$32,$G58) -> 0
G59: Hydro (NW scheduled imports) | H59: MW | J59: =SUMIFS('Portfolio Analytics'!E$65:E$92,Lists!$C$5:$C$32,$G59) -> 0 | K59: =SUMIFS('Portfolio Analytics'!F$65:F$92,Lists!$C$5:$C$32,$G59) -> 0 | L59: =SUMIFS('Portfolio Analytics'!G$65:G$92,Lists!$C$5:$C$32,$G59) -> 0 | M59: =SUMIFS('Portfolio Analytics'!H$65:H$92,Lists!$C$5:$C$32,$G59) -> 0 | N59: =SUMIFS('Portfolio Analytics'!I$65:I$92,Lists!$C$5:$C$32,$G59) -> 0 | O59: =SUMIFS('Portfolio Analytics'!J$65:J$92,Lists!$C$5:$C$32,$G59) -> 2851.77 | P59: =SUMIFS('Portfolio Analytics'!K$65:K$92,Lists!$C$5:$C$32,$G59) -> 2851.77 | Q59: =SUMIFS('Portfolio Analytics'!L$65:L$92,Lists!$C$5:$C$32,$G59) -> 2851.77 | R59: =SUMIFS('Portfolio Analytics'!M$65:M$92,Lists!$C$5:$C$32,$G59) -> 2851.77 | S59: =SUMIFS('Portfolio Analytics'!N$65:N$92,Lists!$C$5:$C$32,$G59) -> 2851.77 | T59: =SUMIFS('Portfolio Analytics'!O$65:O$92,Lists!$C$5:$C$32,$G59) -> 0 | U59: =SUMIFS('Portfolio Analytics'!P$65:P$92,Lists!$C$5:$C$32,$G59) -> 2851.77 | V59: =SUMIFS('Portfolio Analytics'!Q$65:Q$92,Lists!$C$5:$C$32,$G59) -> 0 | W59: =SUMIFS('Portfolio Analytics'!R$65:R$92,Lists!$C$5:$C$32,$G59) -> 0 | X59: =SUMIFS('Portfolio Analytics'!S$65:S$92,Lists!$C$5:$C$32,$G59) -> 0 | Y59: =SUMIFS('Portfolio Analytics'!T$65:T$92,Lists!$C$5:$C$32,$G59) -> 2851.77 | Z59: =SUMIFS('Portfolio Analytics'!U$65:U$92,Lists!$C$5:$C$32,$G59) -> 0 | AA59: =SUMIFS('Portfolio Analytics'!V$65:V$92,Lists!$C$5:$C$32,$G59) -> 0 | AB59: =SUMIFS('Portfolio Analytics'!W$65:W$92,Lists!$C$5:$C$32,$G59) -> 0 | AC59: =SUMIFS('Portfolio Analytics'!X$65:X$92,Lists!$C$5:$C$32,$G59) -> 0 | AD59: =SUMIFS('Portfolio Analytics'!Y$65:Y$92,Lists!$C$5:$C$32,$G59) -> 0 | AE59: =SUMIFS('Portfolio Analytics'!Z$65:Z$92,Lists!$C$5:$C$32,$G59) -> 0 | AF59: =SUMIFS('Portfolio Analytics'!AA$65:AA$92,Lists!$C$5:$C$32,$G59) -> 0 | AG59: =SUMIFS('Portfolio Analytics'!AB$65:AB$92,Lists!$C$5:$C$32,$G59) -> 0 | AH59: =SUMIFS('Portfolio Analytics'!AC$65:AC$92,Lists!$C$5:$C$32,$G59) -> 0 | AI59: =SUMIFS('Portfolio Analytics'!AD$65:AD$92,Lists!$C$5:$C$32,$G59) -> 0 | AJ59: =SUMIFS('Portfolio Analytics'!AE$65:AE$92,Lists!$C$5:$C$32,$G59) -> 0 | AK59: =SUMIFS('Portfolio Analytics'!AF$65:AF$92,Lists!$C$5:$C$32,$G59) -> 0 | AL59: =SUMIFS('Portfolio Analytics'!AG$65:AG$92,Lists!$C$5:$C$32,$G59) -> 0 | AM59: =SUMIFS('Portfolio Analytics'!AH$65:AH$92,Lists!$C$5:$C$32,$G59) -> 0 | AN59: =SUMIFS('Portfolio Analytics'!AI$65:AI$92,Lists!$C$5:$C$32,$G59) -> 2851.77 | AO59: =SUMIFS('Portfolio Analytics'!AJ$65:AJ$92,Lists!$C$5:$C$32,$G59) -> 0 | AP59: =SUMIFS('Portfolio Analytics'!AK$65:AK$92,Lists!$C$5:$C$32,$G59) -> 0 | AQ59: =SUMIFS('Portfolio Analytics'!AL$65:AL$92,Lists!$C$5:$C$32,$G59) -> 0 | AR59: =SUMIFS('Portfolio Analytics'!AM$65:AM$92,Lists!$C$5:$C$32,$G59) -> 0 | AS59: =SUMIFS('Portfolio Analytics'!AN$65:AN$92,Lists!$C$5:$C$32,$G59) -> 0
G60: Biomass | H60: MW | J60: =SUMIFS('Portfolio Analytics'!E$65:E$92,Lists!$C$5:$C$32,$G60) -> 0 | K60: =SUMIFS('Portfolio Analytics'!F$65:F$92,Lists!$C$5:$C$32,$G60) -> 0 | L60: =SUMIFS('Portfolio Analytics'!G$65:G$92,Lists!$C$5:$C$32,$G60) -> 0 | M60: =SUMIFS('Portfolio Analytics'!H$65:H$92,Lists!$C$5:$C$32,$G60) -> 0 | N60: =SUMIFS('Portfolio Analytics'!I$65:I$92,Lists!$C$5:$C$32,$G60) -> 0 | O60: =SUMIFS('Portfolio Analytics'!J$65:J$92,Lists!$C$5:$C$32,$G60) -> 902.65 | P60: =SUMIFS('Portfolio Analytics'!K$65:K$92,Lists!$C$5:$C$32,$G60) -> 902.65 | Q60: =SUMIFS('Portfolio Analytics'!L$65:L$92,Lists!$C$5:$C$32,$G60) -> 902.65 | R60: =SUMIFS('Portfolio Analytics'!M$65:M$92,Lists!$C$5:$C$32,$G60) -> 902.65 | S60: =SUMIFS('Portfolio Analytics'!N$65:N$92,Lists!$C$5:$C$32,$G60) -> 902.65 | T60: =SUMIFS('Portfolio Analytics'!O$65:O$92,Lists!$C$5:$C$32,$G60) -> 0 | U60: =SUMIFS('Portfolio Analytics'!P$65:P$92,Lists!$C$5:$C$32,$G60) -> 902.65 | V60: =SUMIFS('Portfolio Analytics'!Q$65:Q$92,Lists!$C$5:$C$32,$G60) -> 0 | W60: =SUMIFS('Portfolio Analytics'!R$65:R$92,Lists!$C$5:$C$32,$G60) -> 0 | X60: =SUMIFS('Portfolio Analytics'!S$65:S$92,Lists!$C$5:$C$32,$G60) -> 0 | Y60: =SUMIFS('Portfolio Analytics'!T$65:T$92,Lists!$C$5:$C$32,$G60) -> 900.75 | Z60: =SUMIFS('Portfolio Analytics'!U$65:U$92,Lists!$C$5:$C$32,$G60) -> 0 | AA60: =SUMIFS('Portfolio Analytics'!V$65:V$92,Lists!$C$5:$C$32,$G60) -> 0 | AB60: =SUMIFS('Portfolio Analytics'!W$65:W$92,Lists!$C$5:$C$32,$G60) -> 0 | AC60: =SUMIFS('Portfolio Analytics'!X$65:X$92,Lists!$C$5:$C$32,$G60) -> 0 | AD60: =SUMIFS('Portfolio Analytics'!Y$65:Y$92,Lists!$C$5:$C$32,$G60) -> 0 | AE60: =SUMIFS('Portfolio Analytics'!Z$65:Z$92,Lists!$C$5:$C$32,$G60) -> 0 | AF60: =SUMIFS('Portfolio Analytics'!AA$65:AA$92,Lists!$C$5:$C$32,$G60) -> 0 | AG60: =SUMIFS('Portfolio Analytics'!AB$65:AB$92,Lists!$C$5:$C$32,$G60) -> 0 | AH60: =SUMIFS('Portfolio Analytics'!AC$65:AC$92,Lists!$C$5:$C$32,$G60) -> 0 | AI60: =SUMIFS('Portfolio Analytics'!AD$65:AD$92,Lists!$C$5:$C$32,$G60) -> 0 | AJ60: =SUMIFS('Portfolio Analytics'!AE$65:AE$92,Lists!$C$5:$C$32,$G60) -> 0 | AK60: =SUMIFS('Portfolio Analytics'!AF$65:AF$92,Lists!$C$5:$C$32,$G60) -> 0 | AL60: =SUMIFS('Portfolio Analytics'!AG$65:AG$92,Lists!$C$5:$C$32,$G60) -> 0 | AM60: =SUMIFS('Portfolio Analytics'!AH$65:AH$92,Lists!$C$5:$C$32,$G60) -> 0 | AN60: =SUMIFS('Portfolio Analytics'!AI$65:AI$92,Lists!$C$5:$C$32,$G60) -> 2047.6 | AO60: =SUMIFS('Portfolio Analytics'!AJ$65:AJ$92,Lists!$C$5:$C$32,$G60) -> 0 | AP60: =SUMIFS('Portfolio Analytics'!AK$65:AK$92,Lists!$C$5:$C$32,$G60) -> 0 | AQ60: =SUMIFS('Portfolio Analytics'!AL$65:AL$92,Lists!$C$5:$C$32,$G60) -> 0 | AR60: =SUMIFS('Portfolio Analytics'!AM$65:AM$92,Lists!$C$5:$C$32,$G60) -> 0 | AS60: =SUMIFS('Portfolio Analytics'!AN$65:AN$92,Lists!$C$5:$C$32,$G60) -> 0
G61: Geothermal | H61: MW | J61: =SUMIFS('Portfolio Analytics'!E$65:E$92,Lists!$C$5:$C$32,$G61) -> 0 | K61: =SUMIFS('Portfolio Analytics'!F$65:F$92,Lists!$C$5:$C$32,$G61) -> 0 | L61: =SUMIFS('Portfolio Analytics'!G$65:G$92,Lists!$C$5:$C$32,$G61) -> 0 | M61: =SUMIFS('Portfolio Analytics'!H$65:H$92,Lists!$C$5:$C$32,$G61) -> 0 | N61: =SUMIFS('Portfolio Analytics'!I$65:I$92,Lists!$C$5:$C$32,$G61) -> 0 | O61: =SUMIFS('Portfolio Analytics'!J$65:J$92,Lists!$C$5:$C$32,$G61) -> 1851.31 | P61: =SUMIFS('Portfolio Analytics'!K$65:K$92,Lists!$C$5:$C$32,$G61) -> 1851.31 | Q61: =SUMIFS('Portfolio Analytics'!L$65:L$92,Lists!$C$5:$C$32,$G61) -> 1851.31 | R61: =SUMIFS('Portfolio Analytics'!M$65:M$92,Lists!$C$5:$C$32,$G61) -> 1851.31 | S61: =SUMIFS('Portfolio Analytics'!N$65:N$92,Lists!$C$5:$C$32,$G61) -> 1986.31 | T61: =SUMIFS('Portfolio Analytics'!O$65:O$92,Lists!$C$5:$C$32,$G61) -> 0 | U61: =SUMIFS('Portfolio Analytics'!P$65:P$92,Lists!$C$5:$C$32,$G61) -> 1986.31 | V61: =SUMIFS('Portfolio Analytics'!Q$65:Q$92,Lists!$C$5:$C$32,$G61) -> 0 | W61: =SUMIFS('Portfolio Analytics'!R$65:R$92,Lists!$C$5:$C$32,$G61) -> 0 | X61: =SUMIFS('Portfolio Analytics'!S$65:S$92,Lists!$C$5:$C$32,$G61) -> 0 | Y61: =SUMIFS('Portfolio Analytics'!T$65:T$92,Lists!$C$5:$C$32,$G61) -> 1986.31 | Z61: =SUMIFS('Portfolio Analytics'!U$65:U$92,Lists!$C$5:$C$32,$G61) -> 0 | AA61: =SUMIFS('Portfolio Analytics'!V$65:V$92,Lists!$C$5:$C$32,$G61) -> 0 | AB61: =SUMIFS('Portfolio Analytics'!W$65:W$92,Lists!$C$5:$C$32,$G61) -> 0 | AC61: =SUMIFS('Portfolio Analytics'!X$65:X$92,Lists!$C$5:$C$32,$G61) -> 0 | AD61: =SUMIFS('Portfolio Analytics'!Y$65:Y$92,Lists!$C$5:$C$32,$G61) -> 0 | AE61: =SUMIFS('Portfolio Analytics'!Z$65:Z$92,Lists!$C$5:$C$32,$G61) -> 0 | AF61: =SUMIFS('Portfolio Analytics'!AA$65:AA$92,Lists!$C$5:$C$32,$G61) -> 0 | AG61: =SUMIFS('Portfolio Analytics'!AB$65:AB$92,Lists!$C$5:$C$32,$G61) -> 0 | AH61: =SUMIFS('Portfolio Analytics'!AC$65:AC$92,Lists!$C$5:$C$32,$G61) -> 0 | AI61: =SUMIFS('Portfolio Analytics'!AD$65:AD$92,Lists!$C$5:$C$32,$G61) -> 0 | AJ61: =SUMIFS('Portfolio Analytics'!AE$65:AE$92,Lists!$C$5:$C$32,$G61) -> 0 | AK61: =SUMIFS('Portfolio Analytics'!AF$65:AF$92,Lists!$C$5:$C$32,$G61) -> 0 | AL61: =SUMIFS('Portfolio Analytics'!AG$65:AG$92,Lists!$C$5:$C$32,$G61) -> 0 | AM61: =SUMIFS('Portfolio Analytics'!AH$65:AH$92,Lists!$C$5:$C$32,$G61) -> 0 | AN61: =SUMIFS('Portfolio Analytics'!AI$65:AI$92,Lists!$C$5:$C$32,$G61) -> 4183.41 | AO61: =SUMIFS('Portfolio Analytics'!AJ$65:AJ$92,Lists!$C$5:$C$32,$G61) -> 0 | AP61: =SUMIFS('Portfolio Analytics'!AK$65:AK$92,Lists!$C$5:$C$32,$G61) -> 0 | AQ61: =SUMIFS('Portfolio Analytics'!AL$65:AL$92,Lists!$C$5:$C$32,$G61) -> 0 | AR61: =SUMIFS('Portfolio Analytics'!AM$65:AM$92,Lists!$C$5:$C$32,$G61) -> 0 | AS61: =SUMIFS('Portfolio Analytics'!AN$65:AN$92,Lists!$C$5:$C$32,$G61) -> 0
G62: Hydro (Small) | H62: MW | J62: =SUMIFS('Portfolio Analytics'!E$65:E$92,Lists!$C$5:$C$32,$G62) -> 0 | K62: =SUMIFS('Portfolio Analytics'!F$65:F$92,Lists!$C$5:$C$32,$G62) -> 0 | L62: =SUMIFS('Portfolio Analytics'!G$65:G$92,Lists!$C$5:$C$32,$G62) -> 0 | M62: =SUMIFS('Portfolio Analytics'!H$65:H$92,Lists!$C$5:$C$32,$G62) -> 0 | N62: =SUMIFS('Portfolio Analytics'!I$65:I$92,Lists!$C$5:$C$32,$G62) -> 0 | O62: =SUMIFS('Portfolio Analytics'!J$65:J$92,Lists!$C$5:$C$32,$G62) -> 974.03 | P62: =SUMIFS('Portfolio Analytics'!K$65:K$92,Lists!$C$5:$C$32,$G62) -> 974.03 | Q62: =SUMIFS('Portfolio Analytics'!L$65:L$92,Lists!$C$5:$C$32,$G62) -> 974.03 | R62: =SUMIFS('Portfolio Analytics'!M$65:M$92,Lists!$C$5:$C$32,$G62) -> 974.03 | S62: =SUMIFS('Portfolio Analytics'!N$65:N$92,Lists!$C$5:$C$32,$G62) -> 974.03 | T62: =SUMIFS('Portfolio Analytics'!O$65:O$92,Lists!$C$5:$C$32,$G62) -> 0 | U62: =SUMIFS('Portfolio Analytics'!P$65:P$92,Lists!$C$5:$C$32,$G62) -> 974.03 | V62: =SUMIFS('Portfolio Analytics'!Q$65:Q$92,Lists!$C$5:$C$32,$G62) -> 0 | W62: =SUMIFS('Portfolio Analytics'!R$65:R$92,Lists!$C$5:$C$32,$G62) -> 0 | X62: =SUMIFS('Portfolio Analytics'!S$65:S$92,Lists!$C$5:$C$32,$G62) -> 0 | Y62: =SUMIFS('Portfolio Analytics'!T$65:T$92,Lists!$C$5:$C$32,$G62) -> 974.03 | Z62: =SUMIFS('Portfolio Analytics'!U$65:U$92,Lists!$C$5:$C$32,$G62) -> 0 | AA62: =SUMIFS('Portfolio Analytics'!V$65:V$92,Lists!$C$5:$C$32,$G62) -> 0 | AB62: =SUMIFS('Portfolio Analytics'!W$65:W$92,Lists!$C$5:$C$32,$G62) -> 0 | AC62: =SUMIFS('Portfolio Analytics'!X$65:X$92,Lists!$C$5:$C$32,$G62) -> 0 | AD62: =SUMIFS('Portfolio Analytics'!Y$65:Y$92,Lists!$C$5:$C$32,$G62) -> 0 | AE62: =SUMIFS('Portfolio Analytics'!Z$65:Z$92,Lists!$C$5:$C$32,$G62) -> 0 | AF62: =SUMIFS('Portfolio Analytics'!AA$65:AA$92,Lists!$C$5:$C$32,$G62) -> 0 | AG62: =SUMIFS('Portfolio Analytics'!AB$65:AB$92,Lists!$C$5:$C$32,$G62) -> 0 | AH62: =SUMIFS('Portfolio Analytics'!AC$65:AC$92,Lists!$C$5:$C$32,$G62) -> 0 | AI62: =SUMIFS('Portfolio Analytics'!AD$65:AD$92,Lists!$C$5:$C$32,$G62) -> 0 | AJ62: =SUMIFS('Portfolio Analytics'!AE$65:AE$92,Lists!$C$5:$C$32,$G62) -> 0 | AK62: =SUMIFS('Portfolio Analytics'!AF$65:AF$92,Lists!$C$5:$C$32,$G62) -> 0 | AL62: =SUMIFS('Portfolio Analytics'!AG$65:AG$92,Lists!$C$5:$C$32,$G62) -> 0 | AM62: =SUMIFS('Portfolio Analytics'!AH$65:AH$92,Lists!$C$5:$C$32,$G62) -> 0 | AN62: =SUMIFS('Portfolio Analytics'!AI$65:AI$92,Lists!$C$5:$C$32,$G62) -> 974.03 | AO62: =SUMIFS('Portfolio Analytics'!AJ$65:AJ$92,Lists!$C$5:$C$32,$G62) -> 0 | AP62: =SUMIFS('Portfolio Analytics'!AK$65:AK$92,Lists!$C$5:$C$32,$G62) -> 0 | AQ62: =SUMIFS('Portfolio Analytics'!AL$65:AL$92,Lists!$C$5:$C$32,$G62) -> 0 | AR62: =SUMIFS('Portfolio Analytics'!AM$65:AM$92,Lists!$C$5:$C$32,$G62) -> 0 | AS62: =SUMIFS('Portfolio Analytics'!AN$65:AN$92,Lists!$C$5:$C$32,$G62) -> 0
G63: Wind | H63: MW | J63: =SUMIFS('Portfolio Analytics'!E$65:E$92,Lists!$C$5:$C$32,$G63) -> 0 | K63: =SUMIFS('Portfolio Analytics'!F$65:F$92,Lists!$C$5:$C$32,$G63) -> 0 | L63: =SUMIFS('Portfolio Analytics'!G$65:G$92,Lists!$C$5:$C$32,$G63) -> 0 | M63: =SUMIFS('Portfolio Analytics'!H$65:H$92,Lists!$C$5:$C$32,$G63) -> 0 | N63: =SUMIFS('Portfolio Analytics'!I$65:I$92,Lists!$C$5:$C$32,$G63) -> 0 | O63: =SUMIFS('Portfolio Analytics'!J$65:J$92,Lists!$C$5:$C$32,$G63) -> 7356.56 | P63: =SUMIFS('Portfolio Analytics'!K$65:K$92,Lists!$C$5:$C$32,$G63) -> 7490.31 | Q63: =SUMIFS('Portfolio Analytics'!L$65:L$92,Lists!$C$5:$C$32,$G63) -> 10388.14 | R63: =SUMIFS('Portfolio Analytics'!M$65:M$92,Lists!$C$5:$C$32,$G63) -> 10675.14 | S63: =SUMIFS('Portfolio Analytics'!N$65:N$92,Lists!$C$5:$C$32,$G63) -> 10767.31 | T63: =SUMIFS('Portfolio Analytics'!O$65:O$92,Lists!$C$5:$C$32,$G63) -> 0 | U63: =SUMIFS('Portfolio Analytics'!P$65:P$92,Lists!$C$5:$C$32,$G63) -> 10767.31 | V63: =SUMIFS('Portfolio Analytics'!Q$65:Q$92,Lists!$C$5:$C$32,$G63) -> 0 | W63: =SUMIFS('Portfolio Analytics'!R$65:R$92,Lists!$C$5:$C$32,$G63) -> 0 | X63: =SUMIFS('Portfolio Analytics'!S$65:S$92,Lists!$C$5:$C$32,$G63) -> 0 | Y63: =SUMIFS('Portfolio Analytics'!T$65:T$92,Lists!$C$5:$C$32,$G63) -> 12157.24 | Z63: =SUMIFS('Portfolio Analytics'!U$65:U$92,Lists!$C$5:$C$32,$G63) -> 0 | AA63: =SUMIFS('Portfolio Analytics'!V$65:V$92,Lists!$C$5:$C$32,$G63) -> 0 | AB63: =SUMIFS('Portfolio Analytics'!W$65:W$92,Lists!$C$5:$C$32,$G63) -> 0 | AC63: =SUMIFS('Portfolio Analytics'!X$65:X$92,Lists!$C$5:$C$32,$G63) -> 0 | AD63: =SUMIFS('Portfolio Analytics'!Y$65:Y$92,Lists!$C$5:$C$32,$G63) -> 0 | AE63: =SUMIFS('Portfolio Analytics'!Z$65:Z$92,Lists!$C$5:$C$32,$G63) -> 0 | AF63: =SUMIFS('Portfolio Analytics'!AA$65:AA$92,Lists!$C$5:$C$32,$G63) -> 0 | AG63: =SUMIFS('Portfolio Analytics'!AB$65:AB$92,Lists!$C$5:$C$32,$G63) -> 0 | AH63: =SUMIFS('Portfolio Analytics'!AC$65:AC$92,Lists!$C$5:$C$32,$G63) -> 0 | AI63: =SUMIFS('Portfolio Analytics'!AD$65:AD$92,Lists!$C$5:$C$32,$G63) -> 0 | AJ63: =SUMIFS('Portfolio Analytics'!AE$65:AE$92,Lists!$C$5:$C$32,$G63) -> 0 | AK63: =SUMIFS('Portfolio Analytics'!AF$65:AF$92,Lists!$C$5:$C$32,$G63) -> 0 | AL63: =SUMIFS('Portfolio Analytics'!AG$65:AG$92,Lists!$C$5:$C$32,$G63) -> 0 | AM63: =SUMIFS('Portfolio Analytics'!AH$65:AH$92,Lists!$C$5:$C$32,$G63) -> 0 | AN63: =SUMIFS('Portfolio Analytics'!AI$65:AI$92,Lists!$C$5:$C$32,$G63) -> 12657.24 | AO63: =SUMIFS('Portfolio Analytics'!AJ$65:AJ$92,Lists!$C$5:$C$32,$G63) -> 0 | AP63: =SUMIFS('Portfolio Analytics'!AK$65:AK$92,Lists!$C$5:$C$32,$G63) -> 0 | AQ63: =SUMIFS('Portfolio Analytics'!AL$65:AL$92,Lists!$C$5:$C$32,$G63) -> 0 | AR63: =SUMIFS('Portfolio Analytics'!AM$65:AM$92,Lists!$C$5:$C$32,$G63) -> 0 | AS63: =SUMIFS('Portfolio Analytics'!AN$65:AN$92,Lists!$C$5:$C$32,$G63) -> 0
G64: Wind OOS New Tx | H64: MW | J64: =SUMIFS('Portfolio Analytics'!E$65:E$92,Lists!$C$5:$C$32,$G64) -> 0 | K64: =SUMIFS('Portfolio Analytics'!F$65:F$92,Lists!$C$5:$C$32,$G64) -> 0 | L64: =SUMIFS('Portfolio Analytics'!G$65:G$92,Lists!$C$5:$C$32,$G64) -> 0 | M64: =SUMIFS('Portfolio Analytics'!H$65:H$92,Lists!$C$5:$C$32,$G64) -> 0 | N64: =SUMIFS('Portfolio Analytics'!I$65:I$92,Lists!$C$5:$C$32,$G64) -> 0 | O64: =SUMIFS('Portfolio Analytics'!J$65:J$92,Lists!$C$5:$C$32,$G64) -> 0 | P64: =SUMIFS('Portfolio Analytics'!K$65:K$92,Lists!$C$5:$C$32,$G64) -> 0 | Q64: =SUMIFS('Portfolio Analytics'!L$65:L$92,Lists!$C$5:$C$32,$G64) -> 0 | R64: =SUMIFS('Portfolio Analytics'!M$65:M$92,Lists!$C$5:$C$32,$G64) -> 0 | S64: =SUMIFS('Portfolio Analytics'!N$65:N$92,Lists!$C$5:$C$32,$G64) -> 0 | T64: =SUMIFS('Portfolio Analytics'!O$65:O$92,Lists!$C$5:$C$32,$G64) -> 0 | U64: =SUMIFS('Portfolio Analytics'!P$65:P$92,Lists!$C$5:$C$32,$G64) -> 0 | V64: =SUMIFS('Portfolio Analytics'!Q$65:Q$92,Lists!$C$5:$C$32,$G64) -> 0 | W64: =SUMIFS('Portfolio Analytics'!R$65:R$92,Lists!$C$5:$C$32,$G64) -> 0 | X64: =SUMIFS('Portfolio Analytics'!S$65:S$92,Lists!$C$5:$C$32,$G64) -> 0 | Y64: =SUMIFS('Portfolio Analytics'!T$65:T$92,Lists!$C$5:$C$32,$G64) -> 1336.87 | Z64: =SUMIFS('Portfolio Analytics'!U$65:U$92,Lists!$C$5:$C$32,$G64) -> 0 | AA64: =SUMIFS('Portfolio Analytics'!V$65:V$92,Lists!$C$5:$C$32,$G64) -> 0 | AB64: =SUMIFS('Portfolio Analytics'!W$65:W$92,Lists!$C$5:$C$32,$G64) -> 0 | AC64: =SUMIFS('Portfolio Analytics'!X$65:X$92,Lists!$C$5:$C$32,$G64) -> 0 | AD64: =SUMIFS('Portfolio Analytics'!Y$65:Y$92,Lists!$C$5:$C$32,$G64) -> 0 | AE64: =SUMIFS('Portfolio Analytics'!Z$65:Z$92,Lists!$C$5:$C$32,$G64) -> 0 | AF64: =SUMIFS('Portfolio Analytics'!AA$65:AA$92,Lists!$C$5:$C$32,$G64) -> 0 | AG64: =SUMIFS('Portfolio Analytics'!AB$65:AB$92,Lists!$C$5:$C$32,$G64) -> 0 | AH64: =SUMIFS('Portfolio Analytics'!AC$65:AC$92,Lists!$C$5:$C$32,$G64) -> 0 | AI64: =SUMIFS('Portfolio Analytics'!AD$65:AD$92,Lists!$C$5:$C$32,$G64) -> 0 | AJ64: =SUMIFS('Portfolio Analytics'!AE$65:AE$92,Lists!$C$5:$C$32,$G64) -> 0 | AK64: =SUMIFS('Portfolio Analytics'!AF$65:AF$92,Lists!$C$5:$C$32,$G64) -> 0 | AL64: =SUMIFS('Portfolio Analytics'!AG$65:AG$92,Lists!$C$5:$C$32,$G64) -> 0 | AM64: =SUMIFS('Portfolio Analytics'!AH$65:AH$92,Lists!$C$5:$C$32,$G64) -> 0 | AN64: =SUMIFS('Portfolio Analytics'!AI$65:AI$92,Lists!$C$5:$C$32,$G64) -> 3000 | AO64: =SUMIFS('Portfolio Analytics'!AJ$65:AJ$92,Lists!$C$5:$C$32,$G64) -> 0 | AP64: =SUMIFS('Portfolio Analytics'!AK$65:AK$92,Lists!$C$5:$C$32,$G64) -> 0 | AQ64: =SUMIFS('Portfolio Analytics'!AL$65:AL$92,Lists!$C$5:$C$32,$G64) -> 0 | AR64: =SUMIFS('Portfolio Analytics'!AM$65:AM$92,Lists!$C$5:$C$32,$G64) -> 0 | AS64: =SUMIFS('Portfolio Analytics'!AN$65:AN$92,Lists!$C$5:$C$32,$G64) -> 0
G65: Offshore Wind | H65: MW | J65: =SUMIFS('Portfolio Analytics'!E$65:E$92,Lists!$C$5:$C$32,$G65) -> 0 | K65: =SUMIFS('Portfolio Analytics'!F$65:F$92,Lists!$C$5:$C$32,$G65) -> 0 | L65: =SUMIFS('Portfolio Analytics'!G$65:G$92,Lists!$C$5:$C$32,$G65) -> 0 | M65: =SUMIFS('Portfolio Analytics'!H$65:H$92,Lists!$C$5:$C$32,$G65) -> 0 | N65: =SUMIFS('Portfolio Analytics'!I$65:I$92,Lists!$C$5:$C$32,$G65) -> 0 | O65: =SUMIFS('Portfolio Analytics'!J$65:J$92,Lists!$C$5:$C$32,$G65) -> 0 | P65: =SUMIFS('Portfolio Analytics'!K$65:K$92,Lists!$C$5:$C$32,$G65) -> 0 | Q65: =SUMIFS('Portfolio Analytics'!L$65:L$92,Lists!$C$5:$C$32,$G65) -> 0 | R65: =SUMIFS('Portfolio Analytics'!M$65:M$92,Lists!$C$5:$C$32,$G65) -> 0 | S65: =SUMIFS('Portfolio Analytics'!N$65:N$92,Lists!$C$5:$C$32,$G65) -> 0 | T65: =SUMIFS('Portfolio Analytics'!O$65:O$92,Lists!$C$5:$C$32,$G65) -> 0 | U65: =SUMIFS('Portfolio Analytics'!P$65:P$92,Lists!$C$5:$C$32,$G65) -> 0 | V65: =SUMIFS('Portfolio Analytics'!Q$65:Q$92,Lists!$C$5:$C$32,$G65) -> 0 | W65: =SUMIFS('Portfolio Analytics'!R$65:R$92,Lists!$C$5:$C$32,$G65) -> 0 | X65: =SUMIFS('Portfolio Analytics'!S$65:S$92,Lists!$C$5:$C$32,$G65) -> 0 | Y65: =SUMIFS('Portfolio Analytics'!T$65:T$92,Lists!$C$5:$C$32,$G65) -> 0 | Z65: =SUMIFS('Portfolio Analytics'!U$65:U$92,Lists!$C$5:$C$32,$G65) -> 0 | AA65: =SUMIFS('Portfolio Analytics'!V$65:V$92,Lists!$C$5:$C$32,$G65) -> 0 | AB65: =SUMIFS('Portfolio Analytics'!W$65:W$92,Lists!$C$5:$C$32,$G65) -> 0 | AC65: =SUMIFS('Portfolio Analytics'!X$65:X$92,Lists!$C$5:$C$32,$G65) -> 0 | AD65: =SUMIFS('Portfolio Analytics'!Y$65:Y$92,Lists!$C$5:$C$32,$G65) -> 0 | AE65: =SUMIFS('Portfolio Analytics'!Z$65:Z$92,Lists!$C$5:$C$32,$G65) -> 0 | AF65: =SUMIFS('Portfolio Analytics'!AA$65:AA$92,Lists!$C$5:$C$32,$G65) -> 0 | AG65: =SUMIFS('Portfolio Analytics'!AB$65:AB$92,Lists!$C$5:$C$32,$G65) -> 0 | AH65: =SUMIFS('Portfolio Analytics'!AC$65:AC$92,Lists!$C$5:$C$32,$G65) -> 0 | AI65: =SUMIFS('Portfolio Analytics'!AD$65:AD$92,Lists!$C$5:$C$32,$G65) -> 0 | AJ65: =SUMIFS('Portfolio Analytics'!AE$65:AE$92,Lists!$C$5:$C$32,$G65) -> 0 | AK65: =SUMIFS('Portfolio Analytics'!AF$65:AF$92,Lists!$C$5:$C$32,$G65) -> 0 | AL65: =SUMIFS('Portfolio Analytics'!AG$65:AG$92,Lists!$C$5:$C$32,$G65) -> 0 | AM65: =SUMIFS('Portfolio Analytics'!AH$65:AH$92,Lists!$C$5:$C$32,$G65) -> 0 | AN65: =SUMIFS('Portfolio Analytics'!AI$65:AI$92,Lists!$C$5:$C$32,$G65) -> 0 | AO65: =SUMIFS('Portfolio Analytics'!AJ$65:AJ$92,Lists!$C$5:$C$32,$G65) -> 0 | AP65: =SUMIFS('Portfolio Analytics'!AK$65:AK$92,Lists!$C$5:$C$32,$G65) -> 0 | AQ65: =SUMIFS('Portfolio Analytics'!AL$65:AL$92,Lists!$C$5:$C$32,$G65) -> 0 | AR65: =SUMIFS('Portfolio Analytics'!AM$65:AM$92,Lists!$C$5:$C$32,$G65) -> 0 | AS65: =SUMIFS('Portfolio Analytics'!AN$65:AN$92,Lists!$C$5:$C$32,$G65) -> 0
G66: Solar | H66: MW | J66: =SUMIFS('Portfolio Analytics'!E$65:E$92,Lists!$C$5:$C$32,$G66) -> 0 | K66: =SUMIFS('Portfolio Analytics'!F$65:F$92,Lists!$C$5:$C$32,$G66) -> 0 | L66: =SUMIFS('Portfolio Analytics'!G$65:G$92,Lists!$C$5:$C$32,$G66) -> 0 | M66: =SUMIFS('Portfolio Analytics'!H$65:H$92,Lists!$C$5:$C$32,$G66) -> 0 | N66: =SUMIFS('Portfolio Analytics'!I$65:I$92,Lists!$C$5:$C$32,$G66) -> 0 | O66: =SUMIFS('Portfolio Analytics'!J$65:J$92,Lists!$C$5:$C$32,$G66) -> 16310.33 | P66: =SUMIFS('Portfolio Analytics'!K$65:K$92,Lists!$C$5:$C$32,$G66) -> 18765.85 | Q66: =SUMIFS('Portfolio Analytics'!L$65:L$92,Lists!$C$5:$C$32,$G66) -> 20887.45 | R66: =SUMIFS('Portfolio Analytics'!M$65:M$92,Lists!$C$5:$C$32,$G66) -> 22887.45 | S66: =SUMIFS('Portfolio Analytics'!N$65:N$92,Lists!$C$5:$C$32,$G66) -> 25618.97 | T66: =SUMIFS('Portfolio Analytics'!O$65:O$92,Lists!$C$5:$C$32,$G66) -> 0 | U66: =SUMIFS('Portfolio Analytics'!P$65:P$92,Lists!$C$5:$C$32,$G66) -> 30834.94 | V66: =SUMIFS('Portfolio Analytics'!Q$65:Q$92,Lists!$C$5:$C$32,$G66) -> 0 | W66: =SUMIFS('Portfolio Analytics'!R$65:R$92,Lists!$C$5:$C$32,$G66) -> 0 | X66: =SUMIFS('Portfolio Analytics'!S$65:S$92,Lists!$C$5:$C$32,$G66) -> 0 | Y66: =SUMIFS('Portfolio Analytics'!T$65:T$92,Lists!$C$5:$C$32,$G66) -> 41146.52 | Z66: =SUMIFS('Portfolio Analytics'!U$65:U$92,Lists!$C$5:$C$32,$G66) -> 0 | AA66: =SUMIFS('Portfolio Analytics'!V$65:V$92,Lists!$C$5:$C$32,$G66) -> 0 | AB66: =SUMIFS('Portfolio Analytics'!W$65:W$92,Lists!$C$5:$C$32,$G66) -> 0 | AC66: =SUMIFS('Portfolio Analytics'!X$65:X$92,Lists!$C$5:$C$32,$G66) -> 0 | AD66: =SUMIFS('Portfolio Analytics'!Y$65:Y$92,Lists!$C$5:$C$32,$G66) -> 0 | AE66: =SUMIFS('Portfolio Analytics'!Z$65:Z$92,Lists!$C$5:$C$32,$G66) -> 0 | AF66: =SUMIFS('Portfolio Analytics'!AA$65:AA$92,Lists!$C$5:$C$32,$G66) -> 0 | AG66: =SUMIFS('Portfolio Analytics'!AB$65:AB$92,Lists!$C$5:$C$32,$G66) -> 0 | AH66: =SUMIFS('Portfolio Analytics'!AC$65:AC$92,Lists!$C$5:$C$32,$G66) -> 0 | AI66: =SUMIFS('Portfolio Analytics'!AD$65:AD$92,Lists!$C$5:$C$32,$G66) -> 0 | AJ66: =SUMIFS('Portfolio Analytics'!AE$65:AE$92,Lists!$C$5:$C$32,$G66) -> 0 | AK66: =SUMIFS('Portfolio Analytics'!AF$65:AF$92,Lists!$C$5:$C$32,$G66) -> 0 | AL66: =SUMIFS('Portfolio Analytics'!AG$65:AG$92,Lists!$C$5:$C$32,$G66) -> 0 | AM66: =SUMIFS('Portfolio Analytics'!AH$65:AH$92,Lists!$C$5:$C$32,$G66) -> 0 | AN66: =SUMIFS('Portfolio Analytics'!AI$65:AI$92,Lists!$C$5:$C$32,$G66) -> 131396.23 | AO66: =SUMIFS('Portfolio Analytics'!AJ$65:AJ$92,Lists!$C$5:$C$32,$G66) -> 0 | AP66: =SUMIFS('Portfolio Analytics'!AK$65:AK$92,Lists!$C$5:$C$32,$G66) -> 0 | AQ66: =SUMIFS('Portfolio Analytics'!AL$65:AL$92,Lists!$C$5:$C$32,$G66) -> 0 | AR66: =SUMIFS('Portfolio Analytics'!AM$65:AM$92,Lists!$C$5:$C$32,$G66) -> 0 | AS66: =SUMIFS('Portfolio Analytics'!AN$65:AN$92,Lists!$C$5:$C$32,$G66) -> 0
G67: Customer Solar | H67: MW | J67: =SUMIFS('Portfolio Analytics'!E$65:E$92,Lists!$C$5:$C$32,$G67) -> 0 | K67: =SUMIFS('Portfolio Analytics'!F$65:F$92,Lists!$C$5:$C$32,$G67) -> 0 | L67: =SUMIFS('Portfolio Analytics'!G$65:G$92,Lists!$C$5:$C$32,$G67) -> 0 | M67: =SUMIFS('Portfolio Analytics'!H$65:H$92,Lists!$C$5:$C$32,$G67) -> 0 | N67: =SUMIFS('Portfolio Analytics'!I$65:I$92,Lists!$C$5:$C$32,$G67) -> 0 | O67: =SUMIFS('Portfolio Analytics'!J$65:J$92,Lists!$C$5:$C$32,$G67) -> 7269.29 | P67: =SUMIFS('Portfolio Analytics'!K$65:K$92,Lists!$C$5:$C$32,$G67) -> 7269.29 | Q67: =SUMIFS('Portfolio Analytics'!L$65:L$92,Lists!$C$5:$C$32,$G67) -> 7269.29 | R67: =SUMIFS('Portfolio Analytics'!M$65:M$92,Lists!$C$5:$C$32,$G67) -> 7269.29 | S67: =SUMIFS('Portfolio Analytics'!N$65:N$92,Lists!$C$5:$C$32,$G67) -> 7269.29 | T67: =SUMIFS('Portfolio Analytics'!O$65:O$92,Lists!$C$5:$C$32,$G67) -> 0 | U67: =SUMIFS('Portfolio Analytics'!P$65:P$92,Lists!$C$5:$C$32,$G67) -> 7269.29 | V67: =SUMIFS('Portfolio Analytics'!Q$65:Q$92,Lists!$C$5:$C$32,$G67) -> 0 | W67: =SUMIFS('Portfolio Analytics'!R$65:R$92,Lists!$C$5:$C$32,$G67) -> 0 | X67: =SUMIFS('Portfolio Analytics'!S$65:S$92,Lists!$C$5:$C$32,$G67) -> 0 | Y67: =SUMIFS('Portfolio Analytics'!T$65:T$92,Lists!$C$5:$C$32,$G67) -> 7269.29 | Z67: =SUMIFS('Portfolio Analytics'!U$65:U$92,Lists!$C$5:$C$32,$G67) -> 0 | AA67: =SUMIFS('Portfolio Analytics'!V$65:V$92,Lists!$C$5:$C$32,$G67) -> 0 | AB67: =SUMIFS('Portfolio Analytics'!W$65:W$92,Lists!$C$5:$C$32,$G67) -> 0 | AC67: =SUMIFS('Portfolio Analytics'!X$65:X$92,Lists!$C$5:$C$32,$G67) -> 0 | AD67: =SUMIFS('Portfolio Analytics'!Y$65:Y$92,Lists!$C$5:$C$32,$G67) -> 0 | AE67: =SUMIFS('Portfolio Analytics'!Z$65:Z$92,Lists!$C$5:$C$32,$G67) -> 0 | AF67: =SUMIFS('Portfolio Analytics'!AA$65:AA$92,Lists!$C$5:$C$32,$G67) -> 0 | AG67: =SUMIFS('Portfolio Analytics'!AB$65:AB$92,Lists!$C$5:$C$32,$G67) -> 0 | AH67: =SUMIFS('Portfolio Analytics'!AC$65:AC$92,Lists!$C$5:$C$32,$G67) -> 0 | AI67: =SUMIFS('Portfolio Analytics'!AD$65:AD$92,Lists!$C$5:$C$32,$G67) -> 0 | AJ67: =SUMIFS('Portfolio Analytics'!AE$65:AE$92,Lists!$C$5:$C$32,$G67) -> 0 | AK67: =SUMIFS('Portfolio Analytics'!AF$65:AF$92,Lists!$C$5:$C$32,$G67) -> 0 | AL67: =SUMIFS('Portfolio Analytics'!AG$65:AG$92,Lists!$C$5:$C$32,$G67) -> 0 | AM67: =SUMIFS('Portfolio Analytics'!AH$65:AH$92,Lists!$C$5:$C$32,$G67) -> 0 | AN67: =SUMIFS('Portfolio Analytics'!AI$65:AI$92,Lists!$C$5:$C$32,$G67) -> 7269.29 | AO67: =SUMIFS('Portfolio Analytics'!AJ$65:AJ$92,Lists!$C$5:$C$32,$G67) -> 0 | AP67: =SUMIFS('Portfolio Analytics'!AK$65:AK$92,Lists!$C$5:$C$32,$G67) -> 0 | AQ67: =SUMIFS('Portfolio Analytics'!AL$65:AL$92,Lists!$C$5:$C$32,$G67) -> 0 | AR67: =SUMIFS('Portfolio Analytics'!AM$65:AM$92,Lists!$C$5:$C$32,$G67) -> 0 | AS67: =SUMIFS('Portfolio Analytics'!AN$65:AN$92,Lists!$C$5:$C$32,$G67) -> 0
G68: Battery Storage | H68: MW | J68: =SUMIFS('Portfolio Analytics'!E$65:E$92,Lists!$C$5:$C$32,$G68) -> 0 | K68: =SUMIFS('Portfolio Analytics'!F$65:F$92,Lists!$C$5:$C$32,$G68) -> 0 | L68: =SUMIFS('Portfolio Analytics'!G$65:G$92,Lists!$C$5:$C$32,$G68) -> 0 | M68: =SUMIFS('Portfolio Analytics'!H$65:H$92,Lists!$C$5:$C$32,$G68) -> 0 | N68: =SUMIFS('Portfolio Analytics'!I$65:I$92,Lists!$C$5:$C$32,$G68) -> 0 | O68: =SUMIFS('Portfolio Analytics'!J$65:J$92,Lists!$C$5:$C$32,$G68) -> 3510.24 | P68: =SUMIFS('Portfolio Analytics'!K$65:K$92,Lists!$C$5:$C$32,$G68) -> 6140.1 | Q68: =SUMIFS('Portfolio Analytics'!L$65:L$92,Lists!$C$5:$C$32,$G68) -> 6140.1 | R68: =SUMIFS('Portfolio Analytics'!M$65:M$92,Lists!$C$5:$C$32,$G68) -> 6528.15 | S68: =SUMIFS('Portfolio Analytics'!N$65:N$92,Lists!$C$5:$C$32,$G68) -> 8320.39 | T68: =SUMIFS('Portfolio Analytics'!O$65:O$92,Lists!$C$5:$C$32,$G68) -> 0 | U68: =SUMIFS('Portfolio Analytics'!P$65:P$92,Lists!$C$5:$C$32,$G68) -> 11544.92 | V68: =SUMIFS('Portfolio Analytics'!Q$65:Q$92,Lists!$C$5:$C$32,$G68) -> 0 | W68: =SUMIFS('Portfolio Analytics'!R$65:R$92,Lists!$C$5:$C$32,$G68) -> 0 | X68: =SUMIFS('Portfolio Analytics'!S$65:S$92,Lists!$C$5:$C$32,$G68) -> 0 | Y68: =SUMIFS('Portfolio Analytics'!T$65:T$92,Lists!$C$5:$C$32,$G68) -> 14137.93 | Z68: =SUMIFS('Portfolio Analytics'!U$65:U$92,Lists!$C$5:$C$32,$G68) -> 0 | AA68: =SUMIFS('Portfolio Analytics'!V$65:V$92,Lists!$C$5:$C$32,$G68) -> 0 | AB68: =SUMIFS('Portfolio Analytics'!W$65:W$92,Lists!$C$5:$C$32,$G68) -> 0 | AC68: =SUMIFS('Portfolio Analytics'!X$65:X$92,Lists!$C$5:$C$32,$G68) -> 0 | AD68: =SUMIFS('Portfolio Analytics'!Y$65:Y$92,Lists!$C$5:$C$32,$G68) -> 0 | AE68: =SUMIFS('Portfolio Analytics'!Z$65:Z$92,Lists!$C$5:$C$32,$G68) -> 0 | AF68: =SUMIFS('Portfolio Analytics'!AA$65:AA$92,Lists!$C$5:$C$32,$G68) -> 0 | AG68: =SUMIFS('Portfolio Analytics'!AB$65:AB$92,Lists!$C$5:$C$32,$G68) -> 0 | AH68: =SUMIFS('Portfolio Analytics'!AC$65:AC$92,Lists!$C$5:$C$32,$G68) -> 0 | AI68: =SUMIFS('Portfolio Analytics'!AD$65:AD$92,Lists!$C$5:$C$32,$G68) -> 0 | AJ68: =SUMIFS('Portfolio Analytics'!AE$65:AE$92,Lists!$C$5:$C$32,$G68) -> 0 | AK68: =SUMIFS('Portfolio Analytics'!AF$65:AF$92,Lists!$C$5:$C$32,$G68) -> 0 | AL68: =SUMIFS('Portfolio Analytics'!AG$65:AG$92,Lists!$C$5:$C$32,$G68) -> 0 | AM68: =SUMIFS('Portfolio Analytics'!AH$65:AH$92,Lists!$C$5:$C$32,$G68) -> 0 | AN68: =SUMIFS('Portfolio Analytics'!AI$65:AI$92,Lists!$C$5:$C$32,$G68) -> 60925.7 | AO68: =SUMIFS('Portfolio Analytics'!AJ$65:AJ$92,Lists!$C$5:$C$32,$G68) -> 0 | AP68: =SUMIFS('Portfolio Analytics'!AK$65:AK$92,Lists!$C$5:$C$32,$G68) -> 0 | AQ68: =SUMIFS('Portfolio Analytics'!AL$65:AL$92,Lists!$C$5:$C$32,$G68) -> 0 | AR68: =SUMIFS('Portfolio Analytics'!AM$65:AM$92,Lists!$C$5:$C$32,$G68) -> 0 | AS68: =SUMIFS('Portfolio Analytics'!AN$65:AN$92,Lists!$C$5:$C$32,$G68) -> 0
G69: Pumped Storage | H69: MW | J69: =SUMIFS('Portfolio Analytics'!E$65:E$92,Lists!$C$5:$C$32,$G69) -> 0 | K69: =SUMIFS('Portfolio Analytics'!F$65:F$92,Lists!$C$5:$C$32,$G69) -> 0 | L69: =SUMIFS('Portfolio Analytics'!G$65:G$92,Lists!$C$5:$C$32,$G69) -> 0 | M69: =SUMIFS('Portfolio Analytics'!H$65:H$92,Lists!$C$5:$C$32,$G69) -> 0 | N69: =SUMIFS('Portfolio Analytics'!I$65:I$92,Lists!$C$5:$C$32,$G69) -> 0 | O69: =SUMIFS('Portfolio Analytics'!J$65:J$92,Lists!$C$5:$C$32,$G69) -> 1599.2 | P69: =SUMIFS('Portfolio Analytics'!K$65:K$92,Lists!$C$5:$C$32,$G69) -> 1599.2 | Q69: =SUMIFS('Portfolio Analytics'!L$65:L$92,Lists!$C$5:$C$32,$G69) -> 1599.2 | R69: =SUMIFS('Portfolio Analytics'!M$65:M$92,Lists!$C$5:$C$32,$G69) -> 1599.2 | S69: =SUMIFS('Portfolio Analytics'!N$65:N$92,Lists!$C$5:$C$32,$G69) -> 1599.2 | T69: =SUMIFS('Portfolio Analytics'!O$65:O$92,Lists!$C$5:$C$32,$G69) -> 0 | U69: =SUMIFS('Portfolio Analytics'!P$65:P$92,Lists!$C$5:$C$32,$G69) -> 3585.67 | V69: =SUMIFS('Portfolio Analytics'!Q$65:Q$92,Lists!$C$5:$C$32,$G69) -> 0 | W69: =SUMIFS('Portfolio Analytics'!R$65:R$92,Lists!$C$5:$C$32,$G69) -> 0 | X69: =SUMIFS('Portfolio Analytics'!S$65:S$92,Lists!$C$5:$C$32,$G69) -> 0 | Y69: =SUMIFS('Portfolio Analytics'!T$65:T$92,Lists!$C$5:$C$32,$G69) -> 3585.67 | Z69: =SUMIFS('Portfolio Analytics'!U$65:U$92,Lists!$C$5:$C$32,$G69) -> 0 | AA69: =SUMIFS('Portfolio Analytics'!V$65:V$92,Lists!$C$5:$C$32,$G69) -> 0 | AB69: =SUMIFS('Portfolio Analytics'!W$65:W$92,Lists!$C$5:$C$32,$G69) -> 0 | AC69: =SUMIFS('Portfolio Analytics'!X$65:X$92,Lists!$C$5:$C$32,$G69) -> 0 | AD69: =SUMIFS('Portfolio Analytics'!Y$65:Y$92,Lists!$C$5:$C$32,$G69) -> 0 | AE69: =SUMIFS('Portfolio Analytics'!Z$65:Z$92,Lists!$C$5:$C$32,$G69) -> 0 | AF69: =SUMIFS('Portfolio Analytics'!AA$65:AA$92,Lists!$C$5:$C$32,$G69) -> 0 | AG69: =SUMIFS('Portfolio Analytics'!AB$65:AB$92,Lists!$C$5:$C$32,$G69) -> 0 | AH69: =SUMIFS('Portfolio Analytics'!AC$65:AC$92,Lists!$C$5:$C$32,$G69) -> 0 | AI69: =SUMIFS('Portfolio Analytics'!AD$65:AD$92,Lists!$C$5:$C$32,$G69) -> 0 | AJ69: =SUMIFS('Portfolio Analytics'!AE$65:AE$92,Lists!$C$5:$C$32,$G69) -> 0 | AK69: =SUMIFS('Portfolio Analytics'!AF$65:AF$92,Lists!$C$5:$C$32,$G69) -> 0 | AL69: =SUMIFS('Portfolio Analytics'!AG$65:AG$92,Lists!$C$5:$C$32,$G69) -> 0 | AM69: =SUMIFS('Portfolio Analytics'!AH$65:AH$92,Lists!$C$5:$C$32,$G69) -> 0 | AN69: =SUMIFS('Portfolio Analytics'!AI$65:AI$92,Lists!$C$5:$C$32,$G69) -> 3585.67 | AO69: =SUMIFS('Portfolio Analytics'!AJ$65:AJ$92,Lists!$C$5:$C$32,$G69) -> 0 | AP69: =SUMIFS('Portfolio Analytics'!AK$65:AK$92,Lists!$C$5:$C$32,$G69) -> 0 | AQ69: =SUMIFS('Portfolio Analytics'!AL$65:AL$92,Lists!$C$5:$C$32,$G69) -> 0 | AR69: =SUMIFS('Portfolio Analytics'!AM$65:AM$92,Lists!$C$5:$C$32,$G69) -> 0 | AS69: =SUMIFS('Portfolio Analytics'!AN$65:AN$92,Lists!$C$5:$C$32,$G69) -> 0
G70: Shed DR | H70: MW | J70: =SUMIFS('Portfolio Analytics'!E$65:E$92,Lists!$C$5:$C$32,$G70) -> 0 | K70: =SUMIFS('Portfolio Analytics'!F$65:F$92,Lists!$C$5:$C$32,$G70) -> 0 | L70: =SUMIFS('Portfolio Analytics'!G$65:G$92,Lists!$C$5:$C$32,$G70) -> 0 | M70: =SUMIFS('Portfolio Analytics'!H$65:H$92,Lists!$C$5:$C$32,$G70) -> 0 | N70: =SUMIFS('Portfolio Analytics'!I$65:I$92,Lists!$C$5:$C$32,$G70) -> 0 | O70: =SUMIFS('Portfolio Analytics'!J$65:J$92,Lists!$C$5:$C$32,$G70) -> 0 | P70: =SUMIFS('Portfolio Analytics'!K$65:K$92,Lists!$C$5:$C$32,$G70) -> 0 | Q70: =SUMIFS('Portfolio Analytics'!L$65:L$92,Lists!$C$5:$C$32,$G70) -> 0 | R70: =SUMIFS('Portfolio Analytics'!M$65:M$92,Lists!$C$5:$C$32,$G70) -> 0 | S70: =SUMIFS('Portfolio Analytics'!N$65:N$92,Lists!$C$5:$C$32,$G70) -> 0 | T70: =SUMIFS('Portfolio Analytics'!O$65:O$92,Lists!$C$5:$C$32,$G70) -> 0 | U70: =SUMIFS('Portfolio Analytics'!P$65:P$92,Lists!$C$5:$C$32,$G70) -> 0 | V70: =SUMIFS('Portfolio Analytics'!Q$65:Q$92,Lists!$C$5:$C$32,$G70) -> 0 | W70: =SUMIFS('Portfolio Analytics'!R$65:R$92,Lists!$C$5:$C$32,$G70) -> 0 | X70: =SUMIFS('Portfolio Analytics'!S$65:S$92,Lists!$C$5:$C$32,$G70) -> 0 | Y70: =SUMIFS('Portfolio Analytics'!T$65:T$92,Lists!$C$5:$C$32,$G70) -> 0 | Z70: =SUMIFS('Portfolio Analytics'!U$65:U$92,Lists!$C$5:$C$32,$G70) -> 0 | AA70: =SUMIFS('Portfolio Analytics'!V$65:V$92,Lists!$C$5:$C$32,$G70) -> 0 | AB70: =SUMIFS('Portfolio Analytics'!W$65:W$92,Lists!$C$5:$C$32,$G70) -> 0 | AC70: =SUMIFS('Portfolio Analytics'!X$65:X$92,Lists!$C$5:$C$32,$G70) -> 0 | AD70: =SUMIFS('Portfolio Analytics'!Y$65:Y$92,Lists!$C$5:$C$32,$G70) -> 0 | AE70: =SUMIFS('Portfolio Analytics'!Z$65:Z$92,Lists!$C$5:$C$32,$G70) -> 0 | AF70: =SUMIFS('Portfolio Analytics'!AA$65:AA$92,Lists!$C$5:$C$32,$G70) -> 0 | AG70: =SUMIFS('Portfolio Analytics'!AB$65:AB$92,Lists!$C$5:$C$32,$G70) -> 0 | AH70: =SUMIFS('Portfolio Analytics'!AC$65:AC$92,Lists!$C$5:$C$32,$G70) -> 0 | AI70: =SUMIFS('Portfolio Analytics'!AD$65:AD$92,Lists!$C$5:$C$32,$G70) -> 0 | AJ70: =SUMIFS('Portfolio Analytics'!AE$65:AE$92,Lists!$C$5:$C$32,$G70) -> 0 | AK70: =SUMIFS('Portfolio Analytics'!AF$65:AF$92,Lists!$C$5:$C$32,$G70) -> 0 | AL70: =SUMIFS('Portfolio Analytics'!AG$65:AG$92,Lists!$C$5:$C$32,$G70) -> 0 | AM70: =SUMIFS('Portfolio Analytics'!AH$65:AH$92,Lists!$C$5:$C$32,$G70) -> 0 | AN70: =SUMIFS('Portfolio Analytics'!AI$65:AI$92,Lists!$C$5:$C$32,$G70) -> 0 | AO70: =SUMIFS('Portfolio Analytics'!AJ$65:AJ$92,Lists!$C$5:$C$32,$G70) -> 0 | AP70: =SUMIFS('Portfolio Analytics'!AK$65:AK$92,Lists!$C$5:$C$32,$G70) -> 0 | AQ70: =SUMIFS('Portfolio Analytics'!AL$65:AL$92,Lists!$C$5:$C$32,$G70) -> 0 | AR70: =SUMIFS('Portfolio Analytics'!AM$65:AM$92,Lists!$C$5:$C$32,$G70) -> 0 | AS70: =SUMIFS('Portfolio Analytics'!AN$65:AN$92,Lists!$C$5:$C$32,$G70) -> 0
G71: Shift DR | H71: MW | J71: =SUMIFS('Portfolio Analytics'!E$65:E$92,Lists!$C$5:$C$32,$G71) -> 0 | K71: =SUMIFS('Portfolio Analytics'!F$65:F$92,Lists!$C$5:$C$32,$G71) -> 0 | L71: =SUMIFS('Portfolio Analytics'!G$65:G$92,Lists!$C$5:$C$32,$G71) -> 0 | M71: =SUMIFS('Portfolio Analytics'!H$65:H$92,Lists!$C$5:$C$32,$G71) -> 0 | N71: =SUMIFS('Portfolio Analytics'!I$65:I$92,Lists!$C$5:$C$32,$G71) -> 0 | O71: =SUMIFS('Portfolio Analytics'!J$65:J$92,Lists!$C$5:$C$32,$G71) -> 0 | P71: =SUMIFS('Portfolio Analytics'!K$65:K$92,Lists!$C$5:$C$32,$G71) -> 0 | Q71: =SUMIFS('Portfolio Analytics'!L$65:L$92,Lists!$C$5:$C$32,$G71) -> 0 | R71: =SUMIFS('Portfolio Analytics'!M$65:M$92,Lists!$C$5:$C$32,$G71) -> 0 | S71: =SUMIFS('Portfolio Analytics'!N$65:N$92,Lists!$C$5:$C$32,$G71) -> 0 | T71: =SUMIFS('Portfolio Analytics'!O$65:O$92,Lists!$C$5:$C$32,$G71) -> 0 | U71: =SUMIFS('Portfolio Analytics'!P$65:P$92,Lists!$C$5:$C$32,$G71) -> 0 | V71: =SUMIFS('Portfolio Analytics'!Q$65:Q$92,Lists!$C$5:$C$32,$G71) -> 0 | W71: =SUMIFS('Portfolio Analytics'!R$65:R$92,Lists!$C$5:$C$32,$G71) -> 0 | X71: =SUMIFS('Portfolio Analytics'!S$65:S$92,Lists!$C$5:$C$32,$G71) -> 0 | Y71: =SUMIFS('Portfolio Analytics'!T$65:T$92,Lists!$C$5:$C$32,$G71) -> 0 | Z71: =SUMIFS('Portfolio Analytics'!U$65:U$92,Lists!$C$5:$C$32,$G71) -> 0 | AA71: =SUMIFS('Portfolio Analytics'!V$65:V$92,Lists!$C$5:$C$32,$G71) -> 0 | AB71: =SUMIFS('Portfolio Analytics'!W$65:W$92,Lists!$C$5:$C$32,$G71) -> 0 | AC71: =SUMIFS('Portfolio Analytics'!X$65:X$92,Lists!$C$5:$C$32,$G71) -> 0 | AD71: =SUMIFS('Portfolio Analytics'!Y$65:Y$92,Lists!$C$5:$C$32,$G71) -> 0 | AE71: =SUMIFS('Portfolio Analytics'!Z$65:Z$92,Lists!$C$5:$C$32,$G71) -> 0 | AF71: =SUMIFS('Portfolio Analytics'!AA$65:AA$92,Lists!$C$5:$C$32,$G71) -> 0 | AG71: =SUMIFS('Portfolio Analytics'!AB$65:AB$92,Lists!$C$5:$C$32,$G71) -> 0 | AH71: =SUMIFS('Portfolio Analytics'!AC$65:AC$92,Lists!$C$5:$C$32,$G71) -> 0 | AI71: =SUMIFS('Portfolio Analytics'!AD$65:AD$92,Lists!$C$5:$C$32,$G71) -> 0 | AJ71: =SUMIFS('Portfolio Analytics'!AE$65:AE$92,Lists!$C$5:$C$32,$G71) -> 0 | AK71: =SUMIFS('Portfolio Analytics'!AF$65:AF$92,Lists!$C$5:$C$32,$G71) -> 0 | AL71: =SUMIFS('Portfolio Analytics'!AG$65:AG$92,Lists!$C$5:$C$32,$G71) -> 0 | AM71: =SUMIFS('Portfolio Analytics'!AH$65:AH$92,Lists!$C$5:$C$32,$G71) -> 0 | AN71: =SUMIFS('Portfolio Analytics'!AI$65:AI$92,Lists!$C$5:$C$32,$G71) -> 0 | AO71: =SUMIFS('Portfolio Analytics'!AJ$65:AJ$92,Lists!$C$5:$C$32,$G71) -> 0 | AP71: =SUMIFS('Portfolio Analytics'!AK$65:AK$92,Lists!$C$5:$C$32,$G71) -> 0 | AQ71: =SUMIFS('Portfolio Analytics'!AL$65:AL$92,Lists!$C$5:$C$32,$G71) -> 0 | AR71: =SUMIFS('Portfolio Analytics'!AM$65:AM$92,Lists!$C$5:$C$32,$G71) -> 0 | AS71: =SUMIFS('Portfolio Analytics'!AN$65:AN$92,Lists!$C$5:$C$32,$G71) -> 0
G72: Hydrogen Load | H72: MW | J72: =SUMIFS('Portfolio Analytics'!E$65:E$92,Lists!$C$5:$C$32,$G72) -> 0 | K72: =SUMIFS('Portfolio Analytics'!F$65:F$92,Lists!$C$5:$C$32,$G72) -> 0 | L72: =SUMIFS('Portfolio Analytics'!G$65:G$92,Lists!$C$5:$C$32,$G72) -> 0 | M72: =SUMIFS('Portfolio Analytics'!H$65:H$92,Lists!$C$5:$C$32,$G72) -> 0 | N72: =SUMIFS('Portfolio Analytics'!I$65:I$92,Lists!$C$5:$C$32,$G72) -> 0 | O72: =SUMIFS('Portfolio Analytics'!J$65:J$92,Lists!$C$5:$C$32,$G72) -> 0 | P72: =SUMIFS('Portfolio Analytics'!K$65:K$92,Lists!$C$5:$C$32,$G72) -> 0 | Q72: =SUMIFS('Portfolio Analytics'!L$65:L$92,Lists!$C$5:$C$32,$G72) -> 0 | R72: =SUMIFS('Portfolio Analytics'!M$65:M$92,Lists!$C$5:$C$32,$G72) -> 0 | S72: =SUMIFS('Portfolio Analytics'!N$65:N$92,Lists!$C$5:$C$32,$G72) -> 0 | T72: =SUMIFS('Portfolio Analytics'!O$65:O$92,Lists!$C$5:$C$32,$G72) -> 0 | U72: =SUMIFS('Portfolio Analytics'!P$65:P$92,Lists!$C$5:$C$32,$G72) -> 0 | V72: =SUMIFS('Portfolio Analytics'!Q$65:Q$92,Lists!$C$5:$C$32,$G72) -> 0 | W72: =SUMIFS('Portfolio Analytics'!R$65:R$92,Lists!$C$5:$C$32,$G72) -> 0 | X72: =SUMIFS('Portfolio Analytics'!S$65:S$92,Lists!$C$5:$C$32,$G72) -> 0 | Y72: =SUMIFS('Portfolio Analytics'!T$65:T$92,Lists!$C$5:$C$32,$G72) -> 0 | Z72: =SUMIFS('Portfolio Analytics'!U$65:U$92,Lists!$C$5:$C$32,$G72) -> 0 | AA72: =SUMIFS('Portfolio Analytics'!V$65:V$92,Lists!$C$5:$C$32,$G72) -> 0 | AB72: =SUMIFS('Portfolio Analytics'!W$65:W$92,Lists!$C$5:$C$32,$G72) -> 0 | AC72: =SUMIFS('Portfolio Analytics'!X$65:X$92,Lists!$C$5:$C$32,$G72) -> 0 | AD72: =SUMIFS('Portfolio Analytics'!Y$65:Y$92,Lists!$C$5:$C$32,$G72) -> 0 | AE72: =SUMIFS('Portfolio Analytics'!Z$65:Z$92,Lists!$C$5:$C$32,$G72) -> 0 | AF72: =SUMIFS('Portfolio Analytics'!AA$65:AA$92,Lists!$C$5:$C$32,$G72) -> 0 | AG72: =SUMIFS('Portfolio Analytics'!AB$65:AB$92,Lists!$C$5:$C$32,$G72) -> 0 | AH72: =SUMIFS('Portfolio Analytics'!AC$65:AC$92,Lists!$C$5:$C$32,$G72) -> 0 | AI72: =SUMIFS('Portfolio Analytics'!AD$65:AD$92,Lists!$C$5:$C$32,$G72) -> 0 | AJ72: =SUMIFS('Portfolio Analytics'!AE$65:AE$92,Lists!$C$5:$C$32,$G72) -> 0 | AK72: =SUMIFS('Portfolio Analytics'!AF$65:AF$92,Lists!$C$5:$C$32,$G72) -> 0 | AL72: =SUMIFS('Portfolio Analytics'!AG$65:AG$92,Lists!$C$5:$C$32,$G72) -> 0 | AM72: =SUMIFS('Portfolio Analytics'!AH$65:AH$92,Lists!$C$5:$C$32,$G72) -> 0 | AN72: =SUMIFS('Portfolio Analytics'!AI$65:AI$92,Lists!$C$5:$C$32,$G72) -> 450.41 | AO72: =SUMIFS('Portfolio Analytics'!AJ$65:AJ$92,Lists!$C$5:$C$32,$G72) -> 0 | AP72: =SUMIFS('Portfolio Analytics'!AK$65:AK$92,Lists!$C$5:$C$32,$G72) -> 0 | AQ72: =SUMIFS('Portfolio Analytics'!AL$65:AL$92,Lists!$C$5:$C$32,$G72) -> 0 | AR72: =SUMIFS('Portfolio Analytics'!AM$65:AM$92,Lists!$C$5:$C$32,$G72) -> 0 | AS72: =SUMIFS('Portfolio Analytics'!AN$65:AN$92,Lists!$C$5:$C$32,$G72) -> 0
G73: In-State Renewables | H73: MW | J73: =SUM(J60:J67)-J74 -> 0 | K73: 0 | L73: 0 | M73: 0 | N73: 0 | O73: 33193.98 | P73: 35783.25 | Q73: 40802.68 | R73: 43089.68 | S73: 46048.37 | T73: 0 | U73: 51264.34 | V73: 0 | W73: 0 | X73: 0 | Y73: 62963.95 | Z73: 0 | AA73: 0 | AB73: 0 | AC73: 0 | AD73: 0 | AE73: 0 | AF73: 0 | AG73: 0 | AH73: 0 | AI73: 0 | AJ73: 0 | AK73: 0 | AL73: 0 | AM73: 0 | AN73: 157057.61 | AO73: 0 | AP73: 0 | AQ73: 0 | AR73: 0 | AS73: 0
G74: Out-Of-State Renewables | H74: MW | J74: =SUMIFS(raw_resource_build!$F:$F,raw_resource_build!$D:$D,mainzone,raw_resource_build!$C:$C,{"NW","SW"},raw_resource_build!$A:$A,J$53)+J42 -> 0 | K74: =SUMIFS(raw_resource_build!$F:$F,raw_resource_build!$D:$D,mainzone,raw_resource_build!$C:$C,{"NW","SW"},raw_resource_build!$A:$A,K$53)+K42 -> 0 | L74: =SUMIFS(raw_resource_build!$F:$F,raw_resource_build!$D:$D,mainzone,raw_resource_build!$C:$C,{"NW","SW"},raw_resource_build!$A:$A,L$53)+L42 -> 0 | M74: =SUMIFS(raw_resource_build!$F:$F,raw_resource_build!$D:$D,mainzone,raw_resource_build!$C:$C,{"NW","SW"},raw_resource_build!$A:$A,M$53)+M42 -> 0 | N74: =SUMIFS(raw_resource_build!$F:$F,raw_resource_build!$D:$D,mainzone,raw_resource_build!$C:$C,{"NW","SW"},raw_resource_build!$A:$A,N$53)+N42 -> 0 | O74: =SUMIFS(raw_resource_build!$F:$F,raw_resource_build!$D:$D,mainzone,raw_resource_build!$C:$C,{"NW","SW"},raw_resource_build!$A:$A,O$53)+O42 -> 1470.19 | P74: =SUMIFS(raw_resource_build!$F:$F,raw_resource_build!$D:$D,mainzone,raw_resource_build!$C:$C,{"NW","SW"},raw_resource_build!$A:$A,P$53)+P42 -> 1470.19 | Q74: =SUMIFS(raw_resource_build!$F:$F,raw_resource_build!$D:$D,mainzone,raw_resource_build!$C:$C,{"NW","SW"},raw_resource_build!$A:$A,Q$53)+Q42 -> 1470.19 | R74: =SUMIFS(raw_resource_build!$F:$F,raw_resource_build!$D:$D,mainzone,raw_resource_build!$C:$C,{"NW","SW"},raw_resource_build!$A:$A,R$53)+R42 -> 1470.19 | S74: =SUMIFS(raw_resource_build!$F:$F,raw_resource_build!$D:$D,mainzone,raw_resource_build!$C:$C,{"NW","SW"},raw_resource_build!$A:$A,S$53)+S42 -> 1470.19 | T74: =SUMIFS(raw_resource_build!$F:$F,raw_resource_build!$D:$D,mainzone,raw_resource_build!$C:$C,{"NW","SW"},raw_resource_build!$A:$A,T$53)+T42 -> 0 | U74: =SUMIFS(raw_resource_build!$F:$F,raw_resource_build!$D:$D,mainzone,raw_resource_build!$C:$C,{"NW","SW"},raw_resource_build!$A:$A,U$53)+U42 -> 1470.19 | V74: =SUMIFS(raw_resource_build!$F:$F,raw_resource_build!$D:$D,mainzone,raw_resource_build!$C:$C,{"NW","SW"},raw_resource_build!$A:$A,V$53)+V42 -> 0 | W74: =SUMIFS(raw_resource_build!$F:$F,raw_resource_build!$D:$D,mainzone,raw_resource_build!$C:$C,{"NW","SW"},raw_resource_build!$A:$A,W$53)+W42 -> 0 | X74: =SUMIFS(raw_resource_build!$F:$F,raw_resource_build!$D:$D,mainzone,raw_resource_build!$C:$C,{"NW","SW"},raw_resource_build!$A:$A,X$53)+X42 -> 0 | Y74: =SUMIFS(raw_resource_build!$F:$F,raw_resource_build!$D:$D,mainzone,raw_resource_build!$C:$C,{"NW","SW"},raw_resource_build!$A:$A,Y$53)+Y42 -> 2807.06 | Z74: =SUMIFS(raw_resource_build!$F:$F,raw_resource_build!$D:$D,mainzone,raw_resource_build!$C:$C,{"NW","SW"},raw_resource_build!$A:$A,Z$53)+Z42 -> 0 | AA74: =SUMIFS(raw_resource_build!$F:$F,raw_resource_build!$D:$D,mainzone,raw_resource_build!$C:$C,{"NW","SW"},raw_resource_build!$A:$A,AA$53)+AA42 -> 0 | AB74: =SUMIFS(raw_resource_build!$F:$F,raw_resource_build!$D:$D,mainzone,raw_resource_build!$C:$C,{"NW","SW"},raw_resource_build!$A:$A,AB$53)+AB42 -> 0 | AC74: =SUMIFS(raw_resource_build!$F:$F,raw_resource_build!$D:$D,mainzone,raw_resource_build!$C:$C,{"NW","SW"},raw_resource_build!$A:$A,AC$53)+AC42 -> 0 | AD74: =SUMIFS(raw_resource_build!$F:$F,raw_resource_build!$D:$D,mainzone,raw_resource_build!$C:$C,{"NW","SW"},raw_resource_build!$A:$A,AD$53)+AD42 -> 0 | AE74: =SUMIFS(raw_resource_build!$F:$F,raw_resource_build!$D:$D,mainzone,raw_resource_build!$C:$C,{"NW","SW"},raw_resource_build!$A:$A,AE$53)+AE42 -> 0 | AF74: =SUMIFS(raw_resource_build!$F:$F,raw_resource_build!$D:$D,mainzone,raw_resource_build!$C:$C,{"NW","SW"},raw_resource_build!$A:$A,AF$53)+AF42 -> 0 | AG74: =SUMIFS(raw_resource_build!$F:$F,raw_resource_build!$D:$D,mainzone,raw_resource_build!$C:$C,{"NW","SW"},raw_resource_build!$A:$A,AG$53)+AG42 -> 0 | AH74: =SUMIFS(raw_resource_build!$F:$F,raw_resource_build!$D:$D,mainzone,raw_resource_build!$C:$C,{"NW","SW"},raw_resource_build!$A:$A,AH$53)+AH42 -> 0 | AI74: =SUMIFS(raw_resource_build!$F:$F,raw_resource_build!$D:$D,mainzone,raw_resource_build!$C:$C,{"NW","SW"},raw_resource_build!$A:$A,AI$53)+AI42 -> 0 | AJ74: =SUMIFS(raw_resource_build!$F:$F,raw_resource_build!$D:$D,mainzone,raw_resource_build!$C:$C,{"NW","SW"},raw_resource_build!$A:$A,AJ$53)+AJ42 -> 0 | AK74: =SUMIFS(raw_resource_build!$F:$F,raw_resource_build!$D:$D,mainzone,raw_resource_build!$C:$C,{"NW","SW"},raw_resource_build!$A:$A,AK$53)+AK42 -> 0 | AL74: =SUMIFS(raw_resource_build!$F:$F,raw_resource_build!$D:$D,mainzone,raw_resource_build!$C:$C,{"NW","SW"},raw_resource_build!$A:$A,AL$53)+AL42 -> 0 | AM74: =SUMIFS(raw_resource_build!$F:$F,raw_resource_build!$D:$D,mainzone,raw_resource_build!$C:$C,{"NW","SW"},raw_resource_build!$A:$A,AM$53)+AM42 -> 0 | AN74: =SUMIFS(raw_resource_build!$F:$F,raw_resource_build!$D:$D,mainzone,raw_resource_build!$C:$C,{"NW","SW"},raw_resource_build!$A:$A,AN$53)+AN42 -> 4470.19 | AO74: =SUMIFS(raw_resource_build!$F:$F,raw_resource_build!$D:$D,mainzone,raw_resource_build!$C:$C,{"NW","SW"},raw_resource_build!$A:$A,AO$53)+AO42 -> 0 | AP74: =SUMIFS(raw_resource_build!$F:$F,raw_resource_build!$D:$D,mainzone,raw_resource_build!$C:$C,{"NW","SW"},raw_resource_build!$A:$A,AP$53)+AP42 -> 0 | AQ74: =SUMIFS(raw_resource_build!$F:$F,raw_resource_build!$D:$D,mainzone,raw_resource_build!$C:$C,{"NW","SW"},raw_resource_build!$A:$A,AQ$53)+AQ42 -> 0 | AR74: =SUMIFS(raw_resource_build!$F:$F,raw_resource_build!$D:$D,mainzone,raw_resource_build!$C:$C,{"NW","SW"},raw_resource_build!$A:$A,AR$53)+AR42 -> 0 | AS74: =SUMIFS(raw_resource_build!$F:$F,raw_resource_build!$D:$D,mainzone,raw_resource_build!$C:$C,{"NW","SW"},raw_resource_build!$A:$A,AS$53)+AS42 -> 0
G75: Battery Storage Penetration | H75: % of peak load | J75: =IFERROR(J68/J163,0) -> 0 | K75: 0 | L75: 0 | M75: 0 | N75: 0 | O75: 0.07161365544 | P75: 0.1248789873 | Q75: 0.1235018852 | R75: 0.1296037251 | S75: 0.16337802 | T75: 0 | U75: 0.2143326707 | V75: 0 | W75: 0 | X75: 0 | Y75: 0.2527108729 | Z75: 0 | AA75: 0 | AB75: 0 | AC75: 0 | AD75: 0 | AE75: 0 | AF75: 0 | AG75: 0 | AH75: 0 | AI75: 0 | AJ75: 0 | AK75: 0 | AL75: 0 | AM75: 0 | AN75: 0.9445951869 | AO75: 0 | AP75: 0 | AQ75: 0 | AR75: 0 | AS75: 0
G76: Gas capacity not retained (total, cumulative) | H76: MW | J76: =INDEX('Portfolio Analytics'!$E$303:$AN$303,MATCH(Dashboard!J$53,'Portfolio Analytics'!$E$295:$AN$295,0)) -> 0 | K76: =INDEX('Portfolio Analytics'!$E$303:$AN$303,MATCH(Dashboard!K$53,'Portfolio Analytics'!$E$295:$AN$295,0))+J76 -> 0 | L76: =INDEX('Portfolio Analytics'!$E$303:$AN$303,MATCH(Dashboard!L$53,'Portfolio Analytics'!$E$295:$AN$295,0))+K76 -> 0 | M76: =INDEX('Portfolio Analytics'!$E$303:$AN$303,MATCH(Dashboard!M$53,'Portfolio Analytics'!$E$295:$AN$295,0))+L76 -> 0 | N76: =INDEX('Portfolio Analytics'!$E$303:$AN$303,MATCH(Dashboard!N$53,'Portfolio Analytics'!$E$295:$AN$295,0))+M76 -> 0 | O76: =INDEX('Portfolio Analytics'!$E$303:$AN$303,MATCH(Dashboard!O$53,'Portfolio Analytics'!$E$295:$AN$295,0))+N76 -> 0 | P76: =INDEX('Portfolio Analytics'!$E$303:$AN$303,MATCH(Dashboard!P$53,'Portfolio Analytics'!$E$295:$AN$295,0))+O76 -> 0 | Q76: =INDEX('Portfolio Analytics'!$E$303:$AN$303,MATCH(Dashboard!Q$53,'Portfolio Analytics'!$E$295:$AN$295,0))+P76 -> 0 | R76: =INDEX('Portfolio Analytics'!$E$303:$AN$303,MATCH(Dashboard!R$53,'Portfolio Analytics'!$E$295:$AN$295,0))+Q76 -> 0 | S76: =INDEX('Portfolio Analytics'!$E$303:$AN$303,MATCH(Dashboard!S$53,'Portfolio Analytics'!$E$295:$AN$295,0))+R76 -> 0 | T76: =INDEX('Portfolio Analytics'!$E$303:$AN$303,MATCH(Dashboard!T$53,'Portfolio Analytics'!$E$295:$AN$295,0))+S76 -> 0 | U76: =INDEX('Portfolio Analytics'!$E$303:$AN$303,MATCH(Dashboard!U$53,'Portfolio Analytics'!$E$295:$AN$295,0))+T76 -> 0 | V76: =INDEX('Portfolio Analytics'!$E$303:$AN$303,MATCH(Dashboard!V$53,'Portfolio Analytics'!$E$295:$AN$295,0))+U76 -> 0 | W76: =INDEX('Portfolio Analytics'!$E$303:$AN$303,MATCH(Dashboard!W$53,'Portfolio Analytics'!$E$295:$AN$295,0))+V76 -> 0 | X76: =INDEX('Portfolio Analytics'!$E$303:$AN$303,MATCH(Dashboard!X$53,'Portfolio Analytics'!$E$295:$AN$295,0))+W76 -> 0 | Y76: =INDEX('Portfolio Analytics'!$E$303:$AN$303,MATCH(Dashboard!Y$53,'Portfolio Analytics'!$E$295:$AN$295,0))+X76 -> 0 | Z76: =INDEX('Portfolio Analytics'!$E$303:$AN$303,MATCH(Dashboard!Z$53,'Portfolio Analytics'!$E$295:$AN$295,0))+Y76 -> 0 | AA76: =INDEX('Portfolio Analytics'!$E$303:$AN$303,MATCH(Dashboard!AA$53,'Portfolio Analytics'!$E$295:$AN$295,0))+Z76 -> 0 | AB76: =INDEX('Portfolio Analytics'!$E$303:$AN$303,MATCH(Dashboard!AB$53,'Portfolio Analytics'!$E$295:$AN$295,0))+AA76 -> 0 | AC76: =INDEX('Portfolio Analytics'!$E$303:$AN$303,MATCH(Dashboard!AC$53,'Portfolio Analytics'!$E$295:$AN$295,0))+AB76 -> 0 | AD76: =INDEX('Portfolio Analytics'!$E$303:$AN$303,MATCH(Dashboard!AD$53,'Portfolio Analytics'!$E$295:$AN$295,0))+AC76 -> 0 | AE76: =INDEX('Portfolio Analytics'!$E$303:$AN$303,MATCH(Dashboard!AE$53,'Portfolio Analytics'!$E$295:$AN$295,0))+AD76 -> 0 | AF76: =INDEX('Portfolio Analytics'!$E$303:$AN$303,MATCH(Dashboard!AF$53,'Portfolio Analytics'!$E$295:$AN$295,0))+AE76 -> 0 | AG76: =INDEX('Portfolio Analytics'!$E$303:$AN$303,MATCH(Dashboard!AG$53,'Portfolio Analytics'!$E$295:$AN$295,0))+AF76 -> 0 | AH76: =INDEX('Portfolio Analytics'!$E$303:$AN$303,MATCH(Dashboard!AH$53,'Portfolio Analytics'!$E$295:$AN$295,0))+AG76 -> 0 | AI76: =INDEX('Portfolio Analytics'!$E$303:$AN$303,MATCH(Dashboard!AI$53,'Portfolio Analytics'!$E$295:$AN$295,0))+AH76 -> 0 | AJ76: =INDEX('Portfolio Analytics'!$E$303:$AN$303,MATCH(Dashboard!AJ$53,'Portfolio Analytics'!$E$295:$AN$295,0))+AI76 -> 0 | AK76: =INDEX('Portfolio Analytics'!$E$303:$AN$303,MATCH(Dashboard!AK$53,'Portfolio Analytics'!$E$295:$AN$295,0))+AJ76 -> 0 | AL76: =INDEX('Portfolio Analytics'!$E$303:$AN$303,MATCH(Dashboard!AL$53,'Portfolio Analytics'!$E$295:$AN$295,0))+AK76 -> 0 | AM76: =INDEX('Portfolio Analytics'!$E$303:$AN$303,MATCH(Dashboard!AM$53,'Portfolio Analytics'!$E$295:$AN$295,0))+AL76 -> 0 | AN76: =INDEX('Portfolio Analytics'!$E$303:$AN$303,MATCH(Dashboard!AN$53,'Portfolio Analytics'!$E$295:$AN$295,0))+AM76 -> 3769.76 | AO76: =INDEX('Portfolio Analytics'!$E$303:$AN$303,MATCH(Dashboard!AO$53,'Portfolio Analytics'!$E$295:$AN$295,0))+AN76 -> 3769.76 | AP76: =INDEX('Portfolio Analytics'!$E$303:$AN$303,MATCH(Dashboard!AP$53,'Portfolio Analytics'!$E$295:$AN$295,0))+AO76 -> 3769.76 | AQ76: =INDEX('Portfolio Analytics'!$E$303:$AN$303,MATCH(Dashboard!AQ$53,'Portfolio Analytics'!$E$295:$AN$295,0))+AP76 -> 3769.76 | AR76: =INDEX('Portfolio Analytics'!$E$303:$AN$303,MATCH(Dashboard!AR$53,'Portfolio Analytics'!$E$295:$AN$295,0))+AQ76 -> 3769.76 | AS76: =INDEX('Portfolio Analytics'!$E$303:$AN$303,MATCH(Dashboard!AS$53,'Portfolio Analytics'!$E$295:$AN$295,0))+AR76 -> 3769.76
G77: Gas capacity not retained (economic, incremental) | H77: MW | J77: =INDEX('Portfolio Analytics'!$E$315:$AN$315,MATCH(Dashboard!J$53,'Portfolio Analytics'!$E$295:$AN$295,0)) -> 0 | K77: =INDEX('Portfolio Analytics'!$E$315:$AN$315,MATCH(Dashboard!K$53,'Portfolio Analytics'!$E$295:$AN$295,0)) -> 0 | L77: =INDEX('Portfolio Analytics'!$E$315:$AN$315,MATCH(Dashboard!L$53,'Portfolio Analytics'!$E$295:$AN$295,0)) -> 0 | M77: =INDEX('Portfolio Analytics'!$E$315:$AN$315,MATCH(Dashboard!M$53,'Portfolio Analytics'!$E$295:$AN$295,0)) -> 0 | N77: =INDEX('Portfolio Analytics'!$E$315:$AN$315,MATCH(Dashboard!N$53,'Portfolio Analytics'!$E$295:$AN$295,0)) -> 0 | O77: =INDEX('Portfolio Analytics'!$E$315:$AN$315,MATCH(Dashboard!O$53,'Portfolio Analytics'!$E$295:$AN$295,0)) -> 0 | P77: =INDEX('Portfolio Analytics'!$E$315:$AN$315,MATCH(Dashboard!P$53,'Portfolio Analytics'!$E$295:$AN$295,0)) -> 0 | Q77: =INDEX('Portfolio Analytics'!$E$315:$AN$315,MATCH(Dashboard!Q$53,'Portfolio Analytics'!$E$295:$AN$295,0)) -> 0 | R77: =INDEX('Portfolio Analytics'!$E$315:$AN$315,MATCH(Dashboard!R$53,'Portfolio Analytics'!$E$295:$AN$295,0)) -> 0 | S77: =INDEX('Portfolio Analytics'!$E$315:$AN$315,MATCH(Dashboard!S$53,'Portfolio Analytics'!$E$295:$AN$295,0)) -> 0 | T77: =INDEX('Portfolio Analytics'!$E$315:$AN$315,MATCH(Dashboard!T$53,'Portfolio Analytics'!$E$295:$AN$295,0)) -> 0 | U77: =INDEX('Portfolio Analytics'!$E$315:$AN$315,MATCH(Dashboard!U$53,'Portfolio Analytics'!$E$295:$AN$295,0)) -> 0 | V77: =INDEX('Portfolio Analytics'!$E$315:$AN$315,MATCH(Dashboard!V$53,'Portfolio Analytics'!$E$295:$AN$295,0)) -> 0 | W77: =INDEX('Portfolio Analytics'!$E$315:$AN$315,MATCH(Dashboard!W$53,'Portfolio Analytics'!$E$295:$AN$295,0)) -> 0 | X77: =INDEX('Portfolio Analytics'!$E$315:$AN$315,MATCH(Dashboard!X$53,'Portfolio Analytics'!$E$295:$AN$295,0)) -> 0 | Y77: =INDEX('Portfolio Analytics'!$E$315:$AN$315,MATCH(Dashboard!Y$53,'Portfolio Analytics'!$E$295:$AN$295,0)) -> 0 | Z77: =INDEX('Portfolio Analytics'!$E$315:$AN$315,MATCH(Dashboard!Z$53,'Portfolio Analytics'!$E$295:$AN$295,0)) -> 0 | AA77: =INDEX('Portfolio Analytics'!$E$315:$AN$315,MATCH(Dashboard!AA$53,'Portfolio Analytics'!$E$295:$AN$295,0)) -> 0 | AB77: =INDEX('Portfolio Analytics'!$E$315:$AN$315,MATCH(Dashboard!AB$53,'Portfolio Analytics'!$E$295:$AN$295,0)) -> 0 | AC77: =INDEX('Portfolio Analytics'!$E$315:$AN$315,MATCH(Dashboard!AC$53,'Portfolio Analytics'!$E$295:$AN$295,0)) -> 0 | AD77: =INDEX('Portfolio Analytics'!$E$315:$AN$315,MATCH(Dashboard!AD$53,'Portfolio Analytics'!$E$295:$AN$295,0)) -> 0 | AE77: =INDEX('Portfolio Analytics'!$E$315:$AN$315,MATCH(Dashboard!AE$53,'Portfolio Analytics'!$E$295:$AN$295,0)) -> 0 | AF77: =INDEX('Portfolio Analytics'!$E$315:$AN$315,MATCH(Dashboard!AF$53,'Portfolio Analytics'!$E$295:$AN$295,0)) -> 0 | AG77: =INDEX('Portfolio Analytics'!$E$315:$AN$315,MATCH(Dashboard!AG$53,'Portfolio Analytics'!$E$295:$AN$295,0)) -> 0 | AH77: =INDEX('Portfolio Analytics'!$E$315:$AN$315,MATCH(Dashboard!AH$53,'Portfolio Analytics'!$E$295:$AN$295,0)) -> 0 | AI77: =INDEX('Portfolio Analytics'!$E$315:$AN$315,MATCH(Dashboard!AI$53,'Portfolio Analytics'!$E$295:$AN$295,0)) -> 0 | AJ77: =INDEX('Portfolio Analytics'!$E$315:$AN$315,MATCH(Dashboard!AJ$53,'Portfolio Analytics'!$E$295:$AN$295,0)) -> 0 | AK77: =INDEX('Portfolio Analytics'!$E$315:$AN$315,MATCH(Dashboard!AK$53,'Portfolio Analytics'!$E$295:$AN$295,0)) -> 0 | AL77: =INDEX('Portfolio Analytics'!$E$315:$AN$315,MATCH(Dashboard!AL$53,'Portfolio Analytics'!$E$295:$AN$295,0)) -> 0 | AM77: =INDEX('Portfolio Analytics'!$E$315:$AN$315,MATCH(Dashboard!AM$53,'Portfolio Analytics'!$E$295:$AN$295,0)) -> 0 | AN77: =INDEX('Portfolio Analytics'!$E$315:$AN$315,MATCH(Dashboard!AN$53,'Portfolio Analytics'!$E$295:$AN$295,0)) -> 3769.76 | AO77: =INDEX('Portfolio Analytics'!$E$315:$AN$315,MATCH(Dashboard!AO$53,'Portfolio Analytics'!$E$295:$AN$295,0)) -> 0 | AP77: =INDEX('Portfolio Analytics'!$E$315:$AN$315,MATCH(Dashboard!AP$53,'Portfolio Analytics'!$E$295:$AN$295,0)) -> 0 | AQ77: =INDEX('Portfolio Analytics'!$E$315:$AN$315,MATCH(Dashboard!AQ$53,'Portfolio Analytics'!$E$295:$AN$295,0)) -> 0 | AR77: =INDEX('Portfolio Analytics'!$E$315:$AN$315,MATCH(Dashboard!AR$53,'Portfolio Analytics'!$E$295:$AN$295,0)) -> 0 | AS77: =INDEX('Portfolio Analytics'!$E$315:$AN$315,MATCH(Dashboard!AS$53,'Portfolio Analytics'!$E$295:$AN$295,0)) -> 0
G78: Gas capacity not retained (economic, cumulative) | H78: MW | J78: =J76 -> 0 | K78: ='Portfolio Analytics'!F337 -> 0 | L78: ='Portfolio Analytics'!G337 -> 0 | M78: ='Portfolio Analytics'!H337 -> 0 | N78: ='Portfolio Analytics'!I337 -> 0 | O78: ='Portfolio Analytics'!J337 -> 0 | P78: ='Portfolio Analytics'!K337 -> 0 | Q78: ='Portfolio Analytics'!L337 -> 0 | R78: ='Portfolio Analytics'!M337 -> 0 | S78: ='Portfolio Analytics'!N337 -> 0 | T78: ='Portfolio Analytics'!O337 -> 0 | U78: ='Portfolio Analytics'!P337 -> 0 | V78: ='Portfolio Analytics'!Q337 -> 0 | W78: ='Portfolio Analytics'!R337 -> 0 | X78: ='Portfolio Analytics'!S337 -> 0 | Y78: ='Portfolio Analytics'!T337 -> 0 | Z78: ='Portfolio Analytics'!U337 -> 0 | AA78: ='Portfolio Analytics'!V337 -> 0 | AB78: ='Portfolio Analytics'!W337 -> 0 | AC78: ='Portfolio Analytics'!X337 -> 0 | AD78: ='Portfolio Analytics'!Y337 -> 0 | AE78: ='Portfolio Analytics'!Z337 -> 0 | AF78: ='Portfolio Analytics'!AA337 -> 0 | AG78: ='Portfolio Analytics'!AB337 -> 0 | AH78: ='Portfolio Analytics'!AC337 -> 0 | AI78: ='Portfolio Analytics'!AD337 -> 0 | AJ78: ='Portfolio Analytics'!AE337 -> 0 | AK78: ='Portfolio Analytics'!AF337 -> 0 | AL78: ='Portfolio Analytics'!AG337 -> 0 | AM78: ='Portfolio Analytics'!AH337 -> 0 | AN78: ='Portfolio Analytics'!AI337 -> 3769.76 | AO78: =AO76-AN76 -> 0 | AP78: =AP76-AO76 -> 0 | AQ78: =AQ76-AP76 -> 0 | AR78: =AR76-AQ76 -> 0 | AS78: =AS76-AR76 -> 0
G81: Annual Energy Balance
H83: Unit | J83: 2015 | K83: 2016 | L83: 2017 | M83: 2018 | N83: 2019 | O83: 2020 | P83: 2021 | Q83: 2022 | R83: 2023 | S83: 2024 | T83: 2025 | U83: 2026 | V83: 2027 | W83: 2028 | X83: 2029 | Y83: 2030 | Z83: 2031 | AA83: 2032 | AB83: 2033 | AC83: 2034 | AD83: 2035 | AE83: 2036 | AF83: 2037 | AG83: 2038 | AH83: 2039 | AI83: 2040 | AJ83: 2041 | AK83: 2042 | AL83: 2043 | AM83: 2044 | AN83: 2045 | AO83: 2046 | AP83: 2047 | AQ83: 2048 | AR83: 2049 | AS83: 2050
G84: CHP | H84: GWh | J84: ='Portfolio Analytics'!E206 -> 0 | K84: ='Portfolio Analytics'!F206 -> 0 | L84: ='Portfolio Analytics'!G206 -> 0 | M84: ='Portfolio Analytics'!H206 -> 0 | N84: ='Portfolio Analytics'!I206 -> 0 | O84: ='Portfolio Analytics'!J206 -> 10881.05531 | P84: ='Portfolio Analytics'!K206 -> 10881.05531 | Q84: ='Portfolio Analytics'!L206 -> 10881.05531 | R84: ='Portfolio Analytics'!M206 -> 10881.05531 | S84: ='Portfolio Analytics'!N206 -> 10881.05531 | T84: ='Portfolio Analytics'!O206 -> 0 | U84: ='Portfolio Analytics'!P206 -> 10881.05531 | V84: ='Portfolio Analytics'!Q206 -> 0 | W84: ='Portfolio Analytics'!R206 -> 0 | X84: ='Portfolio Analytics'!S206 -> 0 | Y84: ='Portfolio Analytics'!T206 -> 10881.05531 | Z84: ='Portfolio Analytics'!U206 -> 0 | AA84: ='Portfolio Analytics'!V206 -> 0 | AB84: ='Portfolio Analytics'!W206 -> 0 | AC84: ='Portfolio Analytics'!X206 -> 0 | AD84: ='Portfolio Analytics'!Y206 -> 0 | AE84: ='Portfolio Analytics'!Z206 -> 0 | AF84: ='Portfolio Analytics'!AA206 -> 0 | AG84: ='Portfolio Analytics'!AB206 -> 0 | AH84: ='Portfolio Analytics'!AC206 -> 0 | AI84: ='Portfolio Analytics'!AD206 -> 0 | AJ84: ='Portfolio Analytics'!AE206 -> 0 | AK84: ='Portfolio Analytics'!AF206 -> 0 | AL84: ='Portfolio Analytics'!AG206 -> 0 | AM84: ='Portfolio Analytics'!AH206 -> 0 | AN84: ='Portfolio Analytics'!AI206 -> 0 | AO84: ='Portfolio Analytics'!AJ206 -> 0 | AP84: ='Portfolio Analytics'!AK206 -> 0 | AQ84: ='Portfolio Analytics'!AL206 -> 0 | AR84: ='Portfolio Analytics'!AM206 -> 0 | AS84: ='Portfolio Analytics'!AN206 -> 0
G85: Nuclear | H85: GWh | J85: ='Portfolio Analytics'!E207 -> 0 | K85: ='Portfolio Analytics'!F207 -> 0 | L85: ='Portfolio Analytics'!G207 -> 0 | M85: ='Portfolio Analytics'!H207 -> 0 | N85: ='Portfolio Analytics'!I207 -> 0 | O85: ='Portfolio Analytics'!J207 -> 23611.12277 | P85: ='Portfolio Analytics'!K207 -> 23611.12277 | Q85: ='Portfolio Analytics'!L207 -> 23611.12277 | R85: ='Portfolio Analytics'!M207 -> 23611.12277 | S85: ='Portfolio Analytics'!N207 -> 14359.74587 | T85: ='Portfolio Analytics'!O207 -> 0 | U85: ='Portfolio Analytics'!P207 -> 5108.368981 | V85: ='Portfolio Analytics'!Q207 -> 0 | W85: ='Portfolio Analytics'!R207 -> 0 | X85: ='Portfolio Analytics'!S207 -> 0 | Y85: ='Portfolio Analytics'!T207 -> 5108.368981 | Z85: ='Portfolio Analytics'!U207 -> 0 | AA85: ='Portfolio Analytics'!V207 -> 0 | AB85: ='Portfolio Analytics'!W207 -> 0 | AC85: ='Portfolio Analytics'!X207 -> 0 | AD85: ='Portfolio Analytics'!Y207 -> 0 | AE85: ='Portfolio Analytics'!Z207 -> 0 | AF85: ='Portfolio Analytics'!AA207 -> 0 | AG85: ='Portfolio Analytics'!AB207 -> 0 | AH85: ='Portfolio Analytics'!AC207 -> 0 | AI85: ='Portfolio Analytics'!AD207 -> 0 | AJ85: ='Portfolio Analytics'!AE207 -> 0 | AK85: ='Portfolio Analytics'!AF207 -> 0 | AL85: ='Portfolio Analytics'!AG207 -> 0 | AM85: ='Portfolio Analytics'!AH207 -> 0 | AN85: ='Portfolio Analytics'!AI207 -> 5108.368981 | AO85: ='Portfolio Analytics'!AJ207 -> 0 | AP85: ='Portfolio Analytics'!AK207 -> 0 | AQ85: ='Portfolio Analytics'!AL207 -> 0 | AR85: ='Portfolio Analytics'!AM207 -> 0 | AS85: ='Portfolio Analytics'!AN207 -> 0
G86: Hydro | H86: GWh | J86: ='Portfolio Analytics'!E208 -> 0 | K86: ='Portfolio Analytics'!F208 -> 0 | L86: ='Portfolio Analytics'!G208 -> 0 | M86: ='Portfolio Analytics'!H208 -> 0 | N86: ='Portfolio Analytics'!I208 -> 0 | O86: ='Portfolio Analytics'!J208 -> 18669.78858 | P86: ='Portfolio Analytics'!K208 -> 18669.78628 | Q86: ='Portfolio Analytics'!L208 -> 18669.78841 | R86: ='Portfolio Analytics'!M208 -> 18669.78705 | S86: ='Portfolio Analytics'!N208 -> 18669.78617 | T86: ='Portfolio Analytics'!O208 -> 0 | U86: ='Portfolio Analytics'!P208 -> 18669.78482 | V86: ='Portfolio Analytics'!Q208 -> 0 | W86: ='Portfolio Analytics'!R208 -> 0 | X86: ='Portfolio Analytics'!S208 -> 0 | Y86: ='Portfolio Analytics'!T208 -> 18668.23358 | Z86: ='Portfolio Analytics'!U208 -> 0 | AA86: ='Portfolio Analytics'!V208 -> 0 | AB86: ='Portfolio Analytics'!W208 -> 0 | AC86: ='Portfolio Analytics'!X208 -> 0 | AD86: ='Portfolio Analytics'!Y208 -> 0 | AE86: ='Portfolio Analytics'!Z208 -> 0 | AF86: ='Portfolio Analytics'!AA208 -> 0 | AG86: ='Portfolio Analytics'!AB208 -> 0 | AH86: ='Portfolio Analytics'!AC208 -> 0 | AI86: ='Portfolio Analytics'!AD208 -> 0 | AJ86: ='Portfolio Analytics'!AE208 -> 0 | AK86: ='Portfolio Analytics'!AF208 -> 0 | AL86: ='Portfolio Analytics'!AG208 -> 0 | AM86: ='Portfolio Analytics'!AH208 -> 0 | AN86: ='Portfolio Analytics'!AI208 -> 18668.23153 | AO86: ='Portfolio Analytics'!AJ208 -> 0 | AP86: ='Portfolio Analytics'!AK208 -> 0 | AQ86: ='Portfolio Analytics'!AL208 -> 0 | AR86: ='Portfolio Analytics'!AM208 -> 0 | AS86: ='Portfolio Analytics'!AN208 -> 0
G87: Hydro (NW scheduled imports) | H87: GWh | J87: ='Portfolio Analytics'!E209 -> 0 | K87: ='Portfolio Analytics'!F209 -> 0 | L87: ='Portfolio Analytics'!G209 -> 0 | M87: ='Portfolio Analytics'!H209 -> 0 | N87: ='Portfolio Analytics'!I209 -> 0 | O87: ='Portfolio Analytics'!J209 -> 10645.96603 | P87: ='Portfolio Analytics'!K209 -> 10888.40714 | Q87: ='Portfolio Analytics'!L209 -> 10811.52199 | R87: ='Portfolio Analytics'!M209 -> 10829.64444 | S87: ='Portfolio Analytics'!N209 -> 10827.10778 | T87: ='Portfolio Analytics'!O209 -> 0 | U87: ='Portfolio Analytics'!P209 -> 11628.31339 | V87: ='Portfolio Analytics'!Q209 -> 0 | W87: ='Portfolio Analytics'!R209 -> 0 | X87: ='Portfolio Analytics'!S209 -> 0 | Y87: ='Portfolio Analytics'!T209 -> 11297.86822 | Z87: ='Portfolio Analytics'!U209 -> 0 | AA87: ='Portfolio Analytics'!V209 -> 0 | AB87: ='Portfolio Analytics'!W209 -> 0 | AC87: ='Portfolio Analytics'!X209 -> 0 | AD87: ='Portfolio Analytics'!Y209 -> 0 | AE87: ='Portfolio Analytics'!Z209 -> 0 | AF87: ='Portfolio Analytics'!AA209 -> 0 | AG87: ='Portfolio Analytics'!AB209 -> 0 | AH87: ='Portfolio Analytics'!AC209 -> 0 | AI87: ='Portfolio Analytics'!AD209 -> 0 | AJ87: ='Portfolio Analytics'!AE209 -> 0 | AK87: ='Portfolio Analytics'!AF209 -> 0 | AL87: ='Portfolio Analytics'!AG209 -> 0 | AM87: ='Portfolio Analytics'!AH209 -> 0 | AN87: ='Portfolio Analytics'!AI209 -> 7668.793303 | AO87: ='Portfolio Analytics'!AJ209 -> 0 | AP87: ='Portfolio Analytics'!AK209 -> 0 | AQ87: ='Portfolio Analytics'!AL209 -> 0 | AR87: ='Portfolio Analytics'!AM209 -> 0 | AS87: ='Portfolio Analytics'!AN209 -> 0
G88: Gas | H88: GWh | J88: ='Portfolio Analytics'!E210 -> 0 | K88: ='Portfolio Analytics'!F210 -> 0 | L88: ='Portfolio Analytics'!G210 -> 0 | M88: ='Portfolio Analytics'!H210 -> 0 | N88: ='Portfolio Analytics'!I210 -> 0 | O88: ='Portfolio Analytics'!J210 -> 58226.12987 | P88: ='Portfolio Analytics'!K210 -> 58837.59781 | Q88: ='Portfolio Analytics'!L210 -> 54372.32978 | R88: ='Portfolio Analytics'!M210 -> 52703.65479 | S88: ='Portfolio Analytics'!N210 -> 54994.31842 | T88: ='Portfolio Analytics'!O210 -> 0 | U88: ='Portfolio Analytics'!P210 -> 62876.63878 | V88: ='Portfolio Analytics'!Q210 -> 0 | W88: ='Portfolio Analytics'!R210 -> 0 | X88: ='Portfolio Analytics'!S210 -> 0 | Y88: ='Portfolio Analytics'!T210 -> 48826.06908 | Z88: ='Portfolio Analytics'!U210 -> 0 | AA88: ='Portfolio Analytics'!V210 -> 0 | AB88: ='Portfolio Analytics'!W210 -> 0 | AC88: ='Portfolio Analytics'!X210 -> 0 | AD88: ='Portfolio Analytics'!Y210 -> 0 | AE88: ='Portfolio Analytics'!Z210 -> 0 | AF88: ='Portfolio Analytics'!AA210 -> 0 | AG88: ='Portfolio Analytics'!AB210 -> 0 | AH88: ='Portfolio Analytics'!AC210 -> 0 | AI88: ='Portfolio Analytics'!AD210 -> 0 | AJ88: ='Portfolio Analytics'!AE210 -> 0 | AK88: ='Portfolio Analytics'!AF210 -> 0 | AL88: ='Portfolio Analytics'!AG210 -> 0 | AM88: ='Portfolio Analytics'!AH210 -> 0 | AN88: ='Portfolio Analytics'!AI210 -> 29930.36373 | AO88: ='Portfolio Analytics'!AJ210 -> 0 | AP88: ='Portfolio Analytics'!AK210 -> 0 | AQ88: ='Portfolio Analytics'!AL210 -> 0 | AR88: ='Portfolio Analytics'!AM210 -> 0 | AS88: ='Portfolio Analytics'!AN210 -> 0
G89: Coal | H89: GWh | J89: ='Portfolio Analytics'!E211 -> 0 | K89: ='Portfolio Analytics'!F211 -> 0 | L89: ='Portfolio Analytics'!G211 -> 0 | M89: ='Portfolio Analytics'!H211 -> 0 | N89: ='Portfolio Analytics'!I211 -> 0 | O89: ='Portfolio Analytics'!J211 -> 2166.231885 | P89: ='Portfolio Analytics'!K211 -> 1340.489388 | Q89: ='Portfolio Analytics'!L211 -> 714.2979858 | R89: ='Portfolio Analytics'!M211 -> 695.7180177 | S89: ='Portfolio Analytics'!N211 -> 695.7180177 | T89: ='Portfolio Analytics'!O211 -> 0 | U89: ='Portfolio Analytics'!P211 -> 0 | V89: ='Portfolio Analytics'!Q211 -> 0 | W89: ='Portfolio Analytics'!R211 -> 0 | X89: ='Portfolio Analytics'!S211 -> 0 | Y89: ='Portfolio Analytics'!T211 -> 0 | Z89: ='Portfolio Analytics'!U211 -> 0 | AA89: ='Portfolio Analytics'!V211 -> 0 | AB89: ='Portfolio Analytics'!W211 -> 0 | AC89: ='Portfolio Analytics'!X211 -> 0 | AD89: ='Portfolio Analytics'!Y211 -> 0 | AE89: ='Portfolio Analytics'!Z211 -> 0 | AF89: ='Portfolio Analytics'!AA211 -> 0 | AG89: ='Portfolio Analytics'!AB211 -> 0 | AH89: ='Portfolio Analytics'!AC211 -> 0 | AI89: ='Portfolio Analytics'!AD211 -> 0 | AJ89: ='Portfolio Analytics'!AE211 -> 0 | AK89: ='Portfolio Analytics'!AF211 -> 0 | AL89: ='Portfolio Analytics'!AG211 -> 0 | AM89: ='Portfolio Analytics'!AH211 -> 0 | AN89: ='Portfolio Analytics'!AI211 -> 0
G90: Pipeline Biogas | H90: GWh | J90: ='Portfolio Analytics'!E212 -> 0 | K90: ='Portfolio Analytics'!F212 -> 0 | L90: ='Portfolio Analytics'!G212 -> 0 | M90: ='Portfolio Analytics'!H212 -> 0 | N90: ='Portfolio Analytics'!I212 -> 0 | O90: ='Portfolio Analytics'!J212 -> 0 | P90: ='Portfolio Analytics'!K212 -> 0 | Q90: ='Portfolio Analytics'!L212 -> 0 | R90: ='Portfolio Analytics'!M212 -> 0 | S90: ='Portfolio Analytics'!N212 -> 0 | T90: ='Portfolio Analytics'!O212 -> 0 | U90: ='Portfolio Analytics'!P212 -> 0 | V90: ='Portfolio Analytics'!Q212 -> 0 | W90: ='Portfolio Analytics'!R212 -> 0 | X90: ='Portfolio Analytics'!S212 -> 0 | Y90: ='Portfolio Analytics'!T212 -> 0 | Z90: ='Portfolio Analytics'!U212 -> 0 | AA90: ='Portfolio Analytics'!V212 -> 0 | AB90: ='Portfolio Analytics'!W212 -> 0 | AC90: ='Portfolio Analytics'!X212 -> 0 | AD90: ='Portfolio Analytics'!Y212 -> 0 | AE90: ='Portfolio Analytics'!Z212 -> 0 | AF90: ='Portfolio Analytics'!AA212 -> 0 | AG90: ='Portfolio Analytics'!AB212 -> 0 | AH90: ='Portfolio Analytics'!AC212 -> 0 | AI90: ='Portfolio Analytics'!AD212 -> 0 | AJ90: ='Portfolio Analytics'!AE212 -> 0 | AK90: ='Portfolio Analytics'!AF212 -> 0 | AL90: ='Portfolio Analytics'!AG212 -> 0 | AM90: ='Portfolio Analytics'!AH212 -> 0 | AN90: ='Portfolio Analytics'!AI212 -> 0 | AO90: ='Portfolio Analytics'!AJ212 -> 0 | AP90: ='Portfolio Analytics'!AK212 -> 0 | AQ90: ='Portfolio Analytics'!AL212 -> 0 | AR90: ='Portfolio Analytics'!AM212 -> 0 | AS90: ='Portfolio Analytics'!AN212 -> 0
G91: Renewables | H91: GWh | J91: ='Portfolio Analytics'!E213 -> 0 | K91: ='Portfolio Analytics'!F213 -> 0 | L91: ='Portfolio Analytics'!G213 -> 0 | M91: ='Portfolio Analytics'!H213 -> 0 | N91: ='Portfolio Analytics'!I213 -> 0 | O91: ='Portfolio Analytics'!J213 -> 97248.40329 | P91: ='Portfolio Analytics'!K213 -> 104357.9283 | Q91: ='Portfolio Analytics'!L213 -> 117726.3564 | R91: ='Portfolio Analytics'!M213 -> 123767.5541 | S91: ='Portfolio Analytics'!N213 -> 132519.3504 | T91: ='Portfolio Analytics'!O213 -> 0 | U91: ='Portfolio Analytics'!P213 -> 146872.6446 | V91: ='Portfolio Analytics'!Q213 -> 0 | W91: ='Portfolio Analytics'!R213 -> 0 | X91: ='Portfolio Analytics'!S213 -> 0 | Y91: ='Portfolio Analytics'!T213 -> 179982.9816 | Z91: ='Portfolio Analytics'!U213 -> 0 | AA91: ='Portfolio Analytics'!V213 -> 0 | AB91: ='Portfolio Analytics'!W213 -> 0 | AC91: ='Portfolio Analytics'!X213 -> 0 | AD91: ='Portfolio Analytics'!Y213 -> 0 | AE91: ='Portfolio Analytics'!Z213 -> 0 | AF91: ='Portfolio Analytics'!AA213 -> 0 | AG91: ='Portfolio Analytics'!AB213 -> 0 | AH91: ='Portfolio Analytics'!AC213 -> 0 | AI91: ='Portfolio Analytics'!AD213 -> 0 | AJ91: ='Portfolio Analytics'!AE213 -> 0 | AK91: ='Portfolio Analytics'!AF213 -> 0 | AL91: ='Portfolio Analytics'!AG213 -> 0 | AM91: ='Portfolio Analytics'!AH213 -> 0 | AN91: ='Portfolio Analytics'!AI213 -> 402988.602 | AO91: ='Portfolio Analytics'!AJ213 -> 0 | AP91: ='Portfolio Analytics'!AK213 -> 0 | AQ91: ='Portfolio Analytics'!AL213 -> 0 | AR91: ='Portfolio Analytics'!AM213 -> 0 | AS91: ='Portfolio Analytics'!AN213 -> 0
G92: Storage Losses | H92: GWh | J92: ='Portfolio Analytics'!E214 -> 0 | K92: ='Portfolio Analytics'!F214 -> 0 | L92: ='Portfolio Analytics'!G214 -> 0 | M92: ='Portfolio Analytics'!H214 -> 0 | N92: ='Portfolio Analytics'!I214 -> 0 | O92: ='Portfolio Analytics'!J214 -> -770.8970349 | P92: ='Portfolio Analytics'!K214 -> -1367.407753 | Q92: ='Portfolio Analytics'!L214 -> -1482.597865 | R92: ='Portfolio Analytics'!M214 -> -1702.603835 | S92: ='Portfolio Analytics'!N214 -> -2179.779656 | T92: ='Portfolio Analytics'!O214 -> 0 | U92: ='Portfolio Analytics'!P214 -> -3637.031379 | V92: ='Portfolio Analytics'!Q214 -> 0 | W92: ='Portfolio Analytics'!R214 -> 0 | X92: ='Portfolio Analytics'!S214 -> 0 | Y92: ='Portfolio Analytics'!T214 -> -5718.032991 | Z92: ='Portfolio Analytics'!U214 -> 0 | AA92: ='Portfolio Analytics'!V214 -> 0 | AB92: ='Portfolio Analytics'!W214 -> 0 | AC92: ='Portfolio Analytics'!X214 -> 0 | AD92: ='Portfolio Analytics'!Y214 -> 0 | AE92: ='Portfolio Analytics'!Z214 -> 0 | AF92: ='Portfolio Analytics'!AA214 -> 0 | AG92: ='Portfolio Analytics'!AB214 -> 0 | AH92: ='Portfolio Analytics'!AC214 -> 0 | AI92: ='Portfolio Analytics'!AD214 -> 0 | AJ92: ='Portfolio Analytics'!AE214 -> 0 | AK92: ='Portfolio Analytics'!AF214 -> 0 | AL92: ='Portfolio Analytics'!AG214 -> 0 | AM92: ='Portfolio Analytics'!AH214 -> 0 | AN92: ='Portfolio Analytics'!AI214 -> -27634.33158 | AO92: ='Portfolio Analytics'!AJ214 -> 0 | AP92: ='Portfolio Analytics'!AK214 -> 0 | AQ92: ='Portfolio Analytics'!AL214 -> 0 | AR92: ='Portfolio Analytics'!AM214 -> 0 | AS92: ='Portfolio Analytics'!AN214 -> 0
G93: Curtailment | H93: GWh | J93: ='Portfolio Analytics'!E215 -> 0 | K93: ='Portfolio Analytics'!F215 -> 0 | L93: ='Portfolio Analytics'!G215 -> 0 | M93: ='Portfolio Analytics'!H215 -> 0 | N93: ='Portfolio Analytics'!I215 -> 0 | O93: ='Portfolio Analytics'!J215 -> -235.5016781 | P93: ='Portfolio Analytics'!K215 -> -204.2438462 | Q93: ='Portfolio Analytics'!L215 -> -445.2476403 | R93: ='Portfolio Analytics'!M215 -> -711.3835021 | S93: ='Portfolio Analytics'!N215 -> -770.5752559 | T93: ='Portfolio Analytics'!O215 -> 0 | U93: ='Portfolio Analytics'!P215 -> -521.9839543 | V93: ='Portfolio Analytics'!Q215 -> 0 | W93: ='Portfolio Analytics'!R215 -> 0 | X93: ='Portfolio Analytics'!S215 -> 0 | Y93: ='Portfolio Analytics'!T215 -> -4198.938752 | Z93: ='Portfolio Analytics'!U215 -> 0 | AA93: ='Portfolio Analytics'!V215 -> 0 | AB93: ='Portfolio Analytics'!W215 -> 0 | AC93: ='Portfolio Analytics'!X215 -> 0 | AD93: ='Portfolio Analytics'!Y215 -> 0 | AE93: ='Portfolio Analytics'!Z215 -> 0 | AF93: ='Portfolio Analytics'!AA215 -> 0 | AG93: ='Portfolio Analytics'!AB215 -> 0 | AH93: ='Portfolio Analytics'!AC215 -> 0 | AI93: ='Portfolio Analytics'!AD215 -> 0 | AJ93: ='Portfolio Analytics'!AE215 -> 0 | AK93: ='Portfolio Analytics'!AF215 -> 0 | AL93: ='Portfolio Analytics'!AG215 -> 0 | AM93: ='Portfolio Analytics'!AH215 -> 0 | AN93: ='Portfolio Analytics'!AI215 -> -54768.16637 | AO93: ='Portfolio Analytics'!AJ215 -> 0 | AP93: ='Portfolio Analytics'!AK215 -> 0 | AQ93: ='Portfolio Analytics'!AL215 -> 0 | AR93: ='Portfolio Analytics'!AM215 -> 0 | AS93: ='Portfolio Analytics'!AN215 -> 0
G94: Imports (unspecified) | H94: GWh | J94: ='Portfolio Analytics'!E216 -> 0 | K94: ='Portfolio Analytics'!F216 -> 0 | L94: ='Portfolio Analytics'!G216 -> 0 | M94: ='Portfolio Analytics'!H216 -> 0 | N94: ='Portfolio Analytics'!I216 -> 0 | O94: ='Portfolio Analytics'!J216 -> 27190.7128 | P94: ='Portfolio Analytics'!K216 -> 25142.70969 | Q94: ='Portfolio Analytics'!L216 -> 23526.51995 | R94: ='Portfolio Analytics'!M216 -> 24808.95201 | S94: ='Portfolio Analytics'!N216 -> 27587.57009 | T94: ='Portfolio Analytics'!O216 -> 0 | U94: ='Portfolio Analytics'!P216 -> 23255.22865 | V94: ='Portfolio Analytics'!Q216 -> 0 | W94: ='Portfolio Analytics'!R216 -> 0 | X94: ='Portfolio Analytics'!S216 -> 0 | Y94: ='Portfolio Analytics'!T216 -> 21736.0957 | Z94: ='Portfolio Analytics'!U216 -> 0 | AA94: ='Portfolio Analytics'!V216 -> 0 | AB94: ='Portfolio Analytics'!W216 -> 0 | AC94: ='Portfolio Analytics'!X216 -> 0 | AD94: ='Portfolio Analytics'!Y216 -> 0 | AE94: ='Portfolio Analytics'!Z216 -> 0 | AF94: ='Portfolio Analytics'!AA216 -> 0 | AG94: ='Portfolio Analytics'!AB216 -> 0 | AH94: ='Portfolio Analytics'!AC216 -> 0 | AI94: ='Portfolio Analytics'!AD216 -> 0 | AJ94: ='Portfolio Analytics'!AE216 -> 0 | AK94: ='Portfolio Analytics'!AF216 -> 0 | AL94: ='Portfolio Analytics'!AG216 -> 0 | AM94: ='Portfolio Analytics'!AH216 -> 0 | AN94: ='Portfolio Analytics'!AI216 -> 1980.204342 | AO94: ='Portfolio Analytics'!AJ216 -> 0 | AP94: ='Portfolio Analytics'!AK216 -> 0 | AQ94: ='Portfolio Analytics'!AL216 -> 0 | AR94: ='Portfolio Analytics'!AM216 -> 0 | AS94: ='Portfolio Analytics'!AN216 -> 0
G95: Exports | H95: GWh | J95: ='Portfolio Analytics'!E217 -> 0 | K95: ='Portfolio Analytics'!F217 -> 0 | L95: ='Portfolio Analytics'!G217 -> 0 | M95: ='Portfolio Analytics'!H217 -> 0 | N95: ='Portfolio Analytics'!I217 -> 0 | O95: ='Portfolio Analytics'!J217 -> -856.8794044 | P95: ='Portfolio Analytics'!K217 -> -705.7866297 | Q95: ='Portfolio Analytics'!L217 -> -1904.666475 | R95: ='Portfolio Analytics'!M217 -> -2381.563531 | S95: ='Portfolio Analytics'!N217 -> -2284.554322 | T95: ='Portfolio Analytics'!O217 -> 0 | U95: ='Portfolio Analytics'!P217 -> -2220.156458 | V95: ='Portfolio Analytics'!Q217 -> 0 | W95: ='Portfolio Analytics'!R217 -> 0 | X95: ='Portfolio Analytics'!S217 -> 0 | Y95: ='Portfolio Analytics'!T217 -> -4479.837067 | Z95: ='Portfolio Analytics'!U217 -> 0 | AA95: ='Portfolio Analytics'!V217 -> 0 | AB95: ='Portfolio Analytics'!W217 -> 0 | AC95: ='Portfolio Analytics'!X217 -> 0 | AD95: ='Portfolio Analytics'!Y217 -> 0 | AE95: ='Portfolio Analytics'!Z217 -> 0 | AF95: ='Portfolio Analytics'!AA217 -> 0 | AG95: ='Portfolio Analytics'!AB217 -> 0 | AH95: ='Portfolio Analytics'!AC217 -> 0 | AI95: ='Portfolio Analytics'!AD217 -> 0 | AJ95: ='Portfolio Analytics'!AE217 -> 0 | AK95: ='Portfolio Analytics'!AF217 -> 0 | AL95: ='Portfolio Analytics'!AG217 -> 0 | AM95: ='Portfolio Analytics'!AH217 -> 0 | AN95: ='Portfolio Analytics'!AI217 -> -23688.70317 | AO95: ='Portfolio Analytics'!AJ217 -> 0 | AP95: ='Portfolio Analytics'!AK217 -> 0 | AQ95: ='Portfolio Analytics'!AL217 -> 0 | AR95: ='Portfolio Analytics'!AM217 -> 0 | AS95: ='Portfolio Analytics'!AN217 -> 0
G96: Load | H96: GWh | J96: ='Portfolio Analytics'!E218 -> 0 | K96: ='Portfolio Analytics'!F218 -> 0 | L96: ='Portfolio Analytics'!G218 -> 0 | M96: ='Portfolio Analytics'!H218 -> 0 | N96: ='Portfolio Analytics'!I218 -> 0 | O96: ='Portfolio Analytics'!J218 -> 246572.4247 | P96: ='Portfolio Analytics'!K218 -> 251245.2873 | Q96: ='Portfolio Analytics'!L218 -> 256395.6336 | R96: ='Portfolio Analytics'!M218 -> 261203.1547 | S96: ='Portfolio Analytics'!N218 -> 265405.6194 | T96: ='Portfolio Analytics'!O218 -> 0 | U96: ='Portfolio Analytics'!P218 -> 272864.2589 | V96: ='Portfolio Analytics'!Q218 -> 0 | W96: ='Portfolio Analytics'!R218 -> 0 | X96: ='Portfolio Analytics'!S218 -> 0 | Y96: ='Portfolio Analytics'!T218 -> 285082.6719 | Z96: ='Portfolio Analytics'!U218 -> 0 | AA96: ='Portfolio Analytics'!V218 -> 0 | AB96: ='Portfolio Analytics'!W218 -> 0 | AC96: ='Portfolio Analytics'!X218 -> 0 | AD96: ='Portfolio Analytics'!Y218 -> 0 | AE96: ='Portfolio Analytics'!Z218 -> 0 | AF96: ='Portfolio Analytics'!AA218 -> 0 | AG96: ='Portfolio Analytics'!AB218 -> 0 | AH96: ='Portfolio Analytics'!AC218 -> 0 | AI96: ='Portfolio Analytics'!AD218 -> 0 | AJ96: ='Portfolio Analytics'!AE218 -> 0 | AK96: ='Portfolio Analytics'!AF218 -> 0 | AL96: ='Portfolio Analytics'!AG218 -> 0 | AM96: ='Portfolio Analytics'!AH218 -> 0 | AN96: ='Portfolio Analytics'!AI218 -> 410666.7657 | AO96: ='Portfolio Analytics'!AJ218 -> 0 | AP96: ='Portfolio Analytics'!AK218 -> 0 | AQ96: ='Portfolio Analytics'!AL218 -> 0 | AR96: ='Portfolio Analytics'!AM218 -> 0 | AS96: ='Portfolio Analytics'!AN218 -> 0
G98: Cost Summary
G100: Revenue Requirement and TRC | H100: Unit | J100: 2015 | K100: =J100+1 -> 2016 | L100: 2017 | M100: 2018 | N100: 2019 | O100: 2020 | P100: 2021 | Q100: 2022 | R100: 2023 | S100: 2024 | T100: 2025 | U100: 2026 | V100: 2027 | W100: 2028 | X100: 2029 | Y100: 2030 | Z100: 2031 | AA100: 2032 | AB100: 2033 | AC100: 2034 | AD100: 2035 | AE100: 2036 | AF100: 2037 | AG100: 2038 | AH100: 2039 | AI100: 2040 | AJ100: 2041 | AK100: 2042 | AL100: 2043 | AM100: 2044 | AN100: 2045 | AO100: 2046 | AP100: 2047 | AQ100: 2048 | AR100: 2049 | AS100: 2050
G101: Non-Modeled Costs | H101: $MM | J101: ='Portfolio Analytics'!E991 -> 0 | K101: ='Portfolio Analytics'!F991 -> 0 | L101: ='Portfolio Analytics'!G991 -> 0 | M101: ='Portfolio Analytics'!H991 -> 0 | N101: ='Portfolio Analytics'!I991 -> 0 | O101: ='Portfolio Analytics'!J991 -> 35599.79433 | P101: ='Portfolio Analytics'!K991 -> 37545.95531 | Q101: ='Portfolio Analytics'!L991 -> 37042.68327 | R101: ='Portfolio Analytics'!M991 -> 36358.39125 | S101: ='Portfolio Analytics'!N991 -> 35918.3974 | T101: ='Portfolio Analytics'!O991 -> 0 | U101: ='Portfolio Analytics'!P991 -> 32888.93907 | V101: ='Portfolio Analytics'!Q991 -> 0 | W101: ='Portfolio Analytics'!R991 -> 0 | X101: ='Portfolio Analytics'!S991 -> 0 | Y101: ='Portfolio Analytics'!T991 -> 33263.04041 | Z101: ='Portfolio Analytics'!U991 -> 0 | AA101: ='Portfolio Analytics'!V991 -> 0 | AB101: ='Portfolio Analytics'!W991 -> 0 | AC101: ='Portfolio Analytics'!X991 -> 0 | AD101: ='Portfolio Analytics'!Y991 -> 0 | AE101: ='Portfolio Analytics'!Z991 -> 0 | AF101: ='Portfolio Analytics'!AA991 -> 0 | AG101: ='Portfolio Analytics'!AB991 -> 0 | AH101: ='Portfolio Analytics'!AC991 -> 0 | AI101: ='Portfolio Analytics'!AD991 -> 0 | AJ101: ='Portfolio Analytics'!AE991 -> 0 | AK101: ='Portfolio Analytics'!AF991 -> 0 | AL101: ='Portfolio Analytics'!AG991 -> 0 | AM101: ='Portfolio Analytics'!AH991 -> 0 | AN101: ='Portfolio Analytics'!AI991 -> 35762.41116 | AO101: ='Portfolio Analytics'!AJ991 -> 0 | AP101: ='Portfolio Analytics'!AK991 -> 0 | AQ101: ='Portfolio Analytics'!AL991 -> 0 | AR101: ='Portfolio Analytics'!AM991 -> 0 | AS101: ='Portfolio Analytics'!AN991 -> 0
G102: Non-Modeled Costs (Scenario Specific) | H102: $MM | J102: ='Portfolio Analytics'!E992 -> 0 | K102: ='Portfolio Analytics'!F992 -> 0 | L102: ='Portfolio Analytics'!G992 -> 0 | M102: ='Portfolio Analytics'!H992 -> 0 | N102: ='Portfolio Analytics'!I992 -> 0 | O102: ='Portfolio Analytics'!J992 -> 158.6444618 | P102: ='Portfolio Analytics'!K992 -> 233.1369006 | Q102: ='Portfolio Analytics'!L992 -> 273.6793349 | R102: ='Portfolio Analytics'!M992 -> 313.7776381 | S102: ='Portfolio Analytics'!N992 -> 345.3400448 | T102: ='Portfolio Analytics'!O992 -> 0 | U102: ='Portfolio Analytics'!P992 -> 388.5667545 | V102: ='Portfolio Analytics'!Q992 -> 0 | W102: ='Portfolio Analytics'!R992 -> 0 | X102: ='Portfolio Analytics'!S992 -> 0 | Y102: ='Portfolio Analytics'!T992 -> 457.3657752 | Z102: ='Portfolio Analytics'!U992 -> 0 | AA102: ='Portfolio Analytics'!V992 -> 0 | AB102: ='Portfolio Analytics'!W992 -> 0 | AC102: ='Portfolio Analytics'!X992 -> 0 | AD102: ='Portfolio Analytics'!Y992 -> 0 | AE102: ='Portfolio Analytics'!Z992 -> 0 | AF102: ='Portfolio Analytics'!AA992 -> 0 | AG102: ='Portfolio Analytics'!AB992 -> 0 | AH102: ='Portfolio Analytics'!AC992 -> 0 | AI102: ='Portfolio Analytics'!AD992 -> 0 | AJ102: ='Portfolio Analytics'!AE992 -> 0 | AK102: ='Portfolio Analytics'!AF992 -> 0 | AL102: ='Portfolio Analytics'!AG992 -> 0 | AM102: ='Portfolio Analytics'!AH992 -> 0 | AN102: ='Portfolio Analytics'!AI992 -> 1163.898199 | AO102: ='Portfolio Analytics'!AJ992 -> 0 | AP102: ='Portfolio Analytics'!AK992 -> 0 | AQ102: ='Portfolio Analytics'!AL992 -> 0 | AR102: ='Portfolio Analytics'!AM992 -> 0 | AS102: ='Portfolio Analytics'!AN992 -> 0
G103: Baseline Thermal Fleet Fixed Costs | H103: $MM | J103: ='Portfolio Analytics'!E993 -> 0 | K103: ='Portfolio Analytics'!F993 -> 0 | L103: ='Portfolio Analytics'!G993 -> 0 | M103: ='Portfolio Analytics'!H993 -> 0 | N103: ='Portfolio Analytics'!I993 -> 0 | O103: ='Portfolio Analytics'!J993 -> 329.1888723 | P103: ='Portfolio Analytics'!K993 -> 301.9684441 | Q103: ='Portfolio Analytics'!L993 -> 301.9684441 | R103: ='Portfolio Analytics'!M993 -> 301.9684441 | S103: ='Portfolio Analytics'!N993 -> 301.9684441 | T103: ='Portfolio Analytics'!O993 -> 0 | U103: ='Portfolio Analytics'!P993 -> 301.9684441 | V103: ='Portfolio Analytics'!Q993 -> 0 | W103: ='Portfolio Analytics'!R993 -> 0 | X103: ='Portfolio Analytics'!S993 -> 0 | Y103: ='Portfolio Analytics'!T993 -> 301.9684441 | Z103: ='Portfolio Analytics'!U993 -> 0 | AA103: ='Portfolio Analytics'!V993 -> 0 | AB103: ='Portfolio Analytics'!W993 -> 0 | AC103: ='Portfolio Analytics'!X993 -> 0 | AD103: ='Portfolio Analytics'!Y993 -> 0 | AE103: ='Portfolio Analytics'!Z993 -> 0 | AF103: ='Portfolio Analytics'!AA993 -> 0 | AG103: ='Portfolio Analytics'!AB993 -> 0 | AH103: ='Portfolio Analytics'!AC993 -> 0 | AI103: ='Portfolio Analytics'!AD993 -> 0 | AJ103: ='Portfolio Analytics'!AE993 -> 0 | AK103: ='Portfolio Analytics'!AF993 -> 0 | AL103: ='Portfolio Analytics'!AG993 -> 0 | AM103: ='Portfolio Analytics'!AH993 -> 0 | AN103: ='Portfolio Analytics'!AI993 -> 250.3428719 | AO103: ='Portfolio Analytics'!AJ993 -> 0 | AP103: ='Portfolio Analytics'!AK993 -> 0 | AQ103: ='Portfolio Analytics'!AL993 -> 0 | AR103: ='Portfolio Analytics'!AM993 -> 0 | AS103: ='Portfolio Analytics'!AN993 -> 0
G104: New Renewables Fixed Costs | H104: $MM | J104: ='Portfolio Analytics'!E994 -> 0 | K104: ='Portfolio Analytics'!F994 -> 0 | L104: ='Portfolio Analytics'!G994 -> 0 | M104: ='Portfolio Analytics'!H994 -> 0 | N104: ='Portfolio Analytics'!I994 -> 0 | O104: ='Portfolio Analytics'!J994 -> 154.2388991 | P104: ='Portfolio Analytics'!K994 -> 307.9061771 | Q104: ='Portfolio Analytics'!L994 -> 887.1321003 | R104: ='Portfolio Analytics'!M994 -> 1070.604845 | S104: ='Portfolio Analytics'!N994 -> 1395.459752 | T104: ='Portfolio Analytics'!O994 -> 0 | U104: ='Portfolio Analytics'!P994 -> 1836.764267 | V104: ='Portfolio Analytics'!Q994 -> 0 | W104: ='Portfolio Analytics'!R994 -> 0 | X104: ='Portfolio Analytics'!S994 -> 0 | Y104: ='Portfolio Analytics'!T994 -> 3298.701287 | Z104: ='Portfolio Analytics'!U994 -> 0 | AA104: ='Portfolio Analytics'!V994 -> 0 | AB104: ='Portfolio Analytics'!W994 -> 0 | AC104: ='Portfolio Analytics'!X994 -> 0 | AD104: ='Portfolio Analytics'!Y994 -> 0 | AE104: ='Portfolio Analytics'!Z994 -> 0 | AF104: ='Portfolio Analytics'!AA994 -> 0 | AG104: ='Portfolio Analytics'!AB994 -> 0 | AH104: ='Portfolio Analytics'!AC994 -> 0 | AI104: ='Portfolio Analytics'!AD994 -> 0 | AJ104: ='Portfolio Analytics'!AE994 -> 0 | AK104: ='Portfolio Analytics'!AF994 -> 0 | AL104: ='Portfolio Analytics'!AG994 -> 0 | AM104: ='Portfolio Analytics'!AH994 -> 0 | AN104: ='Portfolio Analytics'!AI994 -> 13205.5588 | AO104: ='Portfolio Analytics'!AJ994 -> 0 | AP104: ='Portfolio Analytics'!AK994 -> 0 | AQ104: ='Portfolio Analytics'!AL994 -> 0 | AR104: ='Portfolio Analytics'!AM994 -> 0 | AS104: ='Portfolio Analytics'!AN994 -> 0
G105: New Storage Fixed Costs | H105: $MM | J105: ='Portfolio Analytics'!E995 -> 0 | K105: ='Portfolio Analytics'!F995 -> 0 | L105: ='Portfolio Analytics'!G995 -> 0 | M105: ='Portfolio Analytics'!H995 -> 0 | N105: ='Portfolio Analytics'!I995 -> 0 | O105: ='Portfolio Analytics'!J995 -> 577.0851152 | P105: ='Portfolio Analytics'!K995 -> 1023.740169 | Q105: ='Portfolio Analytics'!L995 -> 1023.740169 | R105: ='Portfolio Analytics'!M995 -> 1059.092651 | S105: ='Portfolio Analytics'!N995 -> 1292.923432 | T105: ='Portfolio Analytics'!O995 -> 0 | U105: ='Portfolio Analytics'!P995 -> 2090.053534 | V105: ='Portfolio Analytics'!Q995 -> 0 | W105: ='Portfolio Analytics'!R995 -> 0 | X105: ='Portfolio Analytics'!S995 -> 0 | Y105: ='Portfolio Analytics'!T995 -> 2284.971934 | Z105: ='Portfolio Analytics'!U995 -> 0 | AA105: ='Portfolio Analytics'!V995 -> 0 | AB105: ='Portfolio Analytics'!W995 -> 0 | AC105: ='Portfolio Analytics'!X995 -> 0 | AD105: ='Portfolio Analytics'!Y995 -> 0 | AE105: ='Portfolio Analytics'!Z995 -> 0 | AF105: ='Portfolio Analytics'!AA995 -> 0 | AG105: ='Portfolio Analytics'!AB995 -> 0 | AH105: ='Portfolio Analytics'!AC995 -> 0 | AI105: ='Portfolio Analytics'!AD995 -> 0 | AJ105: ='Portfolio Analytics'!AE995 -> 0 | AK105: ='Portfolio Analytics'!AF995 -> 0 | AL105: ='Portfolio Analytics'!AG995 -> 0 | AM105: ='Portfolio Analytics'!AH995 -> 0 | AN105: ='Portfolio Analytics'!AI995 -> 9730.542105 | AO105: ='Portfolio Analytics'!AJ995 -> 0 | AP105: ='Portfolio Analytics'!AK995 -> 0 | AQ105: ='Portfolio Analytics'!AL995 -> 0 | AR105: ='Portfolio Analytics'!AM995 -> 0 | AS105: ='Portfolio Analytics'!AN995 -> 0
G106: New Thermal Fleet Fixed Costs | H106: $MM | J106: ='Portfolio Analytics'!E996 -> 0 | K106: ='Portfolio Analytics'!F996 -> 0 | L106: ='Portfolio Analytics'!G996 -> 0 | M106: ='Portfolio Analytics'!H996 -> 0 | N106: ='Portfolio Analytics'!I996 -> 0 | O106: ='Portfolio Analytics'!J996 -> 0 | P106: ='Portfolio Analytics'!K996 -> 0 | Q106: ='Portfolio Analytics'!L996 -> 0 | R106: ='Portfolio Analytics'!M996 -> 0 | S106: ='Portfolio Analytics'!N996 -> 0 | T106: ='Portfolio Analytics'!O996 -> 0 | U106: ='Portfolio Analytics'!P996 -> 0 | V106: ='Portfolio Analytics'!Q996 -> 0 | W106: ='Portfolio Analytics'!R996 -> 0 | X106: ='Portfolio Analytics'!S996 -> 0 | Y106: ='Portfolio Analytics'!T996 -> 0 | Z106: ='Portfolio Analytics'!U996 -> 0 | AA106: ='Portfolio Analytics'!V996 -> 0 | AB106: ='Portfolio Analytics'!W996 -> 0 | AC106: ='Portfolio Analytics'!X996 -> 0 | AD106: ='Portfolio Analytics'!Y996 -> 0 | AE106: ='Portfolio Analytics'!Z996 -> 0 | AF106: ='Portfolio Analytics'!AA996 -> 0 | AG106: ='Portfolio Analytics'!AB996 -> 0 | AH106: ='Portfolio Analytics'!AC996 -> 0 | AI106: ='Portfolio Analytics'!AD996 -> 0 | AJ106: ='Portfolio Analytics'!AE996 -> 0 | AK106: ='Portfolio Analytics'!AF996 -> 0 | AL106: ='Portfolio Analytics'!AG996 -> 0 | AM106: ='Portfolio Analytics'!AH996 -> 0 | AN106: ='Portfolio Analytics'!AI996 -> 0 | AO106: ='Portfolio Analytics'!AJ996 -> 0 | AP106: ='Portfolio Analytics'!AK996 -> 0 | AQ106: ='Portfolio Analytics'!AL996 -> 0 | AR106: ='Portfolio Analytics'!AM996 -> 0 | AS106: ='Portfolio Analytics'!AN996 -> 0
G107: New DR Fixed Costs | H107: $MM | J107: ='Portfolio Analytics'!E997 -> 0 | K107: ='Portfolio Analytics'!F997 -> 0 | L107: ='Portfolio Analytics'!G997 -> 0 | M107: ='Portfolio Analytics'!H997 -> 0 | N107: ='Portfolio Analytics'!I997 -> 0 | O107: ='Portfolio Analytics'!J997 -> 0 | P107: ='Portfolio Analytics'!K997 -> 0 | Q107: ='Portfolio Analytics'!L997 -> 0 | R107: ='Portfolio Analytics'!M997 -> 0 | S107: ='Portfolio Analytics'!N997 -> 0 | T107: ='Portfolio Analytics'!O997 -> 0 | U107: ='Portfolio Analytics'!P997 -> 0 | V107: ='Portfolio Analytics'!Q997 -> 0 | W107: ='Portfolio Analytics'!R997 -> 0 | X107: ='Portfolio Analytics'!S997 -> 0 | Y107: ='Portfolio Analytics'!T997 -> 0 | Z107: ='Portfolio Analytics'!U997 -> 0 | AA107: ='Portfolio Analytics'!V997 -> 0 | AB107: ='Portfolio Analytics'!W997 -> 0 | AC107: ='Portfolio Analytics'!X997 -> 0 | AD107: ='Portfolio Analytics'!Y997 -> 0 | AE107: ='Portfolio Analytics'!Z997 -> 0 | AF107: ='Portfolio Analytics'!AA997 -> 0 | AG107: ='Portfolio Analytics'!AB997 -> 0 | AH107: ='Portfolio Analytics'!AC997 -> 0 | AI107: ='Portfolio Analytics'!AD997 -> 0 | AJ107: ='Portfolio Analytics'!AE997 -> 0 | AK107: ='Portfolio Analytics'!AF997 -> 0 | AL107: ='Portfolio Analytics'!AG997 -> 0 | AM107: ='Portfolio Analytics'!AH997 -> 0 | AN107: ='Portfolio Analytics'!AI997 -> 0 | AO107: ='Portfolio Analytics'!AJ997 -> 0 | AP107: ='Portfolio Analytics'!AK997 -> 0 | AQ107: ='Portfolio Analytics'!AL997 -> 0 | AR107: ='Portfolio Analytics'!AM997 -> 0 | AS107: ='Portfolio Analytics'!AN997 -> 0
G108: New CAISO Transmission Fixed Costs | H108: $MM | J108: ='Portfolio Analytics'!E998 -> 0 | K108: ='Portfolio Analytics'!F998 -> 0 | L108: ='Portfolio Analytics'!G998 -> 0 | M108: ='Portfolio Analytics'!H998 -> 0 | N108: ='Portfolio Analytics'!I998 -> 0 | O108: ='Portfolio Analytics'!J998 -> 0 | P108: ='Portfolio Analytics'!K998 -> 0 | Q108: ='Portfolio Analytics'!L998 -> 0 | R108: ='Portfolio Analytics'!M998 -> 1.002894 | S108: ='Portfolio Analytics'!N998 -> 2.65970727 | T108: ='Portfolio Analytics'!O998 -> 0 | U108: ='Portfolio Analytics'!P998 -> 17.1505765 | V108: ='Portfolio Analytics'!Q998 -> 0 | W108: ='Portfolio Analytics'!R998 -> 0 | X108: ='Portfolio Analytics'!S998 -> 0 | Y108: ='Portfolio Analytics'!T998 -> 242.2094912 | Z108: ='Portfolio Analytics'!U998 -> 0 | AA108: ='Portfolio Analytics'!V998 -> 0 | AB108: ='Portfolio Analytics'!W998 -> 0 | AC108: ='Portfolio Analytics'!X998 -> 0 | AD108: ='Portfolio Analytics'!Y998 -> 0 | AE108: ='Portfolio Analytics'!Z998 -> 0 | AF108: ='Portfolio Analytics'!AA998 -> 0 | AG108: ='Portfolio Analytics'!AB998 -> 0 | AH108: ='Portfolio Analytics'!AC998 -> 0 | AI108: ='Portfolio Analytics'!AD998 -> 0 | AJ108: ='Portfolio Analytics'!AE998 -> 0 | AK108: ='Portfolio Analytics'!AF998 -> 0 | AL108: ='Portfolio Analytics'!AG998 -> 0 | AM108: ='Portfolio Analytics'!AH998 -> 0 | AN108: ='Portfolio Analytics'!AI998 -> 3947.781568 | AO108: ='Portfolio Analytics'!AJ998 -> 0 | AP108: ='Portfolio Analytics'!AK998 -> 0 | AQ108: ='Portfolio Analytics'!AL998 -> 0 | AR108: ='Portfolio Analytics'!AM998 -> 0 | AS108: ='Portfolio Analytics'!AN998 -> 0
G109: Total Operating Costs | H109: $MM | J109: ='Portfolio Analytics'!E999 -> 0 | K109: ='Portfolio Analytics'!F999 -> 0 | L109: ='Portfolio Analytics'!G999 -> 0 | M109: ='Portfolio Analytics'!H999 -> 0 | N109: ='Portfolio Analytics'!I999 -> 0 | O109: ='Portfolio Analytics'!J999 -> 3594.211627 | P109: ='Portfolio Analytics'!K999 -> 3816.906901 | Q109: ='Portfolio Analytics'!L999 -> 3313.371705 | R109: ='Portfolio Analytics'!M999 -> 3303.836003 | S109: ='Portfolio Analytics'!N999 -> 3399.955769 | T109: ='Portfolio Analytics'!O999 -> 0 | U109: ='Portfolio Analytics'!P999 -> 3507.273304 | V109: ='Portfolio Analytics'!Q999 -> 0 | W109: ='Portfolio Analytics'!R999 -> 0 | X109: ='Portfolio Analytics'!S999 -> 0 | Y109: ='Portfolio Analytics'!T999 -> 3026.198435 | Z109: ='Portfolio Analytics'!U999 -> 0 | AA109: ='Portfolio Analytics'!V999 -> 0 | AB109: ='Portfolio Analytics'!W999 -> 0 | AC109: ='Portfolio Analytics'!X999 -> 0 | AD109: ='Portfolio Analytics'!Y999 -> 0 | AE109: ='Portfolio Analytics'!Z999 -> 0 | AF109: ='Portfolio Analytics'!AA999 -> 0 | AG109: ='Portfolio Analytics'!AB999 -> 0 | AH109: ='Portfolio Analytics'!AC999 -> 0 | AI109: ='Portfolio Analytics'!AD999 -> 0 | AJ109: ='Portfolio Analytics'!AE999 -> 0 | AK109: ='Portfolio Analytics'!AF999 -> 0 | AL109: ='Portfolio Analytics'!AG999 -> 0 | AM109: ='Portfolio Analytics'!AH999 -> 0 | AN109: ='Portfolio Analytics'!AI999 -> 832.9829799 | AO109: ='Portfolio Analytics'!AJ999 -> 0 | AP109: ='Portfolio Analytics'!AK999 -> 0 | AQ109: ='Portfolio Analytics'!AL999 -> 0 | AR109: ='Portfolio Analytics'!AM999 -> 0 | AS109: ='Portfolio Analytics'!AN999 -> 0
G110: Total Revenue Requirement | H110: $MM | J110: ='Portfolio Analytics'!E1000 -> 0 | K110: ='Portfolio Analytics'!F1000 -> 0 | L110: ='Portfolio Analytics'!G1000 -> 0 | M110: ='Portfolio Analytics'!H1000 -> 0 | N110: ='Portfolio Analytics'!I1000 -> 0 | O110: ='Portfolio Analytics'!J1000 -> 40413.16331 | P110: ='Portfolio Analytics'!K1000 -> 43229.6139 | Q110: ='Portfolio Analytics'!L1000 -> 42842.57503 | R110: ='Portfolio Analytics'!M1000 -> 42408.67372 | S110: ='Portfolio Analytics'!N1000 -> 42656.70455 | T110: ='Portfolio Analytics'!O1000 -> 0 | U110: ='Portfolio Analytics'!P1000 -> 41030.71595 | V110: ='Portfolio Analytics'!Q1000 -> 0 | W110: ='Portfolio Analytics'!R1000 -> 0 | X110: ='Portfolio Analytics'!S1000 -> 0 | Y110: ='Portfolio Analytics'!T1000 -> 42874.45578 | Z110: ='Portfolio Analytics'!U1000 -> 0 | AA110: ='Portfolio Analytics'!V1000 -> 0 | AB110: ='Portfolio Analytics'!W1000 -> 0 | AC110: ='Portfolio Analytics'!X1000 -> 0 | AD110: ='Portfolio Analytics'!Y1000 -> 0 | AE110: ='Portfolio Analytics'!Z1000 -> 0 | AF110: ='Portfolio Analytics'!AA1000 -> 0 | AG110: ='Portfolio Analytics'!AB1000 -> 0 | AH110: ='Portfolio Analytics'!AC1000 -> 0 | AI110: ='Portfolio Analytics'!AD1000 -> 0 | AJ110: ='Portfolio Analytics'!AE1000 -> 0 | AK110: ='Portfolio Analytics'!AF1000 -> 0 | AL110: ='Portfolio Analytics'!AG1000 -> 0 | AM110: ='Portfolio Analytics'!AH1000 -> 0 | AN110: ='Portfolio Analytics'!AI1000 -> 64893.51768 | AO110: ='Portfolio Analytics'!AJ1000 -> 0 | AP110: ='Portfolio Analytics'!AK1000 -> 0 | AQ110: ='Portfolio Analytics'!AL1000 -> 0 | AR110: ='Portfolio Analytics'!AM1000 -> 0 | AS110: ='Portfolio Analytics'!AN1000 -> 0
G111: Customer Costs (Scenario Specific) | H111: $MM | J111: ='Portfolio Analytics'!E1001 -> 0 | K111: ='Portfolio Analytics'!F1001 -> 0 | L111: ='Portfolio Analytics'!G1001 -> 0 | M111: ='Portfolio Analytics'!H1001 -> 0 | N111: ='Portfolio Analytics'!I1001 -> 0 | O111: ='Portfolio Analytics'!J1001 -> 2211.620394 | P111: ='Portfolio Analytics'!K1001 -> 2211.620394 | Q111: ='Portfolio Analytics'!L1001 -> 2211.620394 | R111: ='Portfolio Analytics'!M1001 -> 2211.620394 | S111: ='Portfolio Analytics'!N1001 -> 2211.620394 | T111: ='Portfolio Analytics'!O1001 -> 0 | U111: ='Portfolio Analytics'!P1001 -> 2211.620394 | V111: ='Portfolio Analytics'!Q1001 -> 0 | W111: ='Portfolio Analytics'!R1001 -> 0 | X111: ='Portfolio Analytics'!S1001 -> 0 | Y111: ='Portfolio Analytics'!T1001 -> 2211.620394 | Z111: ='Portfolio Analytics'!U1001 -> 0 | AA111: ='Portfolio Analytics'!V1001 -> 0 | AB111: ='Portfolio Analytics'!W1001 -> 0 | AC111: ='Portfolio Analytics'!X1001 -> 0 | AD111: ='Portfolio Analytics'!Y1001 -> 0 | AE111: ='Portfolio Analytics'!Z1001 -> 0 | AF111: ='Portfolio Analytics'!AA1001 -> 0 | AG111: ='Portfolio Analytics'!AB1001 -> 0 | AH111: ='Portfolio Analytics'!AC1001 -> 0 | AI111: ='Portfolio Analytics'!AD1001 -> 0 | AJ111: ='Portfolio Analytics'!AE1001 -> 0 | AK111: ='Portfolio Analytics'!AF1001 -> 0 | AL111: ='Portfolio Analytics'!AG1001 -> 0 | AM111: ='Portfolio Analytics'!AH1001 -> 0 | AN111: ='Portfolio Analytics'!AI1001 -> 2211.620394 | AO111: ='Portfolio Analytics'!AJ1001 -> 0 | AP111: ='Portfolio Analytics'!AK1001 -> 0 | AQ111: ='Portfolio Analytics'!AL1001 -> 0 | AR111: ='Portfolio Analytics'!AM1001 -> 0 | AS111: ='Portfolio Analytics'!AN1001 -> 0
G112: Total Resource Cost | H112: $MM | J112: ='Portfolio Analytics'!E1002 -> 0 | K112: ='Portfolio Analytics'!F1002 -> 0 | L112: ='Portfolio Analytics'!G1002 -> 0 | M112: ='Portfolio Analytics'!H1002 -> 0 | N112: ='Portfolio Analytics'!I1002 -> 0 | O112: ='Portfolio Analytics'!J1002 -> 42624.7837 | P112: ='Portfolio Analytics'!K1002 -> 45441.23429 | Q112: ='Portfolio Analytics'!L1002 -> 45054.19542 | R112: ='Portfolio Analytics'!M1002 -> 44620.29411 | S112: ='Portfolio Analytics'!N1002 -> 44868.32495 | T112: ='Portfolio Analytics'!O1002 -> 0 | U112: ='Portfolio Analytics'!P1002 -> 43242.33634 | V112: ='Portfolio Analytics'!Q1002 -> 0 | W112: ='Portfolio Analytics'!R1002 -> 0 | X112: ='Portfolio Analytics'!S1002 -> 0 | Y112: ='Portfolio Analytics'!T1002 -> 45086.07617 | Z112: ='Portfolio Analytics'!U1002 -> 0 | AA112: ='Portfolio Analytics'!V1002 -> 0 | AB112: ='Portfolio Analytics'!W1002 -> 0 | AC112: ='Portfolio Analytics'!X1002 -> 0 | AD112: ='Portfolio Analytics'!Y1002 -> 0 | AE112: ='Portfolio Analytics'!Z1002 -> 0 | AF112: ='Portfolio Analytics'!AA1002 -> 0 | AG112: ='Portfolio Analytics'!AB1002 -> 0 | AH112: ='Portfolio Analytics'!AC1002 -> 0 | AI112: ='Portfolio Analytics'!AD1002 -> 0 | AJ112: ='Portfolio Analytics'!AE1002 -> 0 | AK112: ='Portfolio Analytics'!AF1002 -> 0 | AL112: ='Portfolio Analytics'!AG1002 -> 0 | AM112: ='Portfolio Analytics'!AH1002 -> 0 | AN112: ='Portfolio Analytics'!AI1002 -> 67105.13808 | AO112: ='Portfolio Analytics'!AJ1002 -> 0 | AP112: ='Portfolio Analytics'!AK1002 -> 0 | AQ112: ='Portfolio Analytics'!AL1002 -> 0 | AR112: ='Portfolio Analytics'!AM1002 -> 0 | AS112: ='Portfolio Analytics'!AN1002 -> 0
G113: Total Retail Sales | H113: GWh | J113: ='Portfolio Analytics'!E1003 -> 0 | K113: ='Portfolio Analytics'!F1003 -> 0 | L113: ='Portfolio Analytics'!G1003 -> 0 | M113: ='Portfolio Analytics'!H1003 -> 0 | N113: ='Portfolio Analytics'!I1003 -> 0 | O113: ='Portfolio Analytics'!J1003 -> 215947.6117 | P113: ='Portfolio Analytics'!K1003 -> 220280.7877 | Q113: ='Portfolio Analytics'!L1003 -> 225058.8265 | R113: ='Portfolio Analytics'!M1003 -> 229518.6827 | S113: ='Portfolio Analytics'!N1003 -> 233416.9605 | T113: ='Portfolio Analytics'!O1003 -> 0 | U113: ='Portfolio Analytics'!P1003 -> 240336.917 | V113: ='Portfolio Analytics'!Q1003 -> 0 | W113: ='Portfolio Analytics'!R1003 -> 0 | X113: ='Portfolio Analytics'!S1003 -> 0 | Y113: ='Portfolio Analytics'!T1003 -> 251673.6386 | Z113: ='Portfolio Analytics'!U1003 -> 0 | AA113: ='Portfolio Analytics'!V1003 -> 0 | AB113: ='Portfolio Analytics'!W1003 -> 0 | AC113: ='Portfolio Analytics'!X1003 -> 0 | AD113: ='Portfolio Analytics'!Y1003 -> 0 | AE113: ='Portfolio Analytics'!Z1003 -> 0 | AF113: ='Portfolio Analytics'!AA1003 -> 0 | AG113: ='Portfolio Analytics'!AB1003 -> 0 | AH113: ='Portfolio Analytics'!AC1003 -> 0 | AI113: ='Portfolio Analytics'!AD1003 -> 0 | AJ113: ='Portfolio Analytics'!AE1003 -> 0 | AK113: ='Portfolio Analytics'!AF1003 -> 0 | AL113: ='Portfolio Analytics'!AG1003 -> 0 | AM113: ='Portfolio Analytics'!AH1003 -> 0 | AN113: ='Portfolio Analytics'!AI1003 -> 368183.6905 | AO113: ='Portfolio Analytics'!AJ1003 -> 0 | AP113: ='Portfolio Analytics'!AK1003 -> 0 | AQ113: ='Portfolio Analytics'!AL1003 -> 0 | AR113: ='Portfolio Analytics'!AM1003 -> 0 | AS113: ='Portfolio Analytics'!AN1003 -> 0
G114: Average Rate (cts/kWh) | H114: cts/kWh | J114: ='Portfolio Analytics'!E1004 -> 0 | K114: ='Portfolio Analytics'!F1004 -> 0 | L114: ='Portfolio Analytics'!G1004 -> 0 | M114: ='Portfolio Analytics'!H1004 -> 0 | N114: ='Portfolio Analytics'!I1004 -> 0 | O114: ='Portfolio Analytics'!J1004 -> 18.71433678 | P114: ='Portfolio Analytics'!K1004 -> 19.62477724 | Q114: ='Portfolio Analytics'!L1004 -> 19.03616743 | R114: ='Portfolio Analytics'!M1004 -> 18.47722078 | S114: ='Portfolio Analytics'!N1004 -> 18.27489505 | T114: ='Portfolio Analytics'!O1004 -> 0 | U114: ='Portfolio Analytics'!P1004 -> 17.07216538 | V114: ='Portfolio Analytics'!Q1004 -> 0 | W114: ='Portfolio Analytics'!R1004 -> 0 | X114: ='Portfolio Analytics'!S1004 -> 0 | Y114: ='Portfolio Analytics'!T1004 -> 17.03573565 | Z114: ='Portfolio Analytics'!U1004 -> 0 | AA114: ='Portfolio Analytics'!V1004 -> 0 | AB114: ='Portfolio Analytics'!W1004 -> 0 | AC114: ='Portfolio Analytics'!X1004 -> 0 | AD114: ='Portfolio Analytics'!Y1004 -> 0 | AE114: ='Portfolio Analytics'!Z1004 -> 0 | AF114: ='Portfolio Analytics'!AA1004 -> 0 | AG114: ='Portfolio Analytics'!AB1004 -> 0 | AH114: ='Portfolio Analytics'!AC1004 -> 0 | AI114: ='Portfolio Analytics'!AD1004 -> 0 | AJ114: ='Portfolio Analytics'!AE1004 -> 0 | AK114: ='Portfolio Analytics'!AF1004 -> 0 | AL114: ='Portfolio Analytics'!AG1004 -> 0 | AM114: ='Portfolio Analytics'!AH1004 -> 0 | AN114: ='Portfolio Analytics'!AI1004 -> 17.62531024 | AO114: ='Portfolio Analytics'!AJ1004 -> 0 | AP114: ='Portfolio Analytics'!AK1004 -> 0 | AQ114: ='Portfolio Analytics'!AL1004 -> 0 | AR114: ='Portfolio Analytics'!AM1004 -> 0 | AS114: ='Portfolio Analytics'!AN1004 -> 0
G116: Operating Cost Breakdown | H116: Unit | J116: 2015 | K116: 2016 | L116: 2017 | M116: 2018 | N116: 2019 | O116: 2020 | P116: 2021 | Q116: 2022 | R116: 2023 | S116: 2024 | T116: 2025 | U116: 2026 | V116: 2027 | W116: 2028 | X116: 2029 | Y116: 2030 | Z116: 2031 | AA116: 2032 | AB116: 2033 | AC116: 2034 | AD116: 2035 | AE116: 2036 | AF116: 2037 | AG116: 2038 | AH116: 2039 | AI116: 2040 | AJ116: 2041 | AK116: 2042 | AL116: 2043 | AM116: 2044 | AN116: 2045 | AO116: 2046 | AP116: 2047 | AQ116: 2048 | AR116: 2049 | AS116: 2050
G117: Variable Operating Costs for CAISO Resources | H117: $MM | J117: ='Portfolio Analytics'!E976 -> 0 | K117: ='Portfolio Analytics'!F976 -> 0 | L117: ='Portfolio Analytics'!G976 -> 0 | M117: ='Portfolio Analytics'!H976 -> 0 | N117: ='Portfolio Analytics'!I976 -> 0 | O117: ='Portfolio Analytics'!J976 -> 3034.832172 | P117: ='Portfolio Analytics'!K976 -> 3029.902272 | Q117: ='Portfolio Analytics'!L976 -> 2867.883741 | R117: ='Portfolio Analytics'!M976 -> 2836.480261 | S117: ='Portfolio Analytics'!N976 -> 2861.129997 | T117: ='Portfolio Analytics'!O976 -> 0 | U117: ='Portfolio Analytics'!P976 -> 3101.474957 | V117: ='Portfolio Analytics'!Q976 -> 0 | W117: ='Portfolio Analytics'!R976 -> 0 | X117: ='Portfolio Analytics'!S976 -> 0 | Y117: ='Portfolio Analytics'!T976 -> 2687.577142 | Z117: ='Portfolio Analytics'!U976 -> 0 | AA117: ='Portfolio Analytics'!V976 -> 0 | AB117: ='Portfolio Analytics'!W976 -> 0 | AC117: ='Portfolio Analytics'!X976 -> 0 | AD117: ='Portfolio Analytics'!Y976 -> 0 | AE117: ='Portfolio Analytics'!Z976 -> 0 | AF117: ='Portfolio Analytics'!AA976 -> 0 | AG117: ='Portfolio Analytics'!AB976 -> 0 | AH117: ='Portfolio Analytics'!AC976 -> 0 | AI117: ='Portfolio Analytics'!AD976 -> 0 | AJ117: ='Portfolio Analytics'!AE976 -> 0 | AK117: ='Portfolio Analytics'!AF976 -> 0 | AL117: ='Portfolio Analytics'!AG976 -> 0 | AM117: ='Portfolio Analytics'!AH976 -> 0 | AN117: ='Portfolio Analytics'!AI976 -> 1773.853753 | AO117: ='Portfolio Analytics'!AJ976 -> 0 | AP117: ='Portfolio Analytics'!AK976 -> 0 | AQ117: ='Portfolio Analytics'!AL976 -> 0 | AR117: ='Portfolio Analytics'!AM976 -> 0 | AS117: ='Portfolio Analytics'!AN976 -> 0
G118: Incremental Biogas Costs | H118: $MM | J118: ='Portfolio Analytics'!E977 -> 0 | K118: ='Portfolio Analytics'!F977 -> 0 | L118: ='Portfolio Analytics'!G977 -> 0 | M118: ='Portfolio Analytics'!H977 -> 0 | N118: ='Portfolio Analytics'!I977 -> 0 | O118: ='Portfolio Analytics'!J977 -> 0 | P118: ='Portfolio Analytics'!K977 -> 0 | Q118: ='Portfolio Analytics'!L977 -> 0 | R118: ='Portfolio Analytics'!M977 -> 0 | S118: ='Portfolio Analytics'!N977 -> 0 | T118: ='Portfolio Analytics'!O977 -> 0 | U118: ='Portfolio Analytics'!P977 -> 0 | V118: ='Portfolio Analytics'!Q977 -> 0 | W118: ='Portfolio Analytics'!R977 -> 0 | X118: ='Portfolio Analytics'!S977 -> 0 | Y118: ='Portfolio Analytics'!T977 -> 0 | Z118: ='Portfolio Analytics'!U977 -> 0 | AA118: ='Portfolio Analytics'!V977 -> 0 | AB118: ='Portfolio Analytics'!W977 -> 0 | AC118: ='Portfolio Analytics'!X977 -> 0 | AD118: ='Portfolio Analytics'!Y977 -> 0 | AE118: ='Portfolio Analytics'!Z977 -> 0 | AF118: ='Portfolio Analytics'!AA977 -> 0 | AG118: ='Portfolio Analytics'!AB977 -> 0 | AH118: ='Portfolio Analytics'!AC977 -> 0 | AI118: ='Portfolio Analytics'!AD977 -> 0 | AJ118: ='Portfolio Analytics'!AE977 -> 0 | AK118: ='Portfolio Analytics'!AF977 -> 0 | AL118: ='Portfolio Analytics'!AG977 -> 0 | AM118: ='Portfolio Analytics'!AH977 -> 0 | AN118: ='Portfolio Analytics'!AI977 -> 0 | AO118: ='Portfolio Analytics'!AJ977 -> 0 | AP118: ='Portfolio Analytics'!AK977 -> 0 | AQ118: ='Portfolio Analytics'!AL977 -> 0 | AR118: ='Portfolio Analytics'!AM977 -> 0 | AS118: ='Portfolio Analytics'!AN977 -> 0
G119: Market Purchases (incl Carbon Allowance) | H119: $MM | J119: ='Portfolio Analytics'!E978 -> 0 | K119: ='Portfolio Analytics'!F978 -> 0 | L119: ='Portfolio Analytics'!G978 -> 0 | M119: ='Portfolio Analytics'!H978 -> 0 | N119: ='Portfolio Analytics'!I978 -> 0 | O119: ='Portfolio Analytics'!J978 -> 735.0603603 | P119: ='Portfolio Analytics'!K978 -> 955.0660439 | Q119: ='Portfolio Analytics'!L978 -> 638.5067799 | R119: ='Portfolio Analytics'!M978 -> 667.7867627 | S119: ='Portfolio Analytics'!N978 -> 737.1845941 | T119: ='Portfolio Analytics'!O978 -> 0 | U119: ='Portfolio Analytics'!P978 -> 583.8115067 | V119: ='Portfolio Analytics'!Q978 -> 0 | W119: ='Portfolio Analytics'!R978 -> 0 | X119: ='Portfolio Analytics'!S978 -> 0 | Y119: ='Portfolio Analytics'!T978 -> 569.5909554 | Z119: ='Portfolio Analytics'!U978 -> 0 | AA119: ='Portfolio Analytics'!V978 -> 0 | AB119: ='Portfolio Analytics'!W978 -> 0 | AC119: ='Portfolio Analytics'!X978 -> 0 | AD119: ='Portfolio Analytics'!Y978 -> 0 | AE119: ='Portfolio Analytics'!Z978 -> 0 | AF119: ='Portfolio Analytics'!AA978 -> 0 | AG119: ='Portfolio Analytics'!AB978 -> 0 | AH119: ='Portfolio Analytics'!AC978 -> 0 | AI119: ='Portfolio Analytics'!AD978 -> 0 | AJ119: ='Portfolio Analytics'!AE978 -> 0 | AK119: ='Portfolio Analytics'!AF978 -> 0 | AL119: ='Portfolio Analytics'!AG978 -> 0 | AM119: ='Portfolio Analytics'!AH978 -> 0 | AN119: ='Portfolio Analytics'!AI978 -> 73.9021194 | AO119: ='Portfolio Analytics'!AJ978 -> 0 | AP119: ='Portfolio Analytics'!AK978 -> 0 | AQ119: ='Portfolio Analytics'!AL978 -> 0 | AR119: ='Portfolio Analytics'!AM978 -> 0 | AS119: ='Portfolio Analytics'!AN978 -> 0
G120: Market Revenues | H120: $MM | J120: ='Portfolio Analytics'!E979 -> 0 | K120: ='Portfolio Analytics'!F979 -> 0 | L120: ='Portfolio Analytics'!G979 -> 0 | M120: ='Portfolio Analytics'!H979 -> 0 | N120: ='Portfolio Analytics'!I979 -> 0 | O120: ='Portfolio Analytics'!J979 -> -58.19243266 | P120: ='Portfolio Analytics'!K979 -> -47.64410403 | Q120: ='Portfolio Analytics'!L979 -> -74.05083798 | R120: ='Portfolio Analytics'!M979 -> -81.16801065 | S120: ='Portfolio Analytics'!N979 -> -77.29508726 | T120: ='Portfolio Analytics'!O979 -> 0 | U120: ='Portfolio Analytics'!P979 -> -55.78695384 | V120: ='Portfolio Analytics'!Q979 -> 0 | W120: ='Portfolio Analytics'!R979 -> 0 | X120: ='Portfolio Analytics'!S979 -> 0 | Y120: ='Portfolio Analytics'!T979 -> -105.8805794 | Z120: ='Portfolio Analytics'!U979 -> 0 | AA120: ='Portfolio Analytics'!V979 -> 0 | AB120: ='Portfolio Analytics'!W979 -> 0 | AC120: ='Portfolio Analytics'!X979 -> 0 | AD120: ='Portfolio Analytics'!Y979 -> 0 | AE120: ='Portfolio Analytics'!Z979 -> 0 | AF120: ='Portfolio Analytics'!AA979 -> 0 | AG120: ='Portfolio Analytics'!AB979 -> 0 | AH120: ='Portfolio Analytics'!AC979 -> 0 | AI120: ='Portfolio Analytics'!AD979 -> 0 | AJ120: ='Portfolio Analytics'!AE979 -> 0 | AK120: ='Portfolio Analytics'!AF979 -> 0 | AL120: ='Portfolio Analytics'!AG979 -> 0 | AM120: ='Portfolio Analytics'!AH979 -> 0 | AN120: ='Portfolio Analytics'!AI979 -> -881.5281564 | AO120: ='Portfolio Analytics'!AJ979 -> 0 | AP120: ='Portfolio Analytics'!AK979 -> 0 | AQ120: ='Portfolio Analytics'!AL979 -> 0 | AR120: ='Portfolio Analytics'!AM979 -> 0 | AS120: ='Portfolio Analytics'!AN979 -> 0
G121: Energy Credit for OOS Renewables Contracted to CAISO | H121: $MM | J121: ='Portfolio Analytics'!E980 -> 0 | K121: ='Portfolio Analytics'!F980 -> 0 | L121: ='Portfolio Analytics'!G980 -> 0 | M121: ='Portfolio Analytics'!H980 -> 0 | N121: ='Portfolio Analytics'!I980 -> 0 | O121: ='Portfolio Analytics'!J980 -> -117.4884728 | P121: ='Portfolio Analytics'!K980 -> -120.4173109 | Q121: ='Portfolio Analytics'!L980 -> -118.9679777 | R121: ='Portfolio Analytics'!M980 -> -119.2630098 | S121: ='Portfolio Analytics'!N980 -> -121.0637348 | T121: ='Portfolio Analytics'!O980 -> 0 | U121: ='Portfolio Analytics'!P980 -> -122.226206 | V121: ='Portfolio Analytics'!Q980 -> 0 | W121: ='Portfolio Analytics'!R980 -> 0 | X121: ='Portfolio Analytics'!S980 -> 0 | Y121: ='Portfolio Analytics'!T980 -> -125.0890828 | Z121: ='Portfolio Analytics'!U980 -> 0 | AA121: ='Portfolio Analytics'!V980 -> 0 | AB121: ='Portfolio Analytics'!W980 -> 0 | AC121: ='Portfolio Analytics'!X980 -> 0 | AD121: ='Portfolio Analytics'!Y980 -> 0 | AE121: ='Portfolio Analytics'!Z980 -> 0 | AF121: ='Portfolio Analytics'!AA980 -> 0 | AG121: ='Portfolio Analytics'!AB980 -> 0 | AH121: ='Portfolio Analytics'!AC980 -> 0 | AI121: ='Portfolio Analytics'!AD980 -> 0 | AJ121: ='Portfolio Analytics'!AE980 -> 0 | AK121: ='Portfolio Analytics'!AF980 -> 0 | AL121: ='Portfolio Analytics'!AG980 -> 0 | AM121: ='Portfolio Analytics'!AH980 -> 0 | AN121: ='Portfolio Analytics'!AI980 -> -133.2447362 | AO121: ='Portfolio Analytics'!AJ980 -> 0 | AP121: ='Portfolio Analytics'!AK980 -> 0 | AQ121: ='Portfolio Analytics'!AL980 -> 0 | AR121: ='Portfolio Analytics'!AM980 -> 0 | AS121: ='Portfolio Analytics'!AN980 -> 0
G122: Total CAISO Operating Cost | H122: $MM | J122: ='Portfolio Analytics'!E981 -> 0 | K122: ='Portfolio Analytics'!F981 -> 0 | L122: ='Portfolio Analytics'!G981 -> 0 | M122: ='Portfolio Analytics'!H981 -> 0 | N122: ='Portfolio Analytics'!I981 -> 0 | O122: ='Portfolio Analytics'!J981 -> 3594.211627 | P122: ='Portfolio Analytics'!K981 -> 3816.906901 | Q122: ='Portfolio Analytics'!L981 -> 3313.371705 | R122: ='Portfolio Analytics'!M981 -> 3303.836003 | S122: ='Portfolio Analytics'!N981 -> 3399.955769 | T122: ='Portfolio Analytics'!O981 -> 0 | U122: ='Portfolio Analytics'!P981 -> 3507.273304 | V122: ='Portfolio Analytics'!Q981 -> 0 | W122: ='Portfolio Analytics'!R981 -> 0 | X122: ='Portfolio Analytics'!S981 -> 0 | Y122: ='Portfolio Analytics'!T981 -> 3026.198435 | Z122: ='Portfolio Analytics'!U981 -> 0 | AA122: ='Portfolio Analytics'!V981 -> 0 | AB122: ='Portfolio Analytics'!W981 -> 0 | AC122: ='Portfolio Analytics'!X981 -> 0 | AD122: ='Portfolio Analytics'!Y981 -> 0 | AE122: ='Portfolio Analytics'!Z981 -> 0 | AF122: ='Portfolio Analytics'!AA981 -> 0 | AG122: ='Portfolio Analytics'!AB981 -> 0 | AH122: ='Portfolio Analytics'!AC981 -> 0 | AI122: ='Portfolio Analytics'!AD981 -> 0 | AJ122: ='Portfolio Analytics'!AE981 -> 0 | AK122: ='Portfolio Analytics'!AF981 -> 0 | AL122: ='Portfolio Analytics'!AG981 -> 0 | AM122: ='Portfolio Analytics'!AH981 -> 0 | AN122: ='Portfolio Analytics'!AI981 -> 832.9829799 | AO122: ='Portfolio Analytics'!AJ981 -> 0 | AP122: ='Portfolio Analytics'!AK981 -> 0 | AQ122: ='Portfolio Analytics'!AL981 -> 0 | AR122: ='Portfolio Analytics'!AM981 -> 0 | AS122: ='Portfolio Analytics'!AN981 -> 0
G124: RPS Summary
H126: Unit | J126: 2015 | K126: =J126+1 -> 2016 | L126: 2017 | M126: 2018 | N126: 2019 | O126: 2020 | P126: 2021 | Q126: 2022 | R126: 2023 | S126: 2024 | T126: 2025 | U126: 2026 | V126: 2027 | W126: 2028 | X126: 2029 | Y126: 2030 | Z126: =Y126+1 -> 2031 | AA126: 2032 | AB126: 2033 | AC126: 2034 | AD126: 2035 | AE126: 2036 | AF126: 2037 | AG126: 2038 | AH126: 2039 | AI126: 2040 | AJ126: 2041 | AK126: 2042 | AL126: 2043 | AM126: 2044 | AN126: 2045 | AO126: 2046 | AP126: 2047 | AQ126: 2048 | AR126: 2049 | AS126: 2050
G127: RPS Target | H127: % of Retail Sales | J127: ='Portfolio Analytics'!E860 -> 0 | K127: ='Portfolio Analytics'!F860 -> 0 | L127: ='Portfolio Analytics'!G860 -> 0 | M127: ='Portfolio Analytics'!H860 -> 0 | N127: ='Portfolio Analytics'!I860 -> 0 | O127: ='Portfolio Analytics'!J860 -> 0.3302220045 | P127: ='Portfolio Analytics'!K860 -> 0.3571764544 | Q127: ='Portfolio Analytics'!L860 -> 0.3841123019 | R127: ='Portfolio Analytics'!M860 -> 0.4110304613 | S127: ='Portfolio Analytics'!N860 -> 0.4379383434 | T127: ='Portfolio Analytics'!O860 -> 0 | U127: ='Portfolio Analytics'!P860 -> 0.49171447 | V127: ='Portfolio Analytics'!Q860 -> 0 | W127: ='Portfolio Analytics'!R860 -> 0 | X127: ='Portfolio Analytics'!S860 -> 0 | Y127: ='Portfolio Analytics'!T860 -> 0.5992953728 | Z127: ='Portfolio Analytics'!U860 -> 0 | AA127: ='Portfolio Analytics'!V860 -> 0 | AB127: ='Portfolio Analytics'!W860 -> 0 | AC127: ='Portfolio Analytics'!X860 -> 0 | AD127: ='Portfolio Analytics'!Y860 -> 0 | AE127: ='Portfolio Analytics'!Z860 -> 0 | AF127: ='Portfolio Analytics'!AA860 -> 0 | AG127: ='Portfolio Analytics'!AB860 -> 0 | AH127: ='Portfolio Analytics'!AC860 -> 0 | AI127: ='Portfolio Analytics'!AD860 -> 0 | AJ127: ='Portfolio Analytics'!AE860 -> 0 | AK127: ='Portfolio Analytics'!AF860 -> 0 | AL127: ='Portfolio Analytics'!AG860 -> 0 | AM127: ='Portfolio Analytics'!AH860 -> 0 | AN127: ='Portfolio Analytics'!AI860 -> 0.8425287796 | AO127: ='Portfolio Analytics'!AJ860 -> 0 | AP127: ='Portfolio Analytics'!AK860 -> 0 | AQ127: ='Portfolio Analytics'!AL860 -> 0 | AR127: ='Portfolio Analytics'!AM860 -> 0 | AS127: ='Portfolio Analytics'!AN860 -> 0
G128: RPS-Eligible Generation (w/o banked RECs) | H128: % of Retail Sales | J128: ='Portfolio Analytics'!E861 -> 0 | K128: ='Portfolio Analytics'!F861 -> 0 | L128: ='Portfolio Analytics'!G861 -> 0 | M128: ='Portfolio Analytics'!H861 -> 0 | N128: ='Portfolio Analytics'!I861 -> 0 | O128: ='Portfolio Analytics'!J861 -> 0.4274926715 | P128: ='Portfolio Analytics'!K861 -> 0.4482432931 | Q128: ='Portfolio Analytics'!L861 -> 0.4989116036 | R128: ='Portfolio Analytics'!M861 -> 0.5145889279 | S128: ='Portfolio Analytics'!N861 -> 0.5427145538 | T128: ='Portfolio Analytics'!O861 -> 0 | U128: ='Portfolio Analytics'!P861 -> 0.5822761736 | V128: ='Portfolio Analytics'!Q861 -> 0 | W128: ='Portfolio Analytics'!R861 -> 0 | X128: ='Portfolio Analytics'!S861 -> 0 | Y128: ='Portfolio Analytics'!T861 -> 0.68001888 | Z128: ='Portfolio Analytics'!U861 -> 0 | AA128: ='Portfolio Analytics'!V861 -> 0 | AB128: ='Portfolio Analytics'!W861 -> 0 | AC128: ='Portfolio Analytics'!X861 -> 0 | AD128: ='Portfolio Analytics'!Y861 -> 0 | AE128: ='Portfolio Analytics'!Z861 -> 0 | AF128: ='Portfolio Analytics'!AA861 -> 0 | AG128: ='Portfolio Analytics'!AB861 -> 0 | AH128: ='Portfolio Analytics'!AC861 -> 0 | AI128: ='Portfolio Analytics'!AD861 -> 0 | AJ128: ='Portfolio Analytics'!AE861 -> 0 | AK128: ='Portfolio Analytics'!AF861 -> 0 | AL128: ='Portfolio Analytics'!AG861 -> 0 | AM128: ='Portfolio Analytics'!AH861 -> 0 | AN128: ='Portfolio Analytics'!AI861 -> 1.006105583 | AO128: ='Portfolio Analytics'!AJ861 -> 0 | AP128: ='Portfolio Analytics'!AK861 -> 0 | AQ128: ='Portfolio Analytics'!AL861 -> 0 | AR128: ='Portfolio Analytics'!AM861 -> 0 | AS128: ='Portfolio Analytics'!AN861 -> 0
G129: Banked RECs | H129: % of Retail Sales | J129: ='Portfolio Analytics'!E862 -> 0 | K129: ='Portfolio Analytics'!F862 -> 0 | L129: ='Portfolio Analytics'!G862 -> 0 | M129: ='Portfolio Analytics'!H862 -> 0 | N129: ='Portfolio Analytics'!I862 -> 0 | O129: ='Portfolio Analytics'!J862 -> 0 | P129: ='Portfolio Analytics'!K862 -> 0 | Q129: ='Portfolio Analytics'!L862 -> 0 | R129: ='Portfolio Analytics'!M862 -> 0 | S129: ='Portfolio Analytics'!N862 -> 0.02177504397 | T129: ='Portfolio Analytics'!O862 -> 0 | U129: ='Portfolio Analytics'!P862 -> 0.06761093975 | V129: ='Portfolio Analytics'!Q862 -> 0 | W129: ='Portfolio Analytics'!R862 -> 0 | X129: ='Portfolio Analytics'!S862 -> 0 | Y129: ='Portfolio Analytics'!T862 -> 0 | Z129: ='Portfolio Analytics'!U862 -> 0 | AA129: ='Portfolio Analytics'!V862 -> 0 | AB129: ='Portfolio Analytics'!W862 -> 0 | AC129: ='Portfolio Analytics'!X862 -> 0 | AD129: ='Portfolio Analytics'!Y862 -> 0 | AE129: ='Portfolio Analytics'!Z862 -> 0 | AF129: ='Portfolio Analytics'!AA862 -> 0 | AG129: ='Portfolio Analytics'!AB862 -> 0 | AH129: ='Portfolio Analytics'!AC862 -> 0 | AI129: ='Portfolio Analytics'!AD862 -> 0 | AJ129: ='Portfolio Analytics'!AE862 -> 0 | AK129: ='Portfolio Analytics'!AF862 -> 0 | AL129: ='Portfolio Analytics'!AG862 -> 0 | AM129: ='Portfolio Analytics'!AH862 -> 0 | AN129: ='Portfolio Analytics'!AI862 -> 0 | AO129: ='Portfolio Analytics'!AJ862 -> 0 | AP129: ='Portfolio Analytics'!AK862 -> 0 | AQ129: ='Portfolio Analytics'!AL862 -> 0 | AR129: ='Portfolio Analytics'!AM862 -> 0 | AS129: ='Portfolio Analytics'!AN862 -> 0
G130: Effective RPS (with banked RECs) | H130: % of Retail Sales | J130: ='Portfolio Analytics'!E863 -> 0 | K130: ='Portfolio Analytics'!F863 -> 0 | L130: ='Portfolio Analytics'!G863 -> 0 | M130: ='Portfolio Analytics'!H863 -> 0 | N130: ='Portfolio Analytics'!I863 -> 0 | O130: ='Portfolio Analytics'!J863 -> 0.4274926715 | P130: ='Portfolio Analytics'!K863 -> 0.4482432931 | Q130: ='Portfolio Analytics'!L863 -> 0.4989116036 | R130: ='Portfolio Analytics'!M863 -> 0.5145889279 | S130: ='Portfolio Analytics'!N863 -> 0.5644895978 | T130: ='Portfolio Analytics'!O863 -> 0 | U130: ='Portfolio Analytics'!P863 -> 0.6498871134 | V130: ='Portfolio Analytics'!Q863 -> 0 | W130: ='Portfolio Analytics'!R863 -> 0 | X130: ='Portfolio Analytics'!S863 -> 0 | Y130: ='Portfolio Analytics'!T863 -> 0.68001888 | Z130: ='Portfolio Analytics'!U863 -> 0 | AA130: ='Portfolio Analytics'!V863 -> 0 | AB130: ='Portfolio Analytics'!W863 -> 0 | AC130: ='Portfolio Analytics'!X863 -> 0 | AD130: ='Portfolio Analytics'!Y863 -> 0 | AE130: ='Portfolio Analytics'!Z863 -> 0 | AF130: ='Portfolio Analytics'!AA863 -> 0 | AG130: ='Portfolio Analytics'!AB863 -> 0 | AH130: ='Portfolio Analytics'!AC863 -> 0 | AI130: ='Portfolio Analytics'!AD863 -> 0 | AJ130: ='Portfolio Analytics'!AE863 -> 0 | AK130: ='Portfolio Analytics'!AF863 -> 0 | AL130: ='Portfolio Analytics'!AG863 -> 0 | AM130: ='Portfolio Analytics'!AH863 -> 0 | AN130: ='Portfolio Analytics'!AI863 -> 1.006105583 | AO130: ='Portfolio Analytics'!AJ863 -> 0 | AP130: ='Portfolio Analytics'!AK863 -> 0 | AQ130: ='Portfolio Analytics'!AL863 -> 0 | AR130: ='Portfolio Analytics'!AM863 -> 0 | AS130: ='Portfolio Analytics'!AN863 -> 0
G131: Renewable Curtailment (scheduled and subhourly) | H131: % of RPS Gen. | J131: ='Portfolio Analytics'!E858 -> 0 | K131: ='Portfolio Analytics'!F858 -> 0 | L131: ='Portfolio Analytics'!G858 -> 0 | M131: ='Portfolio Analytics'!H858 -> 0 | N131: ='Portfolio Analytics'!I858 -> 0 | O131: ='Portfolio Analytics'!J858 -> 0.002878187679 | P131: ='Portfolio Analytics'!K858 -> 0.005499613314 | Q131: ='Portfolio Analytics'!L858 -> 0.00716352355 | R131: ='Portfolio Analytics'!M858 -> 0.009067935735 | S131: ='Portfolio Analytics'!N858 -> 0.008654597284 | T131: ='Portfolio Analytics'!O858 -> 0 | U131: ='Portfolio Analytics'!P858 -> 0.00665168815 | V131: ='Portfolio Analytics'!Q858 -> 0 | W131: ='Portfolio Analytics'!R858 -> 0 | X131: ='Portfolio Analytics'!S858 -> 0 | Y131: ='Portfolio Analytics'!T858 -> 0.02651815899 | Z131: ='Portfolio Analytics'!U858 -> 0 | AA131: ='Portfolio Analytics'!V858 -> 0 | AB131: ='Portfolio Analytics'!W858 -> 0 | AC131: ='Portfolio Analytics'!X858 -> 0 | AD131: ='Portfolio Analytics'!Y858 -> 0 | AE131: ='Portfolio Analytics'!Z858 -> 0 | AF131: ='Portfolio Analytics'!AA858 -> 0 | AG131: ='Portfolio Analytics'!AB858 -> 0 | AH131: ='Portfolio Analytics'!AC858 -> 0 | AI131: ='Portfolio Analytics'!AD858 -> 0 | AJ131: ='Portfolio Analytics'!AE858 -> 0 | AK131: ='Portfolio Analytics'!AF858 -> 0 | AL131: ='Portfolio Analytics'!AG858 -> 0 | AM131: ='Portfolio Analytics'!AH858 -> 0 | AN131: ='Portfolio Analytics'!AI858 -> 0.1241481223 | AO131: ='Portfolio Analytics'!AJ858 -> 0 | AP131: ='Portfolio Analytics'!AK858 -> 0 | AQ131: ='Portfolio Analytics'!AL858 -> 0 | AR131: ='Portfolio Analytics'!AM858 -> 0 | AS131: ='Portfolio Analytics'!AN858 -> 0
G132: Renewable Curtailment incl. Storage Losses | H132: % of RPS Gen. | J132: ='Portfolio Analytics'!E859 -> 0 | K132: ='Portfolio Analytics'!F859 -> 0 | L132: ='Portfolio Analytics'!G859 -> 0 | M132: ='Portfolio Analytics'!H859 -> 0 | N132: ='Portfolio Analytics'!I859 -> 0 | O132: ='Portfolio Analytics'!J859 -> 0.01144793204 | P132: ='Portfolio Analytics'!K859 -> 0.01958496667 | Q132: ='Portfolio Analytics'!L859 -> 0.02057009447 | R132: ='Portfolio Analytics'!M859 -> 0.02364975749 | S132: ='Portfolio Analytics'!N859 -> 0.02600872705 | T132: ='Portfolio Analytics'!O859 -> 0 | U132: ='Portfolio Analytics'!P859 -> 0.03266032277 | V132: ='Portfolio Analytics'!Q859 -> 0 | W132: ='Portfolio Analytics'!R859 -> 0 | X132: ='Portfolio Analytics'!S859 -> 0 | Y132: ='Portfolio Analytics'!T859 -> 0.05899843276 | Z132: ='Portfolio Analytics'!U859 -> 0 | AA132: ='Portfolio Analytics'!V859 -> 0 | AB132: ='Portfolio Analytics'!W859 -> 0 | AC132: ='Portfolio Analytics'!X859 -> 0 | AD132: ='Portfolio Analytics'!Y859 -> 0 | AE132: ='Portfolio Analytics'!Z859 -> 0 | AF132: ='Portfolio Analytics'!AA859 -> 0 | AG132: ='Portfolio Analytics'!AB859 -> 0 | AH132: ='Portfolio Analytics'!AC859 -> 0 | AI132: ='Portfolio Analytics'!AD859 -> 0 | AJ132: ='Portfolio Analytics'!AE859 -> 0 | AK132: ='Portfolio Analytics'!AF859 -> 0 | AL132: ='Portfolio Analytics'!AG859 -> 0 | AM132: ='Portfolio Analytics'!AH859 -> 0 | AN132: ='Portfolio Analytics'!AI859 -> 0.1862188399 | AO132: ='Portfolio Analytics'!AJ859 -> 0 | AP132: ='Portfolio Analytics'!AK859 -> 0 | AQ132: ='Portfolio Analytics'!AL859 -> 0 | AR132: ='Portfolio Analytics'!AM859 -> 0 | AS132: ='Portfolio Analytics'!AN859 -> 0
G133: Marginal RPS Cost | H133: $/MWh | J133: ='Portfolio Analytics'!E865 -> 0 | K133: ='Portfolio Analytics'!F865 -> 0 | L133: ='Portfolio Analytics'!G865 -> 0 | M133: ='Portfolio Analytics'!H865 -> 0 | N133: ='Portfolio Analytics'!I865 -> 0 | O133: ='Portfolio Analytics'!J865 -> 0 | P133: ='Portfolio Analytics'!K865 -> 0 | Q133: ='Portfolio Analytics'!L865 -> 0 | R133: ='Portfolio Analytics'!M865 -> 0 | S133: ='Portfolio Analytics'!N865 -> 0 | T133: ='Portfolio Analytics'!O865 -> 0 | U133: ='Portfolio Analytics'!P865 -> 0 | V133: ='Portfolio Analytics'!Q865 -> 0 | W133: ='Portfolio Analytics'!R865 -> 0 | X133: ='Portfolio Analytics'!S865 -> 0 | Y133: ='Portfolio Analytics'!T865 -> 0 | Z133: ='Portfolio Analytics'!U865 -> 0 | AA133: ='Portfolio Analytics'!V865 -> 0 | AB133: ='Portfolio Analytics'!W865 -> 0 | AC133: ='Portfolio Analytics'!X865 -> 0 | AD133: ='Portfolio Analytics'!Y865 -> 0 | AE133: ='Portfolio Analytics'!Z865 -> 0 | AF133: ='Portfolio Analytics'!AA865 -> 0 | AG133: ='Portfolio Analytics'!AB865 -> 0 | AH133: ='Portfolio Analytics'!AC865 -> 0 | AI133: ='Portfolio Analytics'!AD865 -> 0 | AJ133: ='Portfolio Analytics'!AE865 -> 0 | AK133: ='Portfolio Analytics'!AF865 -> 0 | AL133: ='Portfolio Analytics'!AG865 -> 0 | AM133: ='Portfolio Analytics'!AH865 -> 0 | AN133: ='Portfolio Analytics'!AI865 -> 0 | AO133: ='Portfolio Analytics'!AJ865 -> 0 | AP133: ='Portfolio Analytics'!AK865 -> 0 | AQ133: ='Portfolio Analytics'!AL865 -> 0 | AR133: ='Portfolio Analytics'!AM865 -> 0 | AS133: ='Portfolio Analytics'!AN865 -> 0
G134: RPS Renewables excl. Pipeline Biogas | H134: GWh | J134: ='Portfolio Analytics'!E849 -> 0 | K134: ='Portfolio Analytics'!F849 -> 0 | L134: ='Portfolio Analytics'!G849 -> 0 | M134: ='Portfolio Analytics'!H849 -> 0 | N134: ='Portfolio Analytics'!I849 -> 0 | O134: ='Portfolio Analytics'!J849 -> 86991.54204 | P134: ='Portfolio Analytics'!K849 -> 93794.82117 | Q134: ='Portfolio Analytics'!L849 -> 107145.962 | R134: ='Portfolio Analytics'!M849 -> 113186.7008 | S134: ='Portfolio Analytics'!N849 -> 121969.4108 | T134: ='Portfolio Analytics'!O849 -> 0 | U134: ='Portfolio Analytics'!P849 -> 136231.0117 | V134: ='Portfolio Analytics'!Q849 -> 0 | W134: ='Portfolio Analytics'!R849 -> 0 | X134: ='Portfolio Analytics'!S849 -> 0 | Y134: ='Portfolio Analytics'!T849 -> 169280.0888 | Z134: ='Portfolio Analytics'!U849 -> 0 | AA134: ='Portfolio Analytics'!V849 -> 0 | AB134: ='Portfolio Analytics'!W849 -> 0 | AC134: ='Portfolio Analytics'!X849 -> 0 | AD134: ='Portfolio Analytics'!Y849 -> 0 | AE134: ='Portfolio Analytics'!Z849 -> 0 | AF134: ='Portfolio Analytics'!AA849 -> 0 | AG134: ='Portfolio Analytics'!AB849 -> 0 | AH134: ='Portfolio Analytics'!AC849 -> 0 | AI134: ='Portfolio Analytics'!AD849 -> 0 | AJ134: ='Portfolio Analytics'!AE849 -> 0 | AK134: ='Portfolio Analytics'!AF849 -> 0 | AL134: ='Portfolio Analytics'!AG849 -> 0 | AM134: ='Portfolio Analytics'!AH849 -> 0 | AN134: ='Portfolio Analytics'!AI849 -> 392251.6474 | AO134: ='Portfolio Analytics'!AJ849 -> 0 | AP134: ='Portfolio Analytics'!AK849 -> 0 | AQ134: ='Portfolio Analytics'!AL849 -> 0 | AR134: ='Portfolio Analytics'!AM849 -> 0 | AS134: ='Portfolio Analytics'!AN849 -> 0
G135: Pipeline Biogas Generation | H135: GWh | J135: ='Portfolio Analytics'!E850 -> 0 | K135: ='Portfolio Analytics'!F850 -> 0 | L135: ='Portfolio Analytics'!G850 -> 0 | M135: ='Portfolio Analytics'!H850 -> 0 | N135: ='Portfolio Analytics'!I850 -> 0 | O135: ='Portfolio Analytics'!J850 -> 0 | P135: ='Portfolio Analytics'!K850 -> 0 | Q135: ='Portfolio Analytics'!L850 -> 0 | R135: ='Portfolio Analytics'!M850 -> 0 | S135: ='Portfolio Analytics'!N850 -> 0 | T135: ='Portfolio Analytics'!O850 -> 0 | U135: ='Portfolio Analytics'!P850 -> 0 | V135: ='Portfolio Analytics'!Q850 -> 0 | W135: ='Portfolio Analytics'!R850 -> 0 | X135: ='Portfolio Analytics'!S850 -> 0 | Y135: ='Portfolio Analytics'!T850 -> 0 | Z135: ='Portfolio Analytics'!U850 -> 0 | AA135: ='Portfolio Analytics'!V850 -> 0 | AB135: ='Portfolio Analytics'!W850 -> 0 | AC135: ='Portfolio Analytics'!X850 -> 0 | AD135: ='Portfolio Analytics'!Y850 -> 0 | AE135: ='Portfolio Analytics'!Z850 -> 0 | AF135: ='Portfolio Analytics'!AA850 -> 0 | AG135: ='Portfolio Analytics'!AB850 -> 0 | AH135: ='Portfolio Analytics'!AC850 -> 0 | AI135: ='Portfolio Analytics'!AD850 -> 0 | AJ135: ='Portfolio Analytics'!AE850 -> 0 | AK135: ='Portfolio Analytics'!AF850 -> 0 | AL135: ='Portfolio Analytics'!AG850 -> 0 | AM135: ='Portfolio Analytics'!AH850 -> 0 | AN135: ='Portfolio Analytics'!AI850 -> 0 | AO135: ='Portfolio Analytics'!AJ850 -> 0 | AP135: ='Portfolio Analytics'!AK850 -> 0 | AQ135: ='Portfolio Analytics'!AL850 -> 0 | AR135: ='Portfolio Analytics'!AM850 -> 0 | AS135: ='Portfolio Analytics'!AN850 -> 0
G136: Nonmodeled RPS Renewables | H136: GWh | J136: ='Portfolio Analytics'!E851 -> 0 | K136: ='Portfolio Analytics'!F851 -> 0 | L136: ='Portfolio Analytics'!G851 -> 0 | M136: ='Portfolio Analytics'!H851 -> 0 | N136: ='Portfolio Analytics'!I851 -> 0 | O136: ='Portfolio Analytics'!J851 -> 2847.60882 | P136: ='Portfolio Analytics'!K851 -> 2847.60882 | Q136: ='Portfolio Analytics'!L851 -> 2847.60882 | R136: ='Portfolio Analytics'!M851 -> 2847.60882 | S136: ='Portfolio Analytics'!N851 -> 2847.60882 | T136: ='Portfolio Analytics'!O851 -> 0 | U136: ='Portfolio Analytics'!P851 -> 2847.60882 | V136: ='Portfolio Analytics'!Q851 -> 0 | W136: ='Portfolio Analytics'!R851 -> 0 | X136: ='Portfolio Analytics'!S851 -> 0 | Y136: ='Portfolio Analytics'!T851 -> 2847.60882 | Z136: ='Portfolio Analytics'!U851 -> 0 | AA136: ='Portfolio Analytics'!V851 -> 0 | AB136: ='Portfolio Analytics'!W851 -> 0 | AC136: ='Portfolio Analytics'!X851 -> 0 | AD136: ='Portfolio Analytics'!Y851 -> 0 | AE136: ='Portfolio Analytics'!Z851 -> 0 | AF136: ='Portfolio Analytics'!AA851 -> 0 | AG136: ='Portfolio Analytics'!AB851 -> 0 | AH136: ='Portfolio Analytics'!AC851 -> 0 | AI136: ='Portfolio Analytics'!AD851 -> 0 | AJ136: ='Portfolio Analytics'!AE851 -> 0 | AK136: ='Portfolio Analytics'!AF851 -> 0 | AL136: ='Portfolio Analytics'!AG851 -> 0 | AM136: ='Portfolio Analytics'!AH851 -> 0 | AN136: ='Portfolio Analytics'!AI851 -> 1307.9556 | AO136: ='Portfolio Analytics'!AJ851 -> 0 | AP136: ='Portfolio Analytics'!AK851 -> 0 | AQ136: ='Portfolio Analytics'!AL851 -> 0 | AR136: ='Portfolio Analytics'!AM851 -> 0 | AS136: ='Portfolio Analytics'!AN851 -> 0
G137: SB100% | H137: % of Retail Sales | J137: ='Portfolio Analytics'!E864 -> 0 | K137: ='Portfolio Analytics'!F864 -> 0 | L137: ='Portfolio Analytics'!G864 -> 0 | M137: ='Portfolio Analytics'!H864 -> 0 | N137: ='Portfolio Analytics'!I864 -> 0 | O137: ='Portfolio Analytics'!J864 -> 0.6569220115 | P137: ='Portfolio Analytics'!K864 -> 0.6734820513 | Q137: ='Portfolio Analytics'!L864 -> 0.7172034547 | R137: ='Portfolio Analytics'!M864 -> 0.7281303027 | S137: ='Portfolio Analytics'!N864 -> 0.7120468189 | T137: ='Portfolio Analytics'!O864 -> 0 | U137: ='Portfolio Analytics'!P864 -> 0.7102017905 | V137: ='Portfolio Analytics'!Q864 -> 0 | W137: ='Portfolio Analytics'!R864 -> 0 | X137: ='Portfolio Analytics'!S864 -> 0 | Y137: ='Portfolio Analytics'!T864 -> 0.797648278 | Z137: ='Portfolio Analytics'!U864 -> 0 | AA137: ='Portfolio Analytics'!V864 -> 0 | AB137: ='Portfolio Analytics'!W864 -> 0 | AC137: ='Portfolio Analytics'!X864 -> 0 | AD137: ='Portfolio Analytics'!Y864 -> 0 | AE137: ='Portfolio Analytics'!Z864 -> 0 | AF137: ='Portfolio Analytics'!AA864 -> 0 | AG137: ='Portfolio Analytics'!AB864 -> 0 | AH137: ='Portfolio Analytics'!AC864 -> 0 | AI137: ='Portfolio Analytics'!AD864 -> 0 | AJ137: ='Portfolio Analytics'!AE864 -> 0 | AK137: ='Portfolio Analytics'!AF864 -> 0 | AL137: ='Portfolio Analytics'!AG864 -> 0 | AM137: ='Portfolio Analytics'!AH864 -> 0 | AN137: ='Portfolio Analytics'!AI864 -> 1.069528877 | AO137: ='Portfolio Analytics'!AJ864 -> 0 | AP137: ='Portfolio Analytics'!AK864 -> 0 | AQ137: ='Portfolio Analytics'!AL864 -> 0 | AR137: ='Portfolio Analytics'!AM864 -> 0 | AS137: ='Portfolio Analytics'!AN864 -> 0
G141: Greenhouse Gas Summary
H143: Unit | J143: 2015 | K143: =J143+1 -> 2016 | L143: 2017 | M143: 2018 | N143: 2019 | O143: 2020 | P143: 2021 | Q143: 2022 | R143: 2023 | S143: 2024 | T143: 2025 | U143: 2026 | V143: 2027 | W143: 2028 | X143: 2029 | Y143: 2030 | Z143: 2031 | AA143: =Z143+1 -> 2032 | AB143: 2033 | AC143: 2034 | AD143: 2035 | AE143: 2036 | AF143: 2037 | AG143: 2038 | AH143: 2039 | AI143: 2040 | AJ143: 2041 | AK143: 2042 | AL143: 2043 | AM143: 2044 | AN143: 2045 | AO143: 2046 | AP143: 2047 | AQ143: 2048 | AR143: 2049 | AS143: 2050
G144: GHG Emissions Target | H144: MMtCO2/Yr | J144: ='Portfolio Analytics'!E1075 -> 0 | K144: ='Portfolio Analytics'!F1075 -> 0 | L144: ='Portfolio Analytics'!G1075 -> 0 | M144: ='Portfolio Analytics'!H1075 -> 0 | N144: ='Portfolio Analytics'!I1075 -> 0 | O144: ='Portfolio Analytics'!J1075 -> 52.51242025 | P144: ='Portfolio Analytics'!K1075 -> 51.05117822 | Q144: ='Portfolio Analytics'!L1075 -> 49.5899362 | R144: ='Portfolio Analytics'!M1075 -> 48.12869417 | S144: ='Portfolio Analytics'!N1075 -> 46.66745215 | T144: ='Portfolio Analytics'!O1075 -> 0 | U144: ='Portfolio Analytics'!P1075 -> 43.7449681 | V144: ='Portfolio Analytics'!Q1075 -> 0 | W144: ='Portfolio Analytics'!R1075 -> 0 | X144: ='Portfolio Analytics'!S1075 -> 0 | Y144: ='Portfolio Analytics'!T1075 -> 37.9 | Z144: ='Portfolio Analytics'!U1075 -> 0 | AA144: ='Portfolio Analytics'!V1075 -> 0 | AB144: ='Portfolio Analytics'!W1075 -> 0 | AC144: ='Portfolio Analytics'!X1075 -> 0 | AD144: ='Portfolio Analytics'!Y1075 -> 0 | AE144: ='Portfolio Analytics'!Z1075 -> 0 | AF144: ='Portfolio Analytics'!AA1075 -> 0 | AG144: ='Portfolio Analytics'!AB1075 -> 0 | AH144: ='Portfolio Analytics'!AC1075 -> 0 | AI144: ='Portfolio Analytics'!AD1075 -> 0 | AJ144: ='Portfolio Analytics'!AE1075 -> 0 | AK144: ='Portfolio Analytics'!AF1075 -> 0 | AL144: ='Portfolio Analytics'!AG1075 -> 0 | AM144: ='Portfolio Analytics'!AH1075 -> 0 | AN144: ='Portfolio Analytics'!AI1075 -> 12.25146299 | AO144: ='Portfolio Analytics'!AJ1075 -> 0 | AP144: ='Portfolio Analytics'!AK1075 -> 0 | AQ144: ='Portfolio Analytics'!AL1075 -> 0 | AR144: ='Portfolio Analytics'!AM1075 -> 0 | AS144: ='Portfolio Analytics'!AN1075 -> 0
G145: CAISO BTM CHP Emissions | H145: MMtCO2/Yr | J145: ='Portfolio Analytics'!E1076 -> 0 | K145: ='Portfolio Analytics'!F1076 -> 0 | L145: ='Portfolio Analytics'!G1076 -> 0 | M145: ='Portfolio Analytics'!H1076 -> 0 | N145: ='Portfolio Analytics'!I1076 -> 0 | O145: ='Portfolio Analytics'!J1076 -> 5.48015632 | P145: ='Portfolio Analytics'!K1076 -> 5.48015632 | Q145: ='Portfolio Analytics'!L1076 -> 5.48015632 | R145: ='Portfolio Analytics'!M1076 -> 5.48015632 | S145: ='Portfolio Analytics'!N1076 -> 5.48015632 | T145: ='Portfolio Analytics'!O1076 -> 0 | U145: ='Portfolio Analytics'!P1076 -> 5.48015632 | V145: ='Portfolio Analytics'!Q1076 -> 0 | W145: ='Portfolio Analytics'!R1076 -> 0 | X145: ='Portfolio Analytics'!S1076 -> 0 | Y145: ='Portfolio Analytics'!T1076 -> 5.48015632 | Z145: ='Portfolio Analytics'!U1076 -> 0 | AA145: ='Portfolio Analytics'!V1076 -> 0 | AB145: ='Portfolio Analytics'!W1076 -> 0 | AC145: ='Portfolio Analytics'!X1076 -> 0 | AD145: ='Portfolio Analytics'!Y1076 -> 0 | AE145: ='Portfolio Analytics'!Z1076 -> 0 | AF145: ='Portfolio Analytics'!AA1076 -> 0 | AG145: ='Portfolio Analytics'!AB1076 -> 0 | AH145: ='Portfolio Analytics'!AC1076 -> 0 | AI145: ='Portfolio Analytics'!AD1076 -> 0 | AJ145: ='Portfolio Analytics'!AE1076 -> 0 | AK145: ='Portfolio Analytics'!AF1076 -> 0 | AL145: ='Portfolio Analytics'!AG1076 -> 0 | AM145: ='Portfolio Analytics'!AH1076 -> 0 | AN145: ='Portfolio Analytics'!AI1076 -> 0 | AO145: ='Portfolio Analytics'!AJ1076 -> 0 | AP145: ='Portfolio Analytics'!AK1076 -> 0 | AQ145: ='Portfolio Analytics'!AL1076 -> 0 | AR145: ='Portfolio Analytics'!AM1076 -> 0 | AS145: ='Portfolio Analytics'!AN1076 -> 0
G146: GHG Emissions Target, net of BTM CHP | H146: MMtCO2/Yr | J146: =J144-J145 -> 0 | K146: =K144-K145 -> 0 | L146: 0 | M146: 0 | N146: 0 | O146: 47.03226393 | P146: 45.5710219 | Q146: 44.10977988 | R146: 42.64853785 | S146: 41.18729583 | T146: 0 | U146: 38.26481178 | V146: 0 | W146: 0 | X146: 0 | Y146: 32.41984368 | Z146: 0 | AA146: 0 | AB146: 0 | AC146: 0 | AD146: 0 | AE146: 0 | AF146: 0 | AG146: 0 | AH146: 0 | AI146: 0 | AJ146: 0 | AK146: 0 | AL146: 0 | AM146: 0 | AN146: 12.25146299 | AO146: 0 | AP146: 0 | AQ146: 0 | AR146: 0 | AS146: 0
G147: CAISO Generator Emissions | H147: MMtCO2/Yr | J147: ='Portfolio Analytics'!E1078 -> 0 | K147: ='Portfolio Analytics'!F1078 -> 0 | L147: ='Portfolio Analytics'!G1078 -> 0 | M147: ='Portfolio Analytics'!H1078 -> 0 | N147: ='Portfolio Analytics'!I1078 -> 0 | O147: ='Portfolio Analytics'!J1078 -> 28.83142924 | P147: ='Portfolio Analytics'!K1078 -> 28.14249509 | Q147: ='Portfolio Analytics'!L1078 -> 25.92031934 | R147: ='Portfolio Analytics'!M1078 -> 25.32209391 | S147: ='Portfolio Analytics'!N1078 -> 26.15452544 | T147: ='Portfolio Analytics'!O1078 -> 0 | U147: ='Portfolio Analytics'!P1078 -> 28.31158456 | V147: ='Portfolio Analytics'!Q1078 -> 0 | W147: ='Portfolio Analytics'!R1078 -> 0 | X147: ='Portfolio Analytics'!S1078 -> 0 | Y147: ='Portfolio Analytics'!T1078 -> 23.11679866 | Z147: ='Portfolio Analytics'!U1078 -> 0 | AA147: ='Portfolio Analytics'!V1078 -> 0 | AB147: ='Portfolio Analytics'!W1078 -> 0 | AC147: ='Portfolio Analytics'!X1078 -> 0 | AD147: ='Portfolio Analytics'!Y1078 -> 0 | AE147: ='Portfolio Analytics'!Z1078 -> 0 | AF147: ='Portfolio Analytics'!AA1078 -> 0 | AG147: ='Portfolio Analytics'!AB1078 -> 0 | AH147: ='Portfolio Analytics'!AC1078 -> 0 | AI147: ='Portfolio Analytics'!AD1078 -> 0 | AJ147: ='Portfolio Analytics'!AE1078 -> 0 | AK147: ='Portfolio Analytics'!AF1078 -> 0 | AL147: ='Portfolio Analytics'!AG1078 -> 0 | AM147: ='Portfolio Analytics'!AH1078 -> 0 | AN147: ='Portfolio Analytics'!AI1078 -> 11.4039366 | AO147: ='Portfolio Analytics'!AJ1078 -> 0 | AP147: ='Portfolio Analytics'!AK1078 -> 0 | AQ147: ='Portfolio Analytics'!AL1078 -> 0 | AR147: ='Portfolio Analytics'!AM1078 -> 0 | AS147: ='Portfolio Analytics'!AN1078 -> 0
G148: Import Emissions | H148: MMtCO2/Yr | J148: ='Portfolio Analytics'!E1079 -> 0 | K148: ='Portfolio Analytics'!F1079 -> 0 | L148: ='Portfolio Analytics'!G1079 -> 0 | M148: ='Portfolio Analytics'!H1079 -> 0 | N148: ='Portfolio Analytics'!I1079 -> 0 | O148: ='Portfolio Analytics'!J1079 -> 11.63762368 | P148: ='Portfolio Analytics'!K1079 -> 10.76108129 | Q148: ='Portfolio Analytics'!L1079 -> 10.06934896 | R148: ='Portfolio Analytics'!M1079 -> 10.61822982 | S148: ='Portfolio Analytics'!N1079 -> 11.80747925 | T148: ='Portfolio Analytics'!O1079 -> 0 | U148: ='Portfolio Analytics'!P1079 -> 9.953237239 | V148: ='Portfolio Analytics'!Q1079 -> 0 | W148: ='Portfolio Analytics'!R1079 -> 0 | X148: ='Portfolio Analytics'!S1079 -> 0 | Y148: ='Portfolio Analytics'!T1079 -> 9.303048546 | Z148: ='Portfolio Analytics'!U1079 -> 0 | AA148: ='Portfolio Analytics'!V1079 -> 0 | AB148: ='Portfolio Analytics'!W1079 -> 0 | AC148: ='Portfolio Analytics'!X1079 -> 0 | AD148: ='Portfolio Analytics'!Y1079 -> 0 | AE148: ='Portfolio Analytics'!Z1079 -> 0 | AF148: ='Portfolio Analytics'!AA1079 -> 0 | AG148: ='Portfolio Analytics'!AB1079 -> 0 | AH148: ='Portfolio Analytics'!AC1079 -> 0 | AI148: ='Portfolio Analytics'!AD1079 -> 0 | AJ148: ='Portfolio Analytics'!AE1079 -> 0 | AK148: ='Portfolio Analytics'!AF1079 -> 0 | AL148: ='Portfolio Analytics'!AG1079 -> 0 | AM148: ='Portfolio Analytics'!AH1079 -> 0 | AN148: ='Portfolio Analytics'!AI1079 -> 0.8475278375 | AO148: ='Portfolio Analytics'!AJ1079 -> 0 | AP148: ='Portfolio Analytics'!AK1079 -> 0 | AQ148: ='Portfolio Analytics'!AL1079 -> 0 | AR148: ='Portfolio Analytics'!AM1079 -> 0 | AS148: ='Portfolio Analytics'!AN1079 -> 0
G149: Total CAISO Emissions | H149: MMtCO2/Yr | J149: ='Portfolio Analytics'!E1080 -> 0 | K149: ='Portfolio Analytics'!F1080 -> 0 | L149: ='Portfolio Analytics'!G1080 -> 0 | M149: ='Portfolio Analytics'!H1080 -> 0 | N149: ='Portfolio Analytics'!I1080 -> 0 | O149: ='Portfolio Analytics'!J1080 -> 45.94920925 | P149: ='Portfolio Analytics'!K1080 -> 44.3837327 | Q149: ='Portfolio Analytics'!L1080 -> 41.46982462 | R149: ='Portfolio Analytics'!M1080 -> 41.42048006 | S149: ='Portfolio Analytics'!N1080 -> 43.44216101 | T149: ='Portfolio Analytics'!O1080 -> 0 | U149: ='Portfolio Analytics'!P1080 -> 43.74497812 | V149: ='Portfolio Analytics'!Q1080 -> 0 | W149: ='Portfolio Analytics'!R1080 -> 0 | X149: ='Portfolio Analytics'!S1080 -> 0 | Y149: ='Portfolio Analytics'!T1080 -> 37.90000353 | Z149: ='Portfolio Analytics'!U1080 -> 0 | AA149: ='Portfolio Analytics'!V1080 -> 0 | AB149: ='Portfolio Analytics'!W1080 -> 0 | AC149: ='Portfolio Analytics'!X1080 -> 0 | AD149: ='Portfolio Analytics'!Y1080 -> 0 | AE149: ='Portfolio Analytics'!Z1080 -> 0 | AF149: ='Portfolio Analytics'!AA1080 -> 0 | AG149: ='Portfolio Analytics'!AB1080 -> 0 | AH149: ='Portfolio Analytics'!AC1080 -> 0 | AI149: ='Portfolio Analytics'!AD1080 -> 0 | AJ149: ='Portfolio Analytics'!AE1080 -> 0 | AK149: ='Portfolio Analytics'!AF1080 -> 0 | AL149: ='Portfolio Analytics'!AG1080 -> 0 | AM149: ='Portfolio Analytics'!AH1080 -> 0 | AN149: ='Portfolio Analytics'!AI1080 -> 12.25146444 | AO149: ='Portfolio Analytics'!AJ1080 -> 0 | AP149: ='Portfolio Analytics'!AK1080 -> 0 | AQ149: ='Portfolio Analytics'!AL1080 -> 0 | AR149: ='Portfolio Analytics'!AM1080 -> 0 | AS149: ='Portfolio Analytics'!AN1080 -> 0
G150: Marginal GHG Cost | H150: $/tCO2 | J150: ='Portfolio Analytics'!E1081 -> 0 | K150: ='Portfolio Analytics'!F1081 -> 0 | L150: ='Portfolio Analytics'!G1081 -> 0 | M150: ='Portfolio Analytics'!H1081 -> 0 | N150: ='Portfolio Analytics'!I1081 -> 0 | O150: ='Portfolio Analytics'!J1081 -> 0 | P150: ='Portfolio Analytics'!K1081 -> 0 | Q150: ='Portfolio Analytics'!L1081 -> 0 | R150: ='Portfolio Analytics'!M1081 -> 0 | S150: ='Portfolio Analytics'!N1081 -> 0 | T150: ='Portfolio Analytics'!O1081 -> 0 | U150: ='Portfolio Analytics'!P1081 -> 27.76 | V150: ='Portfolio Analytics'!Q1081 -> 0 | W150: ='Portfolio Analytics'!R1081 -> 0 | X150: ='Portfolio Analytics'!S1081 -> 0 | Y150: ='Portfolio Analytics'!T1081 -> 124.12 | Z150: ='Portfolio Analytics'!U1081 -> 0 | AA150: ='Portfolio Analytics'!V1081 -> 0 | AB150: ='Portfolio Analytics'!W1081 -> 0 | AC150: ='Portfolio Analytics'!X1081 -> 0 | AD150: ='Portfolio Analytics'!Y1081 -> 0 | AE150: ='Portfolio Analytics'!Z1081 -> 0 | AF150: ='Portfolio Analytics'!AA1081 -> 0 | AG150: ='Portfolio Analytics'!AB1081 -> 0 | AH150: ='Portfolio Analytics'!AC1081 -> 0 | AI150: ='Portfolio Analytics'!AD1081 -> 0 | AJ150: ='Portfolio Analytics'!AE1081 -> 0 | AK150: ='Portfolio Analytics'!AF1081 -> 0 | AL150: ='Portfolio Analytics'!AG1081 -> 0 | AM150: ='Portfolio Analytics'!AH1081 -> 0 | AN150: ='Portfolio Analytics'!AI1081 -> 554.31 | AO150: ='Portfolio Analytics'!AJ1081 -> 0 | AP150: ='Portfolio Analytics'!AK1081 -> 0 | AQ150: ='Portfolio Analytics'!AL1081 -> 0 | AR150: ='Portfolio Analytics'!AM1081 -> 0 | AS150: ='Portfolio Analytics'!AN1081 -> 0
G151: CARB Floor Carbon Price | H151: $/tCO2 | J151: ='Portfolio Analytics'!E1082 -> 0 | K151: ='Portfolio Analytics'!F1082 -> 0 | L151: ='Portfolio Analytics'!G1082 -> 0 | M151: ='Portfolio Analytics'!H1082 -> 0 | N151: ='Portfolio Analytics'!I1082 -> 0 | O151: ='Portfolio Analytics'!J1082 -> 15.24877956 | P151: ='Portfolio Analytics'!K1082 -> 16.00052693 | Q151: ='Portfolio Analytics'!L1082 -> 16.83695617 | R151: ='Portfolio Analytics'!M1082 -> 17.70603236 | S151: ='Portfolio Analytics'!N1082 -> 18.62444296 | T151: ='Portfolio Analytics'!O1082 -> 0 | U151: ='Portfolio Analytics'!P1082 -> 20.59242102 | V151: ='Portfolio Analytics'!Q1082 -> 0 | W151: ='Portfolio Analytics'!R1082 -> 0 | X151: ='Portfolio Analytics'!S1082 -> 0 | Y151: ='Portfolio Analytics'!T1082 -> 25.24759788 | Z151: ='Portfolio Analytics'!U1082 -> 0 | AA151: ='Portfolio Analytics'!V1082 -> 0 | AB151: ='Portfolio Analytics'!W1082 -> 0 | AC151: ='Portfolio Analytics'!X1082 -> 0 | AD151: ='Portfolio Analytics'!Y1082 -> 0 | AE151: ='Portfolio Analytics'!Z1082 -> 0 | AF151: ='Portfolio Analytics'!AA1082 -> 0 | AG151: ='Portfolio Analytics'!AB1082 -> 0 | AH151: ='Portfolio Analytics'!AC1082 -> 0 | AI151: ='Portfolio Analytics'!AD1082 -> 0 | AJ151: ='Portfolio Analytics'!AE1082 -> 0 | AK151: ='Portfolio Analytics'!AF1082 -> 0 | AL151: ='Portfolio Analytics'!AG1082 -> 0 | AM151: ='Portfolio Analytics'!AH1082 -> 0 | AN151: ='Portfolio Analytics'!AI1082 -> 54.08857344 | AO151: ='Portfolio Analytics'!AJ1082 -> 0 | AP151: ='Portfolio Analytics'!AK1082 -> 0 | AQ151: ='Portfolio Analytics'!AL1082 -> 0 | AR151: ='Portfolio Analytics'!AM1082 -> 0 | AS151: ='Portfolio Analytics'!AN1082 -> 0
G152: Total GHG Abatement Cost | H152: $/tCO2 | J152: ='Portfolio Analytics'!E1083 -> 0 | K152: ='Portfolio Analytics'!F1083 -> 0 | L152: ='Portfolio Analytics'!G1083 -> 0 | M152: ='Portfolio Analytics'!H1083 -> 0 | N152: ='Portfolio Analytics'!I1083 -> 0 | O152: ='Portfolio Analytics'!J1083 -> 15.24877956 | P152: ='Portfolio Analytics'!K1083 -> 16.00052693 | Q152: ='Portfolio Analytics'!L1083 -> 16.83695617 | R152: ='Portfolio Analytics'!M1083 -> 17.70603236 | S152: ='Portfolio Analytics'!N1083 -> 18.62444296 | T152: ='Portfolio Analytics'!O1083 -> 0 | U152: ='Portfolio Analytics'!P1083 -> 48.35242102 | V152: ='Portfolio Analytics'!Q1083 -> 0 | W152: ='Portfolio Analytics'!R1083 -> 0 | X152: ='Portfolio Analytics'!S1083 -> 0 | Y152: ='Portfolio Analytics'!T1083 -> 149.3675979 | Z152: ='Portfolio Analytics'!U1083 -> 0 | AA152: ='Portfolio Analytics'!V1083 -> 0 | AB152: ='Portfolio Analytics'!W1083 -> 0 | AC152: ='Portfolio Analytics'!X1083 -> 0 | AD152: ='Portfolio Analytics'!Y1083 -> 0 | AE152: ='Portfolio Analytics'!Z1083 -> 0 | AF152: ='Portfolio Analytics'!AA1083 -> 0 | AG152: ='Portfolio Analytics'!AB1083 -> 0 | AH152: ='Portfolio Analytics'!AC1083 -> 0 | AI152: ='Portfolio Analytics'!AD1083 -> 0 | AJ152: ='Portfolio Analytics'!AE1083 -> 0 | AK152: ='Portfolio Analytics'!AF1083 -> 0 | AL152: ='Portfolio Analytics'!AG1083 -> 0 | AM152: ='Portfolio Analytics'!AH1083 -> 0 | AN152: ='Portfolio Analytics'!AI1083 -> 608.3985734 | AO152: ='Portfolio Analytics'!AJ1083 -> 0 | AP152: ='Portfolio Analytics'!AK1083 -> 0 | AQ152: ='Portfolio Analytics'!AL1083 -> 0 | AR152: ='Portfolio Analytics'!AM1083 -> 0 | AS152: ='Portfolio Analytics'!AN1083 -> 0
G154: Total RESOLVE Footprint Emissions (most of WECC) | H154: MMtCO2/Yr | J154: ='Portfolio Analytics'!E1071 -> 0 | K154: ='Portfolio Analytics'!F1071 -> 0 | L154: ='Portfolio Analytics'!G1071 -> 0 | M154: ='Portfolio Analytics'!H1071 -> 0 | N154: ='Portfolio Analytics'!I1071 -> 0 | O154: ='Portfolio Analytics'!J1071 -> 170.4423783 | P154: ='Portfolio Analytics'!K1071 -> 167.4477153 | Q154: ='Portfolio Analytics'!L1071 -> 163.325689 | R154: ='Portfolio Analytics'!M1071 -> 164.6174555 | S154: ='Portfolio Analytics'!N1071 -> 168.0006214 | T154: ='Portfolio Analytics'!O1071 -> 0 | U154: ='Portfolio Analytics'!P1071 -> 162.5635263 | V154: ='Portfolio Analytics'!Q1071 -> 0 | W154: ='Portfolio Analytics'!R1071 -> 0 | X154: ='Portfolio Analytics'!S1071 -> 0 | Y154: ='Portfolio Analytics'!T1071 -> 158.7619905 | Z154: ='Portfolio Analytics'!U1071 -> 0 | AA154: ='Portfolio Analytics'!V1071 -> 0 | AB154: ='Portfolio Analytics'!W1071 -> 0 | AC154: ='Portfolio Analytics'!X1071 -> 0 | AD154: ='Portfolio Analytics'!Y1071 -> 0 | AE154: ='Portfolio Analytics'!Z1071 -> 0 | AF154: ='Portfolio Analytics'!AA1071 -> 0 | AG154: ='Portfolio Analytics'!AB1071 -> 0 | AH154: ='Portfolio Analytics'!AC1071 -> 0 | AI154: ='Portfolio Analytics'!AD1071 -> 0 | AJ154: ='Portfolio Analytics'!AE1071 -> 0 | AK154: ='Portfolio Analytics'!AF1071 -> 0 | AL154: ='Portfolio Analytics'!AG1071 -> 0 | AM154: ='Portfolio Analytics'!AH1071 -> 0 | AN154: ='Portfolio Analytics'!AI1071 -> 148.317093 | AO154: ='Portfolio Analytics'!AJ1071 -> 0 | AP154: ='Portfolio Analytics'!AK1071 -> 0 | AQ154: ='Portfolio Analytics'!AL1071 -> 0 | AR154: ='Portfolio Analytics'!AM1071 -> 0 | AS154: ='Portfolio Analytics'!AN1071 -> 0
G160: Planning Reserve Margin Summary
H162: Unit | J162: 2015 | K162: =J162+1 -> 2016 | L162: 2017 | M162: 2018 | N162: 2019 | O162: 2020 | P162: 2021 | Q162: 2022 | R162: 2023 | S162: 2024 | T162: 2025 | U162: 2026 | V162: 2027 | W162: 2028 | X162: 2029 | Y162: 2030 | Z162: =Y192+1 -> 2031 | AA162: =Z162+1 -> 2032 | AB162: 2033 | AC162: 2034 | AD162: 2035 | AE162: 2036 | AF162: 2037 | AG162: 2038 | AH162: 2039 | AI162: 2040 | AJ162: 2041 | AK162: 2042 | AL162: 2043 | AM162: 2044 | AN162: 2045 | AO162: 2046 | AP162: 2047 | AQ162: 2048 | AR162: 2049 | AS162: 2050
G163: Peak Load | H163: MW | J163: ='Portfolio Analytics'!E887 -> 0 | K163: ='Portfolio Analytics'!F887 -> 0 | L163: ='Portfolio Analytics'!G887 -> 0 | M163: ='Portfolio Analytics'!H887 -> 0 | N163: ='Portfolio Analytics'!I887 -> 0 | O163: ='Portfolio Analytics'!J887 -> 49016.35 | P163: ='Portfolio Analytics'!K887 -> 49168.4 | Q163: ='Portfolio Analytics'!L887 -> 49716.65 | R163: ='Portfolio Analytics'!M887 -> 50370.08 | S163: ='Portfolio Analytics'!N887 -> 50927.23 | T163: ='Portfolio Analytics'!O887 -> 0 | U163: ='Portfolio Analytics'!P887 -> 53864.49 | V163: ='Portfolio Analytics'!Q887 -> 0 | W163: ='Portfolio Analytics'!R887 -> 0 | X163: ='Portfolio Analytics'!S887 -> 0 | Y163: ='Portfolio Analytics'!T887 -> 55945.08 | Z163: ='Portfolio Analytics'!U887 -> 0 | AA163: ='Portfolio Analytics'!V887 -> 0 | AB163: ='Portfolio Analytics'!W887 -> 0 | AC163: ='Portfolio Analytics'!X887 -> 0 | AD163: ='Portfolio Analytics'!Y887 -> 0 | AE163: ='Portfolio Analytics'!Z887 -> 0 | AF163: ='Portfolio Analytics'!AA887 -> 0 | AG163: ='Portfolio Analytics'!AB887 -> 0 | AH163: ='Portfolio Analytics'!AC887 -> 0 | AI163: ='Portfolio Analytics'!AD887 -> 0 | AJ163: ='Portfolio Analytics'!AE887 -> 0 | AK163: ='Portfolio Analytics'!AF887 -> 0 | AL163: ='Portfolio Analytics'!AG887 -> 0 | AM163: ='Portfolio Analytics'!AH887 -> 0 | AN163: ='Portfolio Analytics'!AI887 -> 64499.27 | AO163: ='Portfolio Analytics'!AJ887 -> 0 | AP163: ='Portfolio Analytics'!AK887 -> 0 | AQ163: ='Portfolio Analytics'!AL887 -> 0 | AR163: ='Portfolio Analytics'!AM887 -> 0 | AS163: ='Portfolio Analytics'!AN887 -> 0
G164: Reserve Margin Requirement | H164: % | J164: ='Portfolio Analytics'!E888 -> 0 | K164: ='Portfolio Analytics'!F888 -> 0 | L164: ='Portfolio Analytics'!G888 -> 0 | M164: ='Portfolio Analytics'!H888 -> 0 | N164: ='Portfolio Analytics'!I888 -> 0 | O164: ='Portfolio Analytics'!J888 -> 0.15 | P164: ='Portfolio Analytics'!K888 -> 0.15 | Q164: ='Portfolio Analytics'!L888 -> 0.15 | R164: ='Portfolio Analytics'!M888 -> 0.15 | S164: ='Portfolio Analytics'!N888 -> 0.15 | T164: ='Portfolio Analytics'!O888 -> 0 | U164: ='Portfolio Analytics'!P888 -> 0.15 | V164: ='Portfolio Analytics'!Q888 -> 0 | W164: ='Portfolio Analytics'!R888 -> 0 | X164: ='Portfolio Analytics'!S888 -> 0 | Y164: ='Portfolio Analytics'!T888 -> 0.15 | Z164: ='Portfolio Analytics'!U888 -> 0 | AA164: ='Portfolio Analytics'!V888 -> 0 | AB164: ='Portfolio Analytics'!W888 -> 0 | AC164: ='Portfolio Analytics'!X888 -> 0 | AD164: ='Portfolio Analytics'!Y888 -> 0 | AE164: ='Portfolio Analytics'!Z888 -> 0 | AF164: ='Portfolio Analytics'!AA888 -> 0 | AG164: ='Portfolio Analytics'!AB888 -> 0 | AH164: ='Portfolio Analytics'!AC888 -> 0 | AI164: ='Portfolio Analytics'!AD888 -> 0 | AJ164: ='Portfolio Analytics'!AE888 -> 0 | AK164: ='Portfolio Analytics'!AF888 -> 0 | AL164: ='Portfolio Analytics'!AG888 -> 0 | AM164: ='Portfolio Analytics'!AH888 -> 0 | AN164: ='Portfolio Analytics'!AI888 -> 0.15 | AO164: ='Portfolio Analytics'!AJ888 -> 0 | AP164: ='Portfolio Analytics'!AK888 -> 0 | AQ164: ='Portfolio Analytics'!AL888 -> 0 | AR164: ='Portfolio Analytics'!AM888 -> 0 | AS164: ='Portfolio Analytics'!AN888 -> 0
G165: Total Reserve Margin Requirement | H165: MW | J165: ='Portfolio Analytics'!E889 -> 0 | K165: ='Portfolio Analytics'!F889 -> 0 | L165: ='Portfolio Analytics'!G889 -> 0 | M165: ='Portfolio Analytics'!H889 -> 0 | N165: ='Portfolio Analytics'!I889 -> 0 | O165: ='Portfolio Analytics'!J889 -> 56368.8025 | P165: ='Portfolio Analytics'!K889 -> 56543.66 | Q165: ='Portfolio Analytics'!L889 -> 57174.1475 | R165: ='Portfolio Analytics'!M889 -> 57925.592 | S165: ='Portfolio Analytics'!N889 -> 58566.3145 | T165: ='Portfolio Analytics'!O889 -> 0 | U165: ='Portfolio Analytics'!P889 -> 61944.1635 | V165: ='Portfolio Analytics'!Q889 -> 0 | W165: ='Portfolio Analytics'!R889 -> 0 | X165: ='Portfolio Analytics'!S889 -> 0 | Y165: ='Portfolio Analytics'!T889 -> 64336.842 | Z165: ='Portfolio Analytics'!U889 -> 0 | AA165: ='Portfolio Analytics'!V889 -> 0 | AB165: ='Portfolio Analytics'!W889 -> 0 | AC165: ='Portfolio Analytics'!X889 -> 0 | AD165: ='Portfolio Analytics'!Y889 -> 0 | AE165: ='Portfolio Analytics'!Z889 -> 0 | AF165: ='Portfolio Analytics'!AA889 -> 0 | AG165: ='Portfolio Analytics'!AB889 -> 0 | AH165: ='Portfolio Analytics'!AC889 -> 0 | AI165: ='Portfolio Analytics'!AD889 -> 0 | AJ165: ='Portfolio Analytics'!AE889 -> 0 | AK165: ='Portfolio Analytics'!AF889 -> 0 | AL165: ='Portfolio Analytics'!AG889 -> 0 | AM165: ='Portfolio Analytics'!AH889 -> 0 | AN165: ='Portfolio Analytics'!AI889 -> 74174.1605 | AO165: ='Portfolio Analytics'!AJ889 -> 0 | AP165: ='Portfolio Analytics'!AK889 -> 0 | AQ165: ='Portfolio Analytics'!AL889 -> 0 | AR165: ='Portfolio Analytics'!AM889 -> 0 | AS165: ='Portfolio Analytics'!AN889 -> 0
G166: Firm Capacity | H166: MW | J166: ='Portfolio Analytics'!E890 -> 0 | K166: ='Portfolio Analytics'!F890 -> 0 | L166: ='Portfolio Analytics'!G890 -> 0 | M166: ='Portfolio Analytics'!H890 -> 0 | N166: ='Portfolio Analytics'!I890 -> 0 | O166: ='Portfolio Analytics'!J890 -> 37934.22 | P166: ='Portfolio Analytics'!K890 -> 35409.13 | Q166: ='Portfolio Analytics'!L890 -> 35409.13 | R166: ='Portfolio Analytics'!M890 -> 35409.13 | S166: ='Portfolio Analytics'!N890 -> 34388.5 | T166: ='Portfolio Analytics'!O890 -> 0 | U166: ='Portfolio Analytics'!P890 -> 32775.94 | V166: ='Portfolio Analytics'!Q890 -> 0 | W166: ='Portfolio Analytics'!R890 -> 0 | X166: ='Portfolio Analytics'!S890 -> 0 | Y166: ='Portfolio Analytics'!T890 -> 32774.12 | Z166: ='Portfolio Analytics'!U890 -> 0 | AA166: ='Portfolio Analytics'!V890 -> 0 | AB166: ='Portfolio Analytics'!W890 -> 0 | AC166: ='Portfolio Analytics'!X890 -> 0 | AD166: ='Portfolio Analytics'!Y890 -> 0 | AE166: ='Portfolio Analytics'!Z890 -> 0 | AF166: ='Portfolio Analytics'!AA890 -> 0 | AG166: ='Portfolio Analytics'!AB890 -> 0 | AH166: ='Portfolio Analytics'!AC890 -> 0 | AI166: ='Portfolio Analytics'!AD890 -> 0 | AJ166: ='Portfolio Analytics'!AE890 -> 0 | AK166: ='Portfolio Analytics'!AF890 -> 0 | AL166: ='Portfolio Analytics'!AG890 -> 0 | AM166: ='Portfolio Analytics'!AH890 -> 0 | AN166: ='Portfolio Analytics'!AI890 -> 30158.16 | AO166: ='Portfolio Analytics'!AJ890 -> 0 | AP166: ='Portfolio Analytics'!AK890 -> 0 | AQ166: ='Portfolio Analytics'!AL890 -> 0 | AR166: ='Portfolio Analytics'!AM890 -> 0 | AS166: ='Portfolio Analytics'!AN890 -> 0
G167: CCGT | H167: MW | J167: ='Portfolio Analytics'!E891 -> 0 | K167: ='Portfolio Analytics'!F891 -> 0 | L167: ='Portfolio Analytics'!G891 -> 0 | M167: ='Portfolio Analytics'!H891 -> 0 | N167: ='Portfolio Analytics'!I891 -> 0 | O167: ='Portfolio Analytics'!J891 -> 14247.68 | P167: ='Portfolio Analytics'!K891 -> 15453.96 | Q167: ='Portfolio Analytics'!L891 -> 15453.96 | R167: ='Portfolio Analytics'!M891 -> 15453.96 | S167: ='Portfolio Analytics'!N891 -> 15453.96 | T167: ='Portfolio Analytics'!O891 -> 0 | U167: ='Portfolio Analytics'!P891 -> 15453.96 | V167: ='Portfolio Analytics'!Q891 -> 0 | W167: ='Portfolio Analytics'!R891 -> 0 | X167: ='Portfolio Analytics'!S891 -> 0 | Y167: ='Portfolio Analytics'!T891 -> 15453.96 | Z167: ='Portfolio Analytics'!U891 -> 0 | AA167: ='Portfolio Analytics'!V891 -> 0 | AB167: ='Portfolio Analytics'!W891 -> 0 | AC167: ='Portfolio Analytics'!X891 -> 0 | AD167: ='Portfolio Analytics'!Y891 -> 0 | AE167: ='Portfolio Analytics'!Z891 -> 0 | AF167: ='Portfolio Analytics'!AA891 -> 0 | AG167: ='Portfolio Analytics'!AB891 -> 0 | AH167: ='Portfolio Analytics'!AC891 -> 0 | AI167: ='Portfolio Analytics'!AD891 -> 0 | AJ167: ='Portfolio Analytics'!AE891 -> 0 | AK167: ='Portfolio Analytics'!AF891 -> 0 | AL167: ='Portfolio Analytics'!AG891 -> 0 | AM167: ='Portfolio Analytics'!AH891 -> 0 | AN167: ='Portfolio Analytics'!AI891 -> 15453.96 | AO167: ='Portfolio Analytics'!AJ891 -> 0 | AP167: ='Portfolio Analytics'!AK891 -> 0 | AQ167: ='Portfolio Analytics'!AL891 -> 0 | AR167: ='Portfolio Analytics'!AM891 -> 0 | AS167: ='Portfolio Analytics'!AN891 -> 0
G168: Peaker | H168: MW | J168: ='Portfolio Analytics'!E892 -> 0 | K168: ='Portfolio Analytics'!F892 -> 0 | L168: ='Portfolio Analytics'!G892 -> 0 | M168: ='Portfolio Analytics'!H892 -> 0 | N168: ='Portfolio Analytics'!I892 -> 0 | O168: ='Portfolio Analytics'!J892 -> 8334.04 | P168: ='Portfolio Analytics'!K892 -> 8334.04 | Q168: ='Portfolio Analytics'!L892 -> 8334.04 | R168: ='Portfolio Analytics'!M892 -> 8334.04 | S168: ='Portfolio Analytics'!N892 -> 8334.04 | T168: ='Portfolio Analytics'!O892 -> 0 | U168: ='Portfolio Analytics'!P892 -> 8334.04 | V168: ='Portfolio Analytics'!Q892 -> 0 | W168: ='Portfolio Analytics'!R892 -> 0 | X168: ='Portfolio Analytics'!S892 -> 0 | Y168: ='Portfolio Analytics'!T892 -> 8334.04 | Z168: ='Portfolio Analytics'!U892 -> 0 | AA168: ='Portfolio Analytics'!V892 -> 0 | AB168: ='Portfolio Analytics'!W892 -> 0 | AC168: ='Portfolio Analytics'!X892 -> 0 | AD168: ='Portfolio Analytics'!Y892 -> 0 | AE168: ='Portfolio Analytics'!Z892 -> 0 | AF168: ='Portfolio Analytics'!AA892 -> 0 | AG168: ='Portfolio Analytics'!AB892 -> 0 | AH168: ='Portfolio Analytics'!AC892 -> 0 | AI168: ='Portfolio Analytics'!AD892 -> 0 | AJ168: ='Portfolio Analytics'!AE892 -> 0 | AK168: ='Portfolio Analytics'!AF892 -> 0 | AL168: ='Portfolio Analytics'!AG892 -> 0 | AM168: ='Portfolio Analytics'!AH892 -> 0 | AN168: ='Portfolio Analytics'!AI892 -> 4775.96 | AO168: ='Portfolio Analytics'!AJ892 -> 0 | AP168: ='Portfolio Analytics'!AK892 -> 0 | AQ168: ='Portfolio Analytics'!AL892 -> 0 | AR168: ='Portfolio Analytics'!AM892 -> 0 | AS168: ='Portfolio Analytics'!AN892 -> 0
G169: Steam Turbine | H169: MW | J169: ='Portfolio Analytics'!E893 -> 0 | K169: ='Portfolio Analytics'!F893 -> 0 | L169: ='Portfolio Analytics'!G893 -> 0 | M169: ='Portfolio Analytics'!H893 -> 0 | N169: ='Portfolio Analytics'!I893 -> 0 | O169: ='Portfolio Analytics'!J893 -> 3731.37 | P169: ='Portfolio Analytics'!K893 -> 0 | Q169: ='Portfolio Analytics'!L893 -> 0 | R169: ='Portfolio Analytics'!M893 -> 0 | S169: ='Portfolio Analytics'!N893 -> 0 | T169: ='Portfolio Analytics'!O893 -> 0 | U169: ='Portfolio Analytics'!P893 -> 0 | V169: ='Portfolio Analytics'!Q893 -> 0 | W169: ='Portfolio Analytics'!R893 -> 0 | X169: ='Portfolio Analytics'!S893 -> 0 | Y169: ='Portfolio Analytics'!T893 -> 0 | Z169: ='Portfolio Analytics'!U893 -> 0 | AA169: ='Portfolio Analytics'!V893 -> 0 | AB169: ='Portfolio Analytics'!W893 -> 0 | AC169: ='Portfolio Analytics'!X893 -> 0 | AD169: ='Portfolio Analytics'!Y893 -> 0 | AE169: ='Portfolio Analytics'!Z893 -> 0 | AF169: ='Portfolio Analytics'!AA893 -> 0 | AG169: ='Portfolio Analytics'!AB893 -> 0 | AH169: ='Portfolio Analytics'!AC893 -> 0 | AI169: ='Portfolio Analytics'!AD893 -> 0 | AJ169: ='Portfolio Analytics'!AE893 -> 0 | AK169: ='Portfolio Analytics'!AF893 -> 0 | AL169: ='Portfolio Analytics'!AG893 -> 0 | AM169: ='Portfolio Analytics'!AH893 -> 0 | AN169: ='Portfolio Analytics'!AI893 -> 0 | AO169: ='Portfolio Analytics'!AJ893 -> 0 | AP169: ='Portfolio Analytics'!AK893 -> 0 | AQ169: ='Portfolio Analytics'!AL893 -> 0 | AR169: ='Portfolio Analytics'!AM893 -> 0 | AS169: ='Portfolio Analytics'!AN893 -> 0
G170: CHP | H170: MW | J170: ='Portfolio Analytics'!E894 -> 0 | K170: ='Portfolio Analytics'!F894 -> 0 | L170: ='Portfolio Analytics'!G894 -> 0 | M170: ='Portfolio Analytics'!H894 -> 0 | N170: ='Portfolio Analytics'!I894 -> 0 | O170: ='Portfolio Analytics'!J894 -> 1455.68 | P170: ='Portfolio Analytics'!K894 -> 1455.68 | Q170: ='Portfolio Analytics'!L894 -> 1455.68 | R170: ='Portfolio Analytics'!M894 -> 1455.68 | S170: ='Portfolio Analytics'!N894 -> 1455.68 | T170: ='Portfolio Analytics'!O894 -> 0 | U170: ='Portfolio Analytics'!P894 -> 1455.68 | V170: ='Portfolio Analytics'!Q894 -> 0 | W170: ='Portfolio Analytics'!R894 -> 0 | X170: ='Portfolio Analytics'!S894 -> 0 | Y170: ='Portfolio Analytics'!T894 -> 1455.68 | Z170: ='Portfolio Analytics'!U894 -> 0 | AA170: ='Portfolio Analytics'!V894 -> 0 | AB170: ='Portfolio Analytics'!W894 -> 0 | AC170: ='Portfolio Analytics'!X894 -> 0 | AD170: ='Portfolio Analytics'!Y894 -> 0 | AE170: ='Portfolio Analytics'!Z894 -> 0 | AF170: ='Portfolio Analytics'!AA894 -> 0 | AG170: ='Portfolio Analytics'!AB894 -> 0 | AH170: ='Portfolio Analytics'!AC894 -> 0 | AI170: ='Portfolio Analytics'!AD894 -> 0 | AJ170: ='Portfolio Analytics'!AE894 -> 0 | AK170: ='Portfolio Analytics'!AF894 -> 0 | AL170: ='Portfolio Analytics'!AG894 -> 0 | AM170: ='Portfolio Analytics'!AH894 -> 0 | AN170: ='Portfolio Analytics'!AI894 -> 0 | AO170: ='Portfolio Analytics'!AJ894 -> 0 | AP170: ='Portfolio Analytics'!AK894 -> 0 | AQ170: ='Portfolio Analytics'!AL894 -> 0 | AR170: ='Portfolio Analytics'!AM894 -> 0 | AS170: ='Portfolio Analytics'!AN894 -> 0
G171: Hydro (small + large) | H171: MW | J171: ='Portfolio Analytics'!E895 -> 0 | K171: ='Portfolio Analytics'!F895 -> 0 | L171: ='Portfolio Analytics'!G895 -> 0 | M171: ='Portfolio Analytics'!H895 -> 0 | N171: ='Portfolio Analytics'!I895 -> 0 | O171: ='Portfolio Analytics'!J895 -> 5644.65 | P171: ='Portfolio Analytics'!K895 -> 5644.65 | Q171: ='Portfolio Analytics'!L895 -> 5644.65 | R171: ='Portfolio Analytics'!M895 -> 5644.65 | S171: ='Portfolio Analytics'!N895 -> 5644.65 | T171: ='Portfolio Analytics'!O895 -> 0 | U171: ='Portfolio Analytics'!P895 -> 5644.65 | V171: ='Portfolio Analytics'!Q895 -> 0 | W171: ='Portfolio Analytics'!R895 -> 0 | X171: ='Portfolio Analytics'!S895 -> 0 | Y171: ='Portfolio Analytics'!T895 -> 5644.15 | Z171: ='Portfolio Analytics'!U895 -> 0 | AA171: ='Portfolio Analytics'!V895 -> 0 | AB171: ='Portfolio Analytics'!W895 -> 0 | AC171: ='Portfolio Analytics'!X895 -> 0 | AD171: ='Portfolio Analytics'!Y895 -> 0 | AE171: ='Portfolio Analytics'!Z895 -> 0 | AF171: ='Portfolio Analytics'!AA895 -> 0 | AG171: ='Portfolio Analytics'!AB895 -> 0 | AH171: ='Portfolio Analytics'!AC895 -> 0 | AI171: ='Portfolio Analytics'!AD895 -> 0 | AJ171: ='Portfolio Analytics'!AE895 -> 0 | AK171: ='Portfolio Analytics'!AF895 -> 0 | AL171: ='Portfolio Analytics'!AG895 -> 0 | AM171: ='Portfolio Analytics'!AH895 -> 0 | AN171: ='Portfolio Analytics'!AI895 -> 5644.15 | AO171: ='Portfolio Analytics'!AJ895 -> 0 | AP171: ='Portfolio Analytics'!AK895 -> 0 | AQ171: ='Portfolio Analytics'!AL895 -> 0 | AR171: ='Portfolio Analytics'!AM895 -> 0 | AS171: ='Portfolio Analytics'!AN895 -> 0
G172: Nuclear | H172: MW | J172: ='Portfolio Analytics'!E896 -> 0 | K172: ='Portfolio Analytics'!F896 -> 0 | L172: ='Portfolio Analytics'!G896 -> 0 | M172: ='Portfolio Analytics'!H896 -> 0 | N172: ='Portfolio Analytics'!I896 -> 0 | O172: ='Portfolio Analytics'!J896 -> 2279.91 | P172: ='Portfolio Analytics'!K896 -> 2279.91 | Q172: ='Portfolio Analytics'!L896 -> 2279.91 | R172: ='Portfolio Analytics'!M896 -> 2279.91 | S172: ='Portfolio Analytics'!N896 -> 1137.78 | T172: ='Portfolio Analytics'!O896 -> 0 | U172: ='Portfolio Analytics'!P896 -> 0 | V172: ='Portfolio Analytics'!Q896 -> 0 | W172: ='Portfolio Analytics'!R896 -> 0 | X172: ='Portfolio Analytics'!S896 -> 0 | Y172: ='Portfolio Analytics'!T896 -> 0 | Z172: ='Portfolio Analytics'!U896 -> 0 | AA172: ='Portfolio Analytics'!V896 -> 0 | AB172: ='Portfolio Analytics'!W896 -> 0 | AC172: ='Portfolio Analytics'!X896 -> 0 | AD172: ='Portfolio Analytics'!Y896 -> 0 | AE172: ='Portfolio Analytics'!Z896 -> 0 | AF172: ='Portfolio Analytics'!AA896 -> 0 | AG172: ='Portfolio Analytics'!AB896 -> 0 | AH172: ='Portfolio Analytics'!AC896 -> 0 | AI172: ='Portfolio Analytics'!AD896 -> 0 | AJ172: ='Portfolio Analytics'!AE896 -> 0 | AK172: ='Portfolio Analytics'!AF896 -> 0 | AL172: ='Portfolio Analytics'!AG896 -> 0 | AM172: ='Portfolio Analytics'!AH896 -> 0 | AN172: ='Portfolio Analytics'!AI896 -> 0 | AO172: ='Portfolio Analytics'!AJ896 -> 0 | AP172: ='Portfolio Analytics'!AK896 -> 0 | AQ172: ='Portfolio Analytics'!AL896 -> 0 | AR172: ='Portfolio Analytics'!AM896 -> 0 | AS172: ='Portfolio Analytics'!AN896 -> 0
G173: Coal | H173: MW | J173: ='Portfolio Analytics'!E897 -> 0 | K173: ='Portfolio Analytics'!F897 -> 0 | L173: ='Portfolio Analytics'!G897 -> 0 | M173: ='Portfolio Analytics'!H897 -> 0 | N173: ='Portfolio Analytics'!I897 -> 0 | O173: ='Portfolio Analytics'!J897 -> 470.43 | P173: ='Portfolio Analytics'!K897 -> 470.43 | Q173: ='Portfolio Analytics'!L897 -> 470.43 | R173: ='Portfolio Analytics'!M897 -> 470.43 | S173: ='Portfolio Analytics'!N897 -> 470.43 | T173: ='Portfolio Analytics'!O897 -> 0 | U173: ='Portfolio Analytics'!P897 -> 0 | V173: ='Portfolio Analytics'!Q897 -> 0 | W173: ='Portfolio Analytics'!R897 -> 0 | X173: ='Portfolio Analytics'!S897 -> 0 | Y173: ='Portfolio Analytics'!T897 -> 0 | Z173: ='Portfolio Analytics'!U897 -> 0 | AA173: ='Portfolio Analytics'!V897 -> 0 | AB173: ='Portfolio Analytics'!W897 -> 0 | AC173: ='Portfolio Analytics'!X897 -> 0 | AD173: ='Portfolio Analytics'!Y897 -> 0 | AE173: ='Portfolio Analytics'!Z897 -> 0 | AF173: ='Portfolio Analytics'!AA897 -> 0 | AG173: ='Portfolio Analytics'!AB897 -> 0 | AH173: ='Portfolio Analytics'!AC897 -> 0 | AI173: ='Portfolio Analytics'!AD897 -> 0 | AJ173: ='Portfolio Analytics'!AE897 -> 0 | AK173: ='Portfolio Analytics'!AF897 -> 0 | AL173: ='Portfolio Analytics'!AG897 -> 0 | AM173: ='Portfolio Analytics'!AH897 -> 0 | AN173: ='Portfolio Analytics'!AI897 -> 0 | AO173: ='Portfolio Analytics'!AJ897 -> 0 | AP173: ='Portfolio Analytics'!AK897 -> 0 | AQ173: ='Portfolio Analytics'!AL897 -> 0 | AR173: ='Portfolio Analytics'!AM897 -> 0 | AS173: ='Portfolio Analytics'!AN897 -> 0
G174: Geothermal | H174: MW | J174: ='Portfolio Analytics'!E898 -> 0 | K174: ='Portfolio Analytics'!F898 -> 0 | L174: ='Portfolio Analytics'!G898 -> 0 | M174: ='Portfolio Analytics'!H898 -> 0 | N174: ='Portfolio Analytics'!I898 -> 0 | O174: ='Portfolio Analytics'!J898 -> 1140.41 | P174: ='Portfolio Analytics'!K898 -> 1140.41 | Q174: ='Portfolio Analytics'!L898 -> 1140.41 | R174: ='Portfolio Analytics'!M898 -> 1140.41 | S174: ='Portfolio Analytics'!N898 -> 1261.91 | T174: ='Portfolio Analytics'!O898 -> 0 | U174: ='Portfolio Analytics'!P898 -> 1261.91 | V174: ='Portfolio Analytics'!Q898 -> 0 | W174: ='Portfolio Analytics'!R898 -> 0 | X174: ='Portfolio Analytics'!S898 -> 0 | Y174: ='Portfolio Analytics'!T898 -> 1261.91 | Z174: ='Portfolio Analytics'!U898 -> 0 | AA174: ='Portfolio Analytics'!V898 -> 0 | AB174: ='Portfolio Analytics'!W898 -> 0 | AC174: ='Portfolio Analytics'!X898 -> 0 | AD174: ='Portfolio Analytics'!Y898 -> 0 | AE174: ='Portfolio Analytics'!Z898 -> 0 | AF174: ='Portfolio Analytics'!AA898 -> 0 | AG174: ='Portfolio Analytics'!AB898 -> 0 | AH174: ='Portfolio Analytics'!AC898 -> 0 | AI174: ='Portfolio Analytics'!AD898 -> 0 | AJ174: ='Portfolio Analytics'!AE898 -> 0 | AK174: ='Portfolio Analytics'!AF898 -> 0 | AL174: ='Portfolio Analytics'!AG898 -> 0 | AM174: ='Portfolio Analytics'!AH898 -> 0 | AN174: ='Portfolio Analytics'!AI898 -> 2684.9 | AO174: ='Portfolio Analytics'!AJ898 -> 0 | AP174: ='Portfolio Analytics'!AK898 -> 0 | AQ174: ='Portfolio Analytics'!AL898 -> 0 | AR174: ='Portfolio Analytics'!AM898 -> 0 | AS174: ='Portfolio Analytics'!AN898 -> 0
G175: Biomass | H175: MW | J175: ='Portfolio Analytics'!E899 -> 0 | K175: ='Portfolio Analytics'!F899 -> 0 | L175: ='Portfolio Analytics'!G899 -> 0 | M175: ='Portfolio Analytics'!H899 -> 0 | N175: ='Portfolio Analytics'!I899 -> 0 | O175: ='Portfolio Analytics'!J899 -> 630.05 | P175: ='Portfolio Analytics'!K899 -> 630.05 | Q175: ='Portfolio Analytics'!L899 -> 630.05 | R175: ='Portfolio Analytics'!M899 -> 630.05 | S175: ='Portfolio Analytics'!N899 -> 630.05 | T175: ='Portfolio Analytics'!O899 -> 0 | U175: ='Portfolio Analytics'!P899 -> 630.05 | V175: ='Portfolio Analytics'!Q899 -> 0 | W175: ='Portfolio Analytics'!R899 -> 0 | X175: ='Portfolio Analytics'!S899 -> 0 | Y175: ='Portfolio Analytics'!T899 -> 628.73 | Z175: ='Portfolio Analytics'!U899 -> 0 | AA175: ='Portfolio Analytics'!V899 -> 0 | AB175: ='Portfolio Analytics'!W899 -> 0 | AC175: ='Portfolio Analytics'!X899 -> 0 | AD175: ='Portfolio Analytics'!Y899 -> 0 | AE175: ='Portfolio Analytics'!Z899 -> 0 | AF175: ='Portfolio Analytics'!AA899 -> 0 | AG175: ='Portfolio Analytics'!AB899 -> 0 | AH175: ='Portfolio Analytics'!AC899 -> 0 | AI175: ='Portfolio Analytics'!AD899 -> 0 | AJ175: ='Portfolio Analytics'!AE899 -> 0 | AK175: ='Portfolio Analytics'!AF899 -> 0 | AL175: ='Portfolio Analytics'!AG899 -> 0 | AM175: ='Portfolio Analytics'!AH899 -> 0 | AN175: ='Portfolio Analytics'!AI899 -> 1603.56 | AO175: ='Portfolio Analytics'!AJ899 -> 0 | AP175: ='Portfolio Analytics'!AK899 -> 0 | AQ175: ='Portfolio Analytics'!AL899 -> 0 | AR175: ='Portfolio Analytics'!AM899 -> 0 | AS175: ='Portfolio Analytics'!AN899 -> 0
G176: Shed DR | H176: MW | J176: ='Portfolio Analytics'!E900 -> 0 | K176: ='Portfolio Analytics'!F900 -> 0 | L176: ='Portfolio Analytics'!G900 -> 0 | M176: ='Portfolio Analytics'!H900 -> 0 | N176: ='Portfolio Analytics'!I900 -> 0 | O176: ='Portfolio Analytics'!J900 -> 0 | P176: ='Portfolio Analytics'!K900 -> 0 | Q176: ='Portfolio Analytics'!L900 -> 0 | R176: ='Portfolio Analytics'!M900 -> 0 | S176: ='Portfolio Analytics'!N900 -> 0 | T176: ='Portfolio Analytics'!O900 -> 0 | U176: ='Portfolio Analytics'!P900 -> 0 | V176: ='Portfolio Analytics'!Q900 -> 0 | W176: ='Portfolio Analytics'!R900 -> 0 | X176: ='Portfolio Analytics'!S900 -> 0 | Y176: ='Portfolio Analytics'!T900 -> 0 | Z176: ='Portfolio Analytics'!U900 -> 0 | AA176: ='Portfolio Analytics'!V900 -> 0 | AB176: ='Portfolio Analytics'!W900 -> 0 | AC176: ='Portfolio Analytics'!X900 -> 0 | AD176: ='Portfolio Analytics'!Y900 -> 0 | AE176: ='Portfolio Analytics'!Z900 -> 0 | AF176: ='Portfolio Analytics'!AA900 -> 0 | AG176: ='Portfolio Analytics'!AB900 -> 0 | AH176: ='Portfolio Analytics'!AC900 -> 0 | AI176: ='Portfolio Analytics'!AD900 -> 0 | AJ176: ='Portfolio Analytics'!AE900 -> 0 | AK176: ='Portfolio Analytics'!AF900 -> 0 | AL176: ='Portfolio Analytics'!AG900 -> 0 | AM176: ='Portfolio Analytics'!AH900 -> 0 | AN176: ='Portfolio Analytics'!AI900 -> 0 | AO176: ='Portfolio Analytics'!AJ900 -> 0 | AP176: ='Portfolio Analytics'!AK900 -> 0 | AQ176: ='Portfolio Analytics'!AL900 -> 0 | AR176: ='Portfolio Analytics'!AM900 -> 0 | AS176: ='Portfolio Analytics'!AN900 -> 0
G177: Import Capacity | H177: MW | J177: ='Portfolio Analytics'!E901 -> 0 | K177: ='Portfolio Analytics'!F901 -> 0 | L177: ='Portfolio Analytics'!G901 -> 0 | M177: ='Portfolio Analytics'!H901 -> 0 | N177: ='Portfolio Analytics'!I901 -> 0 | O177: ='Portfolio Analytics'!J901 -> 5000 | P177: ='Portfolio Analytics'!K901 -> 5000 | Q177: ='Portfolio Analytics'!L901 -> 5000 | R177: ='Portfolio Analytics'!M901 -> 5000 | S177: ='Portfolio Analytics'!N901 -> 5000 | T177: ='Portfolio Analytics'!O901 -> 0 | U177: ='Portfolio Analytics'!P901 -> 5000 | V177: ='Portfolio Analytics'!Q901 -> 0 | W177: ='Portfolio Analytics'!R901 -> 0 | X177: ='Portfolio Analytics'!S901 -> 0 | Y177: ='Portfolio Analytics'!T901 -> 5000 | Z177: ='Portfolio Analytics'!U901 -> 0 | AA177: ='Portfolio Analytics'!V901 -> 0 | AB177: ='Portfolio Analytics'!W901 -> 0 | AC177: ='Portfolio Analytics'!X901 -> 0 | AD177: ='Portfolio Analytics'!Y901 -> 0 | AE177: ='Portfolio Analytics'!Z901 -> 0 | AF177: ='Portfolio Analytics'!AA901 -> 0 | AG177: ='Portfolio Analytics'!AB901 -> 0 | AH177: ='Portfolio Analytics'!AC901 -> 0 | AI177: ='Portfolio Analytics'!AD901 -> 0 | AJ177: ='Portfolio Analytics'!AE901 -> 0 | AK177: ='Portfolio Analytics'!AF901 -> 0 | AL177: ='Portfolio Analytics'!AG901 -> 0 | AM177: ='Portfolio Analytics'!AH901 -> 0 | AN177: ='Portfolio Analytics'!AI901 -> 5000 | AO177: ='Portfolio Analytics'!AJ901 -> 0 | AP177: ='Portfolio Analytics'!AK901 -> 0 | AQ177: ='Portfolio Analytics'!AL901 -> 0 | AR177: ='Portfolio Analytics'!AM901 -> 0 | AS177: ='Portfolio Analytics'!AN901 -> 0
G178: Hoover and Palo Verde | H178: MW | J178: ='Portfolio Analytics'!E902 -> 0 | K178: ='Portfolio Analytics'!F902 -> 0 | L178: ='Portfolio Analytics'!G902 -> 0 | M178: ='Portfolio Analytics'!H902 -> 0 | N178: ='Portfolio Analytics'!I902 -> 0 | O178: ='Portfolio Analytics'!J902 -> 1457 | P178: ='Portfolio Analytics'!K902 -> 1457 | Q178: ='Portfolio Analytics'!L902 -> 1457 | R178: ='Portfolio Analytics'!M902 -> 1457 | S178: ='Portfolio Analytics'!N902 -> 1457 | T178: ='Portfolio Analytics'!O902 -> 0 | U178: ='Portfolio Analytics'!P902 -> 1457 | V178: ='Portfolio Analytics'!Q902 -> 0 | W178: ='Portfolio Analytics'!R902 -> 0 | X178: ='Portfolio Analytics'!S902 -> 0 | Y178: ='Portfolio Analytics'!T902 -> 1457 | Z178: ='Portfolio Analytics'!U902 -> 0 | AA178: ='Portfolio Analytics'!V902 -> 0 | AB178: ='Portfolio Analytics'!W902 -> 0 | AC178: ='Portfolio Analytics'!X902 -> 0 | AD178: ='Portfolio Analytics'!Y902 -> 0 | AE178: ='Portfolio Analytics'!Z902 -> 0 | AF178: ='Portfolio Analytics'!AA902 -> 0 | AG178: ='Portfolio Analytics'!AB902 -> 0 | AH178: ='Portfolio Analytics'!AC902 -> 0 | AI178: ='Portfolio Analytics'!AD902 -> 0 | AJ178: ='Portfolio Analytics'!AE902 -> 0 | AK178: ='Portfolio Analytics'!AF902 -> 0 | AL178: ='Portfolio Analytics'!AG902 -> 0 | AM178: ='Portfolio Analytics'!AH902 -> 0 | AN178: ='Portfolio Analytics'!AI902 -> 1457 | AO178: ='Portfolio Analytics'!AJ902 -> 0 | AP178: ='Portfolio Analytics'!AK902 -> 0 | AQ178: ='Portfolio Analytics'!AL902 -> 0 | AR178: ='Portfolio Analytics'!AM902 -> 0 | AS178: ='Portfolio Analytics'!AN902 -> 0
G179: Other Firm Imports | H179: MW | J179: ='Portfolio Analytics'!E903 -> 0 | K179: ='Portfolio Analytics'!F903 -> 0 | L179: ='Portfolio Analytics'!G903 -> 0 | M179: ='Portfolio Analytics'!H903 -> 0 | N179: ='Portfolio Analytics'!I903 -> 0 | O179: ='Portfolio Analytics'!J903 -> 3543 | P179: ='Portfolio Analytics'!K903 -> 3543 | Q179: ='Portfolio Analytics'!L903 -> 3543 | R179: ='Portfolio Analytics'!M903 -> 3543 | S179: ='Portfolio Analytics'!N903 -> 3543 | T179: ='Portfolio Analytics'!O903 -> 0 | U179: ='Portfolio Analytics'!P903 -> 3543 | V179: ='Portfolio Analytics'!Q903 -> 0 | W179: ='Portfolio Analytics'!R903 -> 0 | X179: ='Portfolio Analytics'!S903 -> 0 | Y179: ='Portfolio Analytics'!T903 -> 3543 | Z179: ='Portfolio Analytics'!U903 -> 0 | AA179: ='Portfolio Analytics'!V903 -> 0 | AB179: ='Portfolio Analytics'!W903 -> 0 | AC179: ='Portfolio Analytics'!X903 -> 0 | AD179: ='Portfolio Analytics'!Y903 -> 0 | AE179: ='Portfolio Analytics'!Z903 -> 0 | AF179: ='Portfolio Analytics'!AA903 -> 0 | AG179: ='Portfolio Analytics'!AB903 -> 0 | AH179: ='Portfolio Analytics'!AC903 -> 0 | AI179: ='Portfolio Analytics'!AD903 -> 0 | AJ179: ='Portfolio Analytics'!AE903 -> 0 | AK179: ='Portfolio Analytics'!AF903 -> 0 | AL179: ='Portfolio Analytics'!AG903 -> 0 | AM179: ='Portfolio Analytics'!AH903 -> 0 | AN179: ='Portfolio Analytics'!AI903 -> 3543 | AO179: ='Portfolio Analytics'!AJ903 -> 0 | AP179: ='Portfolio Analytics'!AK903 -> 0 | AQ179: ='Portfolio Analytics'!AL903 -> 0 | AR179: ='Portfolio Analytics'!AM903 -> 0 | AS179: ='Portfolio Analytics'!AN903 -> 0
G180: Storage | H180: MW | J180: ='Portfolio Analytics'!E904 -> 0 | K180: ='Portfolio Analytics'!F904 -> 0 | L180: ='Portfolio Analytics'!G904 -> 0 | M180: ='Portfolio Analytics'!H904 -> 0 | N180: ='Portfolio Analytics'!I904 -> 0 | O180: ='Portfolio Analytics'!J904 -> 5074.89 | P180: ='Portfolio Analytics'!K904 -> 7704.75 | Q180: ='Portfolio Analytics'!L904 -> 7704.75 | R180: ='Portfolio Analytics'!M904 -> 8092.8 | S180: ='Portfolio Analytics'!N904 -> 9664.25 | T180: ='Portfolio Analytics'!O904 -> 0 | U180: ='Portfolio Analytics'!P904 -> 14139.86 | V180: ='Portfolio Analytics'!Q904 -> 0 | W180: ='Portfolio Analytics'!R904 -> 0 | X180: ='Portfolio Analytics'!S904 -> 0 | Y180: ='Portfolio Analytics'!T904 -> 15585.94 | Z180: ='Portfolio Analytics'!U904 -> 0 | AA180: ='Portfolio Analytics'!V904 -> 0 | AB180: ='Portfolio Analytics'!W904 -> 0 | AC180: ='Portfolio Analytics'!X904 -> 0 | AD180: ='Portfolio Analytics'!Y904 -> 0 | AE180: ='Portfolio Analytics'!Z904 -> 0 | AF180: ='Portfolio Analytics'!AA904 -> 0 | AG180: ='Portfolio Analytics'!AB904 -> 0 | AH180: ='Portfolio Analytics'!AC904 -> 0 | AI180: ='Portfolio Analytics'!AD904 -> 0 | AJ180: ='Portfolio Analytics'!AE904 -> 0 | AK180: ='Portfolio Analytics'!AF904 -> 0 | AL180: ='Portfolio Analytics'!AG904 -> 0 | AM180: ='Portfolio Analytics'!AH904 -> 0 | AN180: ='Portfolio Analytics'!AI904 -> 25660.56 | AO180: ='Portfolio Analytics'!AJ904 -> 0 | AP180: ='Portfolio Analytics'!AK904 -> 0 | AQ180: ='Portfolio Analytics'!AL904 -> 0 | AR180: ='Portfolio Analytics'!AM904 -> 0 | AS180: ='Portfolio Analytics'!AN904 -> 0
G181: Battery (incl. BTM) | H181: MW | J181: ='Portfolio Analytics'!E905 -> 0 | K181: ='Portfolio Analytics'!F905 -> 0 | L181: ='Portfolio Analytics'!G905 -> 0 | M181: ='Portfolio Analytics'!H905 -> 0 | N181: ='Portfolio Analytics'!I905 -> 0 | O181: ='Portfolio Analytics'!J905 -> 3475.69 | P181: ='Portfolio Analytics'!K905 -> 6105.55 | Q181: ='Portfolio Analytics'!L905 -> 6105.55 | R181: ='Portfolio Analytics'!M905 -> 6493.6 | S181: ='Portfolio Analytics'!N905 -> 8065.05 | T181: ='Portfolio Analytics'!O905 -> 0 | U181: ='Portfolio Analytics'!P905 -> 10554.19 | V181: ='Portfolio Analytics'!Q905 -> 0 | W181: ='Portfolio Analytics'!R905 -> 0 | X181: ='Portfolio Analytics'!S905 -> 0 | Y181: ='Portfolio Analytics'!T905 -> 12000.27 | Z181: ='Portfolio Analytics'!U905 -> 0 | AA181: ='Portfolio Analytics'!V905 -> 0 | AB181: ='Portfolio Analytics'!W905 -> 0 | AC181: ='Portfolio Analytics'!X905 -> 0 | AD181: ='Portfolio Analytics'!Y905 -> 0 | AE181: ='Portfolio Analytics'!Z905 -> 0 | AF181: ='Portfolio Analytics'!AA905 -> 0 | AG181: ='Portfolio Analytics'!AB905 -> 0 | AH181: ='Portfolio Analytics'!AC905 -> 0 | AI181: ='Portfolio Analytics'!AD905 -> 0 | AJ181: ='Portfolio Analytics'!AE905 -> 0 | AK181: ='Portfolio Analytics'!AF905 -> 0 | AL181: ='Portfolio Analytics'!AG905 -> 0 | AM181: ='Portfolio Analytics'!AH905 -> 0 | AN181: ='Portfolio Analytics'!AI905 -> 22074.88 | AO181: ='Portfolio Analytics'!AJ905 -> 0 | AP181: ='Portfolio Analytics'!AK905 -> 0 | AQ181: ='Portfolio Analytics'!AL905 -> 0 | AR181: ='Portfolio Analytics'!AM905 -> 0 | AS181: ='Portfolio Analytics'!AN905 -> 0
G182: Pumped Storage | H182: MW | J182: ='Portfolio Analytics'!E906 -> 0 | K182: ='Portfolio Analytics'!F906 -> 0 | L182: ='Portfolio Analytics'!G906 -> 0 | M182: ='Portfolio Analytics'!H906 -> 0 | N182: ='Portfolio Analytics'!I906 -> 0 | O182: ='Portfolio Analytics'!J906 -> 1599.2 | P182: ='Portfolio Analytics'!K906 -> 1599.2 | Q182: ='Portfolio Analytics'!L906 -> 1599.2 | R182: ='Portfolio Analytics'!M906 -> 1599.2 | S182: ='Portfolio Analytics'!N906 -> 1599.2 | T182: ='Portfolio Analytics'!O906 -> 0 | U182: ='Portfolio Analytics'!P906 -> 3585.67 | V182: ='Portfolio Analytics'!Q906 -> 0 | W182: ='Portfolio Analytics'!R906 -> 0 | X182: ='Portfolio Analytics'!S906 -> 0 | Y182: ='Portfolio Analytics'!T906 -> 3585.67 | Z182: ='Portfolio Analytics'!U906 -> 0 | AA182: ='Portfolio Analytics'!V906 -> 0 | AB182: ='Portfolio Analytics'!W906 -> 0 | AC182: ='Portfolio Analytics'!X906 -> 0 | AD182: ='Portfolio Analytics'!Y906 -> 0 | AE182: ='Portfolio Analytics'!Z906 -> 0 | AF182: ='Portfolio Analytics'!AA906 -> 0 | AG182: ='Portfolio Analytics'!AB906 -> 0 | AH182: ='Portfolio Analytics'!AC906 -> 0 | AI182: ='Portfolio Analytics'!AD906 -> 0 | AJ182: ='Portfolio Analytics'!AE906 -> 0 | AK182: ='Portfolio Analytics'!AF906 -> 0 | AL182: ='Portfolio Analytics'!AG906 -> 0 | AM182: ='Portfolio Analytics'!AH906 -> 0 | AN182: ='Portfolio Analytics'!AI906 -> 3585.67 | AO182: ='Portfolio Analytics'!AJ906 -> 0 | AP182: ='Portfolio Analytics'!AK906 -> 0 | AQ182: ='Portfolio Analytics'!AL906 -> 0 | AR182: ='Portfolio Analytics'!AM906 -> 0 | AS182: ='Portfolio Analytics'!AN906 -> 0
G183: Variable Renewable ELCC (Incl. BTM) | H183: MW | J183: ='Portfolio Analytics'!E907 -> 0 | K183: ='Portfolio Analytics'!F907 -> 0 | L183: ='Portfolio Analytics'!G907 -> 0 | M183: ='Portfolio Analytics'!H907 -> 0 | N183: ='Portfolio Analytics'!I907 -> 0 | O183: ='Portfolio Analytics'!J907 -> 8359.69 | P183: ='Portfolio Analytics'!K907 -> 8429.78 | Q183: ='Portfolio Analytics'!L907 -> 9249.53 | R183: ='Portfolio Analytics'!M907 -> 9423.66 | S183: ='Portfolio Analytics'!N907 -> 9513.56 | T183: ='Portfolio Analytics'!O907 -> 0 | U183: ='Portfolio Analytics'!P907 -> 10028.36 | V183: ='Portfolio Analytics'!Q907 -> 0 | W183: ='Portfolio Analytics'!R907 -> 0 | X183: ='Portfolio Analytics'!S907 -> 0 | Y183: ='Portfolio Analytics'!T907 -> 10976.78 | Z183: ='Portfolio Analytics'!U907 -> 0 | AA183: ='Portfolio Analytics'!V907 -> 0 | AB183: ='Portfolio Analytics'!W907 -> 0 | AC183: ='Portfolio Analytics'!X907 -> 0 | AD183: ='Portfolio Analytics'!Y907 -> 0 | AE183: ='Portfolio Analytics'!Z907 -> 0 | AF183: ='Portfolio Analytics'!AA907 -> 0 | AG183: ='Portfolio Analytics'!AB907 -> 0 | AH183: ='Portfolio Analytics'!AC907 -> 0 | AI183: ='Portfolio Analytics'!AD907 -> 0 | AJ183: ='Portfolio Analytics'!AE907 -> 0 | AK183: ='Portfolio Analytics'!AF907 -> 0 | AL183: ='Portfolio Analytics'!AG907 -> 0 | AM183: ='Portfolio Analytics'!AH907 -> 0 | AN183: ='Portfolio Analytics'!AI907 -> 13355.45 | AO183: ='Portfolio Analytics'!AJ907 -> 0 | AP183: ='Portfolio Analytics'!AK907 -> 0 | AQ183: ='Portfolio Analytics'!AL907 -> 0 | AR183: ='Portfolio Analytics'!AM907 -> 0 | AS183: ='Portfolio Analytics'!AN907 -> 0
G184: Total Available Capacity | H184: MW | J184: ='Portfolio Analytics'!E908 -> 0 | K184: ='Portfolio Analytics'!F908 -> 0 | L184: ='Portfolio Analytics'!G908 -> 0 | M184: ='Portfolio Analytics'!H908 -> 0 | N184: ='Portfolio Analytics'!I908 -> 0 | O184: ='Portfolio Analytics'!J908 -> 56368.8 | P184: ='Portfolio Analytics'!K908 -> 56543.66 | Q184: ='Portfolio Analytics'!L908 -> 57363.41 | R184: ='Portfolio Analytics'!M908 -> 57925.59 | S184: ='Portfolio Analytics'!N908 -> 58566.31 | T184: ='Portfolio Analytics'!O908 -> 0 | U184: ='Portfolio Analytics'!P908 -> 61944.16 | V184: ='Portfolio Analytics'!Q908 -> 0 | W184: ='Portfolio Analytics'!R908 -> 0 | X184: ='Portfolio Analytics'!S908 -> 0 | Y184: ='Portfolio Analytics'!T908 -> 64336.84 | Z184: ='Portfolio Analytics'!U908 -> 0 | AA184: ='Portfolio Analytics'!V908 -> 0 | AB184: ='Portfolio Analytics'!W908 -> 0 | AC184: ='Portfolio Analytics'!X908 -> 0 | AD184: ='Portfolio Analytics'!Y908 -> 0 | AE184: ='Portfolio Analytics'!Z908 -> 0 | AF184: ='Portfolio Analytics'!AA908 -> 0 | AG184: ='Portfolio Analytics'!AB908 -> 0 | AH184: ='Portfolio Analytics'!AC908 -> 0 | AI184: ='Portfolio Analytics'!AD908 -> 0 | AJ184: ='Portfolio Analytics'!AE908 -> 0 | AK184: ='Portfolio Analytics'!AF908 -> 0 | AL184: ='Portfolio Analytics'!AG908 -> 0 | AM184: ='Portfolio Analytics'!AH908 -> 0 | AN184: ='Portfolio Analytics'!AI908 -> 74174.17 | AO184: ='Portfolio Analytics'!AJ908 -> 0 | AP184: ='Portfolio Analytics'!AK908 -> 0 | AQ184: ='Portfolio Analytics'!AL908 -> 0 | AR184: ='Portfolio Analytics'!AM908 -> 0 | AS184: ='Portfolio Analytics'!AN908 -> 0
G185: Actual Reserve Margin | H185: % | J185: ='Portfolio Analytics'!E909 -> 0 | K185: ='Portfolio Analytics'!F909 -> 0 | L185: ='Portfolio Analytics'!G909 -> 0 | M185: ='Portfolio Analytics'!H909 -> 0 | N185: ='Portfolio Analytics'!I909 -> 0 | O185: ='Portfolio Analytics'!J909 -> 0.149999949 | P185: ='Portfolio Analytics'!K909 -> 0.15 | Q185: ='Portfolio Analytics'!L909 -> 0.1538068233 | R185: ='Portfolio Analytics'!M909 -> 0.1499999603 | S185: ='Portfolio Analytics'!N909 -> 0.1499999116 | T185: ='Portfolio Analytics'!O909 -> 0 | U185: ='Portfolio Analytics'!P909 -> 0.149999935 | V185: ='Portfolio Analytics'!Q909 -> 0 | W185: ='Portfolio Analytics'!R909 -> 0 | X185: ='Portfolio Analytics'!S909 -> 0 | Y185: ='Portfolio Analytics'!T909 -> 0.1499999643 | Z185: ='Portfolio Analytics'!U909 -> 0 | AA185: ='Portfolio Analytics'!V909 -> 0 | AB185: ='Portfolio Analytics'!W909 -> 0 | AC185: ='Portfolio Analytics'!X909 -> 0 | AD185: ='Portfolio Analytics'!Y909 -> 0 | AE185: ='Portfolio Analytics'!Z909 -> 0 | AF185: ='Portfolio Analytics'!AA909 -> 0 | AG185: ='Portfolio Analytics'!AB909 -> 0 | AH185: ='Portfolio Analytics'!AC909 -> 0 | AI185: ='Portfolio Analytics'!AD909 -> 0 | AJ185: ='Portfolio Analytics'!AE909 -> 0 | AK185: ='Portfolio Analytics'!AF909 -> 0 | AL185: ='Portfolio Analytics'!AG909 -> 0 | AM185: ='Portfolio Analytics'!AH909 -> 0 | AN185: ='Portfolio Analytics'!AI909 -> 0.1500001473 | AO185: ='Portfolio Analytics'!AJ909 -> 0 | AP185: ='Portfolio Analytics'!AK909 -> 0 | AQ185: ='Portfolio Analytics'!AL909 -> 0 | AR185: ='Portfolio Analytics'!AM909 -> 0 | AS185: ='Portfolio Analytics'!AN909 -> 0
G186: Marginal PRM Cost | H186: $/kW-yr. | J186: ='Portfolio Analytics'!E910 -> 0 | K186: ='Portfolio Analytics'!F910 -> 0 | L186: ='Portfolio Analytics'!G910 -> 0 | M186: ='Portfolio Analytics'!H910 -> 0 | N186: ='Portfolio Analytics'!I910 -> 0 | O186: ='Portfolio Analytics'!J910 -> 564.29997 | P186: ='Portfolio Analytics'!K910 -> 975.95914 | Q186: ='Portfolio Analytics'!L910 -> 0 | R186: ='Portfolio Analytics'!M910 -> 348.93519 | S186: ='Portfolio Analytics'!N910 -> 393.03647 | T186: ='Portfolio Analytics'!O910 -> 0 | U186: ='Portfolio Analytics'!P910 -> 259.33744 | V186: ='Portfolio Analytics'!Q910 -> 0 | W186: ='Portfolio Analytics'!R910 -> 0 | X186: ='Portfolio Analytics'!S910 -> 0 | Y186: ='Portfolio Analytics'!T910 -> 77.4065 | Z186: ='Portfolio Analytics'!U910 -> 0 | AA186: ='Portfolio Analytics'!V910 -> 0 | AB186: ='Portfolio Analytics'!W910 -> 0 | AC186: ='Portfolio Analytics'!X910 -> 0 | AD186: ='Portfolio Analytics'!Y910 -> 0 | AE186: ='Portfolio Analytics'!Z910 -> 0 | AF186: ='Portfolio Analytics'!AA910 -> 0 | AG186: ='Portfolio Analytics'!AB910 -> 0 | AH186: ='Portfolio Analytics'!AC910 -> 0 | AI186: ='Portfolio Analytics'!AD910 -> 0 | AJ186: ='Portfolio Analytics'!AE910 -> 0 | AK186: ='Portfolio Analytics'!AF910 -> 0 | AL186: ='Portfolio Analytics'!AG910 -> 0 | AM186: ='Portfolio Analytics'!AH910 -> 0 | AN186: ='Portfolio Analytics'!AI910 -> 14.24603 | AO186: ='Portfolio Analytics'!AJ910 -> 0 | AP186: ='Portfolio Analytics'!AK910 -> 0 | AQ186: ='Portfolio Analytics'!AL910 -> 0 | AR186: ='Portfolio Analytics'!AM910 -> 0 | AS186: ='Portfolio Analytics'!AN910 -> 0
G187: Marginal Solar ELCC | H187: % | J187: ='Portfolio Analytics'!E914 -> 0 | K187: ='Portfolio Analytics'!F914 -> 0 | L187: ='Portfolio Analytics'!G914 -> 0 | M187: ='Portfolio Analytics'!H914 -> 0 | N187: ='Portfolio Analytics'!I914 -> 0 | O187: ='Portfolio Analytics'!J914 -> 0.03564088743 | P187: ='Portfolio Analytics'!K914 -> 0.02277010944 | Q187: ='Portfolio Analytics'!L914 -> 0.02256144306 | R187: ='Portfolio Analytics'!M914 -> 0.02243734885 | S187: ='Portfolio Analytics'!N914 -> 0.02232626537 | T187: ='Portfolio Analytics'!O914 -> 0 | U187: ='Portfolio Analytics'!P914 -> 0.02296849891 | V187: ='Portfolio Analytics'!Q914 -> 0 | W187: ='Portfolio Analytics'!R914 -> 0 | X187: ='Portfolio Analytics'!S914 -> 0 | Y187: ='Portfolio Analytics'!T914 -> 0.02283326005 | Z187: ='Portfolio Analytics'!U914 -> 0 | AA187: ='Portfolio Analytics'!V914 -> 0 | AB187: ='Portfolio Analytics'!W914 -> 0 | AC187: ='Portfolio Analytics'!X914 -> 0 | AD187: ='Portfolio Analytics'!Y914 -> 0 | AE187: ='Portfolio Analytics'!Z914 -> 0 | AF187: ='Portfolio Analytics'!AA914 -> 0 | AG187: ='Portfolio Analytics'!AB914 -> 0 | AH187: ='Portfolio Analytics'!AC914 -> 0 | AI187: ='Portfolio Analytics'!AD914 -> 0 | AJ187: ='Portfolio Analytics'!AE914 -> 0 | AK187: ='Portfolio Analytics'!AF914 -> 0 | AL187: ='Portfolio Analytics'!AG914 -> 0 | AM187: ='Portfolio Analytics'!AH914 -> 0 | AN187: ='Portfolio Analytics'!AI914 -> 0.01530847174 | AO187: ='Portfolio Analytics'!AJ914 -> 0 | AP187: ='Portfolio Analytics'!AK914 -> 0 | AQ187: ='Portfolio Analytics'!AL914 -> 0 | AR187: ='Portfolio Analytics'!AM914 -> 0 | AS187: ='Portfolio Analytics'!AN914 -> 0
G188: Marginal Wind ELCC | H188: % | J188: ='Portfolio Analytics'!E915 -> 0 | K188: ='Portfolio Analytics'!F915 -> 0 | L188: ='Portfolio Analytics'!G915 -> 0 | M188: ='Portfolio Analytics'!H915 -> 0 | N188: ='Portfolio Analytics'!I915 -> 0 | O188: ='Portfolio Analytics'!J915 -> 0.3148705153 | P188: ='Portfolio Analytics'!K915 -> 0.3099728619 | Q188: ='Portfolio Analytics'!L915 -> 0.2021168166 | R188: ='Portfolio Analytics'!M915 -> 0.2010042741 | S188: ='Portfolio Analytics'!N915 -> 0.2000097524 | T188: ='Portfolio Analytics'!O915 -> 0 | U188: ='Portfolio Analytics'!P915 -> 0.205762851 | V188: ='Portfolio Analytics'!Q915 -> 0 | W188: ='Portfolio Analytics'!R915 -> 0 | X188: ='Portfolio Analytics'!S915 -> 0 | Y188: ='Portfolio Analytics'!T915 -> 0.204551304 | Z188: ='Portfolio Analytics'!U915 -> 0 | AA188: ='Portfolio Analytics'!V915 -> 0 | AB188: ='Portfolio Analytics'!W915 -> 0 | AC188: ='Portfolio Analytics'!X915 -> 0 | AD188: ='Portfolio Analytics'!Y915 -> 0 | AE188: ='Portfolio Analytics'!Z915 -> 0 | AF188: ='Portfolio Analytics'!AA915 -> 0 | AG188: ='Portfolio Analytics'!AB915 -> 0 | AH188: ='Portfolio Analytics'!AC915 -> 0 | AI188: ='Portfolio Analytics'!AD915 -> 0 | AJ188: ='Portfolio Analytics'!AE915 -> 0 | AK188: ='Portfolio Analytics'!AF915 -> 0 | AL188: ='Portfolio Analytics'!AG915 -> 0 | AM188: ='Portfolio Analytics'!AH915 -> 0 | AN188: ='Portfolio Analytics'!AI915 -> 0.2502313057 | AO188: ='Portfolio Analytics'!AJ915 -> 0 | AP188: ='Portfolio Analytics'!AK915 -> 0 | AQ188: ='Portfolio Analytics'!AL915 -> 0 | AR188: ='Portfolio Analytics'!AM915 -> 0 | AS188: ='Portfolio Analytics'!AN915 -> 0
G190: Local Capacity Requirement Summary
H192: Unit | J192: 2015 | K192: =J192+1 -> 2016 | L192: 2017 | M192: 2018 | N192: 2019 | O192: 2020 | P192: 2021 | Q192: 2022 | R192: 2023 | S192: 2024 | T192: 2025 | U192: 2026 | V192: 2027 | W192: 2028 | X192: 2029 | Y192: 2030 | Z192: =Y192+1 -> 2031 | AA192: 2032 | AB192: 2033 | AC192: 2034 | AD192: 2035 | AE192: 2036 | AF192: 2037 | AG192: 2038 | AH192: 2039 | AI192: 2040 | AJ192: 2041 | AK192: 2042 | AL192: 2043 | AM192: 2044 | AN192: 2045 | AO192: 2046 | AP192: 2047 | AQ192: 2048 | AR192: 2049 | AS192: 2050
G193: Total LCR Deficiency | H193: MW | J193: ='Portfolio Analytics'!E881 -> 0 | K193: ='Portfolio Analytics'!F881 -> 0 | L193: ='Portfolio Analytics'!G881 -> 0 | M193: ='Portfolio Analytics'!H881 -> 0 | N193: ='Portfolio Analytics'!I881 -> 0 | O193: ='Portfolio Analytics'!J881 -> 0 | P193: ='Portfolio Analytics'!K881 -> 0 | Q193: ='Portfolio Analytics'!L881 -> 0 | R193: ='Portfolio Analytics'!M881 -> 0 | S193: ='Portfolio Analytics'!N881 -> 0 | T193: ='Portfolio Analytics'!O881 -> 0 | U193: ='Portfolio Analytics'!P881 -> 0 | V193: ='Portfolio Analytics'!Q881 -> 0 | W193: ='Portfolio Analytics'!R881 -> 0 | X193: ='Portfolio Analytics'!S881 -> 0 | Y193: ='Portfolio Analytics'!T881 -> 0 | Z193: ='Portfolio Analytics'!U881 -> 0 | AA193: ='Portfolio Analytics'!V881 -> 0 | AB193: ='Portfolio Analytics'!W881 -> 0 | AC193: ='Portfolio Analytics'!X881 -> 0 | AD193: ='Portfolio Analytics'!Y881 -> 0 | AE193: ='Portfolio Analytics'!Z881 -> 0 | AF193: ='Portfolio Analytics'!AA881 -> 0 | AG193: ='Portfolio Analytics'!AB881 -> 0 | AH193: ='Portfolio Analytics'!AC881 -> 0 | AI193: ='Portfolio Analytics'!AD881 -> 0 | AJ193: ='Portfolio Analytics'!AE881 -> 0 | AK193: ='Portfolio Analytics'!AF881 -> 0 | AL193: ='Portfolio Analytics'!AG881 -> 0 | AM193: ='Portfolio Analytics'!AH881 -> 0 | AN193: ='Portfolio Analytics'!AI881 -> 0 | AO193: ='Portfolio Analytics'!AJ881 -> 0 | AP193: ='Portfolio Analytics'!AK881 -> 0 | AQ193: ='Portfolio Analytics'!AL881 -> 0 | AR193: ='Portfolio Analytics'!AM881 -> 0 | AS193: ='Portfolio Analytics'!AN881 -> 0
G194: Gas | H194: MW | J194: =SUM('Portfolio Analytics'!E872:E874) -> 0 | K194: =SUM('Portfolio Analytics'!F872:F874) -> 0 | L194: =SUM('Portfolio Analytics'!G872:G874) -> 0 | M194: =SUM('Portfolio Analytics'!H872:H874) -> 0 | N194: =SUM('Portfolio Analytics'!I872:I874) -> 0 | O194: =SUM('Portfolio Analytics'!J872:J874) -> 0 | P194: =SUM('Portfolio Analytics'!K872:K874) -> 0 | Q194: =SUM('Portfolio Analytics'!L872:L874) -> 0 | R194: =SUM('Portfolio Analytics'!M872:M874) -> 0 | S194: =SUM('Portfolio Analytics'!N872:N874) -> 0 | T194: =SUM('Portfolio Analytics'!O872:O874) -> 0 | U194: =SUM('Portfolio Analytics'!P872:P874) -> 0 | V194: =SUM('Portfolio Analytics'!Q872:Q874) -> 0 | W194: =SUM('Portfolio Analytics'!R872:R874) -> 0 | X194: =SUM('Portfolio Analytics'!S872:S874) -> 0 | Y194: =SUM('Portfolio Analytics'!T872:T874) -> 0 | Z194: =SUM('Portfolio Analytics'!U872:U874) -> 0 | AA194: =SUM('Portfolio Analytics'!V872:V874) -> 0 | AB194: =SUM('Portfolio Analytics'!W872:W874) -> 0 | AC194: =SUM('Portfolio Analytics'!X872:X874) -> 0 | AD194: =SUM('Portfolio Analytics'!Y872:Y874) -> 0 | AE194: =SUM('Portfolio Analytics'!Z872:Z874) -> 0 | AF194: =SUM('Portfolio Analytics'!AA872:AA874) -> 0 | AG194: =SUM('Portfolio Analytics'!AB872:AB874) -> 0 | AH194: =SUM('Portfolio Analytics'!AC872:AC874) -> 0 | AI194: =SUM('Portfolio Analytics'!AD872:AD874) -> 0 | AJ194: =SUM('Portfolio Analytics'!AE872:AE874) -> 0 | AK194: =SUM('Portfolio Analytics'!AF872:AF874) -> 0 | AL194: =SUM('Portfolio Analytics'!AG872:AG874) -> 0 | AM194: =SUM('Portfolio Analytics'!AH872:AH874) -> 0 | AN194: =SUM('Portfolio Analytics'!AI872:AI874) -> 0 | AO194: =SUM('Portfolio Analytics'!AJ872:AJ874) -> 0 | AP194: =SUM('Portfolio Analytics'!AK872:AK874) -> 0 | AQ194: =SUM('Portfolio Analytics'!AL872:AL874) -> 0 | AR194: =SUM('Portfolio Analytics'!AM872:AM874) -> 0 | AS194: =SUM('Portfolio Analytics'!AN872:AN874) -> 0
G195: Storage | H195: MW | J195: =SUM('Portfolio Analytics'!E876:E879) -> 0 | K195: =SUM('Portfolio Analytics'!F876:F879) -> 0 | L195: =SUM('Portfolio Analytics'!G876:G879) -> 0 | M195: =SUM('Portfolio Analytics'!H876:H879) -> 0 | N195: =SUM('Portfolio Analytics'!I876:I879) -> 0 | O195: =SUM('Portfolio Analytics'!J876:J879) -> 0 | P195: =SUM('Portfolio Analytics'!K876:K879) -> 0 | Q195: =SUM('Portfolio Analytics'!L876:L879) -> 0 | R195: =SUM('Portfolio Analytics'!M876:M879) -> 0 | S195: =SUM('Portfolio Analytics'!N876:N879) -> 0 | T195: =SUM('Portfolio Analytics'!O876:O879) -> 0 | U195: =SUM('Portfolio Analytics'!P876:P879) -> 0 | V195: =SUM('Portfolio Analytics'!Q876:Q879) -> 0 | W195: =SUM('Portfolio Analytics'!R876:R879) -> 0 | X195: =SUM('Portfolio Analytics'!S876:S879) -> 0 | Y195: =SUM('Portfolio Analytics'!T876:T879) -> 0 | Z195: =SUM('Portfolio Analytics'!U876:U879) -> 0 | AA195: =SUM('Portfolio Analytics'!V876:V879) -> 0 | AB195: =SUM('Portfolio Analytics'!W876:W879) -> 0 | AC195: =SUM('Portfolio Analytics'!X876:X879) -> 0 | AD195: =SUM('Portfolio Analytics'!Y876:Y879) -> 0 | AE195: =SUM('Portfolio Analytics'!Z876:Z879) -> 0 | AF195: =SUM('Portfolio Analytics'!AA876:AA879) -> 0 | AG195: =SUM('Portfolio Analytics'!AB876:AB879) -> 0 | AH195: =SUM('Portfolio Analytics'!AC876:AC879) -> 0 | AI195: =SUM('Portfolio Analytics'!AD876:AD879) -> 0 | AJ195: =SUM('Portfolio Analytics'!AE876:AE879) -> 0 | AK195: =SUM('Portfolio Analytics'!AF876:AF879) -> 0 | AL195: =SUM('Portfolio Analytics'!AG876:AG879) -> 0 | AM195: =SUM('Portfolio Analytics'!AH876:AH879) -> 0 | AN195: =SUM('Portfolio Analytics'!AI876:AI879) -> 0 | AO195: =SUM('Portfolio Analytics'!AJ876:AJ879) -> 0 | AP195: =SUM('Portfolio Analytics'!AK876:AK879) -> 0 | AQ195: =SUM('Portfolio Analytics'!AL876:AL879) -> 0 | AR195: =SUM('Portfolio Analytics'!AM876:AM879) -> 0 | AS195: =SUM('Portfolio Analytics'!AN876:AN879) -> 0
G196: Solar | H196: MW | J196: ='Portfolio Analytics'!E875 -> 0 | K196: ='Portfolio Analytics'!F875 -> 0 | L196: ='Portfolio Analytics'!G875 -> 0 | M196: ='Portfolio Analytics'!H875 -> 0 | N196: ='Portfolio Analytics'!I875 -> 0 | O196: ='Portfolio Analytics'!J875 -> 0 | P196: ='Portfolio Analytics'!K875 -> 0 | Q196: ='Portfolio Analytics'!L875 -> 0 | R196: ='Portfolio Analytics'!M875 -> 0 | S196: ='Portfolio Analytics'!N875 -> 0 | T196: ='Portfolio Analytics'!O875 -> 0 | U196: ='Portfolio Analytics'!P875 -> 0 | V196: ='Portfolio Analytics'!Q875 -> 0 | W196: ='Portfolio Analytics'!R875 -> 0 | X196: ='Portfolio Analytics'!S875 -> 0 | Y196: ='Portfolio Analytics'!T875 -> 0 | Z196: ='Portfolio Analytics'!U875 -> 0 | AA196: ='Portfolio Analytics'!V875 -> 0 | AB196: ='Portfolio Analytics'!W875 -> 0 | AC196: ='Portfolio Analytics'!X875 -> 0 | AD196: ='Portfolio Analytics'!Y875 -> 0 | AE196: ='Portfolio Analytics'!Z875 -> 0 | AF196: ='Portfolio Analytics'!AA875 -> 0 | AG196: ='Portfolio Analytics'!AB875 -> 0 | AH196: ='Portfolio Analytics'!AC875 -> 0 | AI196: ='Portfolio Analytics'!AD875 -> 0 | AJ196: ='Portfolio Analytics'!AE875 -> 0 | AK196: ='Portfolio Analytics'!AF875 -> 0 | AL196: ='Portfolio Analytics'!AG875 -> 0 | AM196: ='Portfolio Analytics'!AH875 -> 0 | AN196: ='Portfolio Analytics'!AI875 -> 0 | AO196: ='Portfolio Analytics'!AJ875 -> 0 | AP196: ='Portfolio Analytics'!AK875 -> 0 | AQ196: ='Portfolio Analytics'!AL875 -> 0 | AR196: ='Portfolio Analytics'!AM875 -> 0 | AS196: ='Portfolio Analytics'!AN875 -> 0
G197: Total New Local Capacity | H197: MW | J197: =SUM(J$194:J$196) -> 0 | K197: 0 | L197: 0 | M197: 0 | N197: 0 | O197: 0 | P197: 0 | Q197: 0 | R197: 0 | S197: 0 | T197: 0 | U197: 0 | V197: 0 | W197: 0 | X197: 0 | Y197: 0 | Z197: 0 | AA197: 0 | AB197: 0 | AC197: 0 | AD197: 0 | AE197: 0 | AF197: 0 | AG197: 0 | AH197: 0 | AI197: 0 | AJ197: 0 | AK197: 0 | AL197: 0 | AM197: 0 | AN197: 0 | AO197: 0 | AP197: 0 | AQ197: 0 | AR197: 0 | AS197: 0
G198: Marginal LCR Cost | H198: $/kW-yr. | J198: =SUMIF(raw_planning_reserve_margin!$A:$A,J192,raw_planning_reserve_margin!$N:$N)/1000 -> 0 | K198: =SUMIF(raw_planning_reserve_margin!$A:$A,K192,raw_planning_reserve_margin!$N:$N)/1000 -> 0 | L198: =SUMIF(raw_planning_reserve_margin!$A:$A,L192,raw_planning_reserve_margin!$N:$N)/1000 -> 0 | M198: =SUMIF(raw_planning_reserve_margin!$A:$A,M192,raw_planning_reserve_margin!$N:$N)/1000 -> 0 | N198: =SUMIF(raw_planning_reserve_margin!$A:$A,N192,raw_planning_reserve_margin!$N:$N)/1000 -> 0 | O198: =SUMIF(raw_planning_reserve_margin!$A:$A,O192,raw_planning_reserve_margin!$N:$N)/1000 -> 0 | P198: =SUMIF(raw_planning_reserve_margin!$A:$A,P192,raw_planning_reserve_margin!$N:$N)/1000 -> 0 | Q198: =SUMIF(raw_planning_reserve_margin!$A:$A,Q192,raw_planning_reserve_margin!$N:$N)/1000 -> 0 | R198: =SUMIF(raw_planning_reserve_margin!$A:$A,R192,raw_planning_reserve_margin!$N:$N)/1000 -> 0 | S198: =SUMIF(raw_planning_reserve_margin!$A:$A,S192,raw_planning_reserve_margin!$N:$N)/1000 -> 0 | T198: =SUMIF(raw_planning_reserve_margin!$A:$A,T192,raw_planning_reserve_margin!$N:$N)/1000 -> 0 | U198: =SUMIF(raw_planning_reserve_margin!$A:$A,U192,raw_planning_reserve_margin!$N:$N)/1000 -> 0 | V198: =SUMIF(raw_planning_reserve_margin!$A:$A,V192,raw_planning_reserve_margin!$N:$N)/1000 -> 0 | W198: =SUMIF(raw_planning_reserve_margin!$A:$A,W192,raw_planning_reserve_margin!$N:$N)/1000 -> 0 | X198: =SUMIF(raw_planning_reserve_margin!$A:$A,X192,raw_planning_reserve_margin!$N:$N)/1000 -> 0 | Y198: =SUMIF(raw_planning_reserve_margin!$A:$A,Y192,raw_planning_reserve_margin!$N:$N)/1000 -> 0 | Z198: =SUMIF(raw_planning_reserve_margin!$A:$A,Z192,raw_planning_reserve_margin!$N:$N)/1000 -> 0 | AA198: =SUMIF(raw_planning_reserve_margin!$A:$A,AA192,raw_planning_reserve_margin!$N:$N)/1000 -> 0 | AB198: =SUMIF(raw_planning_reserve_margin!$A:$A,AB192,raw_planning_reserve_margin!$N:$N)/1000 -> 0 | AC198: =SUMIF(raw_planning_reserve_margin!$A:$A,AC192,raw_planning_reserve_margin!$N:$N)/1000 -> 0 | AD198: =SUMIF(raw_planning_reserve_margin!$A:$A,AD192,raw_planning_reserve_margin!$N:$N)/1000 -> 0 | AE198: =SUMIF(raw_planning_reserve_margin!$A:$A,AE192,raw_planning_reserve_margin!$N:$N)/1000 -> 0 | AF198: =SUMIF(raw_planning_reserve_margin!$A:$A,AF192,raw_planning_reserve_margin!$N:$N)/1000 -> 0 | AG198: =SUMIF(raw_planning_reserve_margin!$A:$A,AG192,raw_planning_reserve_margin!$N:$N)/1000 -> 0 | AH198: =SUMIF(raw_planning_reserve_margin!$A:$A,AH192,raw_planning_reserve_margin!$N:$N)/1000 -> 0 | AI198: =SUMIF(raw_planning_reserve_margin!$A:$A,AI192,raw_planning_reserve_margin!$N:$N)/1000 -> 0 | AJ198: =SUMIF(raw_planning_reserve_margin!$A:$A,AJ192,raw_planning_reserve_margin!$N:$N)/1000 -> 0 | AK198: =SUMIF(raw_planning_reserve_margin!$A:$A,AK192,raw_planning_reserve_margin!$N:$N)/1000 -> 0 | AL198: =SUMIF(raw_planning_reserve_margin!$A:$A,AL192,raw_planning_reserve_margin!$N:$N)/1000 -> 0 | AM198: =SUMIF(raw_planning_reserve_margin!$A:$A,AM192,raw_planning_reserve_margin!$N:$N)/1000 -> 0 | AN198: =SUMIF(raw_planning_reserve_margin!$A:$A,AN192,raw_planning_reserve_margin!$N:$N)/1000 -> 0 | AO198: =SUMIF(raw_planning_reserve_margin!$A:$A,AO192,raw_planning_reserve_margin!$N:$N)/1000 -> 0 | AP198: =SUMIF(raw_planning_reserve_margin!$A:$A,AP192,raw_planning_reserve_margin!$N:$N)/1000 -> 0 | AQ198: =SUMIF(raw_planning_reserve_margin!$A:$A,AQ192,raw_planning_reserve_margin!$N:$N)/1000 -> 0 | AR198: =SUMIF(raw_planning_reserve_margin!$A:$A,AR192,raw_planning_reserve_margin!$N:$N)/1000 -> 0 | AS198: =SUMIF(raw_planning_reserve_margin!$A:$A,AS192,raw_planning_reserve_margin!$N:$N)/1000 -> 0
G200: Need for New Transmission
H202: Unit | J202: 2015 | K202: =J202+1 -> 2016 | L202: 2017 | M202: 2018 | N202: 2019 | O202: 2020 | P202: 2021 | Q202: 2022 | R202: 2023 | S202: 2024 | T202: 2025 | U202: 2026 | V202: 2027 | W202: 2028 | X202: 2029 | Y202: 2030 | Z202: 2031 | AA202: 2032 | AB202: 2033 | AC202: 2034 | AD202: 2035 | AE202: 2036 | AF202: 2037 | AG202: 2038 | AH202: 2039 | AI202: 2040 | AJ202: 2041 | AK202: 2042 | AL202: 2043 | AM202: 2044 | AN202: 2045 | AO202: 2046 | AP202: 2047 | AQ202: 2048 | AR202: 2049 | AS202: 2050
G203: New Transmission for Selected Resources (within CAISO) | H203: MW | J203: ='Portfolio Analytics'!E$754 -> 0 | K203: ='Portfolio Analytics'!F$754 -> 0 | L203: ='Portfolio Analytics'!G$754 -> 0 | M203: ='Portfolio Analytics'!H$754 -> 0 | N203: ='Portfolio Analytics'!I$754 -> 0 | O203: ='Portfolio Analytics'!J$754 -> 0 | P203: ='Portfolio Analytics'!K$754 -> 0 | Q203: ='Portfolio Analytics'!L$754 -> 0 | R203: ='Portfolio Analytics'!M$754 -> 100 | S203: ='Portfolio Analytics'!N$754 -> 187.78 | T203: ='Portfolio Analytics'!O$754 -> 0 | U203: ='Portfolio Analytics'!P$754 -> 1686.78 | V203: ='Portfolio Analytics'!Q$754 -> 0 | W203: ='Portfolio Analytics'!R$754 -> 0 | X203: ='Portfolio Analytics'!S$754 -> 0 | Y203: ='Portfolio Analytics'!T$754 -> 17109.56 | Z203: ='Portfolio Analytics'!U$754 -> 0 | AA203: ='Portfolio Analytics'!V$754 -> 0 | AB203: ='Portfolio Analytics'!W$754 -> 0 | AC203: ='Portfolio Analytics'!X$754 -> 0 | AD203: ='Portfolio Analytics'!Y$754 -> 0 | AE203: ='Portfolio Analytics'!Z$754 -> 0 | AF203: ='Portfolio Analytics'!AA$754 -> 0 | AG203: ='Portfolio Analytics'!AB$754 -> 0 | AH203: ='Portfolio Analytics'!AC$754 -> 0 | AI203: ='Portfolio Analytics'!AD$754 -> 0 | AJ203: ='Portfolio Analytics'!AE$754 -> 0 | AK203: ='Portfolio Analytics'!AF$754 -> 0 | AL203: ='Portfolio Analytics'!AG$754 -> 0 | AM203: ='Portfolio Analytics'!AH$754 -> 0 | AN203: ='Portfolio Analytics'!AI$754 -> 190966.67 | AO203: ='Portfolio Analytics'!AJ$754 -> 0 | AP203: ='Portfolio Analytics'!AK$754 -> 0 | AQ203: ='Portfolio Analytics'!AL$754 -> 0 | AR203: ='Portfolio Analytics'!AM$754 -> 0 | AS203: ='Portfolio Analytics'!AN$754 -> 0
G204: New Transmission Cost (within CAISO) | H204: $MM | J204: ='Portfolio Analytics'!E$755 -> 0 | K204: ='Portfolio Analytics'!F$755 -> 0 | L204: ='Portfolio Analytics'!G$755 -> 0 | M204: ='Portfolio Analytics'!H$755 -> 0 | N204: ='Portfolio Analytics'!I$755 -> 0 | O204: ='Portfolio Analytics'!J$755 -> 0 | P204: ='Portfolio Analytics'!K$755 -> 0 | Q204: ='Portfolio Analytics'!L$755 -> 0 | R204: ='Portfolio Analytics'!M$755 -> 1.002894 | S204: ='Portfolio Analytics'!N$755 -> 2.65970727 | T204: ='Portfolio Analytics'!O$755 -> 0 | U204: ='Portfolio Analytics'!P$755 -> 17.1505765 | V204: ='Portfolio Analytics'!Q$755 -> 0 | W204: ='Portfolio Analytics'!R$755 -> 0 | X204: ='Portfolio Analytics'!S$755 -> 0 | Y204: ='Portfolio Analytics'!T$755 -> 242.2094912 | Z204: ='Portfolio Analytics'!U$755 -> 0 | AA204: ='Portfolio Analytics'!V$755 -> 0 | AB204: ='Portfolio Analytics'!W$755 -> 0 | AC204: ='Portfolio Analytics'!X$755 -> 0 | AD204: ='Portfolio Analytics'!Y$755 -> 0 | AE204: ='Portfolio Analytics'!Z$755 -> 0 | AF204: ='Portfolio Analytics'!AA$755 -> 0 | AG204: ='Portfolio Analytics'!AB$755 -> 0 | AH204: ='Portfolio Analytics'!AC$755 -> 0 | AI204: ='Portfolio Analytics'!AD$755 -> 0 | AJ204: ='Portfolio Analytics'!AE$755 -> 0 | AK204: ='Portfolio Analytics'!AF$755 -> 0 | AL204: ='Portfolio Analytics'!AG$755 -> 0 | AM204: ='Portfolio Analytics'!AH$755 -> 0 | AN204: ='Portfolio Analytics'!AI$755 -> 3947.781568 | AO204: ='Portfolio Analytics'!AJ$755 -> 0 | AP204: ='Portfolio Analytics'!AK$755 -> 0 | AQ204: ='Portfolio Analytics'!AL$755 -> 0 | AR204: ='Portfolio Analytics'!AM$755 -> 0 | AS204: ='Portfolio Analytics'!AN$755 -> 0
G209: Annual Weights (for levelization)
H211: Unit | J211: 2015 | K211: =J211+1 -> 2016 | L211: 2017 | M211: 2018 | N211: 2019 | O211: 2020 | P211: 2021 | Q211: 2022 | R211: 2023 | S211: 2024 | T211: 2025 | U211: 2026 | V211: 2027 | W211: 2028 | X211: 2029 | Y211: 2030 | Z211: 2031 | AA211: 2032 | AB211: 2033 | AC211: 2034 | AD211: 2035 | AE211: 2036 | AF211: 2037 | AG211: 2038 | AH211: 2039 | AI211: 2040 | AJ211: 2041 | AK211: 2042 | AL211: 2043 | AM211: 2044 | AN211: 2045 | AO211: 2046 | AP211: 2047 | AQ211: 2048 | AR211: 2049 | AS211: 2050
G212: Annual Weights | J212: =IFERROR(INDEX(raw_transmission_costs!$D:$D,MATCH(J211,raw_transmission_costs!$A:$A,0)),0) -> 0 | K212: =IFERROR(INDEX(raw_transmission_costs!$D:$D,MATCH(K211,raw_transmission_costs!$A:$A,0)),0) -> 0 | L212: =IFERROR(INDEX(raw_transmission_costs!$D:$D,MATCH(L211,raw_transmission_costs!$A:$A,0)),0) -> 0 | M212: =IFERROR(INDEX(raw_transmission_costs!$D:$D,MATCH(M211,raw_transmission_costs!$A:$A,0)),0) -> 0 | N212: =IFERROR(INDEX(raw_transmission_costs!$D:$D,MATCH(N211,raw_transmission_costs!$A:$A,0)),0) -> 0 | O212: =IFERROR(INDEX(raw_transmission_costs!$D:$D,MATCH(O211,raw_transmission_costs!$A:$A,0)),0) -> 1 | P212: =IFERROR(INDEX(raw_transmission_costs!$D:$D,MATCH(P211,raw_transmission_costs!$A:$A,0)),0) -> 0.9523809524 | Q212: =IFERROR(INDEX(raw_transmission_costs!$D:$D,MATCH(Q211,raw_transmission_costs!$A:$A,0)),0) -> 0.9070294785 | R212: =IFERROR(INDEX(raw_transmission_costs!$D:$D,MATCH(R211,raw_transmission_costs!$A:$A,0)),0) -> 0.8638375985 | S212: =IFERROR(INDEX(raw_transmission_costs!$D:$D,MATCH(S211,raw_transmission_costs!$A:$A,0)),0) -> 1.214465558 | T212: =IFERROR(INDEX(raw_transmission_costs!$D:$D,MATCH(T211,raw_transmission_costs!$A:$A,0)),0) -> 0 | U212: =IFERROR(INDEX(raw_transmission_costs!$D:$D,MATCH(U211,raw_transmission_costs!$A:$A,0)),0) -> 2.170561388 | V212: =IFERROR(INDEX(raw_transmission_costs!$D:$D,MATCH(V211,raw_transmission_costs!$A:$A,0)),0) -> 0 | W212: =IFERROR(INDEX(raw_transmission_costs!$D:$D,MATCH(W211,raw_transmission_costs!$A:$A,0)),0) -> 0 | X212: =IFERROR(INDEX(raw_transmission_costs!$D:$D,MATCH(X211,raw_transmission_costs!$A:$A,0)),0) -> 0 | Y212: =IFERROR(INDEX(raw_transmission_costs!$D:$D,MATCH(Y211,raw_transmission_costs!$A:$A,0)),0) -> 4.970631533 | Z212: =IFERROR(INDEX(raw_transmission_costs!$D:$D,MATCH(Z211,raw_transmission_costs!$A:$A,0)),0) -> 0 | AA212: =IFERROR(INDEX(raw_transmission_costs!$D:$D,MATCH(AA211,raw_transmission_costs!$A:$A,0)),0) -> 0 | AB212: =IFERROR(INDEX(raw_transmission_costs!$D:$D,MATCH(AB211,raw_transmission_costs!$A:$A,0)),0) -> 0 | AC212: =IFERROR(INDEX(raw_transmission_costs!$D:$D,MATCH(AC211,raw_transmission_costs!$A:$A,0)),0) -> 0 | AD212: =IFERROR(INDEX(raw_transmission_costs!$D:$D,MATCH(AD211,raw_transmission_costs!$A:$A,0)),0) -> 0 | AE212: =IFERROR(INDEX(raw_transmission_costs!$D:$D,MATCH(AE211,raw_transmission_costs!$A:$A,0)),0) -> 0 | AF212: =IFERROR(INDEX(raw_transmission_costs!$D:$D,MATCH(AF211,raw_transmission_costs!$A:$A,0)),0) -> 0 | AG212: =IFERROR(INDEX(raw_transmission_costs!$D:$D,MATCH(AG211,raw_transmission_costs!$A:$A,0)),0) -> 0 | AH212: =IFERROR(INDEX(raw_transmission_costs!$D:$D,MATCH(AH211,raw_transmission_costs!$A:$A,0)),0) -> 0 | AI212: =IFERROR(INDEX(raw_transmission_costs!$D:$D,MATCH(AI211,raw_transmission_costs!$A:$A,0)),0) -> 0 | AJ212: =IFERROR(INDEX(raw_transmission_costs!$D:$D,MATCH(AJ211,raw_transmission_costs!$A:$A,0)),0) -> 0 | AK212: =IFERROR(INDEX(raw_transmission_costs!$D:$D,MATCH(AK211,raw_transmission_costs!$A:$A,0)),0) -> 0 | AL212: =IFERROR(INDEX(raw_transmission_costs!$D:$D,MATCH(AL211,raw_transmission_costs!$A:$A,0)),0) -> 0 | AM212: =IFERROR(INDEX(raw_transmission_costs!$D:$D,MATCH(AM211,raw_transmission_costs!$A:$A,0)),0) -> 0 | AN212: =IFERROR(INDEX(raw_transmission_costs!$D:$D,MATCH(AN211,raw_transmission_costs!$A:$A,0)),0) -> 6.695163313 | AO212: =IFERROR(INDEX(raw_transmission_costs!$D:$D,MATCH(AO211,raw_transmission_costs!$A:$A,0)),0) -> 0 | AP212: =IFERROR(INDEX(raw_transmission_costs!$D:$D,MATCH(AP211,raw_transmission_costs!$A:$A,0)),0) -> 0 | AQ212: =IFERROR(INDEX(raw_transmission_costs!$D:$D,MATCH(AQ211,raw_transmission_costs!$A:$A,0)),0) -> 0 | AR212: =IFERROR(INDEX(raw_transmission_costs!$D:$D,MATCH(AR211,raw_transmission_costs!$A:$A,0)),0) -> 0 | AS212: =IFERROR(INDEX(raw_transmission_costs!$D:$D,MATCH(AS211,raw_transmission_costs!$A:$A,0)),0) -> 0

Sheet Portfolio Analytics
B2: Portfolio Analytics
B3: Note: All costs are expressed in 2016 dollars
B5: Energy Storage Summary
C7: Planned | D7: Unit | E7: 2015 | F7: =E7+1 -> 2016 | G7: 2017 | H7: 2018 | I7: 2019 | J7: 2020 | K7: 2021 | L7: 2022 | M7: 2023 | N7: 2024 | O7: 2025 | P7: 2026 | Q7: 2027 | R7: 2028 | S7: 2029 | T7: 2030 | U7: =T7+1 -> 2031 | V7: 2032 | W7: 2033 | X7: 2034 | Y7: 2035 | Z7: 2036 | AA7: 2037 | AB7: 2038 | AC7: 2039 | AD7: 2040 | AE7: 2041 | AF7: 2042 | AG7: 2043 | AH7: 2044 | AI7: 2045 | AJ7: 2046 | AK7: 2047 | AL7: 2048 | AM7: 2049 | AN7: 2050
C8: Pumped_Hydro | D8: MW | E8: =INDEX(E$131:E$158,MATCH($C8,$C$131:$C$158,0)) -> 0 | F8: 0 | G8: 0 | H8: 0 | I8: 0 | J8: 1599.2 | K8: 1599.2 | L8: 1599.2 | M8: 1599.2 | N8: 1599.2 | O8: =INDEX(O$131:O$158,MATCH($C8,$C$131:$C$158,0)) -> 0 | P8: 1599.2 | Q8: 0 | R8: 0 | S8: 0 | T8: 1599.2 | U8: 0 | V8: 0 | W8: 0 | X8: 0 | Y8: =INDEX(Y$131:Y$158,MATCH($C8,$C$131:$C$158,0)) -> 0 | Z8: 0 | AA8: 0 | AB8: 0 | AC8: 0 | AD8: 0 | AE8: 0 | AF8: 0 | AG8: 0 | AH8: 0 | AI8: =INDEX(AI$131:AI$158,MATCH($C8,$C$131:$C$158,0)) -> 1599.2 | AJ8: 0 | AK8: 0 | AL8: 0 | AM8: 0 | AN8: 0
C9: Li_Battery | D9: MW | E9: 0 | F9: 0 | G9: 0 | H9: 0 | I9: 0 | J9: 971.35 | K9: 1321.85 | L9: 1321.85 | M9: 1543.52 | N9: 1617.45 | O9: 0 | P9: 1617.45 | Q9: 0 | R9: 0 | S9: 0 | T9: 1617.45 | U9: 0 | V9: 0 | W9: 0 | X9: 0 | Y9: 0 | Z9: 0 | AA9: 0 | AB9: 0 | AC9: 0 | AD9: 0 | AE9: 0 | AF9: 0 | AG9: 0 | AH9: 0 | AI9: 0 | AJ9: 0 | AK9: 0 | AL9: 0 | AM9: 0 | AN9: 0
C10: BTM_Li_Battery | D10: MW | E10: 0 | F10: 0 | G10: 0 | H10: 0 | I10: 0 | J10: 92.14 | K10: 92.14 | L10: 92.14 | M10: 92.14 | N10: 92.14 | O10: 0 | P10: 92.14 | Q10: 0 | R10: 0 | S10: 0 | T10: 92.14 | U10: 0 | V10: 0 | W10: 0 | X10: 0 | Y10: 0 | Z10: 0 | AA10: 0 | AB10: 0 | AC10: 0 | AD10: 0 | AE10: 0 | AF10: 0 | AG10: 0 | AH10: 0 | AI10: 92.14 | AJ10: 0 | AK10: 0 | AL10: 0 | AM10: 0 | AN10: 0
C11: Flow_Battery | D11: MW | E11: 0 | F11: 0 | G11: 0 | H11: 0 | I11: 0 | J11: 0 | K11: 0 | L11: 0 | M11: 0 | N11: 0 | O11: 0 | P11: 0 | Q11: 0 | R11: 0 | S11: 0 | T11: 0 | U11: 0 | V11: 0 | W11: 0 | X11: 0 | Y11: 0 | Z11: 0 | AA11: 0 | AB11: 0 | AC11: 0 | AD11: 0 | AE11: 0 | AF11: 0 | AG11: 0 | AH11: 0 | AI11: 0 | AJ11: 0 | AK11: 0 | AL11: 0 | AM11: 0 | AN11: 0
C12: Pumped_Hydro | D12: MWh | E12: =SUMIFS(raw_storage_build!$F:$F,raw_storage_build!$A:$A,E$7,raw_storage_build!$E:$E,$C12,raw_storage_build!$D:$D,mainzone) -> 0 | F12: =SUMIFS(raw_storage_build!$F:$F,raw_storage_build!$A:$A,F$7,raw_storage_build!$E:$E,$C12,raw_storage_build!$D:$D,mainzone) -> 0 | G12: =SUMIFS(raw_storage_build!$F:$F,raw_storage_build!$A:$A,G$7,raw_storage_build!$E:$E,$C12,raw_storage_build!$D:$D,mainzone) -> 0 | H12: =SUMIFS(raw_storage_build!$F:$F,raw_storage_build!$A:$A,H$7,raw_storage_build!$E:$E,$C12,raw_storage_build!$D:$D,mainzone) -> 0 | I12: =SUMIFS(raw_storage_build!$F:$F,raw_storage_build!$A:$A,I$7,raw_storage_build!$E:$E,$C12,raw_storage_build!$D:$D,mainzone) -> 0 | J12: =SUMIFS(raw_storage_build!$F:$F,raw_storage_build!$A:$A,J$7,raw_storage_build!$E:$E,$C12,raw_storage_build!$D:$D,mainzone) -> 252821.12 | K12: =SUMIFS(raw_storage_build!$F:$F,raw_storage_build!$A:$A,K$7,raw_storage_build!$E:$E,$C12,raw_storage_build!$D:$D,mainzone) -> 252821.12 | L12: =SUMIFS(raw_storage_build!$F:$F,raw_storage_build!$A:$A,L$7,raw_storage_build!$E:$E,$C12,raw_storage_build!$D:$D,mainzone) -> 252821.12 | M12: =SUMIFS(raw_storage_build!$F:$F,raw_storage_build!$A:$A,M$7,raw_storage_build!$E:$E,$C12,raw_storage_build!$D:$D,mainzone) -> 252821.12 | N12: =SUMIFS(raw_storage_build!$F:$F,raw_storage_build!$A:$A,N$7,raw_storage_build!$E:$E,$C12,raw_storage_build!$D:$D,mainzone) -> 252821.12 | O12: =SUMIFS(raw_storage_build!$F:$F,raw_storage_build!$A:$A,O$7,raw_storage_build!$E:$E,$C12,raw_storage_build!$D:$D,mainzone) -> 0 | P12: =SUMIFS(raw_storage_build!$F:$F,raw_storage_build!$A:$A,P$7,raw_storage_build!$E:$E,$C12,raw_storage_build!$D:$D,mainzone) -> 252821.12 | Q12: =SUMIFS(raw_storage_build!$F:$F,raw_storage_build!$A:$A,Q$7,raw_storage_build!$E:$E,$C12,raw_storage_build!$D:$D,mainzone) -> 0 | R12: =SUMIFS(raw_storage_build!$F:$F,raw_storage_build!$A:$A,R$7,raw_storage_build!$E:$E,$C12,raw_storage_build!$D:$D,mainzone) -> 0 | S12: =SUMIFS(raw_storage_build!$F:$F,raw_storage_build!$A:$A,S$7,raw_storage_build!$E:$E,$C12,raw_storage_build!$D:$D,mainzone) -> 0 | T12: =SUMIFS(raw_storage_build!$F:$F,raw_storage_build!$A:$A,T$7,raw_storage_build!$E:$E,$C12,raw_storage_build!$D:$D,mainzone) -> 252821.12 | U12: =SUMIFS(raw_storage_build!$F:$F,raw_storage_build!$A:$A,U$7,raw_storage_build!$E:$E,$C12,raw_storage_build!$D:$D,mainzone) -> 0 | V12: =SUMIFS(raw_storage_build!$F:$F,raw_storage_build!$A:$A,V$7,raw_storage_build!$E:$E,$C12,raw_storage_build!$D:$D,mainzone) -> 0 | W12: =SUMIFS(raw_storage_build!$F:$F,raw_storage_build!$A:$A,W$7,raw_storage_build!$E:$E,$C12,raw_storage_build!$D:$D,mainzone) -> 0 | X12: =SUMIFS(raw_storage_build!$F:$F,raw_storage_build!$A:$A,X$7,raw_storage_build!$E:$E,$C12,raw_storage_build!$D:$D,mainzone) -> 0 | Y12: =SUMIFS(raw_storage_build!$F:$F,raw_storage_build!$A:$A,Y$7,raw_storage_build!$E:$E,$C12,raw_storage_build!$D:$D,mainzone) -> 0 | Z12: =SUMIFS(raw_storage_build!$F:$F,raw_storage_build!$A:$A,Z$7,raw_storage_build!$E:$E,$C12,raw_storage_build!$D:$D,mainzone) -> 0 | AA12: =SUMIFS(raw_storage_build!$F:$F,raw_storage_build!$A:$A,AA$7,raw_storage_build!$E:$E,$C12,raw_storage_build!$D:$D,mainzone) -> 0 | AB12: =SUMIFS(raw_storage_build!$F:$F,raw_storage_build!$A:$A,AB$7,raw_storage_build!$E:$E,$C12,raw_storage_build!$D:$D,mainzone) -> 0 | AC12: =SUMIFS(raw_storage_build!$F:$F,raw_storage_build!$A:$A,AC$7,raw_storage_build!$E:$E,$C12,raw_storage_build!$D:$D,mainzone) -> 0 | AD12: =SUMIFS(raw_storage_build!$F:$F,raw_storage_build!$A:$A,AD$7,raw_storage_build!$E:$E,$C12,raw_storage_build!$D:$D,mainzone) -> 0 | AE12: =SUMIFS(raw_storage_build!$F:$F,raw_storage_build!$A:$A,AE$7,raw_storage_build!$E:$E,$C12,raw_storage_build!$D:$D,mainzone) -> 0 | AF12: =SUMIFS(raw_storage_build!$F:$F,raw_storage_build!$A:$A,AF$7,raw_storage_build!$E:$E,$C12,raw_storage_build!$D:$D,mainzone) -> 0 | AG12: =SUMIFS(raw_storage_build!$F:$F,raw_storage_build!$A:$A,AG$7,raw_storage_build!$E:$E,$C12,raw_storage_build!$D:$D,mainzone) -> 0 | AH12: =SUMIFS(raw_storage_build!$F:$F,raw_storage_build!$A:$A,AH$7,raw_storage_build!$E:$E,$C12,raw_storage_build!$D:$D,mainzone) -> 0 | AI12: =SUMIFS(raw_storage_build!$F:$F,raw_storage_build!$A:$A,AI$7,raw_storage_build!$E:$E,$C12,raw_storage_build!$D:$D,mainzone) -> 252821.12 | AJ12: =SUMIFS(raw_storage_build!$F:$F,raw_storage_build!$A:$A,AJ$7,raw_storage_build!$E:$E,$C12,raw_storage_build!$D:$D,mainzone) -> 0 | AK12: =SUMIFS(raw_storage_build!$F:$F,raw_storage_build!$A:$A,AK$7,raw_storage_build!$E:$E,$C12,raw_storage_build!$D:$D,mainzone) -> 0 | AL12: =SUMIFS(raw_storage_build!$F:$F,raw_storage_build!$A:$A,AL$7,raw_storage_build!$E:$E,$C12,raw_storage_build!$D:$D,mainzone) -> 0 | AM12: =SUMIFS(raw_storage_build!$F:$F,raw_storage_build!$A:$A,AM$7,raw_storage_build!$E:$E,$C12,raw_storage_build!$D:$D,mainzone) -> 0 | AN12: =SUMIFS(raw_storage_build!$F:$F,raw_storage_build!$A:$A,AN$7,raw_storage_build!$E:$E,$C12,raw_storage_build!$D:$D,mainzone) -> 0
C13: Li_Battery | D13: MWh | E13: =SUMIFS(raw_storage_build!$F:$F,raw_storage_build!$A:$A,E$7,raw_storage_build!$E:$E,$C13,raw_storage_build!$D:$D,mainzone)+E9*1 -> 0 | F13: =SUMIFS(raw_storage_build!$F:$F,raw_storage_build!$A:$A,F$7,raw_storage_build!$E:$E,$C13,raw_storage_build!$D:$D,mainzone)+F9*1 -> 0 | G13: =SUMIFS(raw_storage_build!$F:$F,raw_storage_build!$A:$A,G$7,raw_storage_build!$E:$E,$C13,raw_storage_build!$D:$D,mainzone)+G9*1 -> 0 | H13: =SUMIFS(raw_storage_build!$F:$F,raw_storage_build!$A:$A,H$7,raw_storage_build!$E:$E,$C13,raw_storage_build!$D:$D,mainzone)+H9*1 -> 0 | I13: =SUMIFS(raw_storage_build!$F:$F,raw_storage_build!$A:$A,I$7,raw_storage_build!$E:$E,$C13,raw_storage_build!$D:$D,mainzone)+I9*1 -> 0 | J13: =SUMIFS(raw_storage_build!$F:$F,raw_storage_build!$A:$A,J$7,raw_storage_build!$E:$E,$C13,raw_storage_build!$D:$D,mainzone)+J9*1 -> 3885.4 | K13: =SUMIFS(raw_storage_build!$F:$F,raw_storage_build!$A:$A,K$7,raw_storage_build!$E:$E,$C13,raw_storage_build!$D:$D,mainzone)+K9*1 -> 5287.4 | L13: =SUMIFS(raw_storage_build!$F:$F,raw_storage_build!$A:$A,L$7,raw_storage_build!$E:$E,$C13,raw_storage_build!$D:$D,mainzone)+L9*1 -> 5582.4 | M13: =SUMIFS(raw_storage_build!$F:$F,raw_storage_build!$A:$A,M$7,raw_storage_build!$E:$E,$C13,raw_storage_build!$D:$D,mainzone)+M9*1 -> 6174.07 | N13: =SUMIFS(raw_storage_build!$F:$F,raw_storage_build!$A:$A,N$7,raw_storage_build!$E:$E,$C13,raw_storage_build!$D:$D,mainzone)+N9*1 -> 6469.8 | O13: =SUMIFS(raw_storage_build!$F:$F,raw_storage_build!$A:$A,O$7,raw_storage_build!$E:$E,$C13,raw_storage_build!$D:$D,mainzone)+O9*1 -> 0 | P13: =SUMIFS(raw_storage_build!$F:$F,raw_storage_build!$A:$A,P$7,raw_storage_build!$E:$E,$C13,raw_storage_build!$D:$D,mainzone)+P9*1 -> 6469.8 | Q13: =SUMIFS(raw_storage_build!$F:$F,raw_storage_build!$A:$A,Q$7,raw_storage_build!$E:$E,$C13,raw_storage_build!$D:$D,mainzone)+Q9*1 -> 0 | R13: =SUMIFS(raw_storage_build!$F:$F,raw_storage_build!$A:$A,R$7,raw_storage_build!$E:$E,$C13,raw_storage_build!$D:$D,mainzone)+R9*1 -> 0 | S13: =SUMIFS(raw_storage_build!$F:$F,raw_storage_build!$A:$A,S$7,raw_storage_build!$E:$E,$C13,raw_storage_build!$D:$D,mainzone)+S9*1 -> 0 | T13: =SUMIFS(raw_storage_build!$F:$F,raw_storage_build!$A:$A,T$7,raw_storage_build!$E:$E,$C13,raw_storage_build!$D:$D,mainzone)+T9*1 -> 6469.8 | U13: =SUMIFS(raw_storage_build!$F:$F,raw_storage_build!$A:$A,U$7,raw_storage_build!$E:$E,$C13,raw_storage_build!$D:$D,mainzone)+U9*1 -> 0 | V13: =SUMIFS(raw_storage_build!$F:$F,raw_storage_build!$A:$A,V$7,raw_storage_build!$E:$E,$C13,raw_storage_build!$D:$D,mainzone)+V9*1 -> 0 | W13: =SUMIFS(raw_storage_build!$F:$F,raw_storage_build!$A:$A,W$7,raw_storage_build!$E:$E,$C13,raw_storage_build!$D:$D,mainzone)+W9*1 -> 0 | X13: =SUMIFS(raw_storage_build!$F:$F,raw_storage_build!$A:$A,X$7,raw_storage_build!$E:$E,$C13,raw_storage_build!$D:$D,mainzone)+X9*1 -> 0 | Y13: =SUMIFS(raw_storage_build!$F:$F,raw_storage_build!$A:$A,Y$7,raw_storage_build!$E:$E,$C13,raw_storage_build!$D:$D,mainzone)+Y9*1 -> 0 | Z13: =SUMIFS(raw_storage_build!$F:$F,raw_storage_build!$A:$A,Z$7,raw_storage_build!$E:$E,$C13,raw_storage_build!$D:$D,mainzone)+Z9*1 -> 0 | AA13: =SUMIFS(raw_storage_build!$F:$F,raw_storage_build!$A:$A,AA$7,raw_storage_build!$E:$E,$C13,raw_storage_build!$D:$D,mainzone)+AA9*1 -> 0 | AB13: =SUMIFS(raw_storage_build!$F:$F,raw_storage_build!$A:$A,AB$7,raw_storage_build!$E:$E,$C13,raw_storage_build!$D:$D,mainzone)+AB9*1 -> 0 | AC13: =SUMIFS(raw_storage_build!$F:$F,raw_storage_build!$A:$A,AC$7,raw_storage_build!$E:$E,$C13,raw_storage_build!$D:$D,mainzone)+AC9*1 -> 0 | AD13: =SUMIFS(raw_storage_build!$F:$F,raw_storage_build!$A:$A,AD$7,raw_storage_build!$E:$E,$C13,raw_storage_build!$D:$D,mainzone)+AD9*1 -> 0 | AE13: =SUMIFS(raw_storage_build!$F:$F,raw_storage_build!$A:$A,AE$7,raw_storage_build!$E:$E,$C13,raw_storage_build!$D:$D,mainzone)+AE9*1 -> 0 | AF13: =SUMIFS(raw_storage_build!$F:$F,raw_storage_build!$A:$A,AF$7,raw_storage_build!$E:$E,$C13,raw_storage_build!$D:$D,mainzone)+AF9*1 -> 0 | AG13: =SUMIFS(raw_storage_build!$F:$F,raw_storage_build!$A:$A,AG$7,raw_storage_build!$E:$E,$C13,raw_storage_build!$D:$D,mainzone)+AG9*1 -> 0 | AH13: =SUMIFS(raw_storage_build!$F:$F,raw_storage_build!$A:$A,AH$7,raw_storage_build!$E:$E,$C13,raw_storage_build!$D:$D,mainzone)+AH9*1 -> 0 | AI13: =SUMIFS(raw_storage_build!$F:$F,raw_storage_build!$A:$A,AI$7,raw_storage_build!$E:$E,$C13,raw_storage_build!$D:$D,mainzone)+AI9*1 -> 4852.35 | AJ13: =SUMIFS(raw_storage_build!$F:$F,raw_storage_build!$A:$A,AJ$7,raw_storage_build!$E:$E,$C13,raw_storage_build!$D:$D,mainzone)+AJ9*1 -> 0 | AK13: =SUMIFS(raw_storage_build!$F:$F,raw_storage_build!$A:$A,AK$7,raw_storage_build!$E:$E,$C13,raw_storage_build!$D:$D,mainzone)+AK9*1 -> 0 | AL13: =SUMIFS(raw_storage_build!$F:$F,raw_storage_build!$A:$A,AL$7,raw_storage_build!$E:$E,$C13,raw_storage_build!$D:$D,mainzone)+AL9*1 -> 0 | AM13: =SUMIFS(raw_storage_build!$F:$F,raw_storage_build!$A:$A,AM$7,raw_storage_build!$E:$E,$C13,raw_storage_build!$D:$D,mainzone)+AM9*1 -> 0 | AN13: =SUMIFS(raw_storage_build!$F:$F,raw_storage_build!$A:$A,AN$7,raw_storage_build!$E:$E,$C13,raw_storage_build!$D:$D,mainzone)+AN9*1 -> 0
